Workbook

Sheet Recap Sheet
A1: South Carolina School Food Service Purchasing Alliance,Inc
A2: School Food Authority or Agency Name: | B2: Marion County School District
A3: Bidder's Name:
A4: Firm Fixed Fee
A5: Bid Recap
A6: Categories | B6: Subtotals
A7: Beef 100-2000 | B7: =Beef!M97 -> 18438.5
A8: Chicken 2001-4000 | B8: =Chicken!M256 -> 59073.55
A9: Turkey 4001-6000 | B9: =Turkey!M83 -> 19923.3
A10: Fish 6001-8000 | B10: =Fish!M45 -> 0
A11: Pork 8001-10000 | B11: =Pork!M57 -> 12071.48
A12: Pizza 10001-12000 | B12: ='Pizza '!M183 -> 7460
A13: Frozen Entrees 12001-14000 | B13: ='Frozen Entrees'!M89 -> 6876
A14: Dairy & Yogurt 14001-16000 | B14: ='Dairy & Yogurt'!M95 -> 4606
A15: Franks & Corn Dogs 16001-18000 | B15: ='Franks & Corn Dogs'!M74 -> 3385
A16: Eggs 18001-20000 | B16: =Eggs!M57 -> 3186.4
A17: Frozen Potato 20001-22000 | B17: ='Frozen Potato '!M98 -> 23461
A18: Fruit 22001-24000 | B18: =Fruit!M128 -> 26510.05
A19: Shelf-stable Vegetables 24001- 26000 | B19: ='Shelf-stable Vegetables'!M102 -> 6186.18
A20: Frozen Juice 26001-28000 | B20: ='Frz Juice'!M77 -> 0
A21: Breakfast Products 28001- 30000 | B21: ='Breakfast Products'!M339 -> 39375.13
A22: Smart Snacks 30001 - 32000 | B22: ='Smart Snacks'!M137 -> 24670.41
A23: Beverages 32001 - 34000 | B23: =Beverages!M78 -> 2728.6
A24: Condiments Portion Control 34001- 36000 | B24: ='Condiments Portion Control'!M169 -> 20295.61
A25: Groceries 36001-38000 | B25: =Groceries!M207 -> 0
A26: Frozen Vegetables 38001- 40000 | B26: ='Frz Vegetables'!M68 -> 0
A27: Spices- Flavorings 40001 - 42000 | B27: ='Spices- Flavorings'!M157 -> 0
A28: Frozen Bread 42001- 44000 | B28: ='Frz Bread'!M121 -> 70511.1
A29: Special Diet Foods 44001 - 46000 | B29: ='Special Diet Foods'!M62 -> 0
A30: Disposables 46001- 48000 | B30: =Disposables!M233 -> 0
A31: Chemicals 48001 - 50000 | B31: =Chemicals!M17 -> 0
A32: Lot A Total | B32: =SUM(B7:B31) -> 348758.31

Sheet Instructions (hidden)
A1: South Carolina School Food Service Purchasing Alliance, Inc.
A2: Manufactured Direct/Commodity Processing Bid
A3: 2021-2022
A4: Instructions for Manufacturers
A6: The South Carolina School Food Service Purchasing Alliance, Inc. (hereafter SCSFSPA) is requesting guaranteed fixed delivered pricing for items listed in the eighteen (18) categories from August 1, 2021 -July 31, 2022. Prices received shall be delivered pricing to all distributors specified.
A7: The SCSFSPA does not guarantee the accuracy of estimates or continued use of products by SCSFSPA member districts. Pricing secured on this bid will be guaranteed to all SCSFSPA distributors for use on SCSFSPA bids only during the 2021-2022 school year. Quantities entered are estimates of annual usage figures based on all distributor usage reports and commodity usage reports from tracking agencies.
E8: ABC Food Company
A9: Instructions: | E9: 123 Apple Valley Road
A10: 1. In order to submit Manufactured Direct Commodity Processing pricing for Solicitation B00000002122, each manufacturer submitting pricing must follow the process described herein. Failure to complete as specified may result in rejection of pricing. | E10: Ruraltown, South Carolina 123456
A11: 2. CHECK product information and make any necessary corrections to code #, vendor pack size, servings per case, or DF for commodity processing. HIGHLIGHT any cells with CHANGES in RED. Corrections to specifications can only be made through release of an Amendment to all bidders. | C11: Agency: | D11: South Carolina School Food Service Purchasing Alliance, Inc. | J11: Delivery Period and Delivered Price:
A12: 3. Instructions for Submitting Bid Pricing (See Example on the right) | C12: Bid # | D12: B00000001920 | F12: Distributors: | H12: Gordon FS- Kannapolis NC, Merchants FS - Newberry SC, Sysco Foodservice of SC- Columbia SC,
A13: a On company letterhead, please include the following information: | H13: US Foods Inc.-Fort Mill,SC, US Foods Inc.- Lexington, SC
A14: b. Company name, address,
A15: c. Include Bid #B00000002122 | B15: Item # | C15: Category | D15: Product Description | F15: Brand | H15: Vendor | I15: Est. Bid | J15: Delivered | K15: NOI | L15: Processing
A16: d. Include South Carolina School Food Service Purchasing Alliance, Inc. as "Agency" | F16: Name | H16: Pack | I16: Qty | J16: Case | K16: Eligible | L16: Fee for
A17: e. Include names of authorized distributors: Gordon Foodservice-Kannapolis, NC, Merchants Foodservice-Newberry. SC, Sysco Food Services of SC-Columbia, SC, US Foods Inc.-Fort Mill, SC and US Foods Inc.-Lexington, SC | J17: Price | L17: Service
A18: f. Include "Delivery Period and Price Guarantee: 08/01/21 - 07/31/22" | B18: 1 | C18: Beef | D18: Beef Patties | F18: ABC | H18: 200/2.4oz | I18: 500 | J18: 25 | K18: NO | L18: 52.5
A19: g. TAB TO CATEGORY and include Item # COLUMN A, Product Description COLUMN B, Manufacturer Commercial Product Code # COLUMN D, Vendor Pack COLUMN E, Estimated Bid Qty COLUMN I, | B19: 2 | C19: Beef | D19: Beef Patties, No TVP | F19: ABC | H19: 50/3.10oz | I19: 600 | J19: 35 | K19: YES | L19: NO
A20: h. Enter commerical case price for each product that you are bidding. Price quoted is delivered to all SCSFSA distributors listed in 3(e). | B20: 8 | C20: Chicken | D20: Chicken Patty | F20: Cluckin | H20: 40/3.50z | I20: 2000 | J20: 45 | K20: NO | L20: 42.5
A21: i. Only one price may be entered for each product unless otherwise specified. We will not accept bracketed pricing.
A22: j. NOI (Net Off Invoicing): If product is eligible for NOI purchases, designate "NOI YES OR NO". | D22: I am authorized to submit pricing on behalf of the manufacturer and the products listed herein.
A23: k. FFS (Fee for Service): If product is processed through Fee for Service, Include the dollar amount for "Processing Fee for Service"
A24: l. Include the statement, "I am authorized to submit pricing on behalf of the manufacturer and products listed herein". Print name and sign.
A25: 4. All PRODUCTS included in this bid sheet have been PREAPPROVED. No products may be added to specifications unless issued through an amendment. | D25: John E. Doe
A26: 5. COMMODITY VALUES came from the SY22 Summary End Product Data Schedule (NPA SEPDS A). | D26: John E. Doe
A27: 6. The commodity draw per case (DF) has been entered in column "S" from the latest available information. If corrections are
A28: made, highlight the cell in RED.
A29: 7. Complete pricing for each item and email to Donnie Chavis at director@scpurchasingalliance.org no later than 11:59 pm (EST) Tuesday, February 5, 2021.
A32: Method of Award
A33: Commercial Line Item: Lowest Bidder: Total Cost per Serving per Specification
A34: Award Formula: Commercial Bid Price (COLUMN L) / Servings per Case (COLUMN G) Equals Total Gross Cost Per Serving
A35: (COLUMN N)
A37: Commodity Line Item: Lowest Bidder: Total Cost per Serving per Specification
A38: Award Formula: Processing Fee for Service (COLUMN R/Servings per Case (COLUMN Y) (If applicable)

Sheet Beef
B1: ='Recap Sheet'!A2 -> School Food Authority or Agency Name: | F1: ='Recap Sheet'!A3 -> Bidder's Name:
A2: 100- | B2: ='Recap Sheet'!B2 -> Marion County School District | C2: Return to Recap Sheet | F2: ='Recap Sheet'!B3 -> 0 | S2: Commodity
A3: 2000 | B3: Description | C3: Approved Brand Name | G3: Firm Fixed Fee | L3: ='Recap Sheet'!B4 -> 0 | O3: Manufacturer | P3: Vendor Pack | Q3: Servings per case | R3: Processing | S3: Lbs of DF | T3: Comm. $ | U3: Total Cost | V3: NOI ? | W3: NOI | X3: Net NOI | Y3: Fee for Serivce | Z3: FFS + Comm.
A4: SCPA | D4: Manufacturers | E4: Distributor | F4: Vendor | G4: Svgs | H4: Est. | I4: Bid | J4: Bid | K4: Unit | L4: Unit Price | M4: Total | N4: Cost per | O4: USDA Product | R4: Fee for | S4: Needed/cs | T4: Per Case | U4: Proc Fee + | V4: Enter | W4: Net | X4: Cost Per | Y4: Cost Per Serv. | Z4: Value Cost/serv
A5: Code | D5: Code | E5: Code | F5: Pack | G5: per unit | H5: Bid Qty | I5: Qty | J5: Unit | K5: Price | L5: plus Fee | M5: Price | N5: Serving | O5: Code | R5: Service | U5: Comm Value | V5: Y or N | W5: Price | X5: Serving | Y5: Processing Fee | Z5: U ÷ Q
B6: Category: Beef | O6: Beef Coarse Grd 60# | Q6: 100154 | R6: Commodity Value per lb | U6: 2.687
A8: 100 | B8: Beef Chili, (For Hot Dogs) | C8: Chandler | D8: 65-464 | F8: 4/5 lbs | G8: 160 | H8: 50 | I8: =ROUND(H8*G8/G8,2) -> 50 | J8: Cs | K8: 31.6 | L8: =IF(OR(ISBLANK(K8),K8=0,H8=0,ISBLANK(H8)),,ROUND(K8+$L$3,2)) -> 31.6 | M8: =ROUND(I8*L8,2) -> 1580 | N8: =ROUND(L8/G8,4) -> 0.1975
B9: Frozen, Fully cooked, No beans, 40-80 calories with no more than 1 g | C9: JTM | D9: 5320CE | F9: 6/5# | G9: 104 | I9: =ROUND(H8*G8/G9,2) -> 76.92 | J9: Cs | L9: =IF(OR(ISBLANK(K9),K9=0,H8=0,ISBLANK(H8)),,ROUND(K9+$L$3,2)) -> 0 | M9: =ROUND(I9*L9,2) -> 0 | N9: =ROUND(L9/G9,4) -> 0 | O9: CP5320 | P9: 6/5 lbs | Q9: 104 | R9: 29.29 | S9: 9.12 | T9: =ROUND($U$6*S9,2) -> 24.51 | U9: =IF(ISBLANK(O9),,R9+T9) -> 53.8 | V9: N | W9: =IF(ISNUMBER(R9),IF(V9="Y",(K9-T9))) -> FALSE | X9: =W9/Q9 -> 0 | Y9: 0.2816346154 | Z9: 0.5173076923
B10: saturated fat and 250 mg sodium per 2 oz. serving.
B11: Possible Allergens: Soy, Wheat
A12: 101 | B12: Beef Crumbles, Unseasoned | C12: Don Lee Farms | D12: CN1540L | F12: 4/10 lbs | G12: 320 | I12: =ROUND(H12*G12/G12,2) -> 0 | J12: Cs | K12: 111.6 | L12: =IF(OR(ISBLANK(K12),K12=0,H12=0,ISBLANK(H12)),,ROUND(K12+$L$3,2)) -> 0 | M12: =ROUND(I12*L12,2) -> 0 | N12: =ROUND(L12/G12,4) -> 0 | O12: CNQ15401 | P12: 4/10# | Q12: 320 | R12: 29.6 | S12: 64.52 | T12: =ROUND($U$6*S12,2) -> 173.37 | U12: =IF(ISBLANK(O12),,R12+T12) -> 202.97 | V12: N | W12: =IF(ISNUMBER(R12),IF(V12="Y",(K12-T12))) -> FALSE | X12: =W12/G12 -> 0 | Y12: 0.0925 | Z12: 0.63428125
B13: Frozen, fully cooked ground beef, (no more than 20% fat), 100-150 | C13: Adv. Pierre | D13: 10000019132 | F13: 236/2.03z | G13: 236 | I13: =ROUND(H12*G12/G13,2) -> 0 | J13: Cs | L13: =IF(OR(ISBLANK(K13),K13=0,H12=0,ISBLANK(H12)),,ROUND(K13+$L$3,2)) -> 0 | M13: =ROUND(I13*L13,2) -> 0 | N13: =ROUND(L13/G13,4) -> 0 | O13: 10000032041 | P13: 236/2.03 oz | Q13: 236 | S13: 47.72 | T13: =ROUND($U$6*S13,2) -> 128.22 | U13: 128.22 | V13: N | W13: =IF(ISNUMBER(R13),IF(V13="Y",(K13-T13))) -> FALSE | X13: =W13/G13 -> 0
B14: calories with no more than 4 g saturated fat and 250 mg sodium per | C14: Integrated | D14: N32000B | F14: 316/2.02 z | G14: 316 | I14: =ROUND(H12*G12/G14,2) -> 0 | J14: Cs | L14: =IF(OR(ISBLANK(K14),K14=0,H12=0,ISBLANK(H12)),,ROUND(K14+$L$3,2)) -> 0 | M14: =ROUND(I14*L14,2) -> 0 | N14: =ROUND(L14/G14,4) -> 0 | O14: C32000B | P14: 316/2.02 oz. | Q14: 316 | S14: 53.19 | T14: =ROUND($U$6*S14,2) -> 142.92 | U14: 142.92 | V14: N | W14: =IF(ISNUMBER(R14),IF(V14="Y",(K14-T14))) -> FALSE | X14: =W14/G14 -> 0
B15: 2 M/MA serving. CN Labeled with serving size to provide min. 2 M/MA
B16: Possible Allergens: None
A17: 102 | B17: Beef, Meatball | C17: Don Lee Farms | D17: CN28053VS | F17: 240/2.0z | G17: 240 | H17: 50 | I17: =ROUND(H17*G22/G22,2) -> 50 | J17: Cs | K17: 71.1 | L17: =IF(OR(ISBLANK(K17),K17=0,H17=0,ISBLANK(H17)),,ROUND(K17+$L$3,2)) -> 71.1 | M17: =ROUND(I17*L17,2) -> 3555 | N17: =ROUND(L17/G17,4) -> 0.2963 | O17: CNQ28053VS | P17: 240/2.0z | Q17: 240 | R17: 23.7 | S17: 28.06 | T17: =ROUND($U$6*S17,2) -> 75.4 | U17: =IF(ISBLANK(O17),,R17+T17) -> 99.1 | V17: N | W17: =IF(ISNUMBER(R17),IF(V17="Y",(K17-T17))) -> FALSE | X17: =W17/G17 -> 0 | Y17: 0.09875 | Z17: 0.4129166667
B18: Frozen, IQF, Fully cooked ground beef (no more than 30% fat) | C18: Maid Rite | D18: 75156-04105 | F18: 960/.5z | G18: 192 | I18: =ROUND(H17*G22/G18,2) -> 50 | J18: Cs | L18: =IF(OR(ISBLANK(K18),K18=0,H17=0,ISBLANK(H17)),,ROUND(K18+$L$3,2)) -> 0 | M18: 0 | N18: 0 | O18: 75156-94105 | P18: 960/.5 oz | Q18: 192 | S18: 24.935 | T18: 67 | U18: 67 | V18: N | W18: FALSE | X18: 0
B19: 100-200 calories with no more than 6 g saturated fat and 300 mg | C19: Integrated | D19: N22050B | F19: 1280/.5z | G19: 256 | I19: =ROUND(H17*G22/G19,2) -> 37.5 | J19: Cs | L19: =IF(OR(ISBLANK(K19),K19=0,H17=0,ISBLANK(H17)),,ROUND(K19+$L$3,2)) -> 0 | M19: 0 | N19: 0 | O19: C22050B | P19: 1280/.5 oz | Q19: 256 | S19: 34.34 | T19: 92.27 | U19: 92.27 | V19: N | W19: FALSE | X19: 0
B20: sodium per serving. CN Labeled for 5 meatballs to provide min 2 M/MA | C20: JTM | D20: 5030CE | F20: 171.2.80z | G20: 171 | I20: =ROUND(H17*G22/G20,2) -> 56.14 | J20: Cs | L20: =IF(OR(ISBLANK(K20),K20=0,H17=0,ISBLANK(H17)),,ROUND(K20+$L$3,2)) -> 0 | M20: 0 | N20: 0 | O20: CP5030 | P20: 171/2.80 oz. | Q20: 171 | S20: 23.78 | T20: 63.9 | U20: 63.9 | V20: N | W20: FALSE | X20: 0
B21: VPP allowed | C21: Rich Products | D21: 55668 | F21: 2/5 lb | G21: 64 | I21: =ROUND(H17*G22/G21,2) -> 150 | J21: Cs | L21: =IF(OR(ISBLANK(K21),K21=0,H17=0,ISBLANK(H17)),,ROUND(K21+$L$3,2)) -> 0 | M21: 0 | N21: 0
B22: Possible Allergens: Wheat, Soy and Milk | C22: Adv. Pierre | D22: 10000097726 | F22: 960/.5z | G22: 192 | I22: =ROUND(H17*G22/G17,2) -> 40 | J22: Cs | L22: =IF(OR(ISBLANK(K22),K22=0,H17=0,ISBLANK(H17)),,ROUND(K22+$L$3,2)) -> 0 | M22: 0 | N22: 0 | O22: 10000011750 | P22: 192/2.5 oz | Q22: 192 | S22: 23.4 | T22: 62.88 | U22: =IF(ISBLANK(O22),,R22+T22) -> 62.88 | V22: N | W22: FALSE | X22: 0
A24: 103 | B24: Beef Nugget, Teriyaki | C24: Don Lee Farms | D24: CNTDO753 | F24: 160/3.0z | G24: 160 | I24: =ROUND(H24*G24/G24,2) -> 0 | J24: Cs | K24: 64.8 | L24: =IF(OR(ISBLANK(K24),K24=0,H24=0,ISBLANK(H24)),,ROUND(K24+$L$3,2)) -> 0 | M24: =ROUND(I24*L24,2) -> 0 | N24: =ROUND(L24/G24,4) -> 0 | O24: CNQTDO753 | P24: 160/3.0z | Q24: 160 | R24: 22.5 | S24: 29.41 | T24: =ROUND($U$6*S24,2) -> 79.02 | U24: =IF(ISBLANK(O24),,R24+T24) -> 101.52 | V24: N | W24: =IF(ISNUMBER(K24),IF(V24="Y",(K24-T24))) -> FALSE | X24: 0 | Y24: 0.140625 | Z24: 0.6345
B25: Frozen, Fully cooked ground beef (no more than 30% fat) | C25: Advance Pierre | D25: 10000003940 | F25: 143/2.80z | G25: 143 | I25: =ROUND(H24*G24/G25,2) -> 0 | J25: Cs | L25: =IF(OR(ISBLANK(K25),K25=0,H24=0,ISBLANK(H24)),,ROUND(K25+$L$3,2)) -> 0 | M25: =ROUND(I25*L25,2) -> 0 | N25: =ROUND(L25/G25,4) -> 0 | O25: 10000013740 | P25: 143/2.8z | Q25: 143 | S25: 22.85 | T25: =ROUND($U$6*S25,2) -> 61.4 | U25: =IF(ISBLANK(O25),,R25+T25) -> 61.4 | V25: N | W25: =IF(ISNUMBER(K25),IF(V25="Y",(K25-T25))) -> FALSE | X25: 0
B26: 100-200 calories with no more than 4g saturated fat and 450 mg | C26: AFG | D26: 90927 | F26: 143/2.80z 143 | G26: 143 | I26: =ROUND(H24*G24/G26,2) -> 0 | J26: Cs | L26: =IF(OR(ISBLANK(K26),K26=0,H24=0,ISBLANK(H24)),,ROUND(K26+$L$3,2)) -> 0 | M26: =ROUND(I26*L26,2) -> 0 | N26: =ROUND(L26/G26,4) -> 0
B27: sodium per serving. CN Labeled for 4 nuggets to provide 2 M/MA VPP
B28: Possible Allergens: Wheat, Soy
A29: 104 | B29: Beef Steak Patties, Breaded | C29: Advanced Pierre | D29: 10000068131 | F29: 85/3.80z | G29: 85 | H29: 50 | I29: =ROUND(H29*G29/G29,2) -> 50 | J29: Cs | K29: 68.98 | L29: =IF(OR(ISBLANK(K29),K29=0,H29=0,ISBLANK(H29)),,ROUND(K29+$L$3,2)) -> 68.98 | M29: =ROUND(I29*L29,2) -> 3449 | N29: =ROUND(L29/G29,4) -> 0.8115 | O29: 10000069035 | P29: 85/3.8z | Q29: 85 | R29: 28.04 | S29: 15.71 | T29: =ROUND($U$6*S29,2) -> 42.21 | U29: =IF(ISBLANK(O29),,R29+T29) -> 70.25 | V29: N | W29: =IF(ISNUMBER(R29),IF(V29="Y",(K29-T29))) -> FALSE | X29: =W29/G29 -> 0 | Y29: 0.3298823529 | Z29: 0.8264705882
B30: Frozen, Fully cooked, ground beef (no more than 20% fat) 100-200
B31: calories with no more than 5 g saturated fat and 300 mg sodium per
B32: serving. CN Labeled for one portion to provide 2 M/MA. Pack in oven sle
B33: Possible Allergens: Soy
A34: 105 | B34: Beef Patte, Flame or Charbroiled | C34: Don Lee Farms | D34: CN202503 | F34: 198/2.50 z | G34: 198 | H34: 50 | I34: =ROUND(H34*G34/G34,2) -> 50 | J34: Cs | K34: 54.15 | L34: =IF(OR(ISBLANK(K34),K34=0,H34=0,ISBLANK(H34)),,ROUND(K34+$L$3,2)) -> 54.15 | M34: =ROUND(I34*L34,2) -> 2707.5 | N34: =ROUND(L34/G34,4) -> 0.2735 | O34: CNQ212503 | P34: 200/2.50 oz | Q34: 200 | R34: 22.81 | S34: 22.29 | T34: =ROUND($U$6*S34,2) -> 59.89 | U34: =IF(ISBLANK(O34),,R34+T34) -> 82.7 | V34: N | W34: =IF(ISNUMBER(R34),IF(V34="Y",(K34-T34))) -> FALSE | X34: =W34/G34 -> 0 | Y34: 0.11405 | Z34: 0.4135
B35: Frozen, IQF, Fully cooked ground beef no more than 20% fat) | C35: Advance | D35: 10000015552 | F35: 200/2.5z | G35: 200 | I35: =ROUND($H$34*$G$34/G35,2) -> 49.5 | J35: Cs | L35: =IF(OR(ISBLANK(K35),K35=0,H34=0,ISBLANK(H34)),,ROUND(K35+$L$3,2)) -> 0 | M35: =ROUND(I35*L35,2) -> 0 | N35: =ROUND(L35/G35,4) -> 0
C36: Maid Rite | D36: 75156-03427 | F36: 213/2.25z | G36: 213 | I36: =ROUND($H$34*$G$34/G36,2) -> 46.48 | J36: Cs | L36: =IF(OR(ISBLANK(K36),K36=0,H34=0,ISBLANK(H34)),,ROUND(K36+$L$3,2)) -> 0 | M36: =ROUND(I36*L36,2) -> 0 | N36: =ROUND(L36/G36,4) -> 0 | O36: 75156-93427 | P36: 213/2.25 oz. | Q36: 213 | S36: 35.06 | T36: =ROUND($U$6*S36,2) -> 94.21 | U36: =IF(ISBLANK(O36),,R36+T36) -> 94.21 | V36: N | W36: =IF(ISNUMBER(R36),IF(V36="Y",(K36-T36))) -> FALSE | X36: =W36/G36 -> 0
B37: Alternate protein products must meet the requirements in Apendix A
B38: of 7 CFR 210. Sodium content is not more than 250 mg per serving
B39: Product provides 2 oz. M/MA per serving.
B40: Possible Allergens: Soy
A41: 106 | B41: Beef Patties, No TVP | C41: Integrated | D41: N32300B-NF | F41: 90/3.0z | G41: 90 | I41: =ROUND(H41*G41/G41,2) -> 0 | J41: Cs | K41: 63.8 | L41: =IF(OR(ISBLANK(K41),K41=0,H41=0,ISBLANK(H41)),,ROUND(K41+$L$3,2)) -> 0 | M41: =ROUND(I41*L41,2) -> 0 | N41: =ROUND(L41/G41,4) -> 0 | O41: C32300B-NF | P41: 90/3.0 0z. | Q41: 90 | R41: 24.47 | S41: 22.58 | T41: =ROUND($U$6*S41,2) -> 60.67 | U41: =IF(ISBLANK(O41),,R41+T41) -> 85.14 | V41: N | W41: =IF(ISNUMBER(R41),IF(V41="Y",(K41-T41))) -> FALSE | X41: =W41/G41 -> 0 | Y41: 0.2718888889 | Z41: 0.946
B42: Frozen, IQF, Fully cooked ground beef, Not more than 20% fat Sodium | C42: Integrated | O42: C32400B | P42: 90/4.0z | Q42: 90 | R42: 29.88 | S42: 30.11 | T42: =ROUND($U$6*S42,2) -> 80.91 | U42: =IF(ISBLANK(O42),,R42+T42) -> 110.79 | V42: N | W42: =IF(ISNUMBER(R42),IF(V42="Y",(K42-T42))) -> FALSE | X42: =W42/Q42 -> 0 | Y42: 0.332 | Z42: 1.231
B43: not to exceed 275 mg sodium per serving Must provide 2.0 oz. M/MA | C43: Integrated | D43: N32225B | F43: 140/2.25z | G43: 140 | I43: =ROUND(H43*G43/G43,2) -> 0 | J43: Cs | K43: 78.45 | L43: =IF(OR(ISBLANK(K43),K43=0,H43=0,ISBLANK(H43)),,ROUND(K43+$L$3,2)) -> 0 | M43: =ROUND(I43*L43,2) -> 0 | N43: =ROUND(L43/G43,4) -> 0 | O43: C32225B | P43: 140/2.25z | Q43: 140 | R43: 29.05 | S43: 26.34 | T43: =ROUND($U$6*S43,2) -> 70.78 | U43: =IF(ISBLANK(O43),,R43+T43) -> 99.83 | V43: N | W43: =IF(ISNUMBER(R43),IF(V43="Y",(K43-T43))) -> FALSE | X43: =W43/Q43 -> 0 | Y43: 0.2075 | Z43: 0.7130714286
B44: Possible Allergens: None Listed
A45: 107 | B45: Beef Pattie, Salisbury Steak | C45: Don Lee Farms | D45: CN752253 | F45: 200/2.25z | G45: 200 | H45: 50 | I45: =ROUND(H45*G45/G45,2) -> 50 | J45: Cs | K45: 68.18 | L45: =IF(OR(ISBLANK(K45),K45=0,H45=0,ISBLANK(H45)),,ROUND(K45+$L$3,2)) -> 68.18 | M45: =ROUND(I45*L45,2) -> 3409 | N45: =ROUND(L45/G45,4) -> 0.3409 | O45: CNQ752503 | P45: 200/2.50 oz | Q45: 200 | R45: 22.19 | S45: 33.2 | T45: =ROUND($U$6*S45,2) -> 89.21 | U45: =IF(ISBLANK(O45),,R45+T45) -> 111.4 | V45: N | W45: =IF(ISNUMBER(R45),IF(V45="Y",(K45-T45))) -> FALSE | X45: =W45/G45 -> 0 | Y45: 0.11095 | Z45: 0.557
B46: Frozen, fully cooked ground beef (no more than 30% fat) 100-200 calories | C46: Advanced Pierre | D46: 10000065300 | F46: 114/3z | G46: 114 | I46: =ROUND(H45*G45/G46,2) -> 87.72 | J46: cs | L46: =IF(OR(ISBLANK(K46),K46=0,H45=0,ISBLANK(H45)),,ROUND(K46+$L$3,2)) -> 0 | M46: =ROUND(I46*L46,2) -> 0 | N46: =ROUND(L46/G46,4) -> 0 | O46: 10000008443 | P46: 170/3z | Q46: 170 | S46: 24.25 | T46: =ROUND($U$6*S46,2) -> 65.16 | U46: =IF(ISBLANK(O46),,R46+T46) -> 65.16 | V46: N | W46: =IF(ISNUMBER(R46),IF(V46="Y",(K46-T46))) -> FALSE | X46: =W46/G46 -> 0
B47: with no more than 6 g sat fat and 450 mg sodium per serving. | C47: JTM | D47: 5632CE | F47: 172/2.78z | G47: 172 | I47: =ROUND(H45*G45/G47,2) -> 58.14 | J47: Cs | L47: =IF(OR(ISBLANK(K47),K47=0,H45=0,ISBLANK(H45)),,ROUND(K47+$L$3,2)) -> 0 | M47: =ROUND(I47*L47,2) -> 0 | N47: =ROUND(L47/G47,4) -> 0 | O47: CP5632 | P47: 172/2.78 oz. | Q47: 172 | S47: 25.38 | T47: =ROUND($U$6*S47,2) -> 68.2 | U47: =IF(ISBLANK(O47),,R47+T47) -> 68.2 | V47: N | W47: =IF(ISNUMBER(R47),IF(V47="Y",(K47-T47))) -> FALSE | X47: =W47/G47 -> 0
B48: CN labeled for one portion to provide min. 2.0 oz. M/MA. VPP Allowed | C48: AFG | D48: 90852 | F48: 208/2.30z | G48: 208 | I48: =ROUND(H45*G45/G48,2) -> 48.08 | J48: cs | L48: =IF(OR(ISBLANK(K48),K48=0,H45=0,ISBLANK(H45)),,ROUND(K48+$L$3,2)) -> 0 | M48: =ROUND(I48*L48,2) -> 0 | N48: =ROUND(L48/G48,4) -> 0 | Y48: 0
Y49: 0
B51: Possible Allergens: Wheat, Soy, Milk
A52: 108 | B52: Beef Steak Burger (Mini Slider). Charbroiled | C52: Don Lee Farms | D52: CN161203 | F52: 400/1.2z | G52: 400 | H52: 20 | I52: =ROUND(H52*G52/G52,2) -> 20 | J52: Cs | K52: 77.7 | L52: =IF(OR(ISBLANK(K52),K52=0,H52=0,ISBLANK(H52)),,ROUND(K52+$L$3,2)) -> 77.7 | M52: =ROUND(I52*L52,2) -> 1554 | N52: =ROUND(L52/G52,4) -> 0.1943 | O52: CNQ161203 | P52: 400/1.2z | Q52: 400 | R52: 21.9 | S52: 48.62 | T52: =ROUND($U$6*S52,2) -> 130.64 | U52: =IF(ISBLANK(O52),,R52+T52) -> 152.54 | V52: N | W52: =IF(ISNUMBER(R52),IF(V52="Y",(K52-T52))) -> FALSE | X52: =W52/G52 -> 0 | Y52: 0.05475 | Z52: 0.38135
B53: Frozen, Fully cooked, made from ground beef (no more than 30% fat)
B54: 0-150 calories with not more than 4 g saturated fat and 200 mg of
B55: sodium per serving. CN labeled for one portion to provide 1 M/MA
B57: Possible Allergens: None Listed Gluten Free
A58: 109 | B58: Meatloaf with Ketchup | C58: Advanced Pierre CN | D58: 10000029300 | F58: 100/3.0z | G58: 100 | H58: 50 | I58: =ROUND(H58*G58/G58,2) -> 50 | J58: Cs | K58: 43.68 | L58: =IF(OR(ISBLANK(K58),K58=0,H58=0,ISBLANK(H58)),,ROUND(K58+$L$3,2)) -> 43.68 | M58: =ROUND(I58*L58,2) -> 2184 | N58: =ROUND(L58/G58,4) -> 0.4368 | T58: =ROUND($U$6*S58,2) -> 0 | U58: =IF(ISBLANK(O58),,R58+T58) -> 0 | V58: N | W58: =IF(ISNUMBER(R58),IF(V58="Y",(K58-T58))) -> FALSE | X58: =W58/G58 -> 0 | Y58: FALSE
B59: Made from ground beef (no more than 30% fat) Fully cooked, may
B60: contain VPP One portion to provide 2 oz. M/MA
B61: Possible Allergens: Soy
A62: 110 | B62: Beef, Taco Filling Meat, Reduced Fat and Sodium | C62: JTM | D62: 5250CE | F62: 6/5 lb | G62: 151 | I62: =ROUND(H62*G62/G62,2) -> 0 | J62: Cs | K62: 69.98 | L62: =IF(OR(ISBLANK(K62),K62=0,H62=0,ISBLANK(H62)),,ROUND(K62+$L$3,2)) -> 0 | M62: =ROUND(I62*L62,2) -> 0 | N62: =ROUND(L62/G62,4) -> 0 | O62: CP5250 | P62: 6/5 lbs | Q62: 151 | R62: 28.75 | S62: 16.79 | T62: =ROUND($U$6*S62,2) -> 45.11 | U62: =IF(ISBLANK(O62),,R62+T62) -> 73.86 | V62: N | W62: =IF(ISNUMBER(R62),IF(V62="Y",(K62-T62))) -> FALSE | X62: =W62/G62 -> 0 | Y62: 0.190397351 | Z62: 0.4891390728
B63: Frozen, fully cooked ground beef, no more than 20% fat, Boilable bags,
B64: 100-200 calories with no more than 2 g sat fat and 300 mg sodium
B65: per svg. CN labeled with serving size to provide min. 2.0 oz. M/MA
B66: and 1/8 cup Red/Orange Vegetable
B67: Possible Allergens: Soy
A68: 111 | B68: Steak Nugget | C68: Advanced Pierre CN | D68: 10000009661 | F68: 133/3.6z | G68: 100 | I68: =ROUND(H68*G68/G68,2) -> 0 | J68: Cs | K68: 95.67 | L68: =IF(OR(ISBLANK(K68),K68=0,H68=0,ISBLANK(H68)),,ROUND(K68+$L$3,2)) -> 0 | M68: =ROUND(I68*L68,2) -> 0 | N68: =ROUND(L68/G68,4) -> 0 | O68: 10000096694 | P68: 133/3.6oz | Q68: 133 | R68: 47.85 | S68: 24.04 | T68: =ROUND($U$6*S68,2) -> 64.6 | U68: =IF(ISBLANK(O68),,R68+T68) -> 112.45 | V68: N | W68: =IF(ISNUMBER(R68),IF(V68="Y",(K68-T68))) -> FALSE | X68: =W68/G68 -> 0 | Y68: 0.3597744361 | Z68: 0.8454887218
B69: WGR, Fully cooked, chopped and form, frozen, One serving provides
B70: 2 0 M/MA and 1 oz. OEG
B71: Possible Allergens: Soy
A72: 112 | B72: Beef and Bean Burger | C72: Advance Pierre Discontinued | D72: 68103 | F72: 110/3.5z | G72: 110 | I72: =ROUND(H72*G72/G72,2) -> 0 | J72: Cs | L72: =IF(OR(ISBLANK(K72),K72=0,H72=0,ISBLANK(H72)),,ROUND(K72+$L$3,2)) -> 0 | M72: =ROUND(I72*L72,2) -> 0 | N72: =ROUND(L72/G72,4) -> 0
B73: Beef patty with beans, Frozen, fully cooked, 3.5 oz. patty provides
B74: 2.0 oz. M/MA and not to exceed 200 calories and 190 mg of sodium
B75: per serving. Possible Allergens:
A76: 113 | B76: Cheeseburger Meatloaf | C76: Advanced Pierre | D76: 10000036919 | F76: 100/2.90z | G76: 100 | I76: =ROUND(H76*G76/G76,2) -> 0 | J76: Cs | K76: 64.44 | L76: =IF(OR(ISBLANK(K76),K76=0,H76=0,ISBLANK(H76)),,ROUND(K76+$L$3,2)) -> 0 | M76: =ROUND(I76*L76,2) -> 0 | N76: =ROUND(L76/G76,4) -> 0 | O76: 10000006919 | P76: 100/2.9 z | Q76: 100 | R76: 34.43 | S76: 15.62 | T76: =ROUND($U$6*S76,2) -> 41.97 | U76: =IF(ISBLANK(O76),,R76+T76) -> 76.4 | V76: N | W76: =IF(ISNUMBER(R76),IF(V76="Y",(K76-T76))) -> FALSE | X76: =W76/G76 -> 0 | Y76: 0.3443 | Z76: 0.764
B77: Fully cooked, All beef with cheese One serving to meet 2.0 oz. M/MA
B78: Possible Allergens:
A79: 114 | B79: Beef Brisket with BBQ Sauce | C79: (18-19) Brookwood Farms | D79: 11125 | F79: 2/5 lbs | G79: 44 | I79: =ROUND(H79*G79/G79,2) -> 0 | J79: Cs | K79: 49.2 | L79: =IF(OR(ISBLANK(K79),K79=0,H79=0,ISBLANK(H79)),,ROUND(K79+$L$3,2)) -> 0 | M79: =ROUND(I79*L79,2) -> 0 | N79: =ROUND(L79/G79,4) -> 0
B80: Frozen, fully cooked, sodium must not exceed 300 mg and 350 calories
B81: per 2.0 oz. serving. Must provide 2 oz. M/MA
B82: Possible Allergens: Soy
A83: 115 | B83: WG Beef Steak Patty for Breakfast | C83: Tyson/Advance Pierre | D83: 10000068033 | F83: 250/1.96z | G83: 250 | I83: =ROUND(H83*G83/G83,2) -> 0 | J83: Cs | K83: 80.69 | L83: =IF(OR(ISBLANK(K83),K83=0,H83=0,ISBLANK(H83)),,ROUND(K83+$L$3,2)) -> 0 | M83: =ROUND(I83*L83,2) -> 0 | N83: =ROUND(L83/G83,4) -> 0 | O83: 10000069033 | P83: 250/1.97oz | Q83: 250 | R83: 56.06 | S83: 22.29 | T83: =ROUND($U$6*S83,2) -> 59.89 | U83: =IF(ISBLANK(O83),,R83+T83) -> 115.95 | V83: N | W83: =IF(ISNUMBER(R83),IF(V83="Y",(K83-T83))) -> FALSE | X83: =W83/G83 -> 0 | Y83: 0.22424 | Z83: 0.4638
B84: Fully cooked, breaded. Provides 1 oz M/MA and 0.50 oz OEG
B85: CN Labeled Allergens: Wheat
B86: ITEMS BELOW THIS LINE ARE NOT DIRECT TO MANUFACTUER PRICED ITEMS.
A87: 116 | B87: Beef Patties, Raw, 100% Beef IQF, USDA inspected beef. | C87: Distributor Choice | F87: 50/3.2z | G87: 50 | H87: 100 | I87: =ROUND($H$87*$G$87/G87,2) -> 100 | J87: Cs
B88: One patty to meet 2 oz meat/meat alternate. | C88: Fillable txt box | G88: 10 | I88: =ROUND(H87*G87/G88,2) -> 500 | J88: Cs | L88: =IF(OR(ISBLANK(H87),H87=0,ISBLANK(G88)),,ROUND(K88+$L$3,2)) -> 0 | M88: =ROUND(I88*L88,2) -> 0 | N88: =ROUND(L88/G88,4) -> 0
B89: Possible Allergens: None Listed
A90: 117 | B90: Beef, Frozen Ground | C90: Distributor Choice | F90: 10Lb | G90: 10 | H90: 50 | I90: =ROUND($H$90*$G$90/G90,2) -> 50 | J90: Cs
B91: USDA inspected bulk, raw fine ground, (no more than 20% fat) | C91: Fillable txt box | G91: 10 | I91: =ROUND(H90*G90/G91,2) -> 50 | J91: Cs | L91: =IF(OR(ISBLANK(H90),H90=0,ISBLANK(G91)),,ROUND(K91+$L$3,2)) -> 0 | M91: =ROUND(I91*L91,2) -> 0 | N91: =ROUND(L91/G91,4) -> 0
B92: MPS #136 Label statement required, "Domestic Beef Only"
B93: Possible Allergens: None Listed
H97: 0 | J97: Page Total | M97: =SUMIF(M8:M96,">0") -> 18438.5

Sheet Chicken
B1: ='Recap Sheet'!A2 -> School Food Authority or Agency Name: | F1: ='Recap Sheet'!A3 -> Bidder's Name:
A2: 2001- | B2: ='Recap Sheet'!B2 -> Marion County School District | C2: Return to Recap Sheet | F2: ='Recap Sheet'!B3 -> 0 | S2: Commodity
A3: 4000 | B3: Description | C3: Approved | G3: Firm Fixed Fee | L3: ='Recap Sheet'!B4 -> 0 | O3: Manufacturer | P3: Vendor Pack | Q3: Servings per case | R3: Processing | S3: Pounds of | T3: USDA | U3: Total Cost | V3: NOI ? | W3: NOI Net | X3: Net NOI | Y3: Fee for Serivce
A4: SCPA | C4: Brand Name | D4: Manufacturers | E4: Distributor | F4: Vendor | G4: Svgs | H4: Est. | I4: Bid | J4: Bid | K4: Unit | L4: Unit Price | M4: Total | N4: Cost per | O4: USDA Product | R4: Fee for | S4: DF Needed | T4: Value | U4: Proc Fee + | V4: Enter | W4: Case | X4: Cost Per | Y4: Cost Per Serv.
A5: Code | C5: or Manufacturer | D5: Code | E5: Code | F5: Pack | G5: per unit | H5: Bid Qty | I5: Qty | J5: Unit | K5: Price | L5: plus Fee | M5: Price | N5: Unit | O5: Code | R5: Service | S5: Per Case | T5: Per Case | U5: Comm Value | V5: Y or N | W5: Price | X5: Serving | Y5: Fee+ Commodity
B6: Chicken, Whole Muscle (Muscle Intact) | O6: Chicken, Large | Q6: 100103 | R6: Value / lb | S6: 0.927 | U6: Chicken Leg | W6: 100113 | X6: Value / lb | Y6: 0.4526
O7: Chicken, Small | Q7: 100100 | R7: Value / lb | S7: 0.9227
A8: 2001 | B8: Chicken Fillet, Breaded, chicken breast meat only. | C8: Gold Kist | D8: 7516 | F8: 120/4.0z | G8: 120 | I8: =ROUND(H8*G8/G8,2) -> 0 | J8: Cs | L8: =IF(OR(ISBLANK(K8),K8=0,H8=0,ISBLANK(H8)),,ROUND(K8+$L$3,2)) -> 0 | M8: =ROUND(I8*L8,2) -> 0 | N8: =ROUND(L8/G8,4) -> 0 | O8: 7516 | P8: 120/4.0 oz. | Q8: 120 | S8: 24.76 | T8: =ROUND($S$6*S8,2) -> 22.95 | U8: =IF(ISBLANK(O8),,R8+T8) -> 22.95 | V8: Y
B9: Solid Whole muscle meat; fully cooked, IQF. Each portion must provide | C9: Gold Creek | D9: 792421 | F9: 128/4 oz. | G9: 128 | I9: =ROUND(H8*G8/G9,2) -> 0 | J9: Cs | K9: 90.33 | L9: =IF(OR(ISBLANK(K9),K9=0,H8=0,ISBLANK(H8)),,ROUND(K9+$L$3,2)) -> 0 | M9: =ROUND(I9*L9,2) -> 0 | N9: =ROUND(L9/G9,4) -> 0 | O9: 792421 | P9: 128/4 oz. | Q9: 128 | R9: 60.96 | S9: 31.68 | T9: =ROUND($S$6*S9,2) -> 29.37 | U9: =IF(ISBLANK(O9),,R9+T9) -> 90.33 | V9: Y | W9: 60.96 | X9: 0.4763 | Y9: FALSE
B10: a min to meet 2 M/MA and 1 OEG. Breading must meet Whole Grain
B11: Rich requirements. Batter/breading not to exceed 30% of the weight of
B12: the finished product. Sodium must not exceed 580mg per serving.
B13: No Egg, No Alternate Protein Product Domestic birds only
B14: No bags included
B15: Possible Allergens: None Listed
A16: 2002 | B16: Chicken Fillet, Breaded, Spicy, chicken breast meat only, | C16: Gold Kist | D16: 7517 | F16: 120/4.0z | G16: 120 | H16: 50 | I16: =ROUND(H16*G16/G16,2) -> 50 | J16: Cs | L16: =IF(OR(ISBLANK(K16),K16=0,H16=0,ISBLANK(H16)),,ROUND(K16+$L$3,2)) -> 0 | M16: =ROUND(I16*L16,2) -> 0 | N16: =ROUND(L16/G16,4) -> 0 | O16: 7517 | P16: 120/4.0 oz. | Q16: 120 | S16: 24.76 | T16: =ROUND($S$6*S16,2) -> 22.95 | U16: =IF(ISBLANK(O16),,R16+T16) -> 22.95 | V16: Y
B17: Solid Whole muscle meat, fully cooked, IQF. Each portion must provide | C17: Gold Creek | D17: 792431 | F17: 128/4 oz. | G17: 128 | I17: =ROUND(H16*G16/G17,2) -> 46.88 | J17: Cs | L17: =IF(OR(ISBLANK(K17),K17=0,H16=0,ISBLANK(H16)),,ROUND(K17+$L$3,2)) -> 0 | M17: =ROUND(I17*L17,2) -> 0 | N17: =ROUND(L17/G17,4) -> 0 | O17: 792431 | P17: 128/4z | Q17: 128 | R17: 63.84 | S17: 31.68 | T17: =ROUND($S$6*S17,2) -> 29.37 | U17: =IF(ISBLANK(O17),,R17+T17) -> 93.21 | V17: Y | W17: 63.84 | X17: 0.4988 | Y17: FALSE
B18: a min to meet 2 M/MA and 1 OEG. Breading must meet Whole Grain | C18: Proview /John Soules | D18: 60325-WG | F18: 80/4 oz | G18: 80 | I18: =ROUND(H16*G16/G18,2) -> 75 | J18: Cs | K18: 52 | L18: =IF(OR(ISBLANK(K18),K18=0,H16=0,ISBLANK(H16)),,ROUND(K18+$L$3,2)) -> 52 | M18: =ROUND(I18*L18,2) -> 3900 | N18: =ROUND(L18/G18,4) -> 0.65
B19: Rich requirements. Batter / breading not to exceed 30% of the weight of
B20: the finished product. Sodium must not exceed 580mg per serving.
B21: No Egg, No Alternate Protein Product Domestic birds only
B22: Possible Allergens: None Listed
A23: 2003 | B23: Chicken Chunks, breaded, chicken breast with rib meat only; | C23: Gold Kist | D23: 7518 | F23: 32 lbs | G23: 128 | H23: 50 | I23: =ROUND(H23*G23/G23,2) -> 50 | J23: Cs | K23: 77.443 | L23: =IF(OR(ISBLANK(K23),K23=0,H23=0,ISBLANK(H23)),,ROUND(K23+$L$3,2)) -> 77.44 | M23: =ROUND(I23*L23,2) -> 3872 | N23: =ROUND(L23/G23,4) -> 0.605 | O23: 7518 | P23: 30 lbs | Q23: 128 | R23: 54.493 | S23: 24.76 | T23: =ROUND($S$6*S23,2) -> 22.95 | U23: =IF(ISBLANK(O23),,R23+T23) -> 77.443 | V23: Y | W23: 54.493 | X23: 0.4257 | Y23: FALSE
B24: Solid Whole muscle meat, fully cooked, IQF. Each portion must provide | C24: Gold Creek | D24: 792401 | F24: 32 lbs | G24: 128 | I24: =ROUND(H23*G23/G24,2) -> 50 | J24: Cs | L24: =IF(OR(ISBLANK(K24),K24=0,H23=0,ISBLANK(H23)),,ROUND(K24+$L$3,2)) -> 0 | M24: =ROUND(I24*L24,2) -> 0 | N24: =ROUND(L24/G24,4) -> 0 | O24: 792401 | P24: 128/4 oz. | Q24: 128 | S24: 31.68 | T24: =ROUND($S$6*S24,2) -> 29.37 | U24: =IF(ISBLANK(O24),,R24+T24) -> 29.37 | V24: Y
B25: a min to meet 2 M/MA and 1 OEG. Breading must meet Whole Grain
B26: Rich requirements. Batter / breading not to exceed 30% of the weight of
B27: the finished product. Sodium must not exceed 580mg per serving.
B28: No Egg, No Alternate Protein Product Domestic birds only
B29: Possible Allergens: None Listed
A30: 2004 | B30: Chicken Tenders, Breaded, Chicken Breast Meat Only | C30: Gold Creek | D30: 792441 | F30: 32 | G30: 113 | H30: 10 | I30: =ROUND(H30*G30/G30,2) -> 10 | J30: Cs | K30: 78.97 | L30: =IF(OR(ISBLANK(K30),K30=0,H30=0,ISBLANK(H30)),,ROUND(K30+$L$3,2)) -> 78.97 | M30: =ROUND(I30*L30,2) -> 789.7 | N30: =ROUND(L30/G30,4) -> 0.6988 | O30: 792441 | P30: 339/1.5oz | Q30: 113 | R30: 49.6 | S30: 31.68 | T30: =ROUND($S$6*S30,2) -> 29.37 | U30: =IF(ISBLANK(O30),,R30+T30) -> 78.97 | V30: Y | W30: 49.6 | X30: 0.4389 | Y30: FALSE
B31: Solid Whole muscle meat, fully cooked, IQF. Each serving must provide | C31: Proview | D31: 63230WG | F31: 4/5 lbs | G31: 61 | I31: =ROUND(H30*G30/G31,2) -> 18.52 | J31: Cs | L31: =IF(OR(ISBLANK(K31),K31=0,H30=0,ISBLANK(H30)),,ROUND(K31+$L$3,2)) -> 0 | M31: =ROUND(I31*L31,2) -> 0 | N31: =ROUND(L31/G31,4) -> 0
B32: a min to meet 2 M/MA and 1 OEG. Breading must meet Whole Grain
B33: Rich requirements. Batter / breading not to exceed 30% of the weight of
B34: the finished product. Sodium must not exceed 580mg per serving.
B35: No Egg, No Alternate Protein Product Domestic birds only
B36: Possible Allergens: None Listed
A37: 2005 | B37: Chicken Fillet, Breaded, chicken breast meat only. | C37: John Soules Foods | D37: 60438 | F37: 80/4.0z | G37: 80 | H37: 100 | I37: =ROUND(H37*G37/G37,2) -> 100 | J37: Cs | K37: 56 | L37: =IF(OR(ISBLANK(K37),H37=0,ISBLANK(H37)),,ROUND(K37+$L$3,2)) -> 56 | M37: =ROUND(I37*L37,2) -> 5600 | N37: =ROUND(L37/G37,4) -> 0.7
B38: Solid Whole muscle meat; fully cooked, IQF.Baked not fried.
B39: Each portion must provide a min to meet 2 M/MA. No soy products
B40: Breading is not Whole Grain and is not credited towards meal rquirments
B41: Possible Allergens: Wheat, Milk
A42: 2006 | B42: Chicken Chunks, Breaded Buffalo Style | C42: (18-19) Proview | D42: 64230WG | F42: 20 lbs | G42: 75 | I42: =ROUND(H42*G42/G42,2) -> 0 | J42: Cs | K42: 52 | L42: =IF(OR(ISBLANK(K42),K42=0,H42=0,ISBLANK(H42)),,ROUND(K42+$L$3,2)) -> 0 | M42: =ROUND(I42*L42,2) -> 0 | N42: =ROUND(L42/G42,4) -> 0
B43: Fully Cooked, chicken breast with rib meat, APP and egg allowed,
B44: Iin compliance with Apendix A of 7 CFR Part 210 CN label to provide 2 oz.
B45: M/MA and 1.25 OEG, Breading must meet WGR requirements. Batter or
B46: or breading not to exceed 30% of the weight of product, sodium not to
B47: exceed 760 mg. The label must specify number of portions per case
A48: 2007 | B48: Chicken Breast Bites (Dill Flavor) | C48: Proview | D48: 64015 | F48: 4/5# | G48: 103 | I48: =ROUND(H48*G48/G48,2) -> 0 | J48: Cs | K48: 54 | L48: =IF(OR(ISBLANK(K48),K48=0,H48=0,ISBLANK(H48)),,ROUND(K48+$L$3,2)) -> 0 | M48: =ROUND(I48*L48,2) -> 0 | N48: =ROUND(L48/G48,4) -> 0
B49: Fully cooked, chicken breast with rib meat only. App and egg allowed, in
B50: compliance with Apendix A of 7 CFR Part 210 3.2 oz. serving to provide
B51: 1.75 oz. M/MA and .5 OEG Batter and breading not to exceed 30% of the
B52: weight of product, 100-200 calories and not more than 1 g of sat fat and
B53: 350 mg of sodium per serving. Domestic birds only
A54: 2008 | B54: Chicken Fillet, Breakfast, Breaded (Savory Flavor with Bags) | C54: (18-19) Proview | D54: 60415WG | F54: 20 lbs | G54: 144 | I54: =ROUND(H54*G54/G54,2) -> 0 | J54: Cs | K54: 59.8 | L54: =IF(OR(ISBLANK(K54),K54=0,H54=0,ISBLANK(H54)),,ROUND(K54+$L$3,2)) -> 0 | M54: =ROUND(I54*L54,2) -> 0 | N54: =ROUND(L54/G54,4) -> 0
B55: Fully cooked, chicken breast with rib meat only, APP and egg allowed, in
B56: compliance with Apendix A of 7 CFR Part 210 CN label to provide 1 oz.
B57: M/MA and .5 OEG. Breading must meet WGR requirements. Breading not
B58: to exceed 30% of the weight of product, Sodium not to exceed 300 mg
B59: The label must specify number of portions per case
B60: Possible Allergens: Wheat, Milk and Soy
B61: Chicken, Made with whole muscle white meat pieces, | O61: Chicken, Large | Q61: 100103
A62: 2009 | B62: Chicken Patty | C62: Tyson | D62: 1070302928 | F62: 132/3.75z | G62: 132 | H62: 50 | I62: =ROUND(H62*G62/G62,2) -> 50 | J62: Cs | L62: =IF(OR(ISBLANK(K62),K62=0,H62=0,ISBLANK(H62)),,ROUND(K62+$L$3,2)) -> 0 | M62: =ROUND(I62*L62,2) -> 0 | N62: =ROUND(L62/G62,4) -> 0 | O62: 1070302928 | P62: 132./3.75 | Q62: 132 | R62: 55.38 | S62: 33.74 | T62: =ROUND($S$6*S62,2) -> 31.28 | U62: =IF(ISBLANK(O62),,R62+T62) -> 86.66 | V62: Y | W62: 55.38 | X62: 0.4195 | Y62: FALSE
B63: Fully Cooked, portioned, CN Labeled. Product is made with whole muscle | C63: Gold Kist | D63: 7522 | F63: 113/4.25z | G63: 113 | I63: =ROUND(H62*G62/G63,2) -> 58.41 | J63: Cs | K63: 74.1 | L63: =IF(OR(ISBLANK(K63),K63=0,H62=0,ISBLANK(H62)),,ROUND(K63+$L$3,2)) -> 74.1 | M63: =ROUND(I62*L63,2) -> 3705 | N63: =ROUND(L63/G63,4) -> 0.6558 | O63: 7522 | P63: 113/4.25 oz. | Q63: 113 | S63: 26.99 | T63: =ROUND($S$6*S63,2) -> 25.02 | U63: =IF(ISBLANK(O63),,R63+T63) -> 25.02 | V63: Y
B64: white meat chicken pieces. No ground Chicken. Each portion must
B65: meet 2 M/MA and 1 OEG. No ground Chicken. Breading must meet WGR
B66: requirements. Batter / breading not to exceed 30% of weight of the
B67: finished product Sodium not to exceed 400 mg per serving
B68: Domestic birds only
A69: 2010 | B69: Chicken Tender | C69: (18-19) Gold Kist/Pilgrims | D69: 7572 | F69: 110/4.35z | G69: 110 | H69: 50 | I69: =ROUND(H69*G69/G69,2) -> 50 | J69: Cs | K69: 72.97 | L69: =IF(OR(ISBLANK(K69),K69=0,H69=0,ISBLANK(H69)),,ROUND(K69+$L$3,2)) -> 72.97 | M69: =ROUND(I69*L69,2) -> 3648.5 | N69: =ROUND(L69/G69,4) -> 0.6634 | O69: 7572 | P69: 106/4.35z | Q69: 106 | R69: 48.82 | S69: 26.05 | T69: =ROUND($S$6*S69,2) -> 24.15 | U69: =IF(ISBLANK(O69),,R69+T69) -> 72.97 | V69: Y | W69: 48.82 | X69: 0.4438 | Y69: FALSE
B70: Fully Cooked, portioned, CN Labeled. Product is made with whole muscle
B71: white meat chicken pieces. No ground chicken. Each portion must provide
B72: a min. 2 M/MA and 1 OEG. Breading must meet WGR requirements
B73: Batter / breading not to exceed 30% of weight of the finished product.
B74: Sodium must not exceed 400mg per serving. Domestic Birds only
A75: 2011 | B75: Chicken Bite | C75: Tyson | D75: 10703620928 | F75: 121/3.95z | G75: 121 | I75: =ROUND(H75*G75/G75,2) -> 0 | J75: Cs | K75: 87.35 | L75: =IF(OR(ISBLANK(K75),K75=0,H75=0,ISBLANK(H75)),,ROUND(K75+$L$3,2)) -> 0 | M75: =ROUND(I75*L75,2) -> 0 | N75: =ROUND(L75/G75,4) -> 0 | O75: 10703620928 | P75: 121/3.95 oz. | Q75: 121 | R75: 57 | S75: 32.74 | T75: =ROUND($S$6*S75,2) -> 30.35 | U75: =IF(ISBLANK(O75),,R75+T75) -> 87.35 | V75: Y | W75: 57 | X75: 0.4711 | Y75: FALSE
B76: Fully Cooked, portioned, CN Labeled. Product is made with whole muscle
B77: white meat chicken pieces. No ground Chicken. Each portion must provide
B78: min. to meet 2 M/MA and 1 OEG. Breading must meet WGR requirements.
B79: Batter / breading not to exceed 30% of weightof the finished product.
B80: Sodium must not exceed 400mg per serving. Domestic Birds only
B81: Chicken, chopped and formed | O81: Chicken, Large | Q81: 100103
A82: 2012 | B82: Chicken Patty, Breakfast, Breaded. | C82: Discontinued Gold Kist | D82: 633100 | F82: 20Lb | G82: 192 | I82: =ROUND(H82*G82/G82,2) -> 0 | J82: Cs | L82: =IF(OR(ISBLANK(K82),K82=0,H82=0,ISBLANK(H82)),,ROUND(K82+$L$3,2)) -> 0 | M82: =ROUND(I82*L82,2) -> 0 | N82: =ROUND(L82/G82,4) -> 0 | T82: =ROUND($S$6*S82,2) -> 0 | U82: =IF(ISBLANK(O82),,R82+T82) -> 0 | V82: N
B83: Fully cooked. Chicken breast with rib meat only; chopped and formed; | C83: King's Delight | D83: 66206 | F83: 20Lb | G83: 216 | I83: =ROUND(H82*G82/G83,2) -> 0 | J83: Cs | K83: 37.2 | L83: =IF(OR(ISBLANK(K83),K83=0,H82=0,ISBLANK(H82)),,ROUND(K83+$L$3,2)) -> 0 | M83: =ROUND(I83*L83,2) -> 0 | N83: =ROUND(L83/G83,4) -> 0 | T83: =ROUND($S$6*S83,2) -> 0 | U83: =IF(ISBLANK(O83),,R83+T83) -> 0 | V83: N
B84: APP and egg allowed, in compliance with Appendix A of 7 CFR Part 210 | C84: Rich Chicks 54411 | D84: 54411 | F84: 20Lb | G84: 214 | I84: =ROUND(H82*G82/G84,2) -> 0 | J84: Cs | L84: =IF(OR(ISBLANK(K84),K84=0,H82=0,ISBLANK(H82)),,ROUND(K84+$L$3,2)) -> 0 | M84: =ROUND(I84*L84,2) -> 0 | N84: =ROUND(L84/G84,4) -> 0 | O84: 54411 | P84: 20 lbs | Q84: 214 | R84: 37.78 | S84: 14.59 | T84: 13.53 | U84: =IF(ISBLANK(O84),,R84+T84) -> 51.31 | V84: Y | W84: 37.78 | X84: 0.1765 | Y84: FALSE
B85: CN label to provide 1 oz M/MA, and no more than 1 OEG. Breading | C85: Gold Creek | D85: 79426 | F85: 256/2 oz. | G85: 256 | I85: =ROUND(H82*G82/G85,2) -> 0 | J85: Cs | L85: =IF(OR(ISBLANK(K85),K85=0,H82=0,ISBLANK(H82)),,ROUND(K85+$L$3,2)) -> 0 | M85: 0 | N85: =ROUND(L85/G85,4) -> 0 | O85: 792426 | P85: 256/2.0 oz | Q85: 256 | S85: 32.97 | T85: =ROUND($S$6*S85,2) -> 30.56 | U85: =IF(ISBLANK(O85),,R85+T85) -> 30.56 | V85: Y
B86: must meet WGR requirements. Batter or breading not to exceed 30%
B87: of the weight of the product. Sodium not to exceed 200mg.
B88: The label must specify the minimum number of pieces or portions per case.
A89: 2013 | B89: Chicken Patty, Breaded, Spicy | C89: Tyson | D89: 10703120928 | F89: 132/3.75z | G89: 132 | I89: =ROUND(H89*G89/G89,2) -> 0 | J89: Cs | K89: 89.99 | L89: =IF(OR(ISBLANK(K89),K89=0,H89=0,ISBLANK(H89)),,ROUND(K89+$L$3,2)) -> 0 | M89: =ROUND(I89*L89,2) -> 0 | N89: =ROUND(L89/G89,4) -> 0 | O89: 10703120928 | P89: 132/3.75z | Q89: 132 | R89: 58.71 | S89: 33.74 | T89: =ROUND($S$6*S89,2) -> 31.28 | U89: =IF(ISBLANK(O89),,R89+T89) -> 89.99 | V89: Y | W89: 58.71 | X89: 0.4448 | Y89: FALSE
B90: Fully cooked, Chicken breast with rib meat only; chopped and formed;
B91: APP and egg allowed, in compliance with Appendix A of 7 CFR Part 210.
B92: CN label to provide 2 oz M/MA and a not more than 1 OEG. Breading must
B93: meet WGR requirements. Batter or breading not to exceed 30% of the
B94: weight of the product, sodium not to exceed 480 mg. The label must
B95: specify the number of portions per case
A97: 2014 | B97: Chicken Patty, Grilled, | C97: Advance Pierre | D97: 10000019989 | F97: 100/2.8z | G97: 100 | H97: 50 | I97: =ROUND(H97*G97/G97,2) -> 50 | J97: Cs | L97: =IF(OR(ISBLANK(K97),K97=0,H97=0,ISBLANK(H97)),,ROUND(K97+$L$3,2)) -> 0 | M97: =ROUND(I97*L97,2) -> 0 | N97: =ROUND(L97/G97,4) -> 0
B98: Fully cooked. Unbreaded, breast with rib meat,chopped and formed; | C98: Proview | D98: 55000 | F98: 64/2.5z | G98: 64 | I98: =ROUND(H97*G97/G98,2) -> 78.13 | J98: Cs | K98: 22 | L98: =IF(OR(ISBLANK(K98),K98=0,H97=0,ISBLANK(H97)),,ROUND(K98+$L$3,2)) -> 22 | M98: =ROUND(I98*L98,2) -> 1718.86 | N98: =ROUND(L98/G98,4) -> 0.3438
B99: APP and egg allowed, in compliance with Appendix A of 7 CFR Part 210
B100: CN label to provide 1 oz. M/MA and 1 OEG, Breading must meet WGR
B101: requirements. Batter / breading not to exceed 30% of weight of the
B102: product, sodium not to exceed 480 mg The label must specify number of
B103: portions per case
A104: 2015 | B104: Chicken Nugget, Breaded | C104: Discontinued Gold Kist | D104: 613100 | F104: 20lb | G104: 104 | H104: 200 | I104: =ROUND(H104*G104/G104,2) -> 200 | J104: Cs | L104: =IF(OR(ISBLANK(K104),K104=0,H104=0,ISBLANK(H104)),,ROUND(K104+$L$3,2)) -> 0 | M104: =ROUND(I104*L104,2) -> 0 | N104: =ROUND(L104/G104,4) -> 0 | T104: =ROUND($S$6*S104,2) -> 0 | U104: =IF(ISBLANK(O104),,R104+T104) -> 0 | V104: N
B105: Fully Cooked. Chopped and formed; chicken breast with rib meat only; | C105: Proview | D105: 40015-WG | F105: 20Lb | G105: 106 | I105: =ROUND(H104*G104/G105,2) -> 196.23 | J105: Cs | K105: 28.2 | L105: =IF(OR(ISBLANK(K105),K105=0,H104=0,ISBLANK(H104)),,ROUND(K105+$L$3,2)) -> 28.2 | M105: =ROUND(I105*L105,2) -> 5533.69 | N105: =ROUND(L105/G105,4) -> 0.266 | S105: 29.43 | T105: =ROUND($S$6*S105,2) -> 27.28 | U105: =IF(ISBLANK(O105),,R105+T105) -> 0 | V105: N
B106: APP and egg allowed, in compliance with Appendix A of 7 CFR Part 210. | C106: Rich Chicks | D106: 54410 | F106: 20Lb | G106: 107 | I106: =ROUND(H104*G104/G106,2) -> 194.39 | J106: Cs | L106: =IF(OR(ISBLANK(K106),K106=0,H104=0,ISBLANK(H104)),,ROUND(K106+$L$3,2)) -> 0 | M106: =ROUND(I106*L106,2) -> 0 | N106: =ROUND(L106/G106,4) -> 0 | O106: 54410 | P106: 20lb | Q106: 107 | R106: 37.78 | S106: 14.59 | T106: 13.53 | U106: =IF(ISBLANK(O106),,R106+T106) -> 51.31 | V106: Y | W106: 37.78 | X106: 0.3531 | Y106: FALSE
B107: One serving to contain no more than 54% of total calories from fat;
B108: sat fat not to exceed 15% of calories per serving. Sodium not to exceed
B109: 480 mg per serving. Batter or breading not to exceed 30% of the weight
B110: of the finished product. The label must specify the number of portions
B111: per case.
A112: 2016 | B112: Chicken Rings, Breaded | C112: Discontinued Gold Kist | D112: 499180 | F112: 30Lb | G112: 136 | I112: =ROUND(H112*G112/G112,2) -> 0 | J112: Cs | L112: =IF(OR(ISBLANK(K112),K112=0,H112=0,ISBLANK(H112)),,ROUND(K112+$L$3,2)) -> 0 | M112: =ROUND(I112*L112,2) -> 0 | N112: =ROUND(L112/G112,4) -> 0 | V112: N
B113: Fully Cooked. Chicken breast with rib meat only, chopped and formed;
B114: APP and egg allowed,in compliance with Appendix A of 7 CFR Part 210.
B115: CN label to provide 2 oz M/MA and not more than 1.0 OEG. Breading must
B116: meet WGR requirements. Batter or breading not to exceed 30% of the
B117: weight of the product. Sodium not to exceed 480 mg. The label must
B118: specify the number of portions per case
A119: 2017 | B119: Chicken Tenders, Breaded | C119: King's Delight | D119: 66203 | F119: 20Lb | G119: 106 | H119: 50 | I119: =ROUND(H119*G119/G119,2) -> 50 | J119: Cs | L119: =IF(OR(ISBLANK(K119),K119=0,H119=0,ISBLANK(H119)),,ROUND(K119+$L$3,2)) -> 0 | M119: =ROUND(I119*L119,2) -> 0 | N119: =ROUND(L119/G119,4) -> 0 | V119: N
B120: Fully cooked, chicken breast with rib meat only, chopped and formed, APP | C120: Proview | D120: 46015WG | F120: 20Lb | G120: 106 | I120: =ROUND(H119*G119/G120,2) -> 50 | J120: Cs | K120: 30.4 | L120: =IF(OR(ISBLANK(K120),K120=0,H119=0,ISBLANK(H119)),,ROUND(K120+$L$3,2)) -> 30.4 | M120: =ROUND(I120*L120,2) -> 1520 | N120: =ROUND(L120/G120,4) -> 0.2868 | V120: N
B121: and egg allowed, in compliance with Apendix A of 7 CFR Part 210
B122: CN label to provide 1 oz. M/MA and 1 OEG, Breading must meet WGR
B123: requirements. Batter / breading not to exceed 30% of weight of the
B124: the product. Sodium not ot exceed 480 mg.
A125: 2018 | B125: Chicken, Popcorn Chicken, Breaded | C125: Proview | D125: 43015-WG | F125: 20Lb | G125: 106 | I125: =ROUND(H125*G125/G125,2) -> 0 | J125: Cs | K125: 30.4 | L125: =IF(OR(ISBLANK(K125),K125=0,H125=0,ISBLANK(H125)),,ROUND(K125+$L$3,2)) -> 0 | M125: =ROUND(I125*L125,2) -> 0 | N125: =ROUND(L125/G125,4) -> 0
B126: Frozen, Fully Cooked; chicken breast with rib meat only chopped & formed | C126: DISCONTINUED Gold Kist | D126: 698100 | F126: 20Lb | I126: =ROUND(H125*G125/G126,2) ->  | J126: Cs | L126: =IF(OR(ISBLANK(K126),K126=0,H125=0,ISBLANK(H125)),,ROUND(K126+$L$3,2)) -> 0 | M126: =ROUND(I126*L126,2) ->  | N126: =ROUND(L126/G126,4) -> 
B127: APP and egg allowed, in complaince with Appendix A of 7 CFR Part 210 | C127: DISCONTINUED Kings Delight | D127: 66209 | F127: 20Lb | I127: =ROUND(H125*G125/G127,2) ->  | J127: Cs | L127: =IF(OR(ISBLANK(K127),K127=0,H125=0,ISBLANK(H125)),,ROUND(K127+$L$3,2)) -> 0 | M127: =ROUND(I127*L127,2) ->  | N127: =ROUND(L127/G127,4) -> 
B128: CN label to provide 1 oz. M/MA and 1 OEG, Breading must meet WGR
B129: requirements. Batter / breading not to exceed 30% of weight of the
B130: product, sodium not to exceed 480 mg The label must specify number of
B131: portions per case
B132: Chicken Leg, 100113 Chicken, Dark Meat, Asian Entrée | O132: Chicken Leg 100113
A133: 2019 | B133: Teriyaki Chicken, | C133: Minh's | D133: 69018 | F133: 240/2.80z | G133: 240 | I133: =ROUND(H133*G133/G133,2) -> 0 | J133: Cs | K133: 122.45 | L133: =IF(OR(ISBLANK(K133),K133=0,H133=0,ISBLANK(H133)),,ROUND(K133+$L$3,2)) -> 0 | M133: =ROUND(I133*L133,2) -> 0 | N133: =ROUND(L133/G133,4) -> 0 | O133: 69018 | P133: 240/2.80 oz | Q133: 240 | R133: 0 | S133: 45.06 | T133: =ROUND($Y$6*S133,2) -> 20.39 | U133: =IF(ISBLANK(O133),,R133+T133) -> 20.39 | V133: Y | W133: 102.06 | X133: 0.4253 | Y133: FALSE
B134: Frozen. Unbreaded, Cooked chicken leg meat, boneless, with Teriyaki
B135: sauce No MSG. No Trans Fat. 100-200 calories with no more than 2g
B136: saturated fat and 450 mg sodium per serving. One portion to provide min.
B137: 2 M.MA
B138: Possible Allergens: Egg, Wheat, and Soy
A139: 2020 | B139: Spicy Chicken, WG | C139: Yang's | D139: 15556-2 | F139: 240/2.40z | G139: 240 | I139: =ROUND(H139*G139/G139,2) -> 0 | J139: Cs | K139: 109.59 | L139: =IF(OR(ISBLANK(K139),K139=0,H139=0,ISBLANK(H139)),,ROUND(K139+$L$3,2)) -> 0 | M139: =ROUND(I139*L139,2) -> 0 | N139: =ROUND(L139/G139,4) -> 0 | O139: 15556-2 | P139: 240/2.40 oz. | Q139: 240 | R139: 88.81 | S139: 45.92 | T139: =ROUND($Y$6*S139,2) -> 20.78 | U139: =IF(ISBLANK(O139),,R139+T139) -> 109.59 | V139: Y | W139: 88.81 | X139: 0.37 | Y139: FALSE
B140: Frozen. Unbreaded dark meat chicken strips in spicy sauce.
B141: No MSG. No Trans Fat. 100-200 calories with no more than 2 g sat fat
B142: and 450 mg sodium per serving. One portion to provide min. 2 M/MA.
B143: Possible Allergens: Soy, Wheat, and Citrus
A144: 2021 | B144: Citrus Chicken, WG | C144: Yang's | D144: 15552-4 | F144: 192/3.60z | G144: 192 | I144: =ROUND(H144*G144/G144,2) -> 0 | J144: Cs | L144: =IF(OR(ISBLANK(K144),K144=0,H144=0,ISBLANK(H144)),,ROUND(K144+$L$3,2)) -> 0 | M144: =ROUND(I144*L144,2) -> 0 | N144: =ROUND(L144/G144,4) -> 0 | O144: 15552-4 | P144: 192/3.60 oz. | Q144: 192 | R144: 93.85 | S144: 38.05 | T144: =ROUND($Y$6*S144,2) -> 17.22 | U144: =IF(ISBLANK(O144),,R144+T144) -> 111.07 | V144: Y | W144: 91.26 | X144: 0.4753 | Y144: FALSE
B145: Frozen. Lightly battered or breaded boneless dark meat chicken chunks | C145: Mihn (Schwan's) | D145: 69020 | F145: 240/2.80z | G145: 240 | I145: =ROUND(H144*G144/G145,2) -> 0 | J145: Cs | K145: 134.65 | L145: =IF(OR(ISBLANK(K145),K145=0,H144=0,ISBLANK(H144)),,ROUND(K145+$L$3,2)) -> 0 | M145: =ROUND(I145*L145,2) -> 0 | N145: =ROUND(L145/G145,4) -> 0 | O145: 69020 | P145: 240/2.80z | Q145: 240 | S145: 40.36 | T145: =ROUND($Y$6*S145,2) -> 18.27 | U145: =IF(ISBLANK(O145),,R145+T145) -> 18.27 | V145: Y
B146: tossed with citrus flavored sauce. No MSG. No Trans Fat. 150-250
B147: calories with no more than 2 g saturated fat and 450 mg sodium
B148: per serving. One portion to provide min. 2 M/MA.
B149: Possible Allergens: Egg, Soy, Wheat, and Citrus
A150: 2022 | B150: Cherry Blossom/Sweet and Sour Chicken, WG | C150: Asian Solutions | D150: 72005 | F150: 42.9 lbs | G150: 176 | I150: =ROUND(H150*G150/G150,2) -> 0 | J150: Cs | L150: =IF(OR(ISBLANK(K150),K150=0,H150=0,ISBLANK(H150)),,ROUND(K150+$L$3,2)) -> 0 | M150: =ROUND(I150*L150,2) -> 0 | N150: =ROUND(L150/G150,4) -> 0 | O150: 72005 | P150: 42.9 lbs. | Q150: 176 | S150: 34.65 | T150: =ROUND($Y$6*S150,2) -> 15.68 | U150: =IF(ISBLANK(O150),,R150+T150) -> 15.68 | V150: Y
B151: Frozen. Lightly battered or breaded boneless dark meat chicken chunks | C151: Chef's Corner | D151: COMWG-114 | F151: 42 lbs | G151: 171 | I151: =ROUND(H150*G150/G151,2) -> 0 | J151: Cs | L151: =IF(OR(ISBLANK(K151),K151=0,H150=0,ISBLANK(H150)),,ROUND(K151+$L$3,2)) -> 0 | M151: =ROUND(I151*L151,2) -> 0 | N151: =ROUND(L151/G151,4) -> 0 | O151: 0114 | P151: 42 lbs. | Q151: 171 | R151: 79 | S151: 39.08 | T151: =ROUND($Y$6*S151,2) -> 17.69 | U151: =IF(ISBLANK(O151),,R151+T151) -> 96.69 | V151: Y | W151: 79 | X151: 0.462 | Y151: FALSE
B152: tossed with sweet and sour sauce. No MSG. No Trans Fat. 140-250 | C152: Yang's | D152: 15551-7 | F152: 192/3.60z | G152: 192 | I152: =ROUND(H150*G150/G152,2) -> 0 | J152: Cs | K152: 108.04 | L152: =IF(OR(ISBLANK(K152),K152=0,H150=0,ISBLANK(H150)),,ROUND(K152+$L$3,2)) -> 0 | M152: =ROUND(I152*L152,2) -> 0 | N152: =ROUND(L152/G152,4) -> 0 | O152: 15551-7 | P152: 43.5 lbs. | Q152: 192 | S152: 38.05 | T152: =ROUND($Y$6*S152,2) -> 17.22 | U152: =IF(ISBLANK(O152),,R152+T152) -> 17.22 | V152: Y
B153: saturated fat and 400 mg sodium per serving. One serving to provide min. | C153: Mihn (Schwan's) | D153: 69016 | F153: 240/2.80z | G153: 240 | I153: =ROUND(H150*G150/G153,2) -> 0 | J153: Cs | L153: =IF(OR(ISBLANK(K153),K153=0,H150=0,ISBLANK(H150)),,ROUND(K153+$L$3,2)) -> 0 | M153: =ROUND(I153*L153,2) -> 0 | N153: =ROUND(L153/G153,4) -> 0 | O153: 69016 | P153: 42 lbs. | Q153: 240 | S153: 40.36 | T153: =ROUND($Y$6*S153,2) -> 18.27 | U153: =IF(ISBLANK(O153),,R153+T153) -> 18.27 | V153: Y
B154: 2 M/MA
B155: Possible Allergens: Egg, Soy, Wheat, & Citrus
A156: 2023 | B156: General Tso's Chicken, Breaded, WG | C156: Yang's | D156: 15563-0 | F156: 43.5 lbs | G156: 192 | H156: 60 | I156: =ROUND(H156*G156/G156,2) -> 60 | J156: Cs | K156: 119.13 | L156: =IF(OR(ISBLANK(K156),K156=0,H156=0,ISBLANK(H156)),,ROUND(K156+$L$3,2)) -> 119.13 | M156: =ROUND(I156*L156,2) -> 7147.8 | N156: =ROUND(L156/G156,4) -> 0.6205 | O156: 15563-0 | P156: 43.5 lbs | Q156: 192 | R156: 101.91 | S156: 38.05 | T156: =ROUND($Y$6*S156,2) -> 17.22 | U156: =IF(ISBLANK(O156),,R156+T156) -> 119.13 | V156: Y | W156: 101.91 | X156: 0.5308 | Y156: FALSE
B157: Frozen, Breaded chicken chunks in spicy sauce, NO MSG, 100-200 cals
B158: no more than 2 g saturated fat and 450 mg of sodium per serving.
B159: One portion to provide 2 M/MA
B161: Possible Allergens: Egg, Soy, Wheat, and Citrus
A162: 2024 | B162: Thai Sweet Chili Chicken, Unbreaded | C162: Asian Solutions | D162: 73004 | F162: 42.9 lbs | G162: 240 | I162: =ROUND(H162*G162/G162,2) -> 0 | J162: Cs | K162: 121.81 | L162: =IF(OR(ISBLANK(K162),K162=0,H162=0,ISBLANK(H162)),,ROUND(K162+$L$3,2)) -> 0 | M162: =ROUND(I162*L162,2) -> 0 | N162: =ROUND(L162/G162,4) -> 0 | O162: 73004 | P162: 42.9 lbs | Q162: 240 | R162: 101 | S162: 45.98 | T162: =ROUND($Y$6*S162,2) -> 20.81 | U162: =IF(ISBLANK(O162),,R162+T162) -> 121.81 | V162: Y | W162: 101 | X162: 0.4208 | Y162: FALSE
B163: Frozen, breaded chicken chunks in sweet and spicy chili sauce,
B164: NO MSG, No Trans Fats 100-200 calories with no more than
B165: 2 g saturated fat and 350 mg of sodium per serving
B166: One 2.85 oz. portion to provide 2 oz. M/MA
B167: Possible Allergens: Soy, Wheat
A168: 2025 | B168: Chicken, BBQ Teriyaki | C168: Yang's | D168: 15554-8 | F168: 42 lbs | G168: 240 | I168: =ROUND(H168*G168/G168,2) -> 0 | J168: Cs | K168: 109.59 | L168: =IF(OR(ISBLANK(K168),K168=0,H168=0,ISBLANK(H168)),,ROUND(K168+$L$3,2)) -> 0 | M168: =ROUND(I168*L168,2) -> 0 | N168: =ROUND(L168/G168,4) -> 0 | O168: 15554-8 | P168: 42 lbs | Q168: 240 | R168: 88.81 | S168: 45.92 | T168: =ROUND($Y$6*S168,2) -> 20.78 | U168: =IF(ISBLANK(O168),,R168+T168) -> 109.59 | V168: Y | W168: 88.81 | X168: 0.37 | Y168: FALSE
B169: Frozen, chicken in sweet teriyaki sauce. No MSG No Trans fat
B170: 100-200 calories with nnot more than 2 g saturated fat and 500 mg of
B171: sodium per serving. One portion to provide 2 M/MA
B173: Possible Allergens: Soy, Wheat, and Citrus
B174: Other Poultry Products
A175: 2026 | B175: Chicken Drumsticks, Sous-Vide Style | C175: DISCONTINUED Perdue | I175: =ROUND(H175*G175/G175,2) ->  | J175: Cs | L175: =IF(OR(ISBLANK(K175),K175=0,H175=0,ISBLANK(H175)),,ROUND(K175+$L$3,2)) -> 0 | M175: =ROUND(I175*L175,2) ->  | N175: =ROUND(L175/G175,4) -> 
B176: Frozen, 100-200 calories with no more than 3 g saturated fat and 400
B177: mg sodium per serving. One portion to provide 2 M/MA
B178: Possible Allergens: None Listed
A179: 2027 | B179: Chicken, Drumsticks, Raw | C179: Tyson | D179: 10009900928 | F179: 50/4.5oz | G179: 50 | H179: 200 | I179: =ROUND(H179*G179/G179,2) -> 200 | J179: Cs | K179: 28.2 | L179: =IF(OR(ISBLANK(K179),K179=0,H179=0,ISBLANK(H179)),,ROUND(K179+$L$3,2)) -> 28.2 | M179: =ROUND(I179*L179,2) -> 5640 | N179: =ROUND(L179/G179,4) -> 0.564
B180: Must yield 1.5 oz. cooked meat, USDA inspected, Grade A, IQF
B181: Possible Allergens: None Listed
A182: 2028 | B182: Chicken Thighs, Raw | C182: Tyson | D182: 10037830928 | F182: 98/5.11z | G182: 98 | H182: 100 | I182: =ROUND(H182*G182/G182,2) -> 100 | J182: Cs | K182: 31.46 | L182: =IF(OR(ISBLANK(K182),K182=0,H182=0,ISBLANK(H182)),,ROUND(K182+$L$3,2)) -> 31.46 | M182: =ROUND(I182*L182,2) -> 3146 | N182: =ROUND(L182/G182,4) -> 0.321
B183: Minimum 4.9 oz must provide a minimum or 2 oz cooked
B184: meat. USDA inspected. Grade A, fryer parts, IQF
B185: Possible Allergens: None Listed
A186: 2029 | B186: Chicken, Eight Cut, Raw | C186: Tyson | D186: 10038820928 | F186: 90/4.0oz | G186: 90 | H186: 100 | I186: =ROUND(H186*G186/G186,2) -> 100 | J186: Cs | K186: 40.62 | L186: =IF(OR(ISBLANK(K186),K186=0,H186=0,ISBLANK(H186)),,ROUND(K186+$L$3,2)) -> 40.62 | M186: =ROUND(I186*L186,2) -> 4062 | N186: =ROUND(L186/G186,4) -> 0.4513
B187: USDA inspected, Grade A fryer parts
B188: Equal parts of breast, leg, thigh and wings,
B189: Minimum 4 oz breast and thigh to meet 2 oz cooked
B190: meat, IQF
B191: Possible Allergens: None Listed
A192: 2030 | B192: Chicken Fajita Strips, Breast Meat w/ Grill marks | C192: Perdue | D192: 7325 | F192: 10lb | G192: 53 | H192: 100 | I192: =ROUND(H192*G192/G192,2) -> 100 | J192: Cs | K192: 29.9 | L192: =IF(OR(ISBLANK(K192),K192=0,H192=0,ISBLANK(H192)),,ROUND(K192+$L$3,2)) -> 29.9 | M192: =ROUND(I192*L192,2) -> 2990 | N192: =ROUND(L192/G192,4) -> 0.5642
B193: Frozen, Fully cooked, Marinated strips of breast w/rib meat with grill
B194: markings. Free of bone and skin, 100-200 calories with no more than 2 g
B195: saturated fat and 600 mg of sodium per 2 M/MA
B196: Possible Allergens: Soy
A197: 2031 | B197: Chicken Fajita Strips, Unbreaded Dark Meat | C197: Tyson | D197: 10046210928 | F197: 160/3.0z | G197: 160 | I197: =ROUND(H197*G197/G197,2) -> 0 | J197: Cs | K197: 91.69 | L197: =IF(OR(ISBLANK(K197),K197=0,H197=0,ISBLANK(H197)),,ROUND(K197+$L$3,2)) -> 0 | M197: =ROUND(I197*L197,2) -> 0 | N197: =ROUND(L197/G197,4) -> 0 | O197: 10046210928 | P197: 160/3.0z | Q197: 160 | R197: 49.2 | S197: 45.84 | T197: =ROUND($Y$6*S197,2) -> 20.75 | U197: =IF(ISBLANK(O197),,R197+T197) -> 69.95 | V197: Y | W197: 70.94 | X197: 0.4434 | Y197: FALSE
B198: Fully cooked, One serving must provide 2.0 oz M/MA
B199: Possible Allergens: Soy
A200: 2032 | B200: Chicken Fajita Strips, Unbreaded Dark Meat | C200: Gold Kist/Pilgrims | D200: 1260 | F200: 195/2.46z | G200: 195 | I200: =ROUND(H200*G200/G200,2) -> 0 | J200: Cs | K200: 95.1 | L200: =IF(OR(ISBLANK(K200),K200=0,H200=0,ISBLANK(H200)),,ROUND(K200+$L$3,2)) -> 0 | M200: =ROUND(I200*L200,2) -> 0 | N200: =ROUND(L200/G200,4) -> 0 | O200: 1260 | P200: 30 lbs | Q200: 195 | R200: 47.69 | S200: 51.14 | T200: =ROUND($Y$6*S200,2) -> 23.15 | U200: =IF(ISBLANK(O200),,R200+T200) -> 70.84 | V200: Y | W200: 71.95 | X200: 0.369 | Y200: FALSE
B201: Fully cooked, One serving must provide 2.0 oz M/MA
B202: Possible Allergens: Soy
A203: 2033 | B203: Chicken Popcorn, Dark and White Meat, no container, WG | C203: Gold Kist/Pilgrims | D203: 110452 | F203: 108/4.30z | G203: 108 | I203: =ROUND(H203*G203/G203,2) -> 0 | J203: Cs | K203: 68.76 | L203: =IF(OR(ISBLANK(K203),K203=0,H203=0,ISBLANK(H203)),,ROUND(K203+$L$3,2)) -> 0 | M203: =ROUND(I203*L203,2) -> 0 | N203: =ROUND(L203/G203,4) -> 0 | O203: 110452 | P203: 30 lbs | Q203: 108 | R203: 40.98 | S203: 29.98 | T203: =ROUND($Y$6*S203,2) -> 13.57 | U203: =IF(ISBLANK(O203),,R203+T203) -> 54.55 | V203: Y | W203: 55.19 | X203: 0.511 | Y203: FALSE
... 48 more rows

Sheet Turkey
B1: ='Recap Sheet'!A2 -> School Food Authority or Agency Name: | F1: ='Recap Sheet'!A3 -> Bidder's Name:
A2: 4001- | B2: ='Recap Sheet'!B2 -> Marion County School District | C2: Return to Recap Sheet | F2: ='Recap Sheet'!B3 -> 0 | S2: Commodity
A3: 6000 | B3: Description | C3: Approved | G3: Firm Fixed Fee | L3: ='Recap Sheet'!B4 -> 0 | O3: Manufacturer | P3: Vendor Pack | Q3: Servings per case | R3: Processing | S3: Pounds of | T3: Commodity | U3: Total Cost | V3: NOI ? | W3: NOI | X3: Net NOI | Y3: Fee for Serivce
A4: SCPA | C4: Brand Name | D4: Manufacturers | E4: Distributor | F4: Vendor | G4: Svgs | H4: Est. | I4: Bid | J4: Bid | K4: Unit | L4: Unit Price | M4: Total | N4: Cost per | O4: USDA Product | R4: Fee for | S4: DF Needed | T4: Value Per | U4: Proc Fee + | V4: Enter | W4: Net | X4: Cost Per | Y4: Cost Per Serv.
A5: Code | C5: or Manufacturer | D5: Code | E5: Code | F5: Pack | G5: per unit | H5: Bid Qty | I5: Qty | J5: Unit | K5: Price | L5: plus Fee | M5: Price | N5: Unit | O5: Code | R5: Service | S5: Per Case | T5: Case | U5: Comm Value | V5: Y or N | W5: Price | X5: Serving | Y5: Fee+ Commodity
B6: Category: Turkey | O6: Turkey Thighs | Q6: 100883 | R6: Commodity Value per lb | T6: 1.6316
A8: 4001 | B8: Turkey Barbecue with Texas Sauce, Low Sodium | C8: Brookwood | D8: 16250 | F8: 4/5# | G8: 84 | I8: =ROUND(H8*G8/G8,2) -> 0 | J8: Cs | K8: 74.8 | L8: =IF(OR(ISBLANK(K8),K8=0,H8=0,ISBLANK(H8)),,ROUND(K8+$L$3,2)) -> 0 | M8: =ROUND(I8*L8,2) -> 0 | N8: =ROUND(L8/G8,4) -> 0 | O8: 16300 | P8: 4/5# | Q8: 84 | R8: 32 | S8: 25.2 | T8: =ROUND($T$6*S8,2) -> 41.12 | U8: =IF(ISBLANK(O8),,R8+T8) -> 73.12 | V8: N | W8: =IF(ISNUMBER(K8),IF(V8="Y",(K8-T8))) -> FALSE | X8: =W8/G8 -> 0 | Y8: =IF(V8="N",IF(ISNUMBER(R8),(R8)/Q8)) -> 0.380952381
B9: Frozen, fully cooked, chopped, One 3.75 oz. portion to provide
B10: 2 oz. M/MA, 100-200 calories and not more than 2 g saturated fat and
B11: 300 mg of sodium per serving
B13: Possible Allergens: Soy
B14: Category: Turkey | O14: Turkey | Q14: 100124 | R14: Commodity Value per lb | T14: 1.0754
A15: 4002 | B15: Turkey Breast, Deli Sliced, Frozen (1/2 oz. slices) | C15: Jennie O | D15: 2099 | F15: 64/3.0z | G15: 64 | H15: 200 | I15: =ROUND(H15*G15/G15,2) -> 200 | J15: Cs | K15: 37.44 | L15: =IF(OR(ISBLANK(K15),K15=0,H15=0,ISBLANK(H15)),,ROUND(K15+$L$3,2)) -> 37.44 | M15: =ROUND(I15*L15,2) -> 7488 | N15: =ROUND(L15/G15,4) -> 0.585 | O15: 2099 | P15: 64/3.0 oz. | Q15: 64 | R15: 24.6 | S15: 10.71 | T15: =ROUND($T$14*S15,2) -> 11.52 | U15: =IF(ISBLANK(O15),,R15+T15) -> 36.12 | V15: Y | W15: =IF(ISNUMBER(K15),IF(V15="Y",(K15-T15))) -> 25.92 | X15: =W15/G15 -> 0.405 | Y15: =IF(V15="N",IF(ISNUMBER(R15),(R15+T15)/Q15)) -> FALSE
B16: Frozen, fully cooked, Oven roasted, Round Shape 50-150 calories with
B17: not more than 2 g saturated fat and 400 mg sodium per serving,
B18: CN label portion to provide 2 oz. M/MA
B19: Possible Allegens: None Listed Gluten Free
A20: 4003 | B20: Turkey Ham, Sliced, (1/2 oz. slices) | C20: Jennie O | D20: 2565 | F20: 12/1 lb | G20: 62 | H20: 100 | I20: =ROUND(H20*G20/G20,2) -> 100 | J20: Cs | K20: 39.12 | L20: =IF(OR(ISBLANK(K20),K20=0,H20=0,ISBLANK(H20)),,ROUND(K20+$L$3,2)) -> 39.12 | M20: =ROUND(I20*L20,2) -> 3912 | N20: =ROUND(L20/G20,4) -> 0.631 | O20: 2565 | P20: 12/1 lb. | Q20: 62 | R20: 24.6 | S20: 13.26 | T20: =ROUND($T$14*S20,2) -> 14.26 | U20: =IF(ISBLANK(O20),,R20+T20) -> 38.86 | V20: Y | W20: =IF(ISNUMBER(K20),IF(V20="Y",(K20-T20))) -> 24.86 | X20: =W20/G20 -> 0.4009677419 | Y20: =IF(V20="N",IF(ISNUMBER(R20),(R20+T20)/Q20)) -> FALSE
B21: Frozen, fully cooked, No more than 10% water added 94% fat-free
B22: by weight, 50-150 calories with no more than 2 g saturated fat and
B23: 550 mg sodium per 2 M/MA serving May contain nitrites
B24: Possible Allergens: None Listed Gluten Free
A25: 4004 | B25: Turkey, Combo Frozen | C25: Jennie O | D25: 2095 | F25: 4/3/1 lbs | G25: 71 | H25: 100 | I25: =ROUND(H25*G25/G25,2) -> 100 | J25: Cs | K25: 35.16 | L25: =IF(OR(ISBLANK(K25),K25=0,H25=0,ISBLANK(H25)),,ROUND(K25+$L$3,2)) -> 35.16 | M25: =ROUND(I25*L25,2) -> 3516 | N25: =ROUND(L25/G25,4) -> 0.4952 | O25: 2095 | P25: 4/3/1 lb. | Q25: 71 | R25: 23.76 | S25: 10.53 | T25: =ROUND($T$14*S25,2) -> 11.32 | U25: =IF(ISBLANK(O25),,R25+T25) -> 35.08 | V25: Y | W25: =IF(ISNUMBER(K25),IF(V25="Y",(K25-T25))) -> 23.84 | X25: =W25/G25 -> 0.3357746479 | Y25: =IF(V25="N",IF(ISNUMBER(R25),(R25+T25)/Q25)) -> FALSE
B26: Frozen, fully cooked, All turkey equal parts bologna, ham, and salami.
B27: Each flavor packed separately, 1/2 oz. slices. May contain nitrites
B28: Possible Allergens: None Listed Gluten Free
A29: 4005 | B29: Turkey, Roast Light and Dark Meat Frozen | C29: Jennie O | D29: 3170-04 | F29: 4/9 lbs | G29: 209 | H29: 20 | I29: =ROUND(H29*G29/G29,2) -> 20 | J29: Cs | K29: 120.24 | L29: =IF(OR(ISBLANK(K29),K29=0,H29=0,ISBLANK(H29)),,ROUND(K29+$L$3,2)) -> 120.24 | M29: =ROUND(I29*L29,2) -> 2404.8 | N29: =ROUND(L29/G29,4) -> 0.5753 | O29: 3170-04 | P29: 4/9 lbs. | Q29: 209 | R29: 70.92 | S29: 41.31 | T29: =ROUND($T$14*S29,2) -> 44.42 | U29: =IF(ISBLANK(O29),,R29+T29) -> 115.34 | V29: Y | W29: =IF(ISNUMBER(K29),IF(V29="Y",(K29-T29))) -> 75.82 | X29: =W29/G29 -> 0.3627751196 | Y29: =IF(V29="N",IF(ISNUMBER(R29),(R29+T29)/Q29)) -> FALSE
B30: Frozen, fully cooked, Whole muscle breast and thigh roast, Packed in | C30: This is a catch weight item. Pricing is by the pound. | K30: 3.08 | L30: per lb | R30: 1.97 | S30: per lb
B31: ovenable Mylar bags, natural skin on, 50-150 calories with no more
B32: 2 g sat fat and 480 mg sodium per 2 M/MA serving
B33: Possible Allergens: None Listed Gluten Free | W33: per pound
A34: 4006 | B34: Turkey, Roast Light and Dark Meat Frozen | C34: Shady Brook Farms | D34: 703119 | F34: 4/9# | G34: 183 | I34: =ROUND(H34*G34/G34,2) -> 0 | J34: Cs | K34: 120.24 | L34: =IF(OR(ISBLANK(K34),K34=0,H34=0,ISBLANK(H34)),,ROUND(K34+$L$3,2)) -> 0 | M34: =ROUND(I34*L34,2) -> 0 | N34: =ROUND(L34/G34,4) -> 0 | O34: 703119 | P34: 4/9# | Q34: 183 | R34: 79.2 | S34: 38.05 | T34: =ROUND($T$14*S34,2) -> 40.92 | U34: =IF(ISBLANK(O34),,R34+T34) -> 120.12 | V34: Y | W34: =IF(ISNUMBER(K34),IF(V34="Y",(K34-T34))) -> 79.32 | X34: =W34/G34 -> 0.433442623 | Y34: =IF(V34="N",IF(ISNUMBER(R34),(R34+T34)/Q34)) -> FALSE
B35: Frozen, fully cooked, Whole muscle breast and thigh roast, Packed in | C35: Catch Weight per Pound | K35: 3.34 | L35: per lb | R35: 2.2 | S35: per lb
B36: ovenable Mylar bags, natural skin on, 50-150 calories with no more
B37: 2 g sat fat and 480 mg sodium per 2 M/MA serving
B38: Possible Allergens: None Listed Gluten Free
B39: 703119 is in catch weights and will be invoiced by the pound.
B40: The case prices listed are approximate.
A41: 4007 | B41: Turkey Sausage Patty | C41: Jimmy Dean CN | D41: 14106 | F41: 106/1.50z | G41: 106 | I41: =ROUND(H41*G41/G41,2) -> 0 | J41: Cs | K41: 0 | L41: =IF(OR(ISBLANK(K41),K41=0,H41=0,ISBLANK(H41)),,ROUND(K41+$L$3,2)) -> 0 | M41: =ROUND(I41*L41,2) -> 0 | N41: =ROUND(L41/G41,4) -> 0 | S41: 13.23 | T41: =ROUND(#REF!*S41,2) ->  | U41: =IF(ISBLANK(O41),,R41+T41) -> 0 | V41: Y | W41: =IF(ISNUMBER(K41),IF(V41="Y",(K41-T41))) ->  | X41: =W41/G41 ->  | Y41: =IF(V41="N",IF(ISNUMBER(R41),(R41+T41)/Q41)) -> FALSE
B42: Frozen, Fully cooked, No VPP, 50-100 cals per svg no more than
B43: 3 g sat fat and 320 mg sodium . CN Label to provide 1 M/MA
B45: Possible Allergens: None Listed
A46: 4008 | B46: Turkey Sausage Patty Lower Sodium | C46: Jennie O | D46: 6132 | F46: 160/1.03z | G46: 160 | H46: 50 | I46: =ROUND(H46*G46/G46,2) -> 50 | J46: Cs | K46: 35.67 | L46: =IF(OR(ISBLANK(K46),K46=0,H46=0,ISBLANK(H46)),,ROUND(K46+$L$3,2)) -> 35.67 | M46: =ROUND(I46*L46,2) -> 1783.5 | N46: =ROUND(L46/G46,4) -> 0.2229 | O46: 6132 | P46: 160/1.03 oz. | Q46: 160 | R46: 24.9 | S46: 9.97 | T46: =ROUND($T$14*S46,2) -> 10.72 | U46: =IF(ISBLANK(O46),,R46+T46) -> 35.62 | V46: Y | W46: =IF(ISNUMBER(K46),IF(V46="Y",(K46-T46))) -> 24.95 | X46: =W46/G46 -> 0.1559375 | Y46: =IF(V46="N",IF(ISNUMBER(R46),(R46+T46)/Q46)) -> FALSE
B47: Frozen, Fully cooked, No VPP, 50-100 cals per svg no more than 2 g
B48: sat fat and 150 mg sodium per 1 M/MA serving Must provide 1 M/MA
B50: Possible Allergens: None Listed Gluten Free
A51: 4009 | B51: Turkey Taco Filling | C51: Jennie O | D51: 2856-28 | F51: 4/7 lbs | G51: 147 | I51: =ROUND(H51*G51/G51,2) -> 0 | J51: Cs | K51: 73.64 | L51: =IF(OR(ISBLANK(K51),K51=0,H51=0,ISBLANK(H51)),,ROUND(K51+$L$3,2)) -> 0 | M51: =ROUND(I51*L51,2) -> 0 | N51: =ROUND(L51/G51,4) -> 0 | O51: 2856-28 | P51: 4/7 lbs. | Q51: 147 | R51: 42 | S51: 29.26 | T51: =ROUND($T$14*S51,2) -> 31.47 | U51: =IF(ISBLANK(O51),,R51+T51) -> 73.47 | V51: Y | W51: =IF(ISNUMBER(K51),IF(V51="Y",(K51-T51))) -> 42.17 | X51: =W51/G51 -> 0.2868707483 | Y51: =IF(V51="N",IF(ISNUMBER(R51),(R51+T51)/Q51)) -> FALSE
B52: Frozen, fully cooked, dark/white meat, pre-seasoned, 100-200 calories
B53: with no more than 2 g sat fat and 400 mg sodium per
B54: 2 M/MA serving. Boil or steam in bag, CN labeled to provide 2 M/MA
B55: Possible Allergens: None Listed
A56: 4010 | B56: Turkey Bacon | C56: (18-19) Jennie O | D56: 2711-06 | F56: 120/1.0z | G56: 120 | H56: 10 | I56: =ROUND(H56*G56/G56,2) -> 10 | J56: Cs | K56: 81.9 | L56: =IF(OR(ISBLANK(K56),K56=0,H56=0,ISBLANK(H56)),,ROUND(K56+$L$3,2)) -> 81.9 | M56: =ROUND(I56*L56,2) -> 819 | N56: =ROUND(L56/G56,4) -> 0.6825 | O56: 271106 | P56: 120/1.0 oz. | Q56: 120 | R56: 74.63 | S56: 6.64 | T56: =ROUND($T$14*S56,2) -> 7.14 | U56: =IF(ISBLANK(O56),,R56+T56) -> 81.77 | V56: Y | W56: =IF(ISNUMBER(K56),IF(V56="Y",(K56-T56))) -> 74.76 | X56: =W56/G56 -> 0.623 | Y56: =IF(V56="N",IF(ISNUMBER(R56),(R56+T56)/Q56)) -> FALSE
B57: Frozen, pre-cooked and pre-crisped, One slice contains .179 of cooked
B58: M/MA, Contains both white and dark meat
B59: Possible Allergens: None Listed
A60: 4011 | B60: Turkey Sliced All Natural Turkey Breast | C60: Jennie O | D60: 2318-18 | F60: 96/3.0z | G60: 96 | I60: =ROUND(H60*G60/G60,2) -> 0 | J60: Cs | K60: 75.78 | L60: =IF(OR(ISBLANK(K60),K60=0,H60=0,ISBLANK(H60)),,ROUND(K60+$L$3,2)) -> 0 | M60: =ROUND(I60*L60,2) -> 0 | N60: =ROUND(L60/G60,4) -> 0 | O60: 2318-18 | P60: 96/3.0 oz. | Q60: 96 | R60: 48.6 | S60: 18.21 | T60: =ROUND($T$14*S60,2) -> 19.58 | U60: =IF(ISBLANK(O60),,R60+T60) -> 68.18 | V60: Y | W60: =IF(ISNUMBER(K60),IF(V60="Y",(K60-T60))) -> 56.2 | X60: =W60/G60 -> 0.5854166667 | Y60: =IF(V60="N",IF(ISNUMBER(R60),(R60+T60)/Q60)) -> FALSE
B61: Frozen, fully cooked, oven roasted, round shaped, 50-150 calories
B62: with no more than 1 g sat fat and 4500 mg of sodium per serving. CN
B63: labeled with portion to provide 2 M/MA
B64: Possible Allergens: None Listed, Gluten Free
A65: 4012 | B65: Turkey, All Nat Smoke House Turkey Breast Snack Stick | C65: Jennie O | D65: 207130 | F65: 400/1.2z | G65: 400 | I65: =ROUND(H65*G65/G65,2) -> 0 | J65: Cs | K65: 215.7 | L65: =IF(OR(ISBLANK(K65),K65=0,H65=0,ISBLANK(H65)),,ROUND(K65+$L$3,2)) -> 0 | M65: =ROUND(I65*L65,2) -> 0 | N65: =ROUND(L65/G65,4) -> 0 | O65: 207130 | P65: 400/1.2 oz. | Q65: 400 | R65: 181.5 | S65: 31.76 | T65: =ROUND($T$14*S65,2) -> 34.15 | U65: =IF(ISBLANK(O65),,R65+T65) -> 215.65 | V65: Y | W65: =IF(ISNUMBER(K65),IF(V65="Y",(K65-T65))) -> 181.55 | X65: =W65/G65 -> 0.453875 | Y65: =IF(V65="N",IF(ISNUMBER(R65),(R65+T65)/Q65)) -> FALSE
B66: Frozen, Fully cooked, wach 1.2 oz. sticks provides 1 oz. M/MA 10-100
B67: calories with no more than 1 g sat fat and 8 g of protein
B68: Possible Allergens: None Listed, Gluten Free
A69: 4013 | B69: Turkey Meatballs | C69: Jennie O | D69: 639930 | F69: 184/.85z | G69: 184 | I69: =ROUND(H69*G69/G69,2) -> 0 | J69: Cs | K69: 106.8 | L69: =IF(OR(ISBLANK(K69),K69=0,H69=0,ISBLANK(H69)),,ROUND(K69+$L$3,2)) -> 0 | M69: =ROUND(I69*L69,2) -> 0 | N69: =ROUND(L69/G69,4) -> 0 | O69: 639930 | P69: 184/.85 oz. | Q69: 184 | R69: 74.4 | S69: 29.28 | T69: =ROUND($T$14*S69,2) -> 31.49 | U69: =IF(ISBLANK(O69),,R69+T69) -> 105.89 | V69: Y | W69: =IF(ISNUMBER(K69),IF(V69="Y",(K69-T69))) -> 75.31 | X69: =W69/G69 -> 0.4092934783 | Y69: =IF(V69="N",IF(ISNUMBER(R69),(R69+T69)/Q69)) -> FALSE
B70: Fully cooked, IQF, Four meatballs provides 2 M/MA Utlizes both white &
B71: dark meat, 100-150 cals with no more than 1 g sat fat & 400 mg sodium
B72: Possible Allergens: Wheat, Soy and Milk
A73: 4014 | B73: Turkey Burger | C73: Jennie O | D73: 616630 | F73: 175/2.75z | G73: 175 | I73: =ROUND(H73*G73/G73,2) -> 0 | J73: Cs | K73: 115.5 | L73: =IF(OR(ISBLANK(K73),K73=0,H73=0,ISBLANK(H73)),,ROUND(K73+$L$3,2)) -> 0 | M73: =ROUND(I73*L73,2) -> 0 | N73: =ROUND(L73/G73,4) -> 0 | O73: 616630 | P73: 175/2.75z | Q73: 175 | R73: 84 | S73: 29.07 | T73: =ROUND($T$14*S73,2) -> 31.26 | U73: =IF(ISBLANK(O73),,R73+T73) -> 115.26 | V73: Y | W73: =IF(ISNUMBER(K73),IF(V73="Y",(K73-T73))) -> 84.24 | X73: =W73/G73 -> 0.4813714286 | Y73: =IF(V73="N",IF(ISNUMBER(R73),(R73+T73)/Q73)) -> FALSE
B74: Frozen, Fully cooked, on patty provides 2.0 oz. M/MA 150-200 calories
B75: with no more than 2.5 g sat fat and 450 mg of sodium per serving
B76: Possible Allergens: None Listed
A77: 4015 | B77: Turkey Medallions | C77: Butterball | D77: 2265589209 | F77: 30 # | G77: 133 | I77: =ROUND(H77*G77/G77,2) -> 0 | J77: Cs | K77: 87.9 | L77: =IF(OR(ISBLANK(K77),K77=0,H77=0,ISBLANK(H77)),,ROUND(K77+$L$3,2)) -> 0 | M77: =ROUND(I77*L77,2) -> 0 | N77: =ROUND(L77/G77,4) -> 0 | O77: 100124W | P77: 30 lbs | Q77: 133 | R77: 58.5 | S77: 23.19 | T77: =ROUND($T$14*S77,2) -> 24.94 | U77: =IF(ISBLANK(O77),,R77+T77) -> 83.44 | V77: Y | W77: =IF(ISNUMBER(K77),IF(V77="Y",(K77-T77))) -> 62.96 | X77: =W77/G77 -> 0.4733834586 | Y77: =IF(V77="N",IF(ISNUMBER(R77),(R77+T77)/Q77)) -> FALSE
B78: Fully cooked, boneless, skinless, individually sliced turkey tenderloin medallions
B79: Ready to serve. 1 3.60 oz serving provides 2.00 M/MA CN labeled
A80: 4016 | B80: Turkey Thigh Roast | C80: Butterball | D80: 2265589204 | F80: 3/6 lb | G80: 80 | I80: =ROUND(H80*G80/G80,2) -> 0 | J80: Cs | K80: 41.4 | L80: =IF(OR(ISBLANK(K80),K80=0,H80=0,ISBLANK(H80)),,ROUND(K80+$L$3,2)) -> 0 | M80: =ROUND(I80*L80,2) -> 0 | N80: =ROUND(L80/G80,4) -> 0 | O80: 100124D | P80: 3/6 lb | Q80: 80 | R80: 16.92 | S80: 23.9 | T80: =ROUND($T$14*S80,2) -> 25.7 | U80: =IF(ISBLANK(O80),,R80+T80) -> 42.62 | V80: Y | W80: =IF(ISNUMBER(K80),IF(V80="Y",(K80-T80))) -> 15.7 | X80: =W80/G80 -> 0.19625 | Y80: =IF(V80="N",IF(ISNUMBER(R80),(R80+T80)/Q80)) -> FALSE
B81: Fully cooked turkey thigh roast. 3.58 oz serving provides 2.0 M/MA 2 gms sat | C81: This is a catch weight item. Pricing is by the pound. | I81: Catch Weigh | K81: 2.3 | L81: per lb. | R81: 0.94
B82: fat and 450 mg sodium
J83: Page Total | M83: =SUMIF(M15:M82,">0") -> 19923.3

Sheet Fish
B1: ='Recap Sheet'!A2 -> School Food Authority or Agency Name: | F1: ='Recap Sheet'!A3 -> Bidder's Name:
A2: 6001 | B2: ='Recap Sheet'!B2 -> Marion County School District | C2: Return to Recap Sheet | F2: ='Recap Sheet'!B3 -> 0 | S2: Commodity
A3: 8000 | B3: Description | C3: Approved | G3: Firm Fixed Fee | L3: ='Recap Sheet'!B4 -> 0 | O3: Manufacturer | P3: Vendor Pack | Q3: Servings per case | R3: Processing | S3: Pounds of | T3: Commodity | U3: Total Cost | V3: NOI ? | W3: Net | X3: Net NOI | Y3: Fee for Serivce
A4: SCPA | C4: Brand Name | D4: Manufacturers | E4: Distributor | F4: Vendor | G4: Svgs | H4: Est. | I4: Bid | J4: Bid | K4: Unit | L4: Unit Price | M4: Total | N4: Cost per | O4: USDA Product | R4: Fee for | S4: DF Needed | T4: Value Per | U4: Proc Fee + | V4: Enter | W4: NOI | X4: Cost Per | Y4: Cost Per Serv.
A5: Code | C5: or Manufacturer | D5: Code | E5: Code | F5: Pack | G5: per unit | H5: Bid Qty | I5: Qty | J5: Unit | K5: Price | L5: plus Fee | M5: Price | N5: Unit | O5: Code | R5: Service | S5: Per Case | T5: Case | U5: Comm Value | V5: Y or N | W5: Price | X5: Serving | Y5: Fee+ Commodity
B6: Fish Products | O6: Fish | Q6: 110601 | R6: Commodity Value per lb | T6: 1.5507
A8: 6001 | B8: Fish Portion, Pollock, WG | C8: Trident Seafood | D8: 418302 | F8: 44/3.64z | G8: 44 | I8: =ROUND($H$8*$G$8/G8,2) -> 0 | J8: Cs | L8: =IF(OR(ISBLANK(K8),K8=0,H8=0,ISBLANK(H8)),,ROUND(K8+$L$3,2)) -> 0 | M8: =ROUND(I8*L8,2) -> 0 | N8: =ROUND(L8/G8,4) -> 0 | O8: 418302 | P8: 44/3.64 oz. | Q8: 44 | S8: 6.99 | T8: =ROUND($T$6*S8,2) -> 10.84 | U8: =IF(ISBLANK(O8),,R8+T8) -> 10.84 | V8: Y
B9: Frozen, min 71% Alaskan Pollock, WGR breading, precooked, Grade A or | C9: High Liner Foods | D9: 1089300CN | F9: 80/3.60z | G9: 80 | I9: =ROUND($H$8*$G$8/G9,2) -> 0 | J9: Cs | K9: 39.89 | L9: =IF(OR(ISBLANK(K9),K9=0,H8=0,ISBLANK(H8)),,ROUND(K9+$L$3,2)) -> 0 | M9: =ROUND(I9*L9,2) -> 0 | N9: =ROUND(L9/G9,4) -> 0 | O9: 1089300CN | P9: 80/3.60 oz. | Q9: 80 | R9: 19.98 | S9: 12.84 | T9: =ROUND($T$6*S9,2) -> 19.91 | U9: =IF(ISBLANK(O9),,R9+T9) -> 39.89 | V9: Y | W9: 19.98 | X9: 0.24975 | Y9: =IF(V9="N",IF(ISNUMBER(R9),(R9+T9)/Q9)) -> FALSE
B10: PUFI approved, 150-250 calories with no more than 2 g saturated fat and
B11: 400 mg per serving, CN labeled to provide min. 2 M/MA and 1 OEG
B12: Possible Allergens: Fish, Wheat, Soy
A13: 6002 | B13: Fish Portion, Pollock, Wedge, Potato Breading WG | C13: High Liner - Viking | D13: 06533C | F13: 46/3.60z | G13: 46 | I13: =ROUND(H13*G13/G13,2) -> 0 | J13: Cs | K13: 25.47 | L13: =IF(OR(ISBLANK(K13),K13=0,H13=0,ISBLANK(H13)),,ROUND(K13+$L$3,2)) -> 0 | M13: =ROUND(I13*L13,2) -> 0 | N13: =ROUND(L13/G13,4) -> 0 | O13: 06533C | P13: 46/3.6 oz. | Q13: 46 | R13: 13.99 | S13: 7.4 | T13: =ROUND($T$6*S13,2) -> 11.48 | U13: =IF(ISBLANK(O13),,R13+T13) -> 25.47 | V13: Y | W13: 13.99 | X13: 0.3041304348 | Y13: =IF(V13="N",IF(ISNUMBER(R13),(R13+T13)/Q13)) -> FALSE
B14: Frozen, min 71% Alaskan Pollock, WGR breading, precooked, Grade A or | C14: Trident Seafood | D14: 422072 | F14: 44/3.60z | G14: 44 | I14: =ROUND(H13*G13/G14,2) -> 0 | J14: Cs | L14: =IF(OR(ISBLANK(K14),K14=0,H13=0,ISBLANK(H13)),,ROUND(K14+$L$3,2)) -> 0 | M14: =ROUND(I14*L14,2) -> 0 | N14: =ROUND(L14/G14,4) -> 0 | O14: 422072 | P14: 44/3.6 oz. | Q14: 44 | S14: 6.99 | T14: =ROUND($T$6*S14,2) -> 10.84 | U14: =IF(ISBLANK(O14),,R14+T14) -> 10.84 | V14: Y
B15: PUFI approved, 150-250 calories with no more than 2 g saturated fat and
B16: 300 mg per serving, CN labeled to provide min. 2 M/MA and .5 OEG
B17: Possible Allergens: Fish, Wheat, Egg, Soy and Milk
A18: 6003 | B18: Fish Nuggets, Natural Cod | C18: High Liner/Viking | D18: 51067CN | F18: 40/4.0oz | G18: 40 | I18: =ROUND(H18*G18/G18,2) -> 0 | J18: Cs | K18: 23.73 | L18: =IF(OR(ISBLANK(K18),K18=0,H18=0,ISBLANK(H18)),,ROUND(K18+$L$3,2)) -> 0 | M18: =ROUND(I18*L18,2) -> 0 | N18: =ROUND(L18/G18,4) -> 0
B19: Natural Cod, chunks pre-breaded, oven ready. PUFI approved. One
B20: serving (4 nuggets) will provide 2 oz meat/meat alternate and 1.0z OEG
B21: Possible Allergens: Fish, Wheat, Egg
A22: 6004 | B22: Fish Sticks, Pollock | C22: High Liner/APS | D22: 26240CN | F22: 160/1.0z | G22: 40 | I22: =ROUND(H22*G22/G22,2) -> 0 | J22: Cs | K22: 21.1 | L22: =IF(OR(ISBLANK(K22),K22=0,H22=0,ISBLANK(H22)),,ROUND(K22+$L$3,2)) -> 0 | M22: =ROUND(I22*L22,2) -> 0 | N22: =ROUND(L22/G22,4) -> 0
B23: Frozen, min. 64% Alaskan Pollock, breaded, oven ready, Grade A or PUFI | C23: Trident Seafood | D23: 427203 | F23: 160/1.0z | G23: 40 | I23: =ROUND(H22*G22/G23,2) -> 0 | J23: Cs | L23: =IF(OR(ISBLANK(K23),K23=0,H22=0,ISBLANK(H22)),,ROUND(K23+$L$3,2)) -> 0 | M23: =ROUND(I23*L23,2) -> 0 | N23: =ROUND(L23/G23,4) -> 0 | O23: 427203 | P23: 160/1 oz | Q23: 40 | R23: 16.74 | S23: 6.42 | T23: =ROUND($T$6*S23,2) -> 9.96 | U23: =IF(ISBLANK(O23),,R23+T23) -> 26.7 | V23: Y | W23: 16.74 | X23: 0.4185 | Y23: =IF(V23="N",IF(ISNUMBER(R23),(R23+T23)/Q23)) -> FALSE
B24: approved, 200-300 claories calories with no more than 2 g sat fat and | C24: Slade Gorton | D24: 25152 | F24: 160/1.0z | G24: 40 | I24: =ROUND($H$22*$G$22/G24,2) -> 0 | J24: Cs | L24: =IF(OR(ISBLANK(K24),K24=0,H22=0,ISBLANK(H22)),,ROUND(K24+$L$3,2)) -> 0 | M24: =ROUND(I24*L24,2) -> 0 | N24: =ROUND(L24/G24,4) -> 0
B25: 350 mg sodium per serving.
B26: Possible Allergens: Fish, Wheat, Soy
A27: 6005 | B27: Fish Stick, Nacho Breaded, WG | C27: High Liner Foods | D27: 38118 | F27: 320/1.0z | G27: 80 | I27: =ROUND(H27*G27/G27,2) -> 0 | J27: Cs | K27: 43.16 | L27: =IF(OR(ISBLANK(K27),K27=0,H27=0,ISBLANK(H27)),,ROUND(K27+$L$3,2)) -> 0 | M27: =ROUND(I27*L27,2) -> 0 | N27: =ROUND(L27/G27,4) -> 0 | O27: 38118 | P27: 320/1 oz. | Q27: 80 | R27: 23 | S27: 13 | T27: =ROUND($T$6*S27,2) -> 20.16 | U27: =IF(ISBLANK(O27),,R27+T27) -> 43.16 | V27: Y | W27: 23 | X27: 0.2875 | Y27: =IF(V27="N",IF(ISNUMBER(R27),(R27+T27)/Q27)) -> FALSE
B28: Frozen, min. 64% Alaskan Pollock, breaded, oven ready, PUFI approved,
B29: 200-300 calories with no more than 2 g sat fat and 350 mg sodium per
B30: serving. CN Labeled for 4 sticks to provide min. 2 M/MA and .75 OEG
B31: Possible Allergens: Fish, Wheat, Soy
A32: 6006 | B32: Fish Sticks, Pollock, Potato Coated, WG | C32: Trident Seafood | D32: 422071 | F32: 160/1.0z | G32: 40 | I32: =ROUND(H32*G32/G32,2) -> 0 | J32: Cs | K32: 28.8 | L32: =IF(OR(ISBLANK(K32),K32=0,H32=0,ISBLANK(H32)),,ROUND(K32+$L$3,2)) -> 0 | M32: =ROUND(I32*L32,2) -> 0 | N32: =ROUND(L32/G32,4) -> 0 | O32: 422071 | P32: 160/1.0z | Q32: 40 | R32: 18.92 | S32: 6.37 | T32: =ROUND($T$6*S32,2) -> 9.88 | U32: =IF(ISBLANK(O32),,R32+T32) -> 28.8 | V32: Y | W32: 18.92 | X32: 0.473 | Y32: =IF(V32="N",IF(ISNUMBER(R32),(R32+T32)/Q32)) -> FALSE
B33: Frozen, min. 64% Alaskan Pollock, breaded, oven ready, PUFI approved,
B34: 200-300 calories with no more than 2 g sat fat and 350 mg sodium per
B35: serving. CN Labeled for 4 sticks to provide min. 2 M/MA and .75 OEG
B36: Possible Allergens: Fish, Wheat, Soy, and Egg
A37: 6007 | B37: Shrimp, Popcorn Style, WG | C37: Sea Pak | D37: 47039 | F37: 5/2 lbs | G37: 53 | I37: 53 | J37: Cs | L37: =IF(OR(ISBLANK(K37),K37=0,H37=0,ISBLANK(H37)),,ROUND(K37+$L$3,2)) -> 0 | M37: =ROUND(I37*L37,2) -> 0 | N37: =ROUND(L37/G37,4) -> 0
B38: Frozen, made from minced shrimp, whole grain rich breading, 150-250 | C38: Tampa Maid | D38: 1SH0100202 | F38: 12/2 lbs | G38: 128 | I38: 128 | J38: Cs | K38: 71.28 | L38: =IF(OR(ISBLANK(K38),K38=0,H37=0,ISBLANK(H37)),,ROUND(K38+$L$3,2)) -> 0 | M38: =ROUND(I38*L38,2) -> 0 | N38: =ROUND(L38/G38,4) -> 0
B39: calories with no more than 2 g saturated fat and 500 mg sodium per serving,
B40: CN labeled to provide min. 1 M/MA and 1.25 OEG per 3 ounce serving
B41: Possible Allergens: Shrimp, Wheat, Milk, Soy
A42: 6008 | B42: Tuna, Chunk Light, Low Sodium | C42: Star-Kist | D42: 514540 | F42: 6/43 z | G42: 129 | I42: =ROUND(H42*G42/G42,2) -> 0 | J42: Cs | K42: 50 | L42: =IF(OR(ISBLANK(K42),K42=0,H42=0,ISBLANK(H42)),,ROUND(K42+$L$3,2)) -> 0 | M42: =ROUND(I42*L42,2) -> 0 | N42: =ROUND(L42/G42,4) -> 0
B43: Pouch, water packed, No soy, Complies with "Buy American" provision
B44: Possible Allergens: Fish, Wheat
H45: 0 | J45: Page Total | M45: =SUMIF(M8:M44,">0") -> 0

Sheet Pork
B1: ='Recap Sheet'!A2 -> School Food Authority or Agency Name:
A2: 8001 | B2: ='Recap Sheet'!B2 -> Marion County School District | C2: Return to Recap Sheet | F2: ='Recap Sheet'!B3 -> 0 | S2: Commodity
A3: 10000 | B3: Description | C3: Approved | G3: Firm Fixed Fee | L3: ='Recap Sheet'!B4 -> 0 | O3: Manufacturer | P3: Vendor Pack | Q3: Servings per case | R3: Processing | S3: Pounds of | T3: Commodity | U3: Total Cost | V3: NOI ? | X3: NOI | Y3: Fee for Serivce | Z3: Fee for Serivce
A4: SCPA | C4: Brand Name | D4: Manufacturers | E4: Distributor | F4: Vendor | G4: Svgs | H4: Est. | I4: Bid | J4: Bid | K4: Unit | L4: Unit Price | M4: Total | N4: Cost per | O4: USDA Product | R4: Fee for | S4: DF Needed | T4: Value Per | U4: Proc Fee + | V4: Enter | W4: NOI | X4: Price/ | Y4: Cost Per Serv. | Z4: Cost Per Serv.
A5: Code | C5: or Manufacturer | D5: Code | E5: Code | F5: Pack | G5: per unit | H5: Bid Qty | I5: Qty | J5: Unit | K5: Price | L5: plus Fee | M5: Price | N5: Unit | O5: Code | R5: Service | S5: Per Case | T5: Case | U5: Comm Value | V5: Y or N | W5: Price | X5: Serving | Y5: Processing Fee | Z5: Processing Fee
B6: Pork Products | O6: Pork | Q6: 100193 | R6: Commodity Value per lb | T6: 1.4477
A8: 6001 | B8: Pork Barbecue, Tomato Sauce | C8: Brookwood | D8: 13017 | F8: 4/5 lbs | G8: 98 | I8: =ROUND($H$8*$G$8/G8,2) -> 0 | J8: Cs | K8: 62.4 | L8: =IF(OR(ISBLANK(K8),K8=0,H8=0,ISBLANK(H8)),,ROUND(K8+$L$3,2)) -> 0 | M8: =ROUND(I8*L8,2) -> 0 | N8: =ROUND(L8/G8,4) -> 0
B9: Frozen, fully cooked. Chopped. Products shall contain no more than | C9: Castleberry CN | D9: 7046 | F9: 4/5 lbs | G9: 103 | I9: =ROUND($H$8*$G$8/G9,2) -> 0 | J9: Cs | L9: =IF(OR(ISBLANK(K9),K9=0,H8=0,ISBLANK(H8)),,ROUND(K9+$L$3,2)) -> 0 | M9: =ROUND(I9*L9,2) -> 0 | N9: =ROUND(L9/G9,4) -> 0
B10: 5% textured vegetable protein. USDA inspected pork. | J10: Cs
B11: Possible Allergens: Soy, Wheat
A12: 6002 | B12: Pork Barbecue, Lower Sodium Texas Western Sauce | C12: Brookwood | D12: 12013 | F12: 2/5 lbs | G12: 40 | I12: =ROUND($H$12*$G$12/G12,2) -> 0 | J12: Cs | K12: 36.3 | L12: =IF(OR(ISBLANK(K12),K12=0,H12=0,ISBLANK(H12)),,ROUND(K12+$L$3,2)) -> 0 | M12: =ROUND(I12*L12,2) -> 0 | N12: =ROUND(L12/G12,4) -> 0 | O12: 12307 | P12: 4/5 lb | Q12: 80 | R12: 31 | S12: 22.8 | T12: =ROUND($T$6*S12,2) -> 33.01 | U12: =IF(ISBLANK(O12),,R12+T12) -> 64.01 | V12: N | W12: =IF(ISNUMBER(K12),IF(V12="Y",(K12-T12))) -> FALSE | X12: =W12/G12 -> 0 | Y12: 0.7625 | Z12: 1.175125
B13: Frozen, fully cooked, 150-300 calories with no more than 7g sat fat and
B14: 275 mg sodium per serving. Must provide 2 oz. M/MA 0 trans fat
B15: Possible Allergens: Soy
A16: 6003 | B16: Pork, Barbecue, Vinegar Marinate/Semi Dry | C16: Brookwood | D16: 12105 | F16: 2/5 lbs | G16: 64 | H16: 120 | I16: =ROUND($H$16*$G$16/G16,2) -> 120 | J16: Cs | K16: 42 | L16: =IF(OR(ISBLANK(K16),K16=0,H16=0,ISBLANK(H16)),,ROUND(K16+$L$3,2)) -> 42 | M16: =ROUND(I16*L16,2) -> 5040 | N16: =ROUND(L16/G16,4) -> 0.6563 | O16: 12302 | P16: 8/5 lb | Q16: 256 | R16: 76.4 | S16: 64 | T16: =ROUND($T$6*S16,2) -> 92.65 | U16: =IF(ISBLANK(O16),,R16+T16) -> 169.05 | V16: N | W16: =IF(ISNUMBER(K16),IF(V16="Y",(K16-T16))) -> FALSE | X16: =W16/G16 -> 0 | Y16: 0.2984375 | Z16: 0.6603515625
B17: Frozen, fully cooked 200-300 calories with no more than 7g sat fat and
B18: 275 mg of sodium per serving. Must provide 2 oz. M/MA 0 trans fat
B19: Possible Allergens: Soy
A20: 6004 | B20: Pork Chop Pattie, Breaded, WG | C20: Advanced Pierre 68019 | D20: 10000007801 | F20: 100/3.11 oz | G20: 100 | I20: =ROUND(H20*G20/G20,2) -> 0 | J20: Cs | K20: 48.35 | L20: =IF(OR(ISBLANK(K20),K20=0,H20=0,ISBLANK(H20)),,ROUND(K20+$L$3,2)) -> 0 | M20: =ROUND(I20*L20,2) -> 0 | N20: =ROUND(L20/G20,4) -> 0 | O20: 10000069019 | P20: 100/3.1 oz | Q20: 100 | S20: 9.51 | T20: =ROUND($T$6*S20,2) -> 13.77 | U20: =IF(ISBLANK(O20),,R20+T20) -> 13.77 | V20: N
B21: Frozen, fully cooked, 250-350 calories with no more than 6 g sat fat | C21: JTM | D21: 5694CE | F21: 138/3.35z | G21: 138 | I21: =ROUND(H20*G20/G21,2) -> 0 | J21: Cs | L21: =IF(OR(ISBLANK(K21),K21=0,H20=0,ISBLANK(H20)),,ROUND(K21+$L$3,2)) -> 0 | M21: =ROUND(I21*L21,2) -> 0 | N21: =ROUND(L21/G21,4) -> 0 | O21: CP5694 | P21: 138/3.35 oz | Q21: 138 | R21: 43.34 | S21: 20.59 | T21: =ROUND($T$6*S21,2) -> 29.81 | U21: =IF(ISBLANK(O21),,R21+T21) -> 73.15 | V21: N | W21: =IF(ISNUMBER(K21),IF(V21="Y",(K21-T21))) -> FALSE | Y21: 0.314057971 | Z21: 0.5300724638
B22: and 500 mg of sodium per serving. CN labeled for one portion to
B23: provide min. 2 M/MA and .5 OEG
B24: Possible Allergens: Egg, Milk, Soy and Wheat
A25: 6005 | B25: Pork Rib Pattie, Barbecue Flavored | C25: Advanced Pierre | D25: 10000044531 | F25: 100/2.50z | G25: 100 | I25: =ROUND(H25*G25/G25,2) -> 0 | J25: Cs | L25: =IF(OR(ISBLANK(K25),K25=0,H25=0,ISBLANK(H25)),,ROUND(K25+$L$3,2)) -> 0 | M25: =ROUND(L25*I25,2) -> 0 | N25: =ROUND(L25/G25,4) -> 0
B26: Frozen, fully cooked, 100-200 calories with no more than 4 g sat fat | C26: Maid Rite | D26: 75156-05324 | F26: 208/2.40z | G26: 208 | L26: =IF(OR(ISBLANK(K26),K26=0,H25=0,ISBLANK(H25)),,ROUND(K26+$L$3,2)) -> 0 | M26: =ROUND(I26*L26,2) -> 0 | N26: =ROUND(L26/G26,4) -> 0 | O26: 75156-95324 | P26: 208/2.40 oz. | Q26: 208 | S26: 29.12 | T26: =ROUND($T$6*S26,2) -> 42.16 | U26: =IF(ISBLANK(O26),,R26+T26) -> 42.16 | V26: N
B27: and 400 mg sodium per serving CN Labeled for one portion to provide | C27: Don Lee Farms | D27: CN582253 | F27: 216/2.25z | G27: 216 | K27: 58.33 | L27: =IF(OR(ISBLANK(K27),K27=0,H25=0,ISBLANK(H25)),,ROUND(K27+$L$3,2)) -> 0 | M27: =ROUND(L27*I27,2) -> 0 | N27: =ROUND(L27/G27,4) -> 0 | O27: CNQ582253P | P27: 216/2.25 oz. | Q27: 216 | R27: 23.39 | S27: 38.06 | T27: 55.1 | U27: =IF(ISBLANK(O27),,R27+T27) -> 78.49 | V27: N | W27: =IF(ISNUMBER(K27),IF(V27="Y",(K27-T27))) -> FALSE | X27: =W27/G27 -> 0 | Y27: 0.108287037 | Z27: 0.3633796296
B28: 2 M/MA
B29: Possible Allergens: Milk, Soy and Wheat
A32: 6006 | B32: Ham, Buffet | C32: Farmland | D32: 90070247190454 | F32: 2/9-10 lb | G32: 20 | H32: 10 | I32: =ROUND(H32*G32/G32,2) -> 10 | J32: Cs | K32: 21.5 | L32: =IF(OR(ISBLANK(K32),K32=0,H32=0,ISBLANK(H32)),,ROUND(K32+$L$3,2)) -> 21.5 | M32: =ROUND(L32*I32,2) -> 215 | N32: =ROUND(L32/G32,4) -> 1.075
B33: Fully cooked, water added, boneless, smoked | C33: Farmland | D33: 190450 | F33: 2/13 lb | G33: 20 | I33: =ROUND(H32*G32/G33,2) -> 10 | J33: Cs | L33: =IF(OR(ISBLANK(K33),K33=0,H32=0,ISBLANK(H32)),,ROUND(K33+$L$3,2)) -> 0 | M33: =ROUND(I33*L33,2) -> 0 | N33: =ROUND(L33/G33,4) -> 0
C34: John Morrell | D34: 90070100047994 | F34: 2/10 lb | G34: 20 | I34: =ROUND(H32*G32/G34,2) -> 10 | J34: Cs | L34: =IF(OR(ISBLANK(K34),K34=0,H32=0,ISBLANK(H32)),,ROUND(K34+$L$3,2)) -> 0 | M34: =ROUND(I34*L34,2) -> 0 | N34: =ROUND(L34/G34,4) -> 0
C35: Carolina Pride | D35: 2328 | F35: 2/10 lb | G35: 18 | I35: =ROUND(H32*G32/G35,2) -> 11.11 | J35: Cs | L35: =IF(OR(ISBLANK(K35),K35=0,H32=0,ISBLANK(H32)),,ROUND(K35+$L$3,2)) -> 0 | M35: 0 | N35: =ROUND(L35/G35,4) -> 0
B36: Possible Allergens: None Listed
A37: 6008 | B37: Sausage Link with APP | C37: Briar Street Market | D37: 10000019331 | F37: 69/1.16oz | G37: 69 | H37: 50 | I37: =ROUND(H37*G37/G37,2) -> 50 | J37: Cs | K37: 21.15 | L37: =IF(OR(ISBLANK(K37),K37=0,H37=0,ISBLANK(H37)),,ROUND(K37+$L$3,2)) -> 21.15 | M37: =ROUND(I37*L37,2) -> 1057.5 | N37: =ROUND(L37/G37,4) -> 0.3065
B38: Fully cooked, 1.16 ounce to yield 1 M/MA
B39: Possible Allergens: Soy
A40: 6009 | B40: Sausage Patty, No APP | C40: Swaggerty | D40: 60020 | F40: 80/2.0oz | G40: 80 | H40: 50 | I40: =ROUND($H$40*$G$40/G40,2) -> 50 | J40: Cs | L40: =IF(OR(ISBLANK(K40),K40=0,H40=0,ISBLANK(H40)),,ROUND(K40+$L$3,2)) -> 0 | M40: =ROUND(I40*L40,2) -> 0 | N40: =ROUND(L40/G40,4) -> 0 | T40: =ROUND($T$6*S40,2) ->  | U40: =IF(ISBLANK(O40),,R40+T40) -> 0 | V40: N | W40: =IF(ISNUMBER(K40),IF(V40="Y",(K40-T40))) -> FALSE
B41: Frozen, fully cooked, No alternate protein product must provide 1 oz. M/MA | C41: Ember Farms | D41: 25468111007 | F41: 10 lb | G41: 79 | I41: =ROUND($H$40*$G$40/G41,2) -> 50.63 | J41: Cs | L41: =IF(OR(ISBLANK(K41),K41=0,H40=0,ISBLANK(H40)),,ROUND(K41+$L$3,2)) -> 0 | M41: =ROUND(I41*L41,2) -> 0 | N41: =ROUND(L41/G41,4) -> 0 | U41: =IF(ISBLANK(O41),,R41+T41) -> 0 | W41: =IF(ISNUMBER(K41),IF(V41="Y",(K41-T41))) -> FALSE
B42: Possible Allergens: None Listed | C42: JTM | D42: 5649CE | F42: 360/1.33z | G42: 361 | I42: =ROUND($H$40*$G$40/G42,2) -> 11.08 | J42: Cs | K42: 68.5 | L42: =IF(OR(ISBLANK(K42),K42=0,H40=0,ISBLANK(H40)),,ROUND(K42+$L$3,2)) -> 68.5 | M42: =ROUND(I42*L42,2) -> 758.98 | N42: =ROUND(L42/G42,4) -> 0.1898 | O42: CP5649 | P42: 360/1.33 z. | Q42: 361 | R42: 36.36 | S42: 26.69 | T42: 38.64 | U42: =IF(ISBLANK(O42),,R42+T42) -> 75 | V42: N | W42: =IF(ISNUMBER(K42),IF(V42="Y",(K42-T42))) -> FALSE | X42: =W42/G42 -> 0 | Y42: 0.1007202216 | Z42: 0.2077562327
A44: 6010 | B44: Sausage Patty with APP | C44: Advanced Pierre | D44: 10000013850 | F44: 250/1.20z | G44: 250 | I44: =ROUND(H44*G44/G44,2) -> 0 | J44: Cs | L44: =IF(OR(ISBLANK(K44),K44=0,H44=0,ISBLANK(H44)),,ROUND(K44+$L$3,2)) -> 0 | M44: =ROUND(I44*L44,2) -> 0 | N44: =ROUND(L44/G44,4) -> 0 | O44: 10000006750 | P44: 250/1.2 oz | Q44: 250 | S44: 22.45 | T44: =ROUND($T$6*S44,2) -> 32.5 | U44: =IF(ISBLANK(O44),,R44+T44) -> 32.5 | V44: N | W44: =IF(ISNUMBER(K44),IF(V44="Y",(K44-T44))) -> FALSE
B45: Frozen, fully cooked, 50-150 calories with no more than 4 g saturated | C45: Briar Street Market | D45: 10000029667 | F45: 153/1.25z | G45: 153 | I45: =ROUND(H44*G44/G45,2) -> 0 | L45: =IF(OR(ISBLANK(K45),K45=0,H44=0,ISBLANK(H44)),,ROUND(K45+$L$3,2)) -> 0 | M45: =ROUND(I45*L45,2) -> 0 | N45: 0
B46: fat and 275 mg sodium per serving. CN labeled to provide 1 M/MA | C46: Maid Rite | D46: 75156-07112 | F46: 400/1.20z | G46: 400 | I46: =ROUND($H$44*$G$44/G46,2) -> 0 | J46: Cs | L46: =IF(OR(ISBLANK(K46),K46=0,H44=0,ISBLANK(H44)),,ROUND(K46+$L$3,2)) -> 0 | M46: 0 | N46: 0 | O46: 75156-97112 | P46: 400/1.2 oz | Q46: 400 | S46: 34.841 | T46: =ROUND($T$6*S46,2) -> 50.44 | U46: =IF(ISBLANK(O46),,R46+T46) -> 50.44 | V46: N | W46: =IF(ISNUMBER(K46),IF(V46="Y",(K46-T46))) -> FALSE
B47: per serving. | C47: Don Lee Farms | D47: CN791203L | F47: 400/1.20z | G47: 400 | I47: =ROUND($H$44*$G$44/G47,2) -> 0 | J47: Cs | L47: =IF(OR(ISBLANK(K47),K47=0,H44=0,ISBLANK(H44)),,ROUND(K47+$L$3,2)) -> 0 | M47: 0 | N47: 0 | O47: CNQ791203P | P47: 400/1.2 oz | Q47: 400 | R47: 21.3 | S47: 40 | T47: =ROUND($T$6*S47,2) -> 57.91 | U47: =IF(ISBLANK(O47),,R47+T47) -> 79.21 | V47: N | W47: =IF(ISNUMBER(K47),IF(V47="Y",(K47-T47))) -> FALSE | X47: =W47/G47 -> 0 | Y47: 0.05325 | Z47: 0.198025
C48: Tennesee Pride | D48: 342CN | F48: 128/1.50z | G48: 128 | I48: =ROUND($H$44*$G$44/G48,2) -> 0 | J48: Cs | L48: =IF(OR(ISBLANK(K48),K48=0,H44=0,ISBLANK(H44)),,ROUND(K48+$L$3,2)) -> 0 | M48: 0 | N48: 0
C49: Swaggerty | D49: 60125 | F49: 256/1.25z | G49: 256 | I49: =ROUND($H$44*$G$44/G49,2) -> 0 | J49: Cs | K49: 31 | L49: =IF(OR(ISBLANK(K49),K49=0,H44=0,ISBLANK(H44)),,ROUND(K49+$L$3,2)) -> 0 | M49: =ROUND(L49*I49,2) -> 0 | N49: 0
B50: Possible Allergens: Soy
A51: 6011 | B51: Sausage, Smoked | C51: Bryan | D51: 23258 | F51: 10Lb | G51: 80 | H51: 300 | I51: =ROUND(H51*G51/G51,2) -> 300 | J51: Cs | L51: =IF(OR(ISBLANK(K51),K51=0,H51=0,ISBLANK(H51)),,ROUND(K51+$L$3,2)) -> 0 | M51: =ROUND(I51*L51,2) -> 0 | N51: =ROUND(L51/G51,4) -> 0
B52: Made with pork and beef | C52: Swaggerty | D52: 21057 | F52: 15Lb | G52: 120 | I52: =ROUND($H$51*$G$51/G52,2) -> 200 | J52: Cs | K52: 25 | L52: =IF(OR(ISBLANK(K52),H51=0,ISBLANK(H51)),,ROUND(K52+$L$3,2)) -> 25 | M52: =ROUND(L52*I52,2) -> 5000 | N52: =ROUND(L52/G52,4) -> 0.2083
B53: ITEMS BELOW THIS LINE ARE NOT DIRECT TO MANUFACTUER PRICED ITEMS.
A54: 6007 | B54: Ham, Pre-Sliced | C54: Distributor Choice | F54: 6/2# | G54: 12 | H54: 200 | I54: =ROUND($H$54*$G$54/G54,2) -> 200 | J54: Cs
B55: Water added, .5 oz. slices, 2.0 oz. serving provides .75 oz. M/MA f | C55: Fillable txt box | I55: =ROUND(H54*G54/G55,2) ->  | J55: Cs | L55: =IF(OR(ISBLANK(K55),K55=0,H54=0,ISBLANK(H54)),,ROUND(K55+$L$3,2)) -> 0 | M55: =ROUND(I55*L55,2) ->  | N55: =ROUND(L55/G55,4) -> 
B56: Possible Allergens: None
J57: Page Total | M57: =SUMIF(M8:M56,">0") -> 12071.48

Sheet Pizza
B1: ='Recap Sheet'!A2 -> School Food Authority or Agency Name: | F1: ='Recap Sheet'!A3 -> Bidder's Name:
A2: 10001- | B2: ='Recap Sheet'!B2 -> Marion County School District | C2: Return to Recap Sheet | F2: ='Recap Sheet'!B3 -> 0
A3: 12000 | B3: Description | C3: Approved | G3: Firm Fixed Fee | L3: ='Recap Sheet'!B4 -> 0 | O3: Manufacturer | P3: Vendor Pack | Q3: Servings per case | R3: Processing | S3: Pounds of | T3: Commodity | U3: Total Cost | V3: NOI ? | W3: NOI | X3: Net NOI | Y3: Fee for Serivce
A4: SCPA | C4: Brand Name | D4: Manufacturers | E4: Distributor | F4: Vendor | G4: Svgs | H4: Est. | I4: Bid | J4: Bid | K4: Unit | L4: Unit Price | M4: Total | N4: Cost per | O4: USDA Product | R4: Fee For | S4: DF Needed | T4: Value Per | U4: Proc Fee + | V4: Enter | W4: Net | X4: Cost Per | Y4: Cost Per Serv.
A5: Code | C5: or Manufacturer | D5: Code | E5: Code | F5: Pack | G5: per unit | H5: Bid Qty | I5: Qty | J5: Unit | K5: Price | L5: plus Fee | M5: Price | N5: Unit | O5: Code | R5: Service | S5: Per Case | T5: Case | U5: Comm Value | V5: Y or N | W5: Price | X5: Serving | Y5: Fee+ Commodity
B6: Pizza | O6: Cheese Mozzarella | Q6: 110244 | R6: Commodity Value per lb | T6: 1.8467 | U6: Cheese Ched Wht | X6: 110253 | Y6: 1.7956
O7: Cheese Cheddar | Q7: 110242 | R7: Commodity Value per lb | T7: 1.7956
A8: 10001 | B8: Bread Stick | C8: Tyson (Bosco) | D8: 17020111120 | F8: 144/2.14z | G8: 144 | I8: =ROUND($H$8*$G$8/G8,2) -> 0 | J8: Cs | K8: 48.7 | L8: =IF(OR(ISBLANK(K8),K8=0,H8=0,ISBLANK(H8)),,ROUND(K8+$L$3,2)) -> 0 | M8: =ROUND(I8*L8,2) -> 0 | N8: =ROUND(L8/G8,4) -> 0 | O8: 17020111120 | P8: 144/2.14oz | Q8: 144 | R8: 32.08 | S8: 9 | T8: =ROUND($T$6*S8,2) -> 16.62 | U8: =IF(ISBLANK(O8),,R8+T8) -> 48.7 | V8: Y | W8: 32.08 | X8: 0.2227777778 | Y8: =IF(V8="N",IF(ISNUMBER(R8),(R8+T8)/Q8)) -> FALSE
B9: Dough filled with 100% mozzarella, WG
B10: Frozen, WGR One stick must provide 1 M/MA and 1 EOG
B11: Possible Allergens: Wheat, Milk, Soy
A12: 10002 | B12: Pizza, Cheese Crunchers | C12: Rich Products | D12: 65225 | F12: 8/3.125 lbs | G12: 72 | I12: =ROUND($H$12*$G$12/G12,2) -> 0 | J12: Cs | K12: 58.18 | L12: =IF(OR(ISBLANK(K12),K12=0,H12=0,ISBLANK(H12)),,ROUND(K12+$L$3,2)) -> 0 | M12: =ROUND(I12*L12,2) -> 0 | N12: =ROUND(L12/G12,4) -> 0 | O12: 65225 | P12: 8/3.125 lbs | Q12: 73 | R12: 41.19 | S12: 9.2 | T12: =ROUND($T$6*S12,2) -> 16.99 | U12: =IF(ISBLANK(O12),,R12+T12) -> 58.18 | V12: Y | W12: 41.19 | X12: 0.5720833333 | Y12: =IF(V12="N",IF(ISNUMBER(R12),(R12+T12)/Q12)) -> FALSE
B13: Frozen, WGR, Low moisture part skim mozzarella with pizza sauce on the inside. Four
B14: pieces to provide 2 M/MA and 2.5 OEG 400-500 calories and not more than 9 g sat fat and
B15: 800 mg sodium per serving
B16: Possible Allergens: Wheat
A17: 10003 | B17: Bread Stick, Blueberry Cinnamon with Mozzarella | C17: Conagra Max | D17: 77387-12611 | F17: 96/2.3z | G17: 96 | I17: =ROUND(H17*G17/G17,2) -> 0 | J17: Cs | K17: 40.4 | L17: =IF(OR(ISBLANK(K17),K17=0,H17=0,ISBLANK(H17)),,ROUND(K17+$L$3,2)) -> 0 | M17: =ROUND(I17*L17,2) -> 0 | N17: =ROUND(L17/G17,4) -> 0 | O17: 77387-12611 | P17: 96/2.30z | Q17: 96 | R17: 35.51 | S17: 2.65 | T17: =ROUND($T$7*S17,2) -> 4.76 | U17: =IF(ISBLANK(O17),,R17+T17) -> 40.27 | V17: Y | W17: 35.64 | X17: 0.37125 | Y17: =IF(V17="N",IF(ISNUMBER(R17),(R17+T17)/Q17)) -> FALSE
B18: Frozen, WGR, Part skim mozzarella cheese, 100-200 calories with not more than 3 g sat
B19: fat and 350 mg sodium per serving. One breadstick provides 1 M/MA and 1 OEG
B21: Possible Allergens: Wheat, Milk, Soy
A22: 10004 | B22: Pizza, Cheese Bites | C22: Wild Mike's | F22: 240/1.0z | G22: 240 | I22: =ROUND(H22*G22/G22,2) -> 0 | J22: Cs | K22: 58.95 | L22: =IF(OR(ISBLANK(K22),K22=0,H22=0,ISBLANK(H22)),,ROUND(K22+$L$3,2)) -> 0 | M22: =ROUND(I22*L22,2) -> 0 | N22: =ROUND(L22/G22,4) -> 0 | O22: 11003 | P22: 240/1.0z | Q22: 240 | R22: 45.1 | S22: 7.5 | T22: =ROUND($T$6*S22,2) -> 13.85 | U22: =IF(ISBLANK(O22),,R22+T22) -> 58.95 | V22: Y | W22: 45.1 | X22: 0.1879166667 | Y22: =IF(V22="N",IF(ISNUMBER(R22),(R22+T22)/Q22)) -> FALSE
B23: Frozen, Part skim mozzarella cheese, four bites provides 2 M/MA and 2 OEG 200-300 | C23: Mozzarella | D23: 11003
B24: calories with not more than 4 g saturated fat and 600 mg sodium per serving
B26: Possible Allergens: Wheat, Milk
A27: 10005 | B27: Pizzasticks, Filled with 100% Mozzarella and Pizza Sauce Wg | C27: Discontinued | F27: 48/3.10z | G27: 48 | I27: =ROUND(H27*G27/G27,2) -> 0 | J27: Cs | L27: =IF(OR(ISBLANK(K27),K27=0,H27=0,ISBLANK(H27)),,ROUND(K27+$L$3,2)) -> 0 | M27: =ROUND(I27*L27,2) -> 0 | N27: =ROUND(L27/G27,4) -> 0 | U27: =IF(ISBLANK(O27),,R27+T27) -> 0 | V27: Y | W27: FALSE | X27: 0 | Y27: =IF(V27="N",IF(ISNUMBER(R27),(R27+T27)/Q27)) -> FALSE
B28: Frozen, Low moisture part skim mozzarella cheese stick with WGR breading, pepperoni | C28: Schwann's | D28: 78378
B29: inside 200-400 calories with no more than 6 g sat fat and 400 mg of sodium per serving
B30: 1 stick serving to provide min. 1 M/MA and 2 OEG
B31: Possible Allergens: Wheat, Milk, Soy, and Eggs
A32: 10006 | B32: Pizza, 100% Mozzarella, 4x6, WG | C32: Schwann's | D32: 78697 | F32: 96/4.50z | G32: 96 | I32: =ROUND(H32*$G$47/G32,2) -> 0 | J32: Cs | L32: =IF(OR(ISBLANK(K32),K32=0,H32=0,ISBLANK(H32)),,ROUND(K32+$L$3,2)) -> 0 | M32: =ROUND(I32*L32,2) -> 0 | N32: =ROUND(L32/G32,4) -> 0 | O32: 78697 | P32: 96/4.50 oz | Q32: 96 | S32: 8.4 | T32: =ROUND($T$6*S32,2) -> 15.51 | U32: =IF(ISBLANK(O32),,R32+T32) -> 15.51 | V32: Y
B33: Frozen, Whole grain rich 250-350 calories with no more than 7 g saturated fat and | C33: Conagra | D33: 77387-12584 | F33: 96/4.65z | G33: 96 | I33: =ROUND(H32*G32/G33,2) -> 0 | J33: Cs | L33: =IF(OR(ISBLANK(K33),K33=0,H32=0,ISBLANK(H32)),,ROUND(K33+$L$3,2)) -> 0 | M33: =ROUND(I33*L33,2) -> 0 | N33: =ROUND(L33/G33,4) -> 0 | O33: 77387-12584 | P33: 96/4.65 oz | Q33: 96 | S33: 7.5 | T33: =ROUND($T$6*S33,2) -> 13.85 | U33: =IF(ISBLANK(O33),,R33+T33) -> 13.85 | V33: Y
B34: 750 mg sodium per serving. CN Labeled for one portion to provide 2 M/MA, 2 OEG, and | C34: Nardones 961SWCM2 | D34: 961SWCM2 | F34: 96/4.90z | G34: 96 | I34: =ROUND(H32*G32/G34,2) -> 0 | J34: Cs | K34: 35.12 | L34: =IF(OR(ISBLANK(K34),K34=0,H32=0,ISBLANK(H32)),,ROUND(K34+$L$3,2)) -> 0 | M34: =ROUND(I34*L34,2) -> 0 | N34: =ROUND(L34/G34,4) -> 0 | O34: 961SWCM2 | P34: 96/4.90 oz. | Q34: 96 | R34: 21.27 | S34: 7.5 | T34: =ROUND($T$6*S34,2) -> 13.85 | U34: =IF(ISBLANK(O34),,R34+T34) -> 35.12 | V34: Y | W34: 21.27 | X34: 0.2215625 | Y34: =IF(V34="N",IF(ISNUMBER(R34),(R34+T34)/Q34)) -> FALSE
B35: 1/8 c Red/Orange Vegetable.
B36: Possible Allergens: Wheat, Milk, Soy
A37: 10007 | B37: Pizza, 100% Mozzarella, Pork Pepperoni , 4 x 6, WG | C37: Conagra Max | D37: 77387-12585 | F37: 96/4.65z | G37: 96 | I37: =ROUND(H37*$G$37/G37,2) -> 0 | J37: Cs | L37: =IF(OR(ISBLANK(K37),K37=0,H37=0,ISBLANK(H37)),,ROUND(K37+$L$3,2)) -> 0 | M37: =ROUND(I37*L37,2) -> 0 | N37: =ROUND(L37/G37,4) -> 0 | O37: 77387-12585 | P37: 96/4.65oz | Q37: 96 | S37: 6 | T37: =ROUND($T$6*S37,2) -> 11.08 | U37: =IF(ISBLANK(O37),,R37+T37) -> 11.08 | V37: Y
B38: Frozen, Whole grain rich 250-350 calories with no more than 8 g saturated fat and | C38: Schwanns | D38: 78698 | F38: 96/4.48z | G38: 96 | I38: =ROUND(H37*$G$37/G38,2) -> 0 | J38: Cs | L38: =IF(OR(ISBLANK(K38),K38=0,H37=0,ISBLANK(H37)),,ROUND(K38+$L$3,2)) -> 0 | M38: =ROUND(I38*L38,2) -> 0 | N38: =ROUND(L38/G38,4) -> 0 | O38: 78698 | P38: 96/4.48 oz | Q38: 96 | S38: 6.66 | T38: =ROUND($T$6*S38,2) -> 12.3 | U38: =IF(ISBLANK(O38),,R38+T38) -> 12.3 | V38: Y
B39: 810 mg sodium per serving. CN Labeled for one portion to provide min. 2 M/MA, 2 OEG & | C39: Nardones | D39: 961SWCMP2 | F39: 96/4.95z | G39: 96 | I39: =ROUND(H37*$G$37/G39,2) -> 0 | J39: Cs | K39: 35.12 | L39: =IF(OR(ISBLANK(K39),K39=0,H37=0,ISBLANK(H37)),,ROUND(K39+$L$3,2)) -> 0 | M39: =ROUND(I39*L39,2) -> 0 | N39: =ROUND(L39/G39,4) -> 0 | O39: 961SWCMP2 | P39: 96/4.95 oz | Q39: 96 | R39: 24.04 | S39: 6 | T39: =ROUND($T$6*S39,2) -> 11.08 | U39: =IF(ISBLANK(O39),,R39+T39) -> 35.12 | V39: Y | W39: 24.04 | X39: 0.2504166667 | Y39: =IF(V39="N",IF(ISNUMBER(R39),(R39+T39)/Q39)) -> FALSE
B40: 1/8 c Red/Orange Vegetable.
B41: Possible Allergens: Wheat, Milk, Soy
A42: 10008 | B42: Pizza, 100% Mozzarella, Pork Pepperoni, Rtg. Ang. Wedge, WG | C42: Nardones | D42: 96SWWEDP2 | F42: 96/4.95z | G42: 96 | I42: =ROUND(H42*$G$47/G42,2) -> 0 | J42: Cs | K42: 35.12 | L42: =IF(OR(ISBLANK(K42),K42=0,H42=0,ISBLANK(H42)),,ROUND(K42+$L$3,2)) -> 0 | M42: =ROUND(I42*L42,2) -> 0 | N42: =ROUND(L42/G42,4) -> 0 | O42: 96SWWEDP2 | P42: 96/4.95 oz | Q42: 96 | R42: 24.04 | S42: 6 | T42: =ROUND($T$6*S42,2) -> 11.08 | U42: =IF(ISBLANK(O42),,R42+T42) -> 35.12 | V42: Y | W42: 24.04 | X42: 0.2504166667 | Y42: =IF(V42="N",IF(ISNUMBER(R42),(R42+T42)/Q42)) -> FALSE
B43: Frozen, Whole grain rich 250-350 calories with no more than 6 g saturated fat and 810 mg | C43: Conagra Max | D43: 77387-12686 | F43: 96/4.67z | G43: 96 | I43: =ROUND(H42*$G$42/G43,2) -> 0 | J43: Cs | L43: =IF(OR(ISBLANK(K43),K43=0,H42=0,ISBLANK(H42)),,ROUND(K43+$L$3,2)) -> 0 | M43: =ROUND(I43*L43,2) -> 0 | N43: =ROUND(L43/G43,4) -> 0 | O43: 77387-12686 | P43: 96/4.67 oz | Q43: 96 | S43: 6.96 | T43: =ROUND($T$6*S43,2) -> 12.85 | U43: =IF(ISBLANK(O43),,R43+T43) -> 12.85 | V43: Y
B44: sodium per serving. CN Labeled for one portion to provide 2 M/MA, 2 OEG, and 1/8 c
B45: Red/Orange Vegetable.
B46: Possible Allergens: Wheat, Milk, Soy
A47: 10009 | B47: Pizza, 100% Mozz. Pork Pepperoni Stuffed Crust, Wedge WG | C47: Nardone | D47: 72WWSCMP2 | F47: 70/4.95z | G47: 70 | I47: =ROUND(H47*$G$47/G47,2) -> 0 | J47: Cs | K47: 39.93 | L47: =IF(OR(ISBLANK(K47),K47=0,H47=0,ISBLANK(H47)),,ROUND(K47+$L$3,2)) -> 0 | M47: =ROUND(I47*L47,2) -> 0 | N47: =ROUND(L47/G47,4) -> 0 | O47: 72WWSCMP2 | P47: 70/4.95 oz | Q47: 70 | S47: 6.56 | T47: =ROUND($T$6*S47,2) -> 12.11 | U47: =IF(ISBLANK(O47),,R47+T47) -> 12.11 | V47: Y
B48: Frozen, Whole grain rich 300-400 calories with no more than 9 g saturated fat and 820 mg | C48: Conagra Max | D48: 77387-12615 | F48: 72/5.00z | G48: 72 | I48: =ROUND(H47*$G$47/G48,2) -> 0 | J48: Cs | L48: =IF(OR(ISBLANK(K48),K48=0,H47=0,ISBLANK(H47)),,ROUND(K48+$L$3,2)) -> 0 | M48: =ROUND(I48*L48,2) -> 0 | N48: =ROUND(L48/G48,4) -> 0 | O48: 77387-12615 | P48: 72/5.00 oz | Q48: 72 | R48: 27.87 | S48: 8.14 | T48: =ROUND($T$6*S48,2) -> 15.03 | U48: =IF(ISBLANK(O48),,R48+T48) -> 42.9 | V48: Y | W48: 27.87 | X48: 0.3870833333 | Y48: =IF(V48="N",IF(ISNUMBER(R48),(R48+T48)/Q48)) -> FALSE
B49: sodium per svg, CN Labeled for one portion to provide 2 M/MA, 2 OEG, and 1/8 c | C49: Schwanns | D49: 78650 | F49: 96/5.32z | G49: 96 | L49: =IF(OR(ISBLANK(K49),K49=0,H47=0,ISBLANK(H47)),,ROUND(K49+$L$3,2)) -> 0 | M49: =ROUND(I49*L49,2) -> 0 | N49: =ROUND(L49/G49,4) -> 0 | O49: 78650 | P49: 96/5.32 oz. | Q49: 96
B50: Red/Orange Vegetable. | C50: Schwans Discontinued
B51: Possible Allergens: Wheat, Milk, Soy
A52: 10010 | B52: Pizza, Beef Fiestada, WG | C52: Nardones | D52: 96WWMEX2 | F52: 96/5.20z | G52: 96 | I52: =ROUND(H52*$G$52/G52,2) -> 0 | J52: Cs | K52: 49 | L52: =IF(OR(ISBLANK(K52),K52=0,H52=0,ISBLANK(H52)),,ROUND(K52+$L$3,2)) -> 0 | M52: =ROUND(I52*L52,2) -> 0 | N52: =ROUND(L52/G52,4) -> 0 | O52: 96WWMEX2 | P52: 96/5.20 oz | Q52: 96 | R52: 37.6 | S52: 4.5 | T52: =ROUND($Y$6*S52,2) -> 8.08 | U52: =IF(ISBLANK(O52),,R52+T52) -> 45.68 | V52: Y | W52: 40.92 | X52: 0.42625 | Y52: =IF(V52="N",IF(ISNUMBER(R52),(R52+T52)/Q52)) -> FALSE
B53: Frozen Whole grain rich Blend of cheddar, mozz/mozz sub 300-400 calories with no more | C53: Alpha Foods | D53: SP167RW | F53: 72/7.23z | G53: 72 | I53: =ROUND(H52*$G$52/G53,2) -> 0 | J53: Cs | L53: =IF(OR(ISBLANK(K53),K53=0,H52=0,ISBLANK(H52)),,ROUND(K53+$L$3,2)) -> 0 | M53: =ROUND(I53*L53,2) -> 0 | N53: =ROUND(L53/G53,4) -> 0 | O53: SP167RW | P53: 72/7.23 oz. | Q53: 72 | S53: 8.44 | T53: =ROUND($T$6*S53,2) -> 15.59 | U53: =IF(ISBLANK(O53),,R53+T53) -> 15.59 | V53: Y
B54: than 900 mg sodium per serving. CN Labeled for one portion to provide min. 2 M/MA, | C54: Schwan's | D54: 68523 | F54: 72/5.44z | G54: 72 | I54: =ROUND(H52*$G$52/G54,2) -> 0 | J54: Cs | L54: =IF(OR(ISBLANK(K54),K54=0,H52=0,ISBLANK(H52)),,ROUND(K54+$L$3,2)) -> 0 | M54: =ROUND(I54*L54,2) -> 0 | N54: =ROUND(L54/G54,4) -> 0 | O54: 68523 | P54: 72/5.44z | Q54: 72 | S54: 3.42 | T54: =ROUND($T$6*S54,2) -> 6.32 | U54: =IF(ISBLANK(O54),,R54+T54) -> 6.32 | V54: Y
B55: 2 OEG , and 1/8 cup red/orange vegetable
B56: Possible Allergens: Wheat, Milk, Soy
A57: 10011 | B57: Pizza, French Bread Multi Cheese Garlic | C57: Nardone's | D57: 60WGUMA2 | F57: 60/4.50z | G57: 60 | I57: =ROUND($H$57*$G$57/G57,2) -> 0 | J57: Cs | K57: 38.69 | L57: =IF(OR(ISBLANK(K57),K57=0,H57=0,ISBLANK(H57)),,ROUND(K57+$L$3,2)) -> 0 | M57: =ROUND(I57*L57,2) -> 0 | N57: =ROUND(L57/G57,4) -> 0 | O57: 60WGUMA2 | P57: 60/4.50z | Q57: 60 | R57: 31.76 | S57: 3.75 | T57: =ROUND($T$6*S57,2) -> 6.93 | U57: =IF(ISBLANK(O57),,R57+T57) -> 38.69 | V57: Y | W57: 31.76 | X57: 0.5293333333 | Y57: =IF(V57="N",IF(ISNUMBER(R57),(R57+T57)/Q57)) -> FALSE
B58: Frozen, 6" whole grain rich french bread, blend of provolone, mozz/sub mozz | C58: Schwann's | D58: 78359 | F58: 60/4.29z | G58: 60 | I58: =ROUND($H$57*$G$57/G58,2) -> 0 | J58: Cs | L58: =IF(OR(ISBLANK(K58),K58=0,H57=0,ISBLANK(H57)),,ROUND(K58+$L$3,2)) -> 0 | M58: =ROUND(I58*L58,2) -> 0 | N58: =ROUND(L58/G58,4) -> 0 | O58: 78359 | P58: 60/4.29z | Q58: 60 | S58: 1.75 | T58: =ROUND($T$6*S58,2) -> 3.23 | U58: =IF(ISBLANK(O58),,R58+T58) -> 3.23 | V58: Y
B59: 250-400 calories with no more than 7 g saturated fat and 710 mg sodium per serving.
B60: CN Labeled for one portion to provide min 2 M/MA and 2 OEG.
B61: Possible Allergens: Wheat, Milk, Soy
A62: 10012 | B62: Pizza, 100% Mozz. Turkey Meateaters 6" Round, WG | C62: Nardones | D62: 625WTME2 | F62: 60/5.57z | G62: 60 | I62: =ROUND($H$62*$G$62/G62,2) -> 0 | J62: Cs | K62: 46.5 | L62: =IF(OR(ISBLANK(K62),K62=0,H62=0,ISBLANK(H62)),,ROUND(K62+$L$3,2)) -> 0 | M62: =ROUND(I62*L62,2) -> 0 | N62: =ROUND(L62/G62,4) -> 0 | O62: 625WTME2 | P62: 60/5.57z | Q62: 60 | R62: 36.75 | S62: 5.28 | T62: =ROUND($T$6*S62,2) -> 9.75 | U62: =IF(ISBLANK(O62),,R62+T62) -> 46.5 | V62: Y | W62: 36.75 | X62: 0.6125 | Y62: =IF(V62="N",IF(ISNUMBER(R62),(R62+T62)/Q62)) -> FALSE
B63: Frozen, 6" whole grain rich, 100% mozzarella, 250-400 calories with no more than 7 g sat
B64: fat and 600 mg sodium per serving. CN Labeled for one portion to proivde min. 2 M/MA,
B65: 2 OEG , and 1/8 cup red/orange vegetable
B66: Possible Allergens: Wheat, Milk, Soy
A67: 10013 | B67: Pizza, Cheese, 5-6" Round, WG | C67: Nardones | D67: 625WRM2 | F67: 60/5.43z | G67: 60 | I67: =ROUND(H67*G67/G67,2) -> 0 | J67: Cs | L67: =IF(OR(ISBLANK(K67),K67=0,H67=0,ISBLANK(H67)),,ROUND(K67+$L$3,2)) -> 0 | M67: =ROUND(I67*L67,2) -> 0 | N67: =ROUND(L67/G67,4) -> 0 | O67: 625WRM2 | P67: 60/5.4 oz | Q67: 60 | R67: 26.15 | S67: 7.5 | T67: =ROUND($T$6*S67,2) -> 13.85 | U67: =IF(ISBLANK(O67),,R67+T67) -> 40 | V67: Y | W67: 26.15 | X67: 0.4358333333 | Y67: =IF(V67="N",IF(ISNUMBER(R67),(R67+T67)/Q67)) -> FALSE
B68: Frozen, 6" whole grain rich, 100% mozzarella, 250-400 calories with no more than 7 g sat | C68: S.A Piazza (Wild Mike's) | D68: 80550 | F68: 80/5.49z | G68: 80 | I68: =ROUND(H67*G67/G68,2) -> 0 | J68: Cs | L68: =IF(OR(ISBLANK(K68),K68=0,H67=0,ISBLANK(H67)),,ROUND(K68+$L$3,2)) -> 0 | M68: =ROUND(I68*L68,2) -> 0 | N68: =ROUND(L68/G68,4) -> 0 | O68: 80550 | P68: 80/5.49oz | Q68: 60 | S68: 10.08 | T68: =ROUND($T$6*S68,2) -> 18.61 | U68: =IF(ISBLANK(O68),,R68+T68) -> 18.61 | V68: Y
B69: fat and 700 mg sodium per serving. CN Labeled for one portion to provide min. 2 M/MA, | C69: Schwan's | D69: 78368 | F69: 60/4.98z | G69: 60 | I69: =ROUND(H67*G67/G69,2) -> 0 | J69: Cs | K69: 37.63 | L69: =IF(OR(ISBLANK(K69),K69=0,H67=0,ISBLANK(H67)),,ROUND(K69+$L$3,2)) -> 0 | M69: =ROUND(I69*L69,2) -> 0 | N69: =ROUND(L69/G69,4) -> 0 | O69: 78368 | P69: 80/5.49 oz | Q69: 80 | S69: 5.92 | T69: =ROUND($T$6*S69,2) -> 10.93 | U69: =IF(ISBLANK(O69),,R69+T69) -> 10.93 | V69: Y
B70: 2 OEG, and 1/8 c Red//Orange Vegetable
B71: Possible Allergens: Wheat, Milk, Soy
A72: 10014 | B72: Pizza, Cheese, Turkey Pepperoni, 5-6" Round | C72: Schwan's | D72: 78369 | F72: 60/4.98z | G72: 60 | H72: 50 | I72: =ROUND(H72*G72/G72,2) -> 50 | J72: Cs | K72: 38.6 | L72: =IF(OR(ISBLANK(K72),K72=0,H72=0,ISBLANK(H72)),,ROUND(K72+$L$3,2)) -> 38.6 | M72: =ROUND(I72*L72,2) -> 1930 | N72: =ROUND(L72/G72,4) -> 0.6433 | O72: 78369 | P72: 60/4.98 oz | Q72: 60 | S72: 4.8 | T72: =ROUND($T$6*S72,2) -> 8.86 | U72: =IF(ISBLANK(O72),,R72+T72) -> 8.86 | V72: Y
B73: Frozen, Whole Grain 100% mozzarella 250-400 calories with no more than 7 g sat fat | C73: Nardone's | D73: 625WRMTP3 | F73: 60/5.40z | G73: 60 | I73: =ROUND(H72*G72/G73,2) -> 50 | J73: Cs | L73: =IF(OR(ISBLANK(K73),H72=0,ISBLANK(H72)),,ROUND(K73+$L$3,2)) -> 0 | M73: =ROUND(I73*L73,2) -> 0 | N73: =ROUND(L73/G73,4) -> 0 | O73: 625WRMTP3 | P73: 60/5.43 oz | Q73: 60 | R73: 28.92 | S73: 6 | T73: =ROUND($T$6*S73,2) -> 11.08 | U73: =IF(ISBLANK(O73),,R73+T73) -> 40 | V73: Y | W73: 28.92 | X73: 0.482 | Y73: =IF(V73="N",IF(ISNUMBER(R73),(R73+T73)/Q73)) -> FALSE
B74: and 700 mg sodium per serving. CN Labeled for one portion to provide min. 2 M/MA,
B75: 2 OEG, and 1/8 c Red//Orange Vegetable
B76: Possible Allergens: Wheat, Milk, Soy
A77: 10015 | B77: Pizza, Cheese, Pepperoni, 5-6" Round | C77: Alpha Foods | D77: AS64W | F77: 60/5.36z | G77: 60 | I77: =ROUND(H77*G77/G77,2) -> 0 | J77: Cs | K77: 56.09 | L77: =IF(OR(ISBLANK(K77),K77=0,H77=0,ISBLANK(H77)),,ROUND(K77+$L$3,2)) -> 0 | M77: =ROUND(I77*L77,2) -> 0 | N77: =ROUND(L77/G77,4) -> 0 | O77: AS64W | P77: 60/5.36 oz. | Q77: 60 | R77: 43.2 | S77: 6.98 | T77: =ROUND($T$6*S77,2) -> 12.89 | U77: =IF(ISBLANK(O77),,R77+T77) -> 56.09 | V77: Y | W77: 43.2 | X77: 0.72 | Y77: =IF(V77="N",IF(ISNUMBER(R77),(R77+T77)/Q77)) -> FALSE
B78: Frozen, Whole Grain 100% mozzarella
B79: One portion must provide 2 M/MA. 2 EOG, and 1/8 cup Red/Orange Vegetable
B80: Possible Allergens: Wheat, Milk, Soy
A81: 10016 | B81: Pizza, Cheese, Supreme, 5-6" Round | C81: Nardone's | D81: 625WSUP2 | F81: 60/6.35z | G81: 60 | H81: 50 | I81: =ROUND(H81*G81/G81,2) -> 50 | J81: Cs | K81: 47 | L81: =IF(OR(ISBLANK(K81),K81=0,H81=0,ISBLANK(H81)),,ROUND(K81+$L$3,2)) -> 47 | M81: =ROUND(I81*L81,2) -> 2350 | N81: =ROUND(L81/G81,4) -> 0.7833 | O81: 625WSUP2 | P81: 60/6.35 oz | Q81: 60 | R81: 38.34 | S81: 4.69 | T81: =ROUND($T$6*S81,2) -> 8.66 | U81: =IF(ISBLANK(O81),,R81+T81) -> 47 | V81: Y | W81: 38.34 | X81: 0.639 | Y81: =IF(V81="N",IF(ISNUMBER(R81),(R81+T81)/Q81)) -> FALSE
B82: Frozen, 5-6" WGR, 100% mozzarella, 250-400 calories with no more than 7 g sat fat and
B83: 700 mg sodium per serving. CN Labeled for one portion to provide min. 2 M/MA, 2 OEG
B84: and 1/8 cup red/orange vegetable
B86: Possible Allergens: Wheat, Milk, Soy
A87: 10017 | B87: Pizza, Whole, 15-16", Self Rising, Pepperoni | C87: UNO | D87: MVPPCN16 | F87: 96/5.50z | G87: 96 | I87: =ROUND(H87*G87/G87,2) -> 0 | J87: Cs | L87: =IF(OR(ISBLANK(K87),K87=0,H87=0,ISBLANK(H87)),,ROUND(K87+$L$3,2)) -> 0 | M87: =ROUND(I87*L87,2) -> 0 | N87: =ROUND(L87/G87,4) -> 0 | O87: MVPPCN16 | P87: 96/5.50 oz. | Q87: 96 | S87: 10.5 | T87: =ROUND($T$6*S87,2) -> 19.39 | U87: =IF(ISBLANK(O87),,R87+T87) -> 19.39 | V87: Y
B88: Frozen, "Pizza Pie Shape" cut into slices or cutter provided, 100% mozzarella, Whole grain | C88: Alpha Foods | D88: SP164RW | F88: 72/6.38z | G88: 72 | I88: =ROUND(H87*G87/G88,2) -> 0 | J88: Cs | K88: 56.62 | L88: =IF(OR(ISBLANK(K88),K88=0,H87=0,ISBLANK(H87)),,ROUND(K88+$L$3,2)) -> 0 | M88: =ROUND(I88*L88,2) -> 0 | N88: =ROUND(L88/G88,4) -> 0 | O88: SP164RW | P88: 72/6.38 oz. | Q88: 72 | R88: 42.07 | S88: 7.88 | T88: =ROUND($T$6*S88,2) -> 14.55 | U88: =IF(ISBLANK(O88),,R88+T88) -> 56.62 | V88: Y | W88: 42.07 | X88: 0.5843055556 | Y88: =IF(V88="N",IF(ISNUMBER(R88),(R88+T88)/Q88)) -> FALSE
B89: One portion must provide 2 M/MA. 2 EOG, and 1/8 cup Red/Orange Vegetable | C89: Nardone's | D89: 16WRSRMP1 | F89: 64/6.9z | G89: 64 | I89: =ROUND(H87*G87/G89,2) -> 0 | J89: Cs | L89: =IF(OR(ISBLANK(K89),K89=0,H87=0,ISBLANK(H87)),,ROUND(K89+$L$3,2)) -> 0 | M89: =ROUND(I89*L89,2) -> 0 | N89: =ROUND(L89/G89,4) -> 0 | O89: 16WRSPMP1 | P89: 64/6.90 oz | Q89: 64 | S89: 5.92 | T89: =ROUND($T$6*S89,2) -> 10.93 | U89: =IF(ISBLANK(O89),,R89+T89) -> 10.93 | V89: Y
B90: Possible Allergens: Wheat, Milk, Soy
A91: 10018 | B91: Pizza, Whole, 15-16", Self Rising, Turkey/Beef Pepperoni | C91: UNO | D91: SLMVPPCN16 | F91: 96/5.50z | G91: 96 | I91: =ROUND($H$91*$G$91/G91,2) -> 0 | J91: Cs | L91: =IF(OR(ISBLANK(K91),K91=0,H91=0,ISBLANK(H91)),,ROUND(K91+$L$3,2)) -> 0 | M91: =ROUND(I91*L91,2) -> 0 | N91: =ROUND(L91/G91,4) -> 0 | O91: SLMVPPCN16 | P91: 96/4.925 oz | Q91: 96 | R91: 0 | S91: 10.5 | T91: =ROUND($T$6*S91,2) -> 19.39 | U91: =IF(ISBLANK(O91),,R91+T91) -> 19.39 | V91: Y | W91: 65.12 | X91: 0.6783333333 | Y91: =IF(V91="N",IF(ISNUMBER(R91),(R91+T91)/Q91)) -> FALSE
B92: Frozen, "Pizza Pie Shape" cut into slices or cutter provided, 100% mozzarella, Whole grain | C92: Nardone's | D92: 16WRSRMTP2 | F92: 64/6.90z | G92: 64 | I92: =ROUND($H$91*$G$91/G92,2) -> 0 | J92: Cs | K92: 56 | L92: =IF(OR(ISBLANK(K92),K92=0,H91=0,ISBLANK(H91)),,ROUND(K92+$L$3,2)) -> 0 | M92: =ROUND(I92*L92,2) -> 0 | N92: =ROUND(L92/G92,4) -> 0 | O92: 16WRSRMTP2 | P92: 64/6.90oz | Q92: 64 | S92: 6.08 | T92: =ROUND($T$6*S92,2) -> 11.23 | U92: =IF(ISBLANK(O92),,R92+T92) -> 11.23 | V92: Y
B93: One portion must provide 2 M/MA. 2 EOG, and 1/8 cup Red/Orange Vegetable
B94: Possible Allergens: Wheat, Milk, Soy
A95: 10019 | B95: Pizza, Whole, 15-16", Self Rising, Buffalo Chicken | C95: Schwann's | D95: 78639 | F95: 72/5.21z | G95: 72 | I95: =ROUND($H$95*$G$95/G95,2) -> 0 | J95: Cs | L95: =IF(OR(ISBLANK(K95),K95=0,H95=0,ISBLANK(H95)),,ROUND(K95+$L$3,2)) -> 0 | M95: =ROUND(I95*L95,2) -> 0 | N95: =ROUND(L95/G95,4) -> 0 | O95: 78639 | P95: 72/5.21 oz. | Q95: 72 | R95: 0 | S95: 7.59 | T95: =ROUND($T$6*S95,2) -> 14.02 | U95: =IF(ISBLANK(O95),,R95+T95) -> 14.02 | V95: Y | W95: 49.83 | X95: 0.6920833333 | Y95: =IF(V95="N",IF(ISNUMBER(R95),(R95+T95)/Q95)) -> FALSE
B96: Frozen, "Pizza Pie Shape" Chicken Buffalo cut into slices or cutter provided, 100% mozz., | C96: Nardones | D96: 16WSRBC | F96: 64/7.43 oz | G96: 64 | I96: =ROUND($H$95*$G$95/G96,2) -> 0 | J96: Cs | K96: 56 | L96: =IF(OR(ISBLANK(K96),K96=0,H95=0,ISBLANK(H95)),,ROUND(K96+$L$3,2)) -> 0 | M96: =ROUND(I96*L96,2) -> 0 | N96: =ROUND(L96/G96,4) -> 0 | O96: 16WSRBC | P96: 64/7.43 oz | Q96: 64 | S96: 5.75 | T96: =ROUND($T$6*S96,2) -> 10.62 | U96: =IF(ISBLANK(O96),,R96+T96) -> 10.62 | V96: Y
B97: WG, One portion must provide 2 M/MA. 2 EOG, and 1/8 cup Red/Orange Vegetable
B98: Possible Allergens: Wheat, Milk, Soy
A99: 10020 | B99: Pizza, Whole, 15-16", Self Rising, Supreme | C99: Alpha Foods | D99: SP1668RW | F99: 72/7.19z | G99: 72 | I99: =ROUND($H$99*$G$99/G99,2) -> 0 | J99: Cs | K99: 62.29 | L99: =IF(OR(ISBLANK(K99),K99=0,H99=0,ISBLANK(H99)),,ROUND(K99+$L$3,2)) -> 0 | M99: =ROUND(I99*L99,2) -> 0 | N99: =ROUND(L99/G99,4) -> 0 | O99: SP1668RW | P99: 72/7.19 oz | Q99: 72 | R99: 45.67 | S99: 9 | T99: =ROUND($T$6*S99,2) -> 16.62 | U99: =IF(ISBLANK(O99),,R99+T99) -> 62.29 | V99: Y | W99: 45.67 | X99: 0.6343055556 | Y99: =IF(V99="N",IF(ISNUMBER(R99),(R99+T99)/Q99)) -> FALSE
B100: Frozen, "Pizza Pie Shape" cut into slices or cutter provided, 100% mozzarella, Whole grain | C100: Nardone's | D100: 16WSRSUP | F100: 64/7.43z | G100: 64 | I100: =ROUND($H$99*$G$99/G100,2) -> 0 | J100: Cs | L100: =IF(OR(ISBLANK(K100),K100=0,H99=0,ISBLANK(H99)),,ROUND(K100+$L$3,2)) -> 0 | M100: =ROUND(I100*L100,2) -> 0 | N100: =ROUND(L100/G100,4) -> 0 | O100: 16WSRSUP | P100: 64/7.43 oz | Q100: 64 | S100: 5.75 | T100: =ROUND($T$6*S100,2) -> 10.62 | U100: =IF(ISBLANK(O100),,R100+T100) -> 10.62 | V100: Y
B101: One portion must provide 2 M/MA. 2 EOG, and 1/8 cup Red/Orange Vegetable
B102: Possible Allergens: Wheat, Milk, Soy
A103: 10021 | B103: Pizza, Whole, 15-16" Self Rising, Four Cheese | C103: Alpha Foods | D103: SP1622RW | F103: 72/6.56z | G103: 72 | I103: =ROUND($H$103*$G$103/G103,2) -> 0 | J103: Cs | K103: 54.46 | L103: =IF(OR(ISBLANK(K103),K103=0,H103=0,ISBLANK(H103)),,ROUND(K103+$L$3,2)) -> 0 | M103: =ROUND(I103*L103,2) -> 0 | N103: =ROUND(L103/G103,4) -> 0 | O103: SP1622RW | P103: 72/6.56 oz | Q103: 72 | R103: 38.87 | S103: 8.44 | T103: =ROUND($T$6*S103,2) -> 15.59 | U103: =IF(ISBLANK(O103),,R103+T103) -> 54.46 | V103: Y | W103: 38.87 | X103: 0.5398611111 | Y103: =IF(V103="N",IF(ISNUMBER(R103),(R103+T103)/Q103)) -> FALSE
B104: Frozen, "Pizza Pie Shaped" cut into slices or cutter provided 100% mozzarella, whole grain | C104: Nardone's | D104: 16WSRFC2 | F104: 64/5.13z | G104: 64 | I104: =ROUND($H$103*$G$103/G104,2) -> 0 | J104: Cs | L104: =IF(OR(ISBLANK(K104),K104=0,H103=0,ISBLANK(H103)),,ROUND(K104+$L$3,2)) -> 0 | M104: =ROUND(I104*L104,2) -> 0 | N104: =ROUND(L104/G104,4) -> 0 | O104: 16WSRFC | P104: 64/5.13 oz | Q104: 64 | S104: 8 | T104: =ROUND($T$6*S104,2) -> 14.77 | U104: =IF(ISBLANK(O104),,R104+T104) -> 14.77 | V104: Y
B105: One portion must provide 2 M/MA. 2 EOG, and 1/8 cup Red/Orange Vegetable | C105: Schwann's | D105: 78637 | F105: 72/5.18z | G105: 72 | I105: =ROUND($H$103*$G$103/G105,2) -> 0 | J105: Cs | L105: =IF(OR(ISBLANK(K105),K105=0,H103=0,ISBLANK(H103)),,ROUND(K105+$L$3,2)) -> 0 | M105: 0 | N105: =ROUND(L105/G105,4) -> 0 | O105: 78637 | P105: 72/5.18 oz. | Q105: 72 | R105: 0 | S105: 9 | T105: =ROUND($T$6*S105,2) -> 16.62 | U105: =IF(ISBLANK(O105),,R105+T105) -> 16.62 | V105: Y
B106: Possible Allergens: Wheat, Milk, Soy
A107: 10022 | B107: Pizza, Presliced, 15-16", Parbaked, Turkey or Beef Pepperoni | C107: Nardone's | D107: 64WPSTP3 | F107: 64/5.0z | G107: 64 | I107: =ROUND($H$107*$G$107/G107,2) -> 0 | J107: Cs | K107: 53 | L107: =IF(OR(ISBLANK(K107),K107=0,H107=0,ISBLANK(H107)),,ROUND(K107+$L$3,2)) -> 0 | M107: =ROUND(I107*L107,2) -> 0 | N107: =ROUND(L107/G107,4) -> 0 | O107: 64WPSTP3 | P107: 64/5.03 oz | Q107: 64 | R107: 40.44 | S107: 6.8 | T107: =ROUND($T$6*S107,2) -> 12.56 | U107: =IF(ISBLANK(O107),,R107+T107) -> 53 | V107: Y | W107: 40.44 | X107: 0.631875 | Y107: =IF(V107="N",IF(ISNUMBER(R107),(R107+T107)/Q107)) -> FALSE
B108: Frozen, "Pizza Pie Shaped cut into slices, 100% mozzarella
B109: One portion must provide 2 M/MA. 2 EOG, and 1/8 cup Red/Orange Vegetable
B110: Possible Allergens: Wheat, Milk, Soy
A111: 10023 | B111: Pizza, Presliced, 15-16", Parbaked, Buffalo Chicken | C111: Nardone's | D111: 64WPSBC | F111: 64/4.60z | G111: 64 | I111: =ROUND($H$111*$G$111/G111,2) -> 0 | J111: Cs | K111: 56 | L111: =IF(OR(ISBLANK(K111),K111=0,H111=0,ISBLANK(H111)),,ROUND(K111+$L$3,2)) -> 0 | M111: =ROUND(I111*L111,2) -> 0 | N111: =ROUND(L111/G111,4) -> 0 | O111: 64WPSBC | P111: 64/4.60 oz | Q111: 64 | R111: 44.92 | S111: 6 | T111: =ROUND($T$6*S111,2) -> 11.08 | U111: =IF(ISBLANK(O111),,R111+T111) -> 56 | V111: Y | W111: 44.92 | X111: 0.701875 | Y111: =IF(V111="N",IF(ISNUMBER(R111),(R111+T111)/Q111)) -> FALSE
B112: Frozen, "Pizza Pie Shaped cut into slices, 100% mozzarella
B113: One portion must provide 2 M/MA. 2 EOG, and 1/8 cup Red/Orange Vegetable
B114: Possible Allergens: Wheat, Milk, Soy
A115: 10024 | B115: Pizza, Whole, 15-16", 100% Mozz. Turkey Pepperoni, Four Cheese, WG | C115: (18-19) Schwann's | D115: 78638 | F115: 72/5.18z | G115: 72 | I115: =ROUND($H$115*$G$115/G115,2) -> 0 | J115: Cs | L115: =IF(OR(ISBLANK(K115),K115=0,H115=0,ISBLANK(H115)),,ROUND(K115+$L$3,2)) -> 0 | M115: =ROUND(I115*L115,2) -> 0 | N115: =ROUND(L115/G115,4) -> 0 | O115: 78638 | P115: 72/5.18 oz. | Q115: 72 | R115: 0 | S115: 7.2 | T115: =ROUND($T$6*S115,2) -> 13.3 | U115: =IF(ISBLANK(O115),,R115+T115) -> 13.3 | V115: Y | W115: 49.88 | X115: 0.6927777778 | Y115: =IF(V115="N",IF(ISNUMBER(R115),(R115+T115)/Q115)) -> FALSE
B116: Frozen, WGR, Made with mozzarella, provolone, cheddar and parmesan, Self Rising, | C116: Nardones | D116: 16WSRFCTP2 | F116: 64/5.13 oz | G116: 64 | I116: =ROUND($H$115*$G$115/G116,2) -> 0 | J116: Cs | K116: 56 | L116: =IF(OR(ISBLANK(K116),K116=0,H115=0,ISBLANK(H115)),,ROUND(K116+$L$3,2)) -> 0 | M116: =ROUND(I116*L116,2) -> 0 | N116: =ROUND(L116/G116,4) -> 0 | O116: 16WSRFCTP2 | P116: 64/5.13 oz | Q116: 64 | S116: 5.43 | T116: =ROUND($T$6*S116,2) -> 10.03 | U116: =IF(ISBLANK(O116),,R116+T116) -> 10.03 | V116: Y
B117: 300-400 calories with no more than 8 g sat fat and 500 mg sodium per serving. CN
B118: Labeled for one 1/8 pizza to provide min. 2 M/MA, 2 OEG, and 1/8 c Red/Orange Vegetable
B120: Possible Allergens: Wheat, Milk, Soy
A121: 10025 | B121: Pizza, Whole, 15-16", 100% Mozz, Four Meat, WG Self Rising | C121: Schwann's | D121: 78640 | F121: 72/5.30z | G121: 72 | I121: =ROUND($H$121*$G$121/G121,2) -> 0 | J121: Cs | L121: =IF(OR(ISBLANK(K121),K121=0,H121=0,ISBLANK(H121)),,ROUND(K121+$L$3,2)) -> 0 | M121: =ROUND(I121*L121,2) -> 0 | N121: =ROUND(L121/G121,4) -> 0 | O121: 78640 | P121: 72/5.30z | Q121: 72 | S121: 6.46 | T121: =ROUND($T$6*S121,2) -> 11.93 | U121: =IF(ISBLANK(O121),,R121+T121) -> 11.93 | V121: Y
B122: Frozen, whole grain rich. 100% mozz, Topped with ham, sausage and pepperoni 300-400 | C122: Nardones | D122: 16WSRFCME3 | F122: 64/5.13 oz | G122: 64 | I122: =ROUND($H$121*$G$121/G122,2) -> 0 | J122: Cs | K122: 53 | L122: =IF(OR(ISBLANK(K122),K122=0,H121=0,ISBLANK(H121)),,ROUND(K122+$L$3,2)) -> 0 | M122: =ROUND(I122*L122,2) -> 0 | N122: =ROUND(L122/G122,4) -> 0 | O122: 16WSRFCME3 | P122: 64/5.13 oz | Q122: 64 | R122: 42.71 | S122: 5.57 | T122: =ROUND($T$6*S122,2) -> 10.29 | U122: =IF(ISBLANK(O122),,R122+T122) -> 53 | V122: Y | W122: 44.01 | X122: 0.68765625 | Y122: =IF(V122="N",IF(ISNUMBER(R122),(R122+T122)/Q122)) -> FALSE
B123: calories with no more than 8 g sat fat and 660 mg sodium per serving. CN labeled for one
B124: 1/8 pizza to provide min. 2 M/MA, 2 OEG, and 1/8 c Red/Orange Vegetable
B125: Possible Allergens: Wheat, Milk, Soy
A126: 10026 | B126: Pizza, Whole, 15-16", 100% Mozz, Four Cheese, Pork Pepperoni, 10 Cut Par Baked | C126: SA Piazza (Wild Mike's) | D126: 20210 | F126: 90/5.50z | G126: 90 | I126: =ROUND($H$126*$G$126/G126,2) -> 0 | J126: Cs | K126: 72.09 | L126: =IF(OR(ISBLANK(K126),K126=0,H126=0,ISBLANK(H126)),,ROUND(K126+$L$3,2)) -> 0 | M126: =ROUND(I126*L126,2) -> 0 | N126: =ROUND(L126/G126,4) -> 0 | O126: 20210 | P126: 90/5.50 oz | Q126: 90 | R126: 53.72 | S126: 9.95 | T126: =ROUND($T$6*S126,2) -> 18.37 | U126: =IF(ISBLANK(O126),,R126+T126) -> 72.09 | V126: Y | W126: 53.72 | X126: 0.5968888889 | Y126: =IF(V126="N",IF(ISNUMBER(R126),(R126+T126)/Q126)) -> FALSE
B127: Frozen, whole grain rich. 100% mozz, 300-400 calories with not nore than 10g sat fat
B128: and 600 mg sodium per serving. CN Labeled for one 1/8 pizza to provide min. 2 M/MA and
B129: 2 OEG
B130: Possible Allergens: Wheat, Milk
A131: 10027 | B131: Pizza, Whole, 15-16", 100% Mozz, Four Cheese, Parbaked WG | C131: Schwann's | D131: 68591 | F131: 72/5.13z | G131: 72 | I131: =ROUND($H$131*$G$131/G131,0) -> 0 | J131: Cs | L131: =IF(OR(ISBLANK(K131),K131=0,H131=0,ISBLANK(H131)),,ROUND(K131+$L$3,2)) -> 0 | M131: =ROUND(I131*L131,2) -> 0 | N131: =ROUND(L131/G131,4) -> 0 | O131: 68591 | P131: 72/5.13z | Q131: 72 | S131: 9 | T131: =ROUND($T$6*S131,2) -> 16.62 | U131: =IF(ISBLANK(O131),,R131+T131) -> 16.62 | V131: Y
B132: Frozen, whole grain rich. Made with mozzarella, provolone, cheddar and parmesian | C132: Nardone's | D132: 16WFC | F132: 64/5.13z | G132: 64 | I132: =ROUND($H$131*$G$131/G132,0) -> 0 | J132: Cs | K132: 53 | L132: =IF(OR(ISBLANK(K132),K132=0,H131=0,ISBLANK(H131)),,ROUND(K132+$L$3,2)) -> 0 | M132: =ROUND(I132*L132,2) -> 0 | N132: =ROUND(L132/G132,4) -> 0 | O132: 16WFC | P132: 64/5.13 oz | Q132: 64 | R132: 34.73 | S132: 8 | T132: =ROUND($T$6*S132,2) -> 14.77 | U132: =IF(ISBLANK(O132),,R132+T132) -> 49.5 | V132: Y | W132: 34.73 | X132: 0.54265625 | Y132: =IF(V132="N",IF(ISNUMBER(R132),(R132+T132)/Q132)) -> FALSE
B133: 300-400 calories with no more than 8 g sat fat and 500 mg sodium per serving. CN
B134: Labeled for one 1/8 pizza to provide min. 2 M/MA, 2 OEG, and 1/8 c Red/Orange Vegetable
B136: Possible Allergens: Wheat, Milk, Soy
A137: 10028 | B137: Pizza, Turkey Sausage and Textured Vegetable Protein Pizza | C137: Schwann's | D137: 68534 | J137: Cs | L137: =IF(OR(ISBLANK(K137),K137=0,H137=0,ISBLANK(H137)),,ROUND(K137+$L$3,2)) -> 0 | M137: =ROUND(I137*L137,2) -> 0 | N137: =ROUND(L137/G137,4) ->  | O137: 78640 | P137: 72/5.30 oz | Q137: 72 | S137: 6.46 | T137: =ROUND($T$6*S137,2) -> 11.93 | U137: =IF(ISBLANK(O137),,R137+T137) -> 11.93 | V137: Y | W137: FALSE | Y137: =IF(V137="N",IF(ISNUMBER(R137),(R137+T137)/Q137)) -> FALSE
B138: Frozen, 300-400 calories with no more than 7 g sat fat and 550 mg sodium per serving. | C138: Discontinued
B139: CN Labeled for one 1/8 pizza to provide min. 2 M/MA, 2 OEG, and 1/8 c Red/Orange
B140: Vegetable
B142: Possible Allergens: Wheat, Milk, Soy
B143: Breakfast
A144: 10029 | B144: Breakfast Bagel, Turkey Sausage | C144: Nardone's | D144: M96WBTSG | F144: 96/2.65z | G144: 96 | I144: =ROUND($H$144*$G$144/G144,2) -> 0 | J144: Cs | K144: 52 | L144: =IF(OR(ISBLANK(K144),K144=0,H144=0,ISBLANK(H144)),,ROUND(K144+$L$3,2)) -> 0 | M144: =ROUND(I144*L144,2) -> 0 | N144: =ROUND(L144/G144,4) -> 0 | O144: M96WBTSG | P144: 96/2.65 oz | Q144: 96 | R144: 44.46 | S144: 4.2 | T144: =ROUND($T$7*S144,2) -> 7.54 | U144: =IF(ISBLANK(O144),,R144+T144) -> 52 | V144: Y | W144: 44.46 | X144: 0.463125 | Y144: =IF(V144="N",IF(ISNUMBER(R144),(R144+T144)/Q144)) -> FALSE
B145: Frozen, Cream style gravy topping
B146: One serving must provide 1 M/MA and 1 EOG Whole grain
B147: Possible Allergens: Wheat, Milk, Soy
A148: 10030 | B148: Breakfast Bagel, 100% Mozz. Turkey Sausage, WG, IW | C148: Nardone's | D148: M96WBTS1 | F148: 96/3.10z | G148: 96 | H148: 50 | I148: =ROUND($H$148*$G$148/G148,2) -> 50 | J148: Cs | K148: 52 | L148: =IF(OR(ISBLANK(K148),K148=0,H148=0,ISBLANK(H148)),,ROUND(K148+$L$3,2)) -> 52 | M148: =ROUND(I148*L148,2) -> 2600 | N148: =ROUND(L148/G148,4) -> 0.5417 | O148: M96WBTS1 | P148: 96/3.10 oz | Q148: 96 | R148: 44.24 | S148: 4.2 | T148: =ROUND($T$6*S148,2) -> 7.76 | U148: =IF(ISBLANK(O148),,R148+T148) -> 52 | V148: Y | W148: 44.24 | X148: 0.4608333333 | Y148: =IF(V148="N",IF(ISNUMBER(R148),(R148+T148)/Q148)) -> FALSE
B149: Frozen, whole grain rich, pizza sauce topping, 150-250 calories with no more than 3 g sat
B150: fat per serving. CN labeled for one serving to provide min. 1 M/MA, 1 OEG, and 1/8 c
B151: Red/Orange Vegetable. Individual Ovenable Wrap
B152: Possible Allergens: Wheat, Milk, Soy
A153: 10031 | B153: Breakfast Pizza, 100% Mozz. Pork Sausage, WG | C153: Nardone | D153: 80WS100 | F153: 80/3.30z | G153: 80 | H153: 20 | I153: =ROUND($H$153*$G$153/G153,2) -> 20 | J153: Cs | K153: 29 | L153: =IF(OR(ISBLANK(K153),K153=0,H153=0,ISBLANK(H153)),,ROUND(K153+$L$3,2)) -> 29 | M153: =ROUND(I153*L153,2) -> 580 | N153: =ROUND(L153/G153,4) -> 0.3625 | O153: 80WS100 | P153: 80/3.30oz | Q153: 80 | R153: 22.07 | S153: 3.75 | T153: =ROUND($T$6*S153,2) -> 6.93 | U153: =IF(ISBLANK(O153),,R153+T153) -> 29 | V153: Y | W153: 22.07 | X153: 0.275875 | Y153: =IF(V153="N",IF(ISNUMBER(R153),(R153+T153)/Q153)) -> FALSE
B154: Frozen, WGR, 3" x 5" biscuit style crust with pizza sauce. 150-250 calories with no more
B155: than 4 g sat fat and 350 mg sodium per serving. CN Labeled for one portion to provide
B156: min. 1 M/MA, 1.5 OEG, and 1/8 c Red/Orange Vegetable
B158: Possible Allergens: Wheat, Milk
A159: 10032 | B159: Breakfast Pizza, Egg and Turkey Sausage, WG, IW | C159: Conagra Max | D159: 77387-12468 | F159: 96/3.21z | G159: 96 | I159: =ROUND($H$159*$G$159/G159,2) -> 0 | J159: Cs | K159: 49 | L159: =IF(OR(ISBLANK(K159),K159=0,H159=0,ISBLANK(H159)),,ROUND(K159+$L$3,2)) -> 0 | M159: =ROUND(I159*L159,2) -> 0 | N159: =ROUND(L159/G159,4) -> 0 | O159: 77387-12468 | P159: 96/3.21 z | Q159: 96 | R159: 47.32 | S159: 0.91 | T159: =ROUND($T$6*S159,2) -> 1.68 | U159: =IF(ISBLANK(O159),,R159+T159) -> 49 | V159: Y | W159: 47.32 | X159: 0.4929166667 | Y159: =IF(V159="N",IF(ISNUMBER(R159),(R159+T159)/Q159)) -> FALSE
B160: Frozen, whole grain rich, turkey sausage, 150-250 calories with no more than 2 g sat fat
B161: and 350 mg sodium per serving. CN Labeled for one serving to provide 1 M/MA and 1.5 OEG
B163: Possible Allergens: Wheat, Soy, Milk and Eggs
A164: 10033 | B164: Breakfast Pizza, 100% Mozz. Beef, Red Sauce, WG IW | C164: SA Piazza (Wild Mike's) | D164: 90502 | F164: 160/2.80z | G164: 160 | I164: =ROUND($H$164*$G$164/G164,2) -> 0 | J164: Cs | K164: 86.84 | L164: =IF(OR(ISBLANK(K164),K164=0,H164=0,ISBLANK(H164)),,ROUND(K164+$L$3,2)) -> 0 | M164: =ROUND(I164*L164,2) -> 0 | N164: =ROUND(L164/G164,4) -> 0 | O164: 90502 | P164: 160/2.80 z | Q164: 160 | R164: 73.36 | S164: 7.19 | T164: =ROUND($T$6*S164,2) -> 13.28 | U164: =IF(ISBLANK(O164),,R164+T164) -> 86.64 | V164: Y | W164: 73.56 | X164: 0.45975 | Y164: =IF(V164="N",IF(ISNUMBER(R164),(R164+T164)/Q164)) -> FALSE
B165: Frozen, whole grain rich, beef topping, 150-250 calories with no more than 4 g sat fat
B166: and 300 mg sodium per serving. One serving to provide 1 M/MA, 1 OEG and 1/8 c
B167: Red/Orange Vegetable.
B168: Possible Allergens: Milk Soy and Wheat
A169: 10034 | B169: Breakfast Pizza, Flatbread, Eggs, Sausage, Bacon, and Cheese Sauce | C169: Nardone's | D169: 80WBF | F169: 80/2.40z | G169: 80 | I169: =ROUND($H$169*$G$169/G169,2) -> 0 | J169: Cs | K169: 32 | L169: =IF(OR(ISBLANK(K169),K169=0,H169=0,ISBLANK(H169)),,ROUND(K169+$L$3,2)) -> 0 | M169: =ROUND(I169*L169,2) -> 0 | N169: =ROUND(L169/G169,4) -> 0 | O169: 80WBF | P169: 80/2.40 z | Q169: 80 | R169: 32 | S169: 2.5 | T169: =ROUND($T$6*S169,2) -> 4.62 | U169: =IF(ISBLANK(O169),,R169+T169) -> 36.62 | V169: Y | W169: 27.38 | X169: 0.34225 | Y169: =IF(V169="N",IF(ISNUMBER(R169),(R169+T169)/Q169)) -> FALSE
B170: Frozen, WGR, 100-200 calories with no more than 4 g sat fat and 500 mg sodium per
B171: serving. One serving to provide 1 M/MA and 1 OEG, 3 x 5
B172: Possible Allergens: Wheat, Milk, Wheat
A173: 10035 | B173: Calzone, Cheese, Sicilian Style IW WG | C173: Tasty Brands | F173: 96/5.0z | G173: 96 | I173: =ROUND($H$173*$G$173/G173,2) -> 0 | J173: Cs | K173: 79.01 | L173: =IF(OR(ISBLANK(K173),K173=0,H173=0,ISBLANK(H173)),,ROUND(K173+$L$3,2)) -> 0 | M173: =ROUND(I173*L173,2) -> 0 | N173: =ROUND(L173/G173,4) -> 0 | U173: =IF(ISBLANK(O173),,R173+T173) -> 0 | X173: 0 | Y173: =IF(V173="N",IF(ISNUMBER(R173),(R173+T173)/Q173)) -> FALSE
B174: Frz. Fully cooked and individually wrapped. Provides 2 M/MA and 2 OEG | C174: PizzaBoli | D174: 53206 | O174: 53206 | P174: 96/5.00 | Q174: 96 | R174: 57.46 | S174: 12 | T174: =ROUND($T$7*S174,2) -> 21.55 | U174: =IF(ISBLANK(O174),,R174+T174) -> 79.01 | V174: Y | W174: 57.46 | X174: 0.5985416667 | Y174: =IF(V174="N",IF(ISNUMBER(R174),(R174+T174)/Q174)) -> FALSE
C175: FiestaBoli | D175: 53207 | O175: 53207 | P175: 96.4.90 | Q175: 96 | R175: 57.46 | S175: 12 | T175: =ROUND($T$7*S175,2) -> 21.55 | U175: =IF(ISBLANK(O175),,R175+T175) -> 79.01 | V175: Y | W175: 57.46 | X175: 0.5985416667 | Y175: =IF(V175="N",IF(ISNUMBER(R175),(R175+T175)/Q175)) -> FALSE
H183: 0 | J183: Page Total | M183: =SUMIF(M8:M182,">0") -> 7460

Sheet Frozen Entrees
B1: ='Recap Sheet'!A2 -> School Food Authority or Agency Name: | F1: ='Recap Sheet'!A3 -> Bidder's Name:
A2: 12001- | B2: ='Recap Sheet'!B2 -> Marion County School District | C2: Return to Recap Sheet | F2: ='Recap Sheet'!B3 -> 0
A3: 14000 | B3: Description | C3: Approved | G3: Firm Fixed Fee | L3: ='Recap Sheet'!B4 -> 0 | O3: Manufacturer | P3: Vendor Pack | Q3: Servings per case | R3: Processing | S3: Pounds of | T3: Commodity | U3: Total Cost | V3: NOI ? | W3: NOI | X3: Net NOI | Y3: Fee for Serivce
A4: SCPA | C4: Brand Name | D4: Manufacturers | E4: Distributor | F4: Vendor | G4: Svgs | H4: Est. | I4: Bid | J4: Bid | K4: Unit | L4: Unit Price | M4: Total | N4: Cost per | O4: USDA Product | R4: Fee For | S4: DF Needed | T4: Value Per | U4: Proc Fee + | V4: Enter | W4: Net | X4: Cost Per | Y4: Cost Per Serv.
A5: Code | C5: or Manufacturer | D5: Code | E5: Code | F5: Pack | G5: per unit | H5: Bid Qty | I5: Qty | J5: Unit | K5: Price | L5: plus Fee | M5: Price | N5: Unit | O5: Code | R5: Service | S5: Per Case | T5: Case | U5: Comm Value | V5: Y or N | W5: Price | X5: Serving | Y5: Fee+ Commodity
B6: Frozen Entrees | O6: Cheese Mozzarella | Q6: 110244 | R6: Value / lb | S6: 1.8467 | U6: Cheese, Blended American | X6: 100036 | Y6: 1.7956
O7: Cheese Cheddar | Q7: 110242 | R7: Value / lb | S7: 1.7956 | U7: Peanuts Raw Shelled | X7: 110700 | Y7: 0.65
A8: 12001 | B8: Calzone, 100% Mozz. w/Pizza Sauce and Pepperoni, WG | C8: Albie's | D8: 813 | F8: 48/4.50z | G8: 48 | I8: =ROUND(H8*G8/G8,2) -> 0 | J8: Cs | K8: 36.96 | L8: =IF(OR(ISBLANK(K8),K8=0,H8=0,ISBLANK(H8)),,ROUND(K8+$L$3,2)) -> 0 | M8: =ROUND(I8*L8,2) -> 0 | N8: =ROUND(L8/G8,4) -> 0 | O8: 813 | P8: 48/4.50 z | Q8: 48 | R8: 32.49 | S8: 2.42 | T8: =ROUND($S$6*S8,2) -> 4.47 | U8: =IF(ISBLANK(O8),,R8+T8) -> 36.96 | V8: Y | W8: =IF(ISNUMBER(K8),IF(V8="Y",(K8-T8))) -> 32.49 | X8: =W8/G8 -> 0.676875 | Y8: =IF(V8="N",IF(ISNUMBER(R8),(R8+T8)/Q8)) -> FALSE
B9: Frozen, 250-350 calories with no more than 6 g sat fat and 500 mg sodium per serving. | L9: =IF(OR(ISBLANK(K9),K9=0,H9=0,ISBLANK(H9)),,ROUND(K9+$L$3,2)) -> 0
B10: One portion to provide a min. 2 M/MA and 2 OEG
B11: Possible Allergens: Wheat, Soy, Milk
A12: 12002 | B12: Calzone, 3 Cheese w/Pizza Sauce, WG | C12: Gilardi | D12: 16272-20120 | F12: 60/4.69z | G12: 60 | I12: =ROUND($H$12*$G$12/G12,2) -> 0 | J12: Cs | K12: 46.8 | L12: =IF(OR(ISBLANK(K12),K12=0,H12=0,ISBLANK(H12)),,ROUND(K12+$L$3,2)) -> 0 | M12: =ROUND(I12*L12,2) -> 0 | N12: =ROUND(L12/G12,4) -> 0 | O12: 16272-20120 | P12: 60/4.69 oz. | Q12: 60 | R12: 35.59 | S12: 6.07 | T12: =ROUND($S$7*S12,2) -> 10.9 | U12: =IF(ISBLANK(O12),,R12+T12) -> 46.49 | V12: Y | W12: =IF(ISNUMBER(K12),IF(V12="Y",(K12-T12))) -> 35.9 | X12: =W12/G12 -> 0.5983333333 | Y12: =IF(V12="N",IF(ISNUMBER(R12),(R12+T12)/Q12)) -> FALSE
B13: Frozen, 200-300 calories with no more than 3 g sat fat and 500 mg sodium per serving.
B14: One portion to provide a min. 2 M/MA and 2 OEG 1/8 cup red/orange vegetable
B15: Possible Allergens: Wheat, Soy, Milk
A16: 12003 | B16: Cheese Sticks, Mozzarella Filled Twisted Topped | C16: Tasty Brands | D16: 62002 | F16: 90/3.10z | G16: 90 | I16: =ROUND(H16*G16/G16,2) -> 0 | J16: Cs | K16: 42.71 | L16: =IF(OR(ISBLANK(K16),K16=0,H16=0,ISBLANK(H16)),,ROUND(K16+$L$3,2)) -> 0 | M16: =ROUND(I16*L16,2) -> 0 | N16: =ROUND(L16/G16,4) -> 0 | O16: 62002 | P16: 90/3.10 oz | Q16: 90 | R16: 32.61 | S16: 5.625 | T16: =ROUND($S$7*S16,2) -> 10.1 | U16: =IF(ISBLANK(O16),,R16+T16) -> 42.71 | V16: Y | W16: =IF(ISNUMBER(K16),IF(V16="Y",(K16-T16))) -> 32.61 | X16: =W16/G16 -> 0.3623333333 | Y16: =IF(V16="N",IF(ISNUMBER(R16),(R16+T16)/Q16)) -> FALSE
B17: Frozen, low moisture, 200-300 calories with no more than 8 g sat fat and 400 mg of sodium
B18: per serving, 0 trans fats, One serving to provide 1 M/MA and 2 OEG
B20: Possible Allergens: Wheat, Milk, Soy
A21: 12004 | B21: Cheese Sticks, Breaded Mozzarella, Italian Style WG | C21: High Liner Foods | D21: G1042DF | F21: 83/4.20z | G21: 83 | I21: =ROUND(H21*G21/G21,2) -> 0 | J21: Cs | K21: 42.38 | L21: =IF(OR(ISBLANK(K21),K21=0,H21=0,ISBLANK(H21)),,ROUND(K21+$L$3,2)) -> 0 | M21: =ROUND(I21*L21,2) -> 0 | N21: =ROUND(L21/G21,4) -> 0 | O21: G1042DF | P21: 83/4.20 oz. | Q21: 83 | R21: 23.08 | S21: 10.45 | T21: =ROUND($S$6*S21,2) -> 19.3 | U21: =IF(ISBLANK(O21),,R21+T21) -> 42.38 | V21: Y | W21: =IF(ISNUMBER(K21),IF(V21="Y",(K21-T21))) -> 23.08 | X21: =W21/G21 -> 0.2780722892 | Y21: =IF(V21="N",IF(ISNUMBER(R21),(R21+T21)/Q21)) -> FALSE
B22: Frozen, low moisture part skim mozzarella cheese stick with WGR breading, may be
B23: prepared in oven or fryer, 200-300 cal with no more than 8 g sat fat and 400 mg sodium
B24: per serving. 0 Trans Fats, CN Labeled for 5 stick portion to provide 2 M/MA and 1.5 OEG
B25: Possible Allergens: Wheat, Milk
A26: 12005 | B26: Egg Roll, Chicken, WG | C26: Minh | D26: 69461 | F26: 60/3.oz | G26: 60 | I26: =ROUND(H26*G26/G26,2) -> 0 | J26: Cs | K26: 31.23 | L26: =IF(OR(ISBLANK(K26),K26=0,H26=0,ISBLANK(H26)),,ROUND(K26+$L$3,2)) -> 0 | M26: =ROUND(I26*L26,2) -> 0 | N26: =ROUND(L26/G26,4) -> 0
B27: Frozen, chicken with vegetables in WG egg roll wrapper, 150-250 calories with no more
B28: than 2 g sat fat and 450 mg sodium per serving. CN Labeled for one portion to provide
B29: min 1 M/MA, 1 OEG and 1/4 c vegetable
B30: Possible Allergens: Milk, Wheat, Soy and Egg
A31: 12006 | B31: Enchilada, Beef, WG | C31: Fernandos/Foster Farm | D31: 5279 | F31: 112/2.5z | G31: 112 | I31: =ROUND(H31*G31/G31,2) -> 0 | J31: Cs | K31: 35 | L31: =IF(OR(ISBLANK(K31),K31=0,H31=0,ISBLANK(H31)),,ROUND(K31+$L$3,2)) -> 0 | M31: =ROUND(I31*L31,2) -> 0 | N31: =ROUND(L31/G31,4) -> 0
B32: Frozen, 100-200 calories with no more than 3 g sat fat and 300 mg sodium per serving
B33: CN Labeled for one portion to provide min 1 M/MA and 1 OEG
B35: Possible Allergens: Soy
A36: 12007 | B36: Turkey Frank Wrapped in WW Flour, IW | C36: Superbakery | D36: 3397 | F36: 64/4z | G36: 64 | I36: =ROUND(H36*G36/G36,2) -> 0 | J36: Cs | K36: 43.2 | L36: =IF(OR(ISBLANK(K36),K36=0,H36=0,ISBLANK(H36)),,ROUND(K36+$L$3,2)) -> 0 | M36: =ROUND(I36*L36,2) -> 0 | N36: =ROUND(L36/G36,4) -> 0
B37: Frozen, Fully cooked, heat and serve, No nitrites or nitrates added, 200-300 calories and
B38: not more than 4 g sat fat and 400 mg of sodium per serving. Must meet 2 M/MA and 2 OEG
B40: Possible Allergens: Wheat, Milk
A41: 12008 | B41: Macaroni and Cheese, Reduced Fat, WG | C41: Land O Lakes | D41: 43277 | F41: 6/5 lbs | G41: 80 | I41: =ROUND(H41*G41/G41,2) -> 0 | J41: Cs | K41: 54.84 | L41: =IF(OR(ISBLANK(K41),K41=0,H41=0,ISBLANK(H41)),,ROUND(K41+$L$3,2)) -> 0 | M41: =ROUND(I41*L41,2) -> 0 | N41: =ROUND(L41/G41,4) -> 0 | O41: 43277 | P41: 6/5 lbs | Q41: 80 | R41: 43.62 | S41: 6.25 | T41: =ROUND($S$7*S41,2) -> 11.22 | U41: =IF(ISBLANK(O41),,R41+T41) -> 54.84 | V41: Y | W41: =IF(ISNUMBER(K41),IF(V41="Y",(K41-T41))) -> 43.62 | X41: =W41/G41 -> 0.54525 | Y41: =IF(V41="N",IF(ISNUMBER(R41),(R41+T41)/Q41)) -> FALSE
B42: Frozen, processed American cheese in boil or steam pouch, 250-350 calories with no
B43: more than 6 g sat fat and 1000 mg sodium per svg. One portion to provide 2 M/MA & 1 OEG
B44: Possible Allergens: Milk, Wheat, Egg
A45: 12009 | B45: Ravioli, Mini Cheese, WG | C45: Tasty Brands | D45: 00834WG | F45: 221/2.17z | G45: 221 | I45: =ROUND(H45*G45/G45,2) -> 0 | J45: Cs | K45: 72.17 | L45: =IF(OR(ISBLANK(K45),K45=0,H45=0,ISBLANK(H45)),,ROUND(K45+$L$3,2)) -> 0 | M45: =ROUND(I45*L45,2) -> 0 | N45: =ROUND(L45/G45,4) -> 0 | O45: 00834WG | P45: 221/2.17 oz | Q45: 221 | R45: 62.8 | S45: 5.22 | T45: =ROUND($S$7*S45,2) -> 9.37 | U45: =IF(ISBLANK(O45),,R45+T45) -> 72.17 | V45: Y | W45: =IF(ISNUMBER(K45),IF(V45="Y",(K45-T45))) -> 62.8 | X45: =W45/G45 -> 0.2841628959 | Y45: =IF(V45="N",IF(ISNUMBER(R45),(R45+T45)/Q45)) -> FALSE
B46: Frozen, whole grain pasta, filled with mozzarella and ricotta cheese, 100-200 calories with
B47: no more than 2 g sat fat and 300 mg sodium per svg. One portion provides 1 M/MA &.5 OEG
B48: Possible Allergens: Wheat, Milk, Egg
A49: 12010 | B49: Sandwich, Turkey, Ham and Cheese on Hawaiian Bun, WG | C49: (18-19) Integrated | D49: 130018 | F49: 100/3.10z | G49: 100 | H49: 50 | I49: =ROUND(H49*G49/G49,2) -> 50 | J49: Cs | K49: 63.34 | L49: =IF(OR(ISBLANK(K49),K49=0,H49=0,ISBLANK(H49)),,ROUND(K49+$L$3,2)) -> 63.34 | M49: =ROUND(I49*L49,2) -> 3167 | N49: =ROUND(L49/G49,4) -> 0.6334 | O49: C13018 | P49: 100/3.10 oz. | Q49: 100 | R49: 58.85 | S49: 2.5 | T49: =ROUND($Y$6*S49,2) -> 4.49 | U49: =IF(ISBLANK(O49),,R49+T49) -> 63.34 | V49: Y | W49: =IF(ISNUMBER(K49),IF(V49="Y",(K49-T49))) -> 58.85 | X49: =W49/G49 -> 0.5885 | Y49: =IF(V49="N",IF(ISNUMBER(R49),(R49+T49)/Q49)) -> FALSE
B50: Frozen, 150-250 calories with no more than 2 g sat fat and 650 mg sodium per serving.
B51: One portion to provide min. 1 M/MA and 2 OEG
B52: Possible Allergens: Wheat, Soy
A53: 12011 | B53: Sandwich, Fiesta Egg and Cheese | C53: Advanced Pierre | D53: 10000097908 | F53: 100/2.35z | G53: 100 | I53: =ROUND(H53*G53/G53,2) -> 0 | J53: Cs | K53: 42.71 | L53: =IF(OR(ISBLANK(K53),K53=0,H53=0,ISBLANK(H53)),,ROUND(K53+$L$3,2)) -> 0 | M53: =ROUND(I53*L53,2) -> 0 | N53: =ROUND(L53/G53,4) -> 0
B54: Frozen,. WGR, 100-200 calories with not more than 3 g sat fat and 300 mg sodium per
B55: serving. Provides .75 M/MA and 1.25 OEG
B56: Possible Allergens: Wheat, Soy, Milk, and Egg
A57: 12012 | B57: Tornados, Steak and Cheese, WG | C57: Ruiz Foods | D57: 86585 | F57: 144/2.79z | G57: 144 | I57: =ROUND(H57*G57/G57,2) -> 0 | J57: Cs | K57: 78.9 | L57: =IF(OR(ISBLANK(K57),K57=0,H57=0,ISBLANK(H57)),,ROUND(K57+$L$3,2)) -> 0 | M57: =ROUND(I57*L57,2) -> 0 | N57: =ROUND(L57/G57,4) -> 0
B58: Frozen, thaw and serve, 100-200 calories with no more than 2 g sat fat and 400 mg sodium
B59: per serving. One portion to provide min. .5 M/MA and 1.25 OEG
B60: Possible Allergens: Wheat, Soy, Milk
O61: Peanuts Raw Shelled | Q61: 110700
A62: 12013 | B62: Peanut Butter & Grape Jelly, No HFCS, Crustless, WG, IW | C62: Smuckers | D62: 5150006960 | F62: 72/2.6z | G62: 72 | I62: =ROUND(H62*G62/G62,2) -> 0 | J62: Cs | K62: 35.33 | L62: =IF(OR(ISBLANK(K62),K62=0,H62=0,ISBLANK(H62)),,ROUND(K62+$L$3,2)) -> 0 | M62: =ROUND(I62*L62,2) -> 0 | N62: =ROUND(L62/G62,4) -> 0 | O62: 5150006960 | P62: 72/2.6 oz. | Q62: 72 | R62: 32.43 | S62: 4.46 | T62: =ROUND($Y$7*S62,2) -> 2.9 | U62: =IF(ISBLANK(O62),,R62+T62) -> 35.33 | V62: Y | W62: =IF(ISNUMBER(K62),IF(V62="Y",(K62-T62))) -> 32.43 | X62: =W62/G62 -> 0.4504166667 | Y62: =IF(V62="N",IF(ISNUMBER(R62),(R62+T62)/Q62)) -> FALSE
B63: Frozen, smooth peanut butter and grape jelly, crustless, whole grain bread, crimped edges,
B64: 250-350 calories with no more than 4 g sat fat and 350 mg sodium per serving.
B65: One portion to provide min. 1 M/MA and 1 OEG, Individually wrapped
B66: Possible Allergens: Wheat, Peanuts
A67: 12014 | B67: Peanut Butter & Grape Jelly, No HFCS, Crustless, WG, IW | C67: Smuckers | D67: 5150021027 | F67: 72/5.30z | G67: 72 | I67: =ROUND(H67*G67/G67,2) -> 0 | J67: Cs | K67: 64.1 | L67: =IF(OR(ISBLANK(K67),K67=0,H67=0,ISBLANK(H67)),,ROUND(K67+$L$3,2)) -> 0 | M67: =ROUND(I67*L67,2) -> 0 | N67: =ROUND(L67/G67,4) -> 0 | O67: 5150021027 | P67: 72/5.30 oz. | Q67: 72 | R67: 58.31 | S67: 8.91 | T67: =ROUND($Y$7*S67,2) -> 5.79 | U67: =IF(ISBLANK(O67),,R67+T67) -> 64.1 | V67: Y | W67: =IF(ISNUMBER(K67),IF(V67="Y",(K67-T67))) -> 58.31 | X67: =W67/G67 -> 0.8098611111 | Y67: =IF(V67="N",IF(ISNUMBER(R67),(R67+T67)/Q67)) -> FALSE
B68: Frozen, smooth peanut butter and grape jelly, crustless, whole grain bread, crimped edges,
B69: 550-650 calories with no more than 7 g sat fat and 650 mg sodium per serving.
B70: One portion to provide min. 2 M/MA and 2 OEG, Individually wrapped
B71: Possible Allergens: Wheat, Peanuts
A72: 12015 | B72: Peanut Butter & Strawberry Jelly, No HFCS, Crustless, WG, IW | C72: Smuckers | D72: 5150006961 | F72: 72/2.60z | G72: 72 | I72: =ROUND(H72*G72/G72,2) -> 0 | J72: Cs | K72: 36.89 | L72: =IF(OR(ISBLANK(K72),K72=0,H72=0,ISBLANK(H72)),,ROUND(K72+$L$3,2)) -> 0 | M72: =ROUND(I72*L72,2) -> 0 | N72: =ROUND(L72/G72,4) -> 0 | O72: 5150006961 | P72: 72/2.60 oz. | Q72: 72 | R72: 33.99 | S72: 4.46 | T72: =ROUND($Y$7*S72,2) -> 2.9 | U72: =IF(ISBLANK(O72),,R72+T72) -> 36.89 | V72: Y | W72: =IF(ISNUMBER(K72),IF(V72="Y",(K72-T72))) -> 33.99 | X72: =W72/G72 -> 0.4720833333 | Y72: =IF(V72="N",IF(ISNUMBER(R72),(R72+T72)/Q72)) -> FALSE
B73: Frozen, smooth peanut butter and strawberry jelly, crustless, whole grain bread, crimped
B74: edges, with no more than 3 g sat fat and 350 mg sodium per serving. One portion to provide
B75: min. 1 M/MA and 1 OEG, Individually wrapped
B76: Possible Allergens: Wheat, Peanuts
A77: 12016 | B77: Peanut Butter Cups, Creamy, IW | C77: Smucker-JIF | D77: 5150092100 | F77: 120/1.0z | G77: 120 | I77: =ROUND(H77*G77/G77,2) -> 0 | J77: Cs | K77: 31.2 | L77: =IF(OR(ISBLANK(K77),K77=0,H77=0,ISBLANK(H77)),,ROUND(K77+$L$3,2)) -> 0 | M77: =ROUND(I77*L77,2) -> 0 | N77: =ROUND(L77/G77,4) -> 0 | O77: 5150092100 | P77: 120/1.10 oz | Q77: 120 | R77: 26.39 | S77: 7.4 | T77: =ROUND($Y$7*S77,2) -> 4.81 | U77: =IF(ISBLANK(O77),,R77+T77) -> 31.2 | V77: Y | W77: =IF(ISNUMBER(K77),IF(V77="Y",(K77-T77))) -> 26.39 | X77: =W77/G77 -> 0.2199166667 | Y77: =IF(V77="N",IF(ISNUMBER(R77),(R77+T77)/Q77)) -> FALSE
B78: Shelf stable, smooth peanut butter, 100-200 calories with no more than 3 g sat fat and
B79: 150 mg sodium per serving, One portion to provide min 1 M/MA Individually wrapped
B81: Possible Allergens: Peanuts
A82: 12017 | B82: Cheese Bread IW | C82: Pillsbury | F82: 73/3.88z | G82: 73 | I82: =ROUND(H82*G82/G82,2) -> 0 | J82: Cs | K82: 49.73 | L82: =IF(OR(ISBLANK(K82),K82=0,H82=0,ISBLANK(H82)),,ROUND(K82+$L$3,2)) -> 0 | M82: =ROUND(I82*L82,2) -> 0 | N82: =ROUND(L82/G82,4) -> 0
B83: Cheese bread that is easily pulled apart. 100% real chese | C83: Italian Cheese & Garlic | D83: 12317000
B84: Heat and Serve Provides 2 OEG and 2 M/MA | C84: Southwest Queso | D84: 12316000
A85: 12018 | B85: Spagheti with Meat Sauce WGR | C85: JTM | D85: 5502CE | F85: 30/8.0z | G85: 30 | H85: 100 | I85: =ROUND(H85*G85/G85,2) -> 100 | J85: Cs | K85: 37.09 | L85: =IF(OR(ISBLANK(K85),K85=0,H85=0,ISBLANK(H85)),,ROUND(K85+$L$3,2)) -> 37.09 | M85: =ROUND(I85*L85,2) -> 3709 | N85: =ROUND(L85/G85,4) -> 1.2363 | O85: CP5502 | P85: 30/8.0z | Q85: 30 | R85: 31.25 | S85: 5.67 | T85: =ROUND($Y$7*S85,2) -> 3.69 | U85: =IF(ISBLANK(O85),,R85+T85) -> 34.94 | V85: N | W85: =IF(ISNUMBER(K85),IF(V85="Y",(K85-T85))) -> FALSE | X85: =W85/G85 -> 0 | Y85: =IF(V85="N",IF(ISNUMBER(R85),(R85+T85)/Q85)) -> 1.164666667
B86: Bowl pack, heat and serve.
B87: Each bowl provides 2 M/MA and 1 OEG. CN Labeled
B88: Possible Allergens: Egg, Wheat
J89: Page Total | M89: =SUMIF(M6:M88,">0") -> 6876

Sheet Dairy & Yogurt
B1: ='Recap Sheet'!A2 -> School Food Authority or Agency Name: | F1: ='Recap Sheet'!A3 -> Bidder's Name:
A2: 14001 | B2: ='Recap Sheet'!B2 -> Marion County School District | C2: Return to Recap Sheet | F2: ='Recap Sheet'!B3 -> 0 | S2: Commodity
A3: 16000 | B3: Description | C3: Approved | G3: Firm Fixed Fee | L3: ='Recap Sheet'!B4 -> 0 | O3: Manufacturer | P3: Vendor Pack | Q3: Servings per case | R3: Processing | S3: Pounds of | U3: Total Cost | V3: NOI ? | W3: NOI | X3: Net NOI | Y3: Fee for Serivce
A4: SCPA | C4: Brand Name | D4: Manufacturers | E4: Distributor | F4: Vendor | G4: Svgs | H4: Est. | I4: Bid | J4: Bid | K4: Unit | L4: Unit Price | M4: Total | N4: Cost per | O4: USDA Product | R4: Fee For | S4: DF Needed | T4: Commodity | U4: Proc Fee + | V4: Enter | W4: Net | X4: Cost Per | Y4: Cost Per Serv.
A5: Code | C5: or Manufacturer | D5: Code | E5: Code | F5: Pack | G5: per unit | H5: Bid Qty | I5: Qty | J5: Unit | K5: Price | L5: plus Fee | M5: Price | N5: Unit | O5: Code | R5: Service | S5: Per Case | T5: Value | U5: Comm Value | V5: Y or N | W5: Price | X5: Serving | Y5: Fee+ Commodity
B6: Dairy and Yogurt | O6: Cheese Amer Barrel | Q6: 110242 | R6: Commodity Value per lb | T6: 1.7956
A8: 14001 | B8: Cheese, American, Reduced Fat, Shredded | C8: Land O Lakes | D8: 41728 | F8: 4/5 lbs | G8: 640 | H8: 150 | I8: =ROUND($H$11*$G$11/G8,2) -> 0 | J8: Cs | K8: 51.89 | L8: =IF(OR(ISBLANK(K8),K8=0,H8=0,ISBLANK(H8)),,ROUND(K8+$L$3,2)) -> 51.89 | M8: =ROUND(I8*L8,2) -> 0 | N8: =ROUND(L8/G8,4) -> 0.0811 | O8: 41728 | P8: 4/5 lbs | Q8: 640 | R8: 24.35 | S8: 15.34 | T8: =ROUND($T$6*S8,2) -> 27.54 | U8: =IF(ISBLANK(O8),,R8+T8) -> 51.89 | V8: Y | W8: 24.35 | X8: 0.038046875 | Y8: =IF(V8="N",IF(ISNUMBER(R8),(R8+T8)/Q8)) -> FALSE
B9: Refregerated, 1/2 oz. serving
B10: Possible Allergens: Milk
A11: 14002 | B11: Cheese, Cheddar Mild, Shredded | C11: Land O Lakes | D11: 41749 | F11: 4/5 lbs | G11: 640 | I11: =ROUND($H$14*$G$14/G11,2) -> 0 | J11: Cs | K11: 46.31 | L11: =IF(OR(ISBLANK(K11),K11=0,H11=0,ISBLANK(H11)),,ROUND(K11+$L$3,2)) -> 0 | M11: =ROUND(I11*L11,2) -> 0 | N11: =ROUND(L11/G11,4) -> 0 | O11: 41749 | P11: 4/5 lbs | Q11: 640 | R11: 10.4 | S11: 20 | T11: =ROUND($T$6*S11,2) -> 35.91 | U11: =IF(ISBLANK(O11),,R11+T11) -> 46.31 | V11: Y | W11: 10.4 | X11: 0.01625 | Y11: =IF(V11="N",IF(ISNUMBER(R11),(R11+T11)/Q11)) -> FALSE
B12: Refrigerated, 1/2 oz. serving
B13: Possible Allergens: Milk
A14: 14003 | B14: Cheese, Mozzarella, Shredded, 100% Mozzarella | C14: Land O Lakes | D14: 41698 | F14: 4/5 lbs | G14: 640 | I14: =ROUND($H$14*$G$14/G14,2) -> 0 | J14: Cs | K14: 45.31 | L14: =IF(OR(ISBLANK(K14),K14=0,H14=0,ISBLANK(H14)),,ROUND(K14+$L$3,2)) -> 0 | M14: =ROUND(I14*L14,2) -> 0 | N14: =ROUND(L14/G14,4) -> 0 | O14: 41698 | P14: 4/5 lbs | Q14: 640 | R14: 9.4 | S14: 20 | T14: =ROUND($T$6*S14,2) -> 35.91 | U14: =IF(ISBLANK(O14),,R14+T14) -> 45.31 | V14: Y | W14: 9.4 | X14: 0.0146875 | Y14: =IF(V14="N",IF(ISNUMBER(R14),(R14+T14)/Q14)) -> FALSE
B15: Refrigerated, Low moisture part skim 45-50% moisture 1/2 oz. serving | C15: Bongard's | D15: 75507 | F15: 4/5 lbs | G15: 640 | I15: =ROUND($H$14*$G$14/G15,2) -> 0 | J15: Cs | L15: =IF(OR(ISBLANK(K15),K15=0,H14=0,ISBLANK(H14)),,ROUND(K15+$L$3,2)) -> 0 | M15: =ROUND(I15*L15,2) -> 0 | N15: =ROUND(L15/G15,4) -> 0 | O15: 75507-1 | P15: 4/5 lbs | Q15: 640 | S15: 20 | T15: 35.91 | U15: =IF(ISBLANK(O15),,R15+T15) -> 35.91 | V15: Y
B16: Possible Allergens: Milk
A17: 14004 | B17: Cheese, Mild Cheddar, Indv. Portions, Reduced Fat | C17: Land O Lakes | D17: 44881 | F17: 168/1 oz. | G17: 168 | H17: 20 | I17: =ROUND($H$17*$G$17/G17,2) -> 20 | J17: Cs | K17: 38.38 | L17: =IF(OR(ISBLANK(K17),K17=0,H17=0,ISBLANK(H17)),,ROUND(K17+$L$3,2)) -> 38.38 | M17: =ROUND(I17*L17,2) -> 767.6 | N17: =ROUND(L17/G17,4) -> 0.2285 | O17: 44881 | P17: 168/ 1 oz | Q17: 168 | R17: 19.53 | S17: 10.5 | T17: =ROUND($T$6*S17,2) -> 18.85 | U17: =IF(ISBLANK(O17),,R17+T17) -> 38.38 | V17: Y | W17: 19.53 | X17: 0.11625 | Y17: =IF(V17="N",IF(ISNUMBER(R17),(R17+T17)/Q17)) -> FALSE
B18: Refrigerated, Natural mild cheddar, 1 0z. Portions
B19: Possible Allergens: Milk
A20: 14005 | B20: Cheese, Mild Cheddar, Red, Fat Cube Portions | C20: Land O Lakes | D20: 44113 | F20: 200/1.0z | G20: 200 | I20: =ROUND($H$20*$G$20/G20,2) -> 0 | J20: Cs | K20: 55.13 | L20: =IF(OR(ISBLANK(K20),K20=0,H20=0,ISBLANK(H20)),,ROUND(K20+$L$3,2)) -> 0 | M20: =ROUND(I20*L20,2) -> 0 | N20: =ROUND(L20/G20,4) -> 0 | O20: 44113 | P20: 200/1 oz | Q20: 200 | R20: 32.68 | S20: 12.5 | T20: =ROUND($T$6*S20,2) -> 22.45 | U20: =IF(ISBLANK(O20),,R20+T20) -> 55.13 | V20: Y | W20: 32.68 | X20: 0.1634 | Y20: =IF(V20="N",IF(ISNUMBER(R20),(R20+T20)/Q20)) -> FALSE
B21: Refrigerated Natural mild cheddar 1 0z. Portions
B22: Possible Allergens: Milk
A23: 14006 | B23: Cheese, Mozzarella, String Cheese, IW | C23: Land O Lakes | D23: 59701 | F23: 168/1.0z | G23: 168 | I23: =ROUND($H$23*$G$23/G23,2) -> 0 | J23: Cs | K23: 30.59 | L23: =IF(OR(ISBLANK(K23),K23=0,H23=0,ISBLANK(H23)),,ROUND(K23+$L$3,2)) -> 0 | M23: =ROUND(I23*L23,2) -> 0 | N23: =ROUND(L23/G23,4) -> 0 | O23: 59701 | P23: 168/1 oz | Q23: 168 | R23: 11.74 | S23: 10.5 | T23: =ROUND($T$6*S23,2) -> 18.85 | U23: =IF(ISBLANK(O23),,R23+T23) -> 30.59 | V23: Y | W23: 11.74 | X23: 0.06988095238 | Y23: =IF(V23="N",IF(ISNUMBER(R23),(R23+T23)/Q23)) -> FALSE
B24: Refrigerated, Part skim mozzarella, 1 oz. portions | C24: Bongard's | D24: 40295 | F24: 168/1.0z | G24: 168 | I24: =ROUND($H$23*$G$23/G24,2) -> 0 | J24: Cs | L24: =IF(OR(ISBLANK(K24),K24=0,H23=0,ISBLANK(H23)),,ROUND(K24+$L$3,2)) -> 0 | M24: =ROUND(I24*L24,2) -> 0 | N24: 0 | O24: 40295-1 | P24: 168/1 oz | Q24: 168 | S24: 10.5 | T24: 18.85 | U24: =IF(ISBLANK(O24),,R24+T24) -> 18.85 | V24: Y
C25: Pauley | D25: 232901376 | F25: 160/1.0z | G25: 160 | I25: =ROUND($H$23*$G$23/G25,2) -> 0 | J25: Cs | L25: =IF(OR(ISBLANK(K25),K25=0,H23=0,ISBLANK(H23)),,ROUND(K25+$L$3,2)) -> 0 | M25: 0 | N25: 0
B26: Possible Allergens: Milk | C26: Schrieber | D26: 25616 | F26: 168/1.0z | G26: 168 | I26: =ROUND($H$23*$G$23/G26,2) -> 0 | J26: Cs | L26: =IF(OR(ISBLANK(K26),K26=0,H23=0,ISBLANK(H23)),,ROUND(K26+$L$3,2)) -> 0 | M26: 0 | N26: 0
A27: 14007 | B27: Cheese, Mozzarella, String Cheese, Light, IW | C27: Land O Lakes | D27: 59703 | F27: 168/1.0z | G27: 168 | H27: 10 | I27: =ROUND($H$27*$G$27/G27,2) -> 10 | J27: Cs | K27: 30.59 | L27: =IF(OR(ISBLANK(K27),K27=0,H27=0,ISBLANK(H27)),,ROUND(K27+$L$3,2)) -> 30.59 | M27: =ROUND(I27*L27,2) -> 305.9 | N27: 0.1821 | O27: 59703 | P27: 168/ 1 oz | Q27: 168 | R27: 11.74 | S27: 10.5 | T27: =ROUND($T$6*S27,2) -> 18.85 | U27: =IF(ISBLANK(O27),,R27+T27) -> 30.59 | V27: Y | W27: 11.74 | X27: 0.06988095238 | Y27: FALSE
B28: Refrig., Part skim mozz., 50% red sodium, No more than 2g sat fat and 220 sodium | C28: Bongard's | D28: 40299-1 | F28: 168/1.0z | G28: 168 | I28: =ROUND($H$27*$G$27/G28,2) -> 10 | J28: Cs | L28: =IF(OR(ISBLANK(K28),K28=0,H27=0,ISBLANK(H27)),,ROUND(K28+$L$3,2)) -> 0 | M28: =ROUND(I28*L28,2) -> 0 | N28: 0 | O28: 40299-1 | P28: 168/ 1 oz | Q28: 168 | S28: 10.5 | T28: 18.85 | U28: =IF(ISBLANK(O28),,R28+T28) -> 18.85 | V28: Y
B29: Possible Allergens: Milk
A30: 14008 | B30: Cheese, American 50% Red Fat, 50% Red Sodium, Sliced | C30: Land O Lakes | D30: 46288 | F30: 6/5 lbs. | G30: 960 | H30: 10 | I30: =ROUND($H$30*$G$30/G30,2) -> 10 | J30: Cs | L30: =IF(OR(ISBLANK(K30),K30=0,H30=0,ISBLANK(H30)),,ROUND(K30+$L$3,2)) -> 0 | M30: =ROUND(I30*L30,2) -> 0 | N30: =ROUND(L30/G30,4) -> 0 | O30: 46288 | P30: 6/5 lbs | Q30: 960 | S30: 22.91 | T30: =ROUND($T$6*S30,2) -> 41.14 | U30: =IF(ISBLANK(O30),,R30+T30) -> 41.14 | V30: Y
B31: Refrigerated, No more than 2 g sar fat and 125 mg sodium | C31: Bongard's | D31: 10054 | F31: 4/5 lbs. | G31: 640 | I31: =ROUND($H$30*$G$30/G31,2) -> 15 | J31: Cs | K31: 38.4 | L31: =IF(OR(ISBLANK(K31),K31=0,H30=0,ISBLANK(H30)),,ROUND(K31+$L$3,2)) -> 38.4 | M31: =ROUND(I31*L31,2) -> 576 | N31: =ROUND(L31/G31,4) -> 0.06 | O31: 10054-1 | P31: 4/5 lbs | Q31: 640 | R31: 12.4 | S31: 14.48 | T31: 26 | U31: =IF(ISBLANK(O31),,R31+T31) -> 38.4 | V31: Y | W31: 12.4 | X31: 0.019375 | Y31: =IF(V31="N",IF(ISNUMBER(R31),(R31+T31)/Q31)) -> FALSE
B32: per 1/2 oz. serving Possible Allergens: Milk, Soy
A33: 14009 | B33: Sauce, Cheese, Prepared, Pouch, Reduced Sodium | C33: Land O Lakes | D33: 39940 | F33: 6/106z | G33: 212 | H33: 20 | I33: =ROUND($H$33*$G$33/G33,2) -> 20 | J33: Cs | K33: 62.8 | L33: =IF(OR(ISBLANK(K33),K33=0,H33=0,ISBLANK(H33)),,ROUND(K33+$L$3,2)) -> 62.8 | M33: =ROUND(I33*L33,2) -> 1256 | N33: =ROUND(L33/G33,4) -> 0.2962 | O33: 39940 | P33: 6/106 oz | Q33: 212 | R33: 38.56 | S33: 13.5 | T33: =ROUND($T$6*S33,2) -> 24.24 | U33: =IF(ISBLANK(O33),,R33+T33) -> 62.8 | V33: Y | W33: 38.56 | X33: 0.1818867925 | Y33: =IF(V33="N",IF(ISNUMBER(R33),(R33+T33)/Q33)) -> FALSE
B34: Shelf Stable, Aseptically produced, perservative-free, packaged 3oz.=1 M/MA
B35: Possible Allergens: Milk, Soy
A36: 14010 | B36: Sauce, Cheese, Queso Blanco | C36: JTM | D36: 5718 | F36: 240/2.0z | G36: 240 | I36: =ROUND($H$36*$G$36/G36,2) -> 0 | J36: Cs | K36: 58.97 | L36: =IF(OR(ISBLANK(K36),K36=0,H36=0,ISBLANK(H36)),,ROUND(K36+$L$3,2)) -> 0 | M36: =ROUND(I36*L36,2) -> 0 | N36: =ROUND(L36/G36,4) -> 0 | O36: 5718 | P36: 240/2 oz. | Q36: 240 | R36: 32.75 | S36: 15 | T36: =ROUND($T$6*S36,2) -> 26.93 | U36: =IF(ISBLANK(O36),,R36+T36) -> 59.68 | V36: Y | W36: 32.04 | X36: 0.1335 | Y36: =IF(V36="N",IF(ISNUMBER(R36),(R36+T36)/Q36)) -> FALSE
B37: Frozen, 100-200 calories and no more than 6g saturated fat and
B38: 500 mg of sodium per svg. Each 2.0 oz. serving provides 1 oz. M/MA
B39: Possible Allergens: Milk
A40: 14011 | B40: Cheese, Sauce, Ultimate White Blend | C40: (18-19) Land O Lakes | D40: 39944 | F40: 6/106 oz | G40: 212 | I40: =ROUND($H$40*$G$40/G40,2) -> 0 | J40: Cs | K40: 69.95 | L40: =IF(OR(ISBLANK(K40),K40=0,H40=0,ISBLANK(H40)),,ROUND(K40+$L$3,2)) -> 0 | M40: =ROUND(I40*L40,2) -> 0 | N40: =ROUND(L40/G40,4) -> 0 | O40: 39944 | P40: 6/106 oz | Q40: 212 | R40: 43.77 | S40: 14.58 | T40: =ROUND($T$6*S40,2) -> 26.18 | V40: Y | W40: 43.77 | X40: 0.2064622642 | Y40: =IF(V40="N",IF(ISNUMBER(R40),(R40+T40)/Q40)) -> FALSE
B41: Shefl Stable, Aseptically produced, preservative-free, packaged in
B42: pouch 3 oz = 1 M/MA
B43: Possible Allergens: Milk
A44: 14012 | B44: Cheese, Cheddar Cups | C44: Land O Lakes | D44: 39911 | F44: 140/3.0z | G44: 140 | I44: =ROUND($H$44*$G$44/G44,2) -> 0 | J44: Cs | K44: 67.31 | L44: =IF(OR(ISBLANK(K44),K44=0,H44=0,ISBLANK(H44)),,ROUND(K44+$L$3,2)) -> 0 | M44: =ROUND(I44*L44,2) -> 0 | N44: =ROUND(L44/G44,4) -> 0 | O44: 39911 | P44: 140/3.0 oz | Q44: 140 | R44: 51.29 | S44: 8.92 | T44: =ROUND($T$6*S44,2) -> 16.02 | V44: Y | W44: 51.29 | X44: 0.3663571429 | Y44: =IF(V44="N",IF(ISNUMBER(R44),(R44+T44)/Q44)) -> FALSE
B45: Shelf Stable, Portion Pack, 3 oz. cup = 1 M/MA
B46: Possbile Allergens: Milk
A47: 14013 | B47: Yogurt, Low Fat, 4 oz, Gluten Free | C47: Yoplait/Trix (General Mills) | F47: 48/4.0z | G47: 48 | I47: =ROUND(H47*G47/G47,2) -> 0 | J47: Cs | L47: =IF(OR(ISBLANK(K47),K47=0,H47=0,ISBLANK(H47)),,ROUND(K47+$L$3,2)) -> 0 | M47: =ROUND(I47*L47,2) -> 0 | N47: =ROUND(L47/G47,4) -> 0
B48: Refrigerated, Lowfat, flavored, pasteurized, Grade A contains live and | C48: Raspberry Rainbow | D48: 17725
B49: active yogurt cultures, No aspartame, Expiration date on container, | C49: Strawberry Banana | D49: 17726
B50: coded and labeled in accordance with State and Federal Regulations | C50: Triple Cherry | D50: 31077
B51: No more than 2 g of fat per serving. 0 trans fat | C51: Horchatta | D51: 15675
C52: Dannon (Danimals) | F52: 48/4.0z | G52: 48 | I52: =ROUND(H47*G47/G52,2) -> 0 | J52: Cs | K52: 9.84 | L52: =IF(OR(ISBLANK(K52),K52=0,H47=0,ISBLANK(H47)),,ROUND(K52+$L$3,2)) -> 0 | M52: =ROUND(I52*L52,2) -> 0 | N52: =ROUND(L52/G52,4) -> 0
C53: Strawberry Dianimals | D53: 73463
B54: Possible Allergens: Milk | C54: Strawberry Banana Dianimals | D54: 73558
C55: Raspberry Dianimals | D55: 102429
C56: Vanilla Dianimals | D56: 73559
A57: 14014 | B57: Yogurt, Fat Free, 4 oz. Extended Shelf Life | C57: Upstate | F57: 48/4.0z | G57: 48 | I57: =ROUND(H57*G57/G57,2) -> 0 | J57: Cs | K57: 0 | L57: =IF(OR(ISBLANK(K57),K57=0,H57=0,ISBLANK(H57)),,ROUND(K57+$L$3,2)) -> 0 | M57: =ROUND(I57*L57,2) -> 0 | N57: =ROUND(L57/G57,4) -> 0
B58: Refrigerated, Lowfat, flavored, pasteurized, Grade A contains live and active yogurt | C58: Strawberry | D58: 9815
B59: active yogurt cultures, No aspartame, Expiration date on container, | C59: Peach | D59: 9818
B60: coded, and labeled in accordance with State and Federal Regulations | C60: Cherry Vanilla | D60: 9819
B61: No more than 0 g of fat per serving. 0 trans fat | C61: Strawberry Banana | D61: 9820
B63: Possible Allergens: Milk
A64: 14015 | B64: Yogurt, Fat Free, 8 oz. Extended Shelf Life | C64: Upstate | F64: 12/8.0z | G64: 12 | I64: =ROUND(H64*G64/G64,2) -> 0 | J64: Cs | K64: 0 | L64: =IF(OR(ISBLANK(K64),K64=0,H64=0,ISBLANK(H64)),,ROUND(K64+$L$3,2)) -> 0 | M64: =ROUND(I64*L64,2) -> 0 | N64: =ROUND(L64/G64,4) -> 0
B65: Refrigerated, Lowfat, flavored, pasteurized, Grade A contains live and | C65: Strawberry | D65: 9820
B66: active yogurt cultures, No aspartame, Expiration date on container, | C66: Peach | D66: 9834
B67: coded, and labeled in accordance with State and Federal Regulations | C67: Cherry Vanilla | D67: 9835
B68: No more than 0 g of fat per serving. 0 trans fat | C68: Strawberry Banana | D68: 9836
B70: Possible Allergens: Milk
A72: 14016 | B72: Yogurt, Vanilla Pouch, Low fat | C72: Dannon Pro | D72: 96397 | F72: 4/6 lbs | G72: 96 | H72: 50 | I72: =ROUND(H72*G72/G72,2) -> 50 | J72: Cs | L72: =IF(OR(ISBLANK(K72),K72=0,H72=0,ISBLANK(H72)),,ROUND(K72+$L$3,2)) -> 0 | M72: =ROUND(I72*L72,2) -> 0 | N72: =ROUND(L72/G72,4) -> 0
B73: Refrigerated, Lowfat, flavored, pasteurized, Grade A contains live and | C73: Yoplait/General Mills | D73: 16632 | F73: 6/64 oz. | G73: 96 | I73: =ROUND(H72*G72/G73,2) -> 50 | J73: Cs | K73: 20.95 | L73: =IF(OR(ISBLANK(K73),K73=0,H72=0,ISBLANK(H72)),,ROUND(K73+$L$3,2)) -> 20.95 | M73: =ROUND(I73*L73,2) -> 1047.5 | N73: =ROUND(L73/G73,4) -> 0.2182
B74: active live cultures, No aspartame, Expiration date on container, coded,
B75: and labeled in accordance with State and Federal Regulations
B76: 4 oz. serving equals 1 oz. protein
B77: Possible Allergens: Milk, Gluten Free
A78: 14017 | B78: Yogurt, Strawberry Pouch, Low fat | C78: Dannon Pro | D78: 96398 | F78: 4/6 lbs | G78: 96 | H78: 20 | I78: =ROUND(H78*G78/G78,2) -> 20 | J78: Cs | K78: 21.5 | L78: =IF(OR(ISBLANK(K78),K78=0,H78=0,ISBLANK(H78)),,ROUND(K78+$L$3,2)) -> 21.5 | M78: =ROUND(I78*L78,2) -> 430 | N78: =ROUND(L78/G78,4) -> 0.224
B79: Refrigerated, Lowfat, flavored, pasteurized, Grade A contains live and | C79: Yoplait/General Mills | D79: 16631 | F79: 6/64 oz | G79: 96 | I79: =ROUND(H78*G78/G79,2) -> 20 | J79: Cs | L79: =IF(OR(ISBLANK(K79),K79=0,H78=0,ISBLANK(H78)),,ROUND(K79+$L$3,2)) -> 0 | M79: =ROUND(I79*L79,2) -> 0 | N79: =ROUND(L79/G79,4) -> 0
B80: active yogurt cultures, No aspartame, Expiration date on container,
B81: coded, and labeled in accordance with State and Federal Regulations
B82: 4 oz. serving equals 1 oz. protein
B83: Possible Allergens: Milk, Gluten Free
A84: 14018 | B84: Yogurt, Blueberry Pouch, Low fat | C84: Yoplait/General Mills | D84: 16067 | F84: 6/64 oz | G84: 96 | H84: 10 | I84: =ROUND(H84*G84/G84,2) -> 10 | J84: Cs | K84: 22.3 | L84: =IF(OR(ISBLANK(K84),K84=0,H84=0,ISBLANK(H84)),,ROUND(K84+$L$3,2)) -> 22.3 | M84: =ROUND(I84*L84,2) -> 223 | N84: =ROUND(L84/G84,4) -> 0.2323
B85: Refrigerated, Lowfat, flavored, pasteurized, Grade A contains live and
B86: active yogurt cultures, No aspartame, Expiration date on container,
B87: coded, and labeled in accordance with State and Federal Regulations
B88: 4 oz. serving equals 1 oz. protein
B89: Possbile Allergens: Milk, Gluten Free
B90: ITEMS BELOW THIS LINE ARE NOT DIRECT TO MANUFACTUER PRICED ITEMS.
A91: 14019 | B91: Margarine Reddies | C91: Distributor Choice | F91: 720/.5 gm | G91: 720
B92: Pure Vegetable. Contains 0 Trans fat. | C92: Fillable txt box | I92: =ROUND(H91*G91/G92,2) ->  | J92: Cs | L92: =IF(OR(ISBLANK(K92),K92=0,H91=0,ISBLANK(H91)),,ROUND(K92+$L$3,2)) -> 0 | M92: =ROUND(I92*L92,2) ->  | N92: =ROUND(L92/G92,4) -> 
A93: 14020 | B93: Margarine Solids | C93: Distributor Choice | F93: 30Lb | G93: 30 | H93: 30
B94: Pure Vegetable. Contains 0 Trans fat. | C94: Fillable txt box | I94: =ROUND(H93*G93/G94,2) ->  | J94: Cs | L94: =IF(OR(ISBLANK(K94),K94=0,H93=0,ISBLANK(H93)),,ROUND(K94+$L$3,2)) -> 0 | M94: =ROUND(I94*L94,2) ->  | N94: =ROUND(L94/G94,4) -> 
H95: 0 | J95: Page Total | M95: =SUMIF(M6:M94,">0") -> 4606

Sheet Franks & Corn Dogs
B1: ='Recap Sheet'!A2 -> School Food Authority or Agency Name: | F1: ='Recap Sheet'!A3 -> Bidder's Name:
A2: 16001 | B2: ='Recap Sheet'!B2 -> Marion County School District | C2: Return to Recap Sheet | F2: ='Recap Sheet'!B3 -> 0
A3: 18000 | B3: Description | C3: Approved | G3: Firm Fixed Fee | L3: ='Recap Sheet'!B4 -> 0
A4: SCPA | C4: Brand Name | D4: Manufacturers | E4: Distributor | F4: Vendor | G4: Svgs | H4: Est. | I4: Bid | J4: Bid | K4: Unit | L4: Unit Price | M4: Total | N4: Cost per
A5: Code | C5: or Manufacturer | D5: Code | E5: Code | F5: Pack | G5: per unit | H5: Bid Qty | I5: Qty | J5: Unit | K5: Price | L5: plus Fee | M5: Price | N5: Unit
B6: Franks & Corn Dogs
A8: 16001 | B8: Hot Dog, Beef | C8: Bryan | D8: 10000016787 | F8: 80/2.0oz | G8: 80 | I8: =ROUND($H$8*$G$8/G8,2) -> 0 | J8: Cs | L8: =IF(OR(ISBLANK(K8),K8=0,H8=0,ISBLANK(H8)),,ROUND(K8+$L$3,2)) -> 0 | M8: =ROUND(I8*L8,2) -> 0 | N8: =ROUND(L8/G8,4) -> 0
B9: Frozen, fully cooked, all beef, Formula B, natural color, made from skeletal | C9: Carolina Pride | D9: 3143 | F9: 2/5 lbs | G9: 80 | I9: =ROUND($H$8*$G$8/G9,2) -> 0 | J9: Cs | L9: =IF(OR(ISBLANK(K9),K9=0,H8=0,ISBLANK(H8)),,ROUND(K9+$L$3,2)) -> 0 | M9: =ROUND(I9*L9,2) -> 0 | N9: =ROUND(L9/G9,4) -> 0
B10: cuts. IMPS #800 8 per lbs 150-250 calories with no more than 8 g sat fat | C10: DISCONTINUED Harvestland/Perdue | D10: 56655 | J10: Cs | L10: =IF(OR(ISBLANK(K10),K10=0,H8=0,ISBLANK(H8)),,ROUND(K10+$L$3,2)) -> 0 | M10: =ROUND(I10*L10,2) -> 0 | N10: =ROUND(L10/G10,4) -> 
B11: and 800 mg sodium per serving. One portion provides 2 M/MA. May | C11: Farmland/Smithfield | D11: 810967 | F11: 10 lbs | G11: 80 | I11: =ROUND($H$8*$G$8/G11,2) -> 0 | J11: Cs | L11: =IF(OR(ISBLANK(K11),K11=0,H8=0,ISBLANK(H8)),,ROUND(K11+$L$3,2)) -> 0 | M11: =ROUND(I11*L11,2) -> 0 | N11: =ROUND(L11/G11,4) -> 0
B12: contain Sodium Nitrite | C12: Kent Quality Foods | D12: 437 CN | F12: 160/2.0oz | G12: 160 | I12: =ROUND($H$8*$G$8/G12,2) -> 0 | J12: Cs | K12: 44.8 | L12: =IF(OR(ISBLANK(K12),K12=0,H8=0,ISBLANK(H8)),,ROUND(K12+$L$3,2)) -> 0 | M12: =ROUND(I12*L12,2) -> 0 | N12: =ROUND(L12/G12,4) -> 0
B13: Possible Allergens: None Listed
A14: 16002 | B14: Hot Dog, Beef/Pork | C14: Kent Quality Foods | D14: 429CN | F14: 160/2.0oz | G14: 160 | I14: =ROUND($H$14*$G$14/G14,2) -> 0 | J14: Cs | K14: 34.2 | L14: =IF(OR(ISBLANK(K14),K14=0,H14=0,ISBLANK(H14)),,ROUND(K14+$L$3,2)) -> 0 | M14: =ROUND(I14*L14,2) -> 0 | N14: =ROUND(L14/G14,4) -> 0
B15: All beef and pork, Formula B, natural color, no offals. IMPS #800.
B16: Made from all skeletal cuts. 8 ct. Skinless No artificial color. Must provide
B17: 2 0 oz cooked meat/meat alternate for CN Meal Pattern Requirements
B18: One 2 oz serving contains no more than 85% of calories from fat.
B19: Possible Allergens: None Listed
A20: 16003 | B20: Hot Dog, All Meat | C20: Ball Park | D20: 10000016720 | F20: 80/2.0z | G20: 80 | I20: =ROUND($H$20*$G$20/G20,2) -> 0 | J20: Cs | L20: =IF(OR(ISBLANK(K20),K20=0,H20=0,ISBLANK(H20)),,ROUND(K20+$L$3,2)) -> 0 | M20: =ROUND(I20*L20,2) -> 0 | N20: =ROUND(L20/G20,4) -> 0
B21: Frozen, fully cooked, made from skeletal cuts, IMPS #800, No artificial color,, | C21: Kent Quality Foods | D21: 304320 | F21: 160/2.0z | G21: 160 | I21: =ROUND($H$20*$G$20/G21,2) -> 0 | J21: Cs | L21: =IF(OR(ISBLANK(K21),K21=0,H20=0,ISBLANK(H20)),,ROUND(K21+$L$3,2)) -> 0 | M21: =ROUND(I21*L21,2) -> 0 | N21: 0
B22: 8 per lb, 150-250 calories with no more than 7 g sat fat and 700 mg | C22: Bryan | D22: 10000016668 | F22: 80/2.0z | G22: 80 | I22: =ROUND($H$20*$G$20/G22,2) -> 0 | J22: Cs | K22: 27 | L22: =IF(OR(ISBLANK(K22),K22=0,H20=0,ISBLANK(H20)),,ROUND(K22+$L$3,2)) -> 0 | M22: =ROUND(I22*L22,2) -> 0 | N22: 0
B23: sodium per svg. One portion provides 2 M/MA. May contain Sodium Nitrite | C23: Carolina Pride | D23: 3140CN | F23: 80/2.0z | G23: 80 | I23: =ROUND($H$20*$G$20/G23,2) -> 0 | J23: Cs | L23: =IF(OR(ISBLANK(K23),K23=0,H20=0,ISBLANK(H20)),,ROUND(K23+$L$3,2)) -> 0 | M23: =ROUND(I23*L23,2) -> 0 | N23: 0
B24: Possible Allergens: None Listed | C24: Farmland/Smithfield | D24: 811527CN | F24: 80/2.0z | G24: 80 | I24: =ROUND($H$20*$G$20/G24,2) -> 0 | J24: Cs | L24: =IF(OR(ISBLANK(K24),K24=0,H20=0,ISBLANK(H20)),,ROUND(K24+$L$3,2)) -> 0 | M24: 0 | N24: 0
A25: 16004 | B25: Hot Dog, Turkey | C25: Briar Street | D25: 10000016751 | F25: 10Lb | G25: 80 | I25: =ROUND($H$25*$G$25/G25,2) -> 0 | J25: Cs | K25: 10.8 | L25: =IF(OR(ISBLANK(K25),K25=0,H25=0,ISBLANK(H25)),,ROUND(K25+$L$3,2)) -> 0 | M25: 0 | N25: 0
B26: Frozen, made form mechanically separated turkey meat blended with | C26: Butterball | D26: 22655-61886 | F26: 2/5Lb | G26: 80 | I26: =ROUND($H$25*$G$25/G26,2) -> 0 | J26: Cs | L26: =IF(OR(ISBLANK(K26),K26=0,H25=0,ISBLANK(H25)),,ROUND(K26+$L$3,2)) -> 0 | M26: 0 | N26: 0
B27: natural flavoring/color and spices, 8 per lbs, 100-150 calories with no more | C27: Perdue | D27: 65669 | F27: 2/5Lb | G27: 80 | I27: =ROUND($H$25*$G$25/G27,2) -> 0 | J27: Cs | L27: =IF(OR(ISBLANK(K27),K27=0,H25=0,ISBLANK(H25)),,ROUND(K27+$L$3,2)) -> 0 | M27: 0 | N27: 0
B28: than 5 g sat fat and 750 mg sodium per serving. One portion to provide
B29: 2 M/MA. May contain Sodium Nitrite.
B31: Possible Allergens: None Listed
A32: 16005 | B32: Hot Dog, Turkey/Beef Low Sodium and Reduced Fat | C32: Kent Quality Foods | D32: 676421 | F32: 160/2.0oz | G32: 160 | I32: =ROUND(H32*G32/G32,2) -> 0 | J32: Cs | K32: 26.8 | L32: =IF(OR(ISBLANK(K32),K32=0,H32=0,ISBLANK(H32)),,ROUND(K32+$L$3,2)) -> 0 | M32: =ROUND(I32*L32,2) -> 0 | N32: =ROUND(L32/G32,4) -> 0
B33: Frozen made of mechanically separated turkey meat blended with natural
B34: flavoring/color and spices and beef 100-150 calories with no more than
B35: 4 g sat fat and 350 mg sodium per serving. One portion to provide 2 M/MA
B36: May contain sodium nitrite
B37: Possible Allergens: None Listed
A38: 16006 | B38: Hot Dog, Turkey Low Sodium and Reduced Fat | C38: Kent Quality Foods | D38: 142676 | F38: 160/2.0oz | G38: 160 | H38: 100 | I38: =ROUND(H38*G38/G38,2) -> 100 | J38: Cs | K38: 24.8 | L38: =IF(OR(ISBLANK(K38),K38=0,H38=0,ISBLANK(H38)),,ROUND(K38+$L$3,2)) -> 24.8 | M38: =ROUND(I38*L38,2) -> 2480 | N38: =ROUND(L38/G38,4) -> 0.155
B39: Frozen made of mechanically separated turkey meat blended with natural
B40: flavoring/color and spices 100-150 calories with no more than 4 g sat fat
B41: and 350 mg sodium per serving. One portion to provide 2 M/MA
B42: May contain sodium nitrite
B43: Possible Allergens: None Listed
A44: 16007 | B44: Corn Dog, Chicken, WG | C44: Foster Farms | D44: 95150 | F44: 72/4.0z | G44: 72 | I44: =ROUND(H44*G44/G44,2) -> 0 | J44: Cs | K44: 25.84 | L44: =IF(OR(ISBLANK(K44),K44=0,H44=0,ISBLANK(H44)),,ROUND(K44+$L$3,2)) -> 0 | M44: =ROUND(I44*L44,2) -> 0 | N44: =ROUND(L44/G44,4) -> 0
B45: Frozen, fully cooked, sweet batter dipped frankfurter, whole wheat flour
B46: and cornmeal 200-300 calories with no more than 3 g sat fat and 400 mg
B47: sodium per serving. One portion to provide 2 M/MA and 2 OEG May contain
B48: Sodium Nitrite, SMART SNACK COMPLIANT
B49: Possible Allergens: Wheat, Soy ,Eggs, Gluten
A50: 16008 | B50: Corn Dog, Turkey, WG | C50: State Fair | D50: 10000028322 | F50: 48/4.0z | G50: 48 | I50: =ROUND($H$50*$G$50/G50,2) -> 0 | J50: Cs | L50: =IF(OR(ISBLANK(K50),K50=0,H50=0,ISBLANK(H50)),,ROUND(K50+$L$3,2)) -> 0 | M50: =ROUND(I50*L50,2) -> 0 | N50: =ROUND(L50/G50,4) -> 0
B51: Frozen, oven ready, sweet batter dipped frankfurter, whole wheat flour | C51: Don Lee Farms | D51: CN84072WG | F51: 72/4.0z | G51: 48 | I51: =ROUND($H$50*$G$50/G51,2) -> 0 | J51: Cs | K51: 22.68 | L51: =IF(OR(ISBLANK(K51),K51=0,H50=0,ISBLANK(H50)),,ROUND(K51+$L$3,2)) -> 0 | M51: =ROUND(I51*L51,2) -> 0 | N51: =ROUND(L51/G51,4) -> 0
B52: and cornmeal with stick. 200-300 calories with no more than 4 g sat fat
B53: and 850 mg sodium per serving. One portion to provide 2 M/MA and 2 OEG
B54: May contain sodium nitrite
B55: Possible Allergens: Wheat, Soy, Eggs, Milk
A56: 16009 | B56: Corn Dog, Turkey, WG Reduced Fat | C56: State Fair | D56: 1000009988 | F56: 72/4z | G56: 72 | H56: 100 | I56: =ROUND(H56*G56/G56,2) -> 100 | J56: Cs | K56: 0 | L56: =IF(OR(ISBLANK(K56),K56=0,H56=0,ISBLANK(H56)),,ROUND(K56+$L$3,2)) -> 0 | M56: =ROUND(I56*L56,2) -> 0 | N56: =ROUND(L56/G56,4) -> 0
B57: Frozen, oven ready, sweet batter dipped frankfurter, whole wheat flour
B58: and cornmeal with stick 200-300 calories with no more than 1.5 g sat fat
B59: with ≤ 30% calories from fat and 1.5 g sat fat per serving. One portion
B60: to provide 2 M/MA and 2 OEG May contain Sodium Nitrite
B61: Possible Allergens: Wheat, Soy, Eggs, Milk
A62: 16010 | B62: Corndog Nuggets, Chicken | C62: House of Raeford | D62: 20452 | F62: 2/5 lbs | G62: 40 | I62: =ROUND($H$62*$G$62/G62,2) -> 0 | J62: Cs | L62: =IF(OR(ISBLANK(K62),K62=0,H62=0,ISBLANK(H62)),,ROUND(K62+$L$3,2)) -> 0 | M62: =ROUND(I62*L62,2) -> 0 | N62: =ROUND(L62/G62,4) -> 0
B63: Frozen, Oven Ready, sweet batter dipped frankfurter of mechanically | C63: Foster Farms | D63: 96086 | F63: 2/5 lbs | G63: 40 | I63: =ROUND($H$62*$G$62/G63,2) -> 0 | J63: Cs | K63: 15.4 | L63: =IF(OR(ISBLANK(K63),K63=0,H62=0,ISBLANK(H62)),,ROUND(K63+$L$3,2)) -> 0 | M63: =ROUND(I63*L63,2) -> 0 | N63: =ROUND(L63/G63,4) -> 0
B64: separated chicken meat, WG flour and cornmeal, 200-300 calories with no
B65: no more than 4 g sat fat and 450 mg sodium per serving. CN Labeled for 6
B66: to provide 2 M/MA and 2 OEG. May contain Sodium Nitrite
B67: Possible Allergens: Wheat, Soy, Eggs, and Milk
A68: 16011 | B68: Corndog Nuggets, Turkey | C68: House of Raeford | D68: 20420 | F68: 240/.667z | G68: 40 | H68: 50 | I68: =ROUND($H$68*$G$68/G68,2) -> 50 | J68: Cs | K68: 18.1 | L68: =IF(OR(ISBLANK(K68),K68=0,H68=0,ISBLANK(H68)),,ROUND(K68+$L$3,2)) -> 18.1 | M68: =ROUND(I68*L68,2) -> 905 | N68: =ROUND(L68/G68,4) -> 0.4525
B69: Frozen, Oven Ready, sweet batter dipped frankfurter of mechanically | C69: State Fair | D69: 1000009180 | F69: 240/.667 z | G69: 40 | I69: =ROUND($H$62*$G$62/G69,2) -> 0 | L69: =IF(OR(ISBLANK(K69),K69=0,H68=0,ISBLANK(H68)),,ROUND(K69+$L$3,2)) -> 0 | M69: =ROUND(I69*L69,2) -> 0 | N69: =ROUND(L69/G69,4) -> 0
B70: separated turkey meat, WG flour and cornmeal, 200-300 calories with no
B71: more than 2 g sat fat and 450 mg sodium per serving. CN Labeled for 6 to
B72: to provide 2 M/MA and 2 OEG. May contain Sodium Nitrite
B73: Possible Allergens: Wheat, Soy, Eggs, and Milk
J74: Page Total | M74: =SUMIF(M14:M73,">0") -> 3385

Sheet Eggs
B1: ='Recap Sheet'!A2 -> School Food Authority or Agency Name: | F1: ='Recap Sheet'!A3 -> Bidder's Name:
A2: 18001 | B2: ='Recap Sheet'!B2 -> Marion County School District | C2: Return to Recap Sheet | F2: ='Recap Sheet'!B3 -> 0 | S2: Commodity
A3: 20000 | B3: Description | C3: Approved | G3: Firm Fixed Fee | L3: ='Recap Sheet'!B4 -> 0 | O3: Manufacturer | P3: Vendor Pack | Q3: Servings per case | R3: Processing | S3: Pounds of | U3: Total Cost | V3: NOI ? | W3: NOI | X3: Net NOI | Y3: Fee for Serivce
A4: SCPA | C4: Brand Name | D4: Manufacturers | E4: Distributor | F4: Vendor | G4: Svgs | H4: Est. | I4: Bid | J4: Bid | K4: Unit | L4: Unit Price | M4: Total | N4: Cost per | O4: USDA Product | R4: Fee For | S4: DF Needed | T4: Commodity | U4: Proc Fee + | V4: Enter | W4: Net | X4: Cost Per | Y4: Cost Per Serv.
A5: Code | C5: or Manufacturer | D5: Code | E5: Code | F5: Pack | G5: per unit | H5: Bid Qty | I5: Qty | J5: Unit | K5: Price | L5: plus Fee | M5: Price | N5: Unit | O5: Code | R5: Service | S5: Per Case | T5: Value | U5: Comm Value | V5: Y or N | W5: Price | X5: Serving | Y5: Fee+ Commodity
B6: Eggs | O6: Eggs, Whole Liquid Bulk Tank | Q6: 100047 | R6: Commodity Value per lb | T6: 0.539
A8: 18001 | B8: Eggs, Liquid Whole with Citric Acid, Pasteurized | C8: Michael Foods | D8: 46025-65123 | F8: 296/1.62z | G8: 296 | I8: =ROUND($H$8*$G$8/G8,2) -> 0 | J8: Cs | L8: =IF(OR(ISBLANK(K8),K8=0,H8=0,ISBLANK(H8)),,ROUND(K8+$L$3,2)) -> 0 | M8: 30 | N8: =ROUND(L8/G8,4) -> 0 | O8: 46025-65123 | P8: 296/1.62z | Q8: 296 | S8: 29.88 | T8: =ROUND($T$6*S8,2) -> 16.11 | U8: =IF(ISBLANK(O8),,R8+T8) -> 16.11 | V8: Y
B9: Frozen, homogenized, USDA Inspected | C9: Sunny Fresh/Cargill | D9: 10080 | F9: 480/1.0z | G9: 480 | I9: =ROUND($H$8*$G$8/G9,2) -> 0 | J9: Cs | K9: 40.59 | L9: =IF(OR(ISBLANK(K9),K9=0,H8=0,ISBLANK(H8)),,ROUND(K9+$L$3,2)) -> 0 | M9: =ROUND(I9*L9,2) -> 0 | N9: =ROUND(L9/G9,4) -> 0 | O9: 10080 | P9: 6/5# | Q9: 480 | R9: 24.45 | S9: 29.95 | T9: =ROUND($T$6*S9,2) -> 16.14 | U9: =IF(ISBLANK(O9),,R9+T9) -> 40.59 | V9: Y | W9: 24.45 | X9: 0.0509375 | Y9: =IF(V9="N",IF(ISNUMBER(R9),(R9+T9)/Q9)) -> FALSE
B11: Possible Allergens: Eggs
A12: 18002 | B12: Egg Patty, Round | C12: Michael Foods | D12: 85017 | F12: 300/1.25z | G12: 300 | H12: 30 | I12: =ROUND($H$12*$G$12/G12,2) -> 30 | J12: Cs | K12: 34.9 | L12: =IF(OR(ISBLANK(K12),K12=0,H12=0,ISBLANK(H12)),,ROUND(K12+$L$3,2)) -> 34.9 | M12: =ROUND(I12*L12,2) -> 1047 | N12: =ROUND(L12/G12,4) -> 0.1163 | O12: 85017 | P12: 300/1.25 oz | Q12: 300 | R12: 26.39 | S12: 15.79 | T12: =ROUND($T$6*S12,2) -> 8.51 | U12: =IF(ISBLANK(O12),,R12+T12) -> 34.9 | V12: Y | W12: 26.39 | X12: 0.08796666667 | Y12: =IF(V12="N",IF(ISNUMBER(R12),(R12+T12)/Q12)) -> FALSE
B13: Frozen, IQF, Fully cooked, USDA inspected pasteurized whole eggs, | C13: Sunny Fresh/Cargill | D13: 40710 | F13: 369/1.25z | G13: 369 | I13: =ROUND($H$12*$G$12/G13,2) -> 24.39 | J13: Cs | L13: =IF(OR(ISBLANK(K13),K13=0,H12=0,ISBLANK(H12)),,ROUND(K13+$L$3,2)) -> 0 | M13: =ROUND(I13*L13,2) -> 0 | N13: =ROUND(L13/G13,4) -> 0 | O13: 40710 | P13: 369/1.25 oz | Q13: 369 | S13: 21.49 | T13: =ROUND($T$6*S13,2) -> 11.58 | U13: =IF(ISBLANK(O13),,R13+T13) -> 11.58 | V13: Y
B14: Approx. 3" pattie 40-100 calories with no more than 2g sat fat and
B15: 125 mg sodium per serving. One portion to provide min 1 M/MA
B16: Possible Allergens: Egg, Milk, Soy
A18: 18003 | B18: Eggs, Scrambled, Pre-Cooked Refrigerated | C18: (18-19) Michael Foods | D18: 85877 | F18: 12/1.65z | G18: 165 | I18: =ROUND($H$18*$G$18/G18,2) -> 0 | J18: Cs | K18: 39.99 | L18: =IF(OR(ISBLANK(K18),K18=0,H18=0,ISBLANK(H18)),,ROUND(K18+$L$3,2)) -> 0 | M18: =ROUND(I18*L18,2) -> 0 | N18: =ROUND(L18/G18,4) -> 0 | O18: 46025-85877 | P18: 165/2.15z | Q18: 165 | R18: 31.81 | S18: 15.17 | T18: =ROUND($T$6*S18,2) -> 8.18 | U18: =IF(ISBLANK(O18),,R18+T18) -> 39.99 | V18: Y | W18: 31.81 | X18: 0.1927878788 | Y18: =IF(V18="N",IF(ISNUMBER(R18),(R18+T18)/Q18)) -> FALSE
B19: Frozen, IQF, Fully cooked, USDA inspected pasteurized whole eggs,
B20: 45-50 calories with no more than 2g sat fat and 150 mg sodium per
B21: per 1 oz. portions. A 1 oz. portion provides min. 1 M/MA
B22: Possible Allergens: Egg, Milk, Soy
A23: 18004 | B23: Eggs, Scrambled, Pre-Cooked, Frozen | C23: Michael Foods Discontinued | D23: 85019 | F23: 4/5 lbs | G23: 320 | I23: =ROUND($H$23*$G$23/G23,2) -> 0 | J23: Cs | L23: =IF(OR(ISBLANK(K23),K23=0,H23=0,ISBLANK(H23)),,ROUND(K23+$L$3,2)) -> 0 | M23: =ROUND(I23*L23,2) -> 0 | N23: =ROUND(L23/G23,4) -> 0 | T23: =ROUND($T$6*S23,2) -> 0 | U23: =IF(ISBLANK(O23),,R23+T23) -> 0 | V23: Y
B24: Frozen, IQF, Fully cooked, USDA Inspected pasteurized whole eggs, | C24: Sunny Fresh/Cargill | D24: 40927 | F24: 4/5 lbs | G24: 320 | I24: =ROUND($H$23*$G$23/G24,2) -> 0 | J24: Cs | K24: 36.37 | L24: =IF(OR(ISBLANK(K24),K24=0,H23=0,ISBLANK(H23)),,ROUND(K24+$L$3,2)) -> 0 | M24: =ROUND(I24*L24,2) -> 0 | N24: =ROUND(L24/G24,4) -> 0 | O24: 40927 | P24: 4/5 lbs | Q24: 320 | R24: 26.46 | S24: 18.93 | T24: =ROUND($T$6*S24,2) -> 10.2 | U24: =IF(ISBLANK(O24),,R24+T24) -> 36.66 | V24: Y | W24: 26.17 | X24: 0.08178125 | Y24: =IF(V24="N",IF(ISNUMBER(R24),(R24+T24)/Q24)) -> FALSE
B25: 45-50 calories with no more than 2g saturated fat and 150 mg sodium
B26: per 1 oz. portions. A 1 oz. portion provides min. 1 M/MA
B28: Possible Allergens: Egg, Milk, Soy
A29: 18004 | B29: Egg Omelet Cheddar Cheese | C29: Michael Foods | D29: 85037 | F29: 144/2.0z. | G29: 144 | I29: =ROUND($H$29*$G$29/G29,2) -> 0 | J29: Cs | K29: 43.9 | L29: =IF(OR(ISBLANK(K29),K29=0,H29=0,ISBLANK(H29)),,ROUND(K29+$L$3,2)) -> 0 | M29: =ROUND(I29*L29,2) -> 0 | N29: =ROUND(L29/G29,4) -> 0 | O29: 85037 | P29: 144/2.0 oz | Q29: 144 | R29: 37.1 | S29: 12.61 | T29: =ROUND($T$6*S29,2) -> 6.8 | U29: =IF(ISBLANK(O29),,R29+T29) -> 43.9 | V29: Y | W29: 37.1 | X29: 0.2576388889 | Y29: =IF(V29="N",IF(ISNUMBER(R29),(R29+T29)/Q29)) -> FALSE
B30: Frozen, IQF, Fully cooked, USDA inspected pasteurized whole eggs
B31: with cheddar cheese filling. Oven baked, 100-200 calories with no
B32: more than 4 g saturated fat and 300 mg sodium per serving.
B33: CN Labled for one portion to provide min. 2 M/MA
B34: Possible Allergens: Egg, Milk, Soy
A35: 18005 | B35: Skillet Frittata w/Egg, Cheese, Veg and Ham, IW | C35: Sunny Fresh/Cargill | D35: 40263 | F35: 96/3.35z | G35: 96 | I35: =ROUND($H$35*$G$35/G35,2) -> 0 | J35: Cs | K35: 54.85 | L35: =IF(OR(ISBLANK(K35),K35=0,H35=0,ISBLANK(H35)),,ROUND(K35+$L$3,2)) -> 0 | M35: =ROUND(I35*L35,2) -> 0 | N35: =ROUND(L35/G35,4) -> 0 | O35: 40263 | P35: 96/3.35 oz. | Q35: 96 | R35: 49.58 | S35: 9.77 | T35: =ROUND($T$6*S35,2) -> 5.27 | U35: =IF(ISBLANK(O35),,R35+T35) -> 54.85 | V35: Y | W35: 49.58 | X35: 0.5164583333 | Y35: =IF(V35="N",IF(ISNUMBER(R35),(R35+T35)/Q35)) -> FALSE
B36: Frozen, IQF, Fully cooked, 50-200 calories with no more than 5g
B37: sat fat and 550 mg sodium per serving. One portion provides min.
B38: 2 M/MA and 1 OEG
B39: Possible Allergens: Egg, Milk, Soy
A40: 18006 | B40: Skillet Frittata w/Egg, Cheese, and Turkey Sausage Bulk | C40: Sunny Fresh/Cargill | D40: 40184 | F40: 225/2.20z | G40: 225 | I40: =ROUND($H$40*$G$40/G40,2) -> 0 | J40: Cs | K40: 77.94 | L40: =IF(OR(ISBLANK(K40),K40=0,H40=0,ISBLANK(H40)),,ROUND(K40+$L$3,2)) -> 0 | M40: =ROUND(I40*L40,2) -> 0 | N40: =ROUND(L40/G40,4) -> 0 | O40: 40184 | P40: 225/2.20 oz | Q40: 225 | R40: 65.89 | S40: 22.36 | T40: =ROUND($T$6*S40,2) -> 12.05 | U40: =IF(ISBLANK(O40),,R40+T40) -> 77.94 | V40: Y | W40: 65.89 | X40: 0.2928444444 | Y40: =IF(V40="N",IF(ISNUMBER(R40),(R40+T40)/Q40)) -> FALSE
B41: Frozen, IQF, Fully cooked, 50-150 calories with no more than 4g
B42: saturated fat and 350 mg sodium per serving. One portion provides
B43: min 2 M/MA
B44: Possible Allergens: Egg, Milk, Soy
A46: 18007 | B46: Eggs, Hard Cooked, Peeled, Pillow -Pak/Dry Packed | C46: Michael Foods | D46: 85018 | F46: 12/12 | G46: 144 | H46: 25 | I46: =ROUND($H$46*$G$46/G46,2) -> 25 | J46: Cs | K46: 24.52 | L46: =IF(OR(ISBLANK(K46),K46=0,H46=0,ISBLANK(H46)),,ROUND(K46+$L$3,2)) -> 24.52 | M46: =ROUND(I46*L46,2) -> 613 | N46: =ROUND(L46/G46,4) -> 0.1703 | O46: 85018 | P46: 12/12 | Q46: 144 | R46: 16.43 | S46: 15 | T46: =ROUND($T$6*S46,2) -> 8.09 | U46: =IF(ISBLANK(O46),,R46+T46) -> 24.52 | V46: Y | W46: 16.43 | X46: 0.1140972222 | Y46: =IF(V46="N",IF(ISNUMBER(R46),(R46+T46)/Q46)) -> FALSE
B47: Frozen, IQF, Fully cooked, 50-150 calories with no more than 4 g | C47: Sunny Fresh/Cargill | D47: 50038 | F47: 8/18 | G47: 144 | I47: =ROUND($H$46*$G$46/G47,2) -> 25 | J47: Cs | L47: =IF(OR(ISBLANK(K47),K47=0,H46=0,ISBLANK(H46)),,ROUND(K47+$L$3,2)) -> 0 | M47: =ROUND(I47*L47,2) -> 0 | N47: =ROUND(L47/G47,4) -> 0 | O47: 50038 | P47: 8/18 | Q47: 144 | S47: 14.04 | T47: =ROUND($T$6*S47,2) -> 7.57 | U47: =IF(ISBLANK(O47),,R47+T47) -> 7.57 | V47: Y
B48: saturated fat and 350 mg sodium per serving. One portion provides | C48: Allmark | D48: 63212 | F48: 12/12 | G48: 144 | I48: =ROUND($H$46*$G$46/G48,2) -> 25 | J48: Cs | L48: =IF(OR(ISBLANK(K48),K48=0,H46=0,ISBLANK(H46)),,ROUND(K48+$L$3,2)) -> 0 | M48: =ROUND(I48*L48,2) -> 0 | N48: =ROUND(L48/G48,4) -> 0
B49: 2 M/MA
B50: Possible Allergens: Egg, Milk, Soy
A51: 18008 | B51: French Toast Sticks, WG Cinnamon IW | C51: (18-19) Sunny Fresh/Cargill | D51: 40094 | F51: 110/2.90z | G51: 110 | H51: 30 | I51: =ROUND(H51*G51/G51,2) -> 30 | J51: Cs | K51: 50.88 | L51: =IF(OR(ISBLANK(K51),K51=0,H51=0,ISBLANK(H51)),,ROUND(K51+$L$3,2)) -> 50.88 | M51: =ROUND(I51*L51,2) -> 1526.4 | N51: =ROUND(L51/G51,4) -> 0.4625 | O51: 40094 | P51: 110/2.9z | Q51: 110 | R51: 47.52 | S51: 6.24 | T51: =ROUND($T$6*S51,2) -> 3.36 | U51: =IF(ISBLANK(O51),,R51+T51) -> 50.88 | V51: Y | W51: 47.52 | X51: 0.432 | Y51: =IF(V51="N",IF(ISNUMBER(R51),(R51+T51)/Q51)) -> FALSE
B52: Frozen, Heat and Serve, 150-250 calories with no more than 2 g sat
B53: fat and 350 mg sodium per svg. CN Labeled for three (3) sticks to
B54: provide min. 1 M/MA and 1.5 OEG
B55: Possible Allergens: Milk, Soy, Wheat
H57: 0 | J57: Page Total | M57: =SUMIF(M9:M56,">0") -> 3186.4

Sheet Frozen Potato
B1: ='Recap Sheet'!A2 -> School Food Authority or Agency Name: | F1: ='Recap Sheet'!A3 -> Bidder's Name:
A2: 20001 | B2: ='Recap Sheet'!B2 -> Marion County School District | C2: Return to Recap Sheet | F2: ='Recap Sheet'!B3 -> 0
A3: 22000 | B3: Description | C3: Approved | G3: Firm Fixed Fee | L3: ='Recap Sheet'!B4 -> 0 | O3: Manufacturer | P3: Vendor Pack | Q3: Servings per case | R3: Processing | S3: Pounds of | U3: Total Cost | V3: NOI ? | W3: NOI | X3: Net NOI | Y3: Fee for Serivce
A4: SCPA | C4: Brand Name | D4: Manufacturers | E4: Distributor | F4: Vendor | G4: Svgs | H4: Est. | I4: Bid | J4: Bid | K4: Unit | L4: Unit Price | M4: Total | N4: Cost per | O4: USDA Product | R4: Fee For | S4: DF Needed | T4: Commodity | U4: Proc Fee + | V4: Enter | W4: Net | X4: Cost Per | Y4: Cost Per Serv.
A5: Code | C5: or Manufacturer | D5: Code | E5: Code | F5: Pack | G5: per unit | H5: Bid Qty | I5: Qty | J5: Unit | K5: Price | L5: plus Fee | M5: Price | N5: Unit | O5: Code | R5: Service | S5: Per Case | T5: Value | U5: Comm Value | V5: Y or N | W5: Price | X5: Serving | Y5: Fee+ Commodity
B6: Potato Products, Frz | O6: Potatos | Q6: 100506 | R6: Commodity Value per lb | T6: 0.1313
A8: 20001 | B8: 100 | C8: McCain/Ore-Ida | D8: OIF00055A | F8: 6/5 Lb | G8: 160 | I8: =ROUND(H8*G8/G8,2) -> 0 | J8: Cs | K8: 20.45 | L8: =IF(OR(ISBLANK(K8),K8=0,H8=0,ISBLANK(H8)),,ROUND(K8+$L$3,2)) -> 0 | M8: =ROUND(I8*L8,2) -> 0 | N8: =ROUND(L8/G8,4) -> 0 | O8: OIF00055A | P8: 6/5 lbs | Q8: 160 | R8: 0 | S8: 54.55 | T8: =ROUND($T$6*S8,2) -> 7.16 | U8: =IF(ISBLANK(O8),,R8+T8) -> 7.16 | V8: Y | W8: 13.29 | X8: 0.0830625 | Y8: =IF(V8="N",IF(ISNUMBER(R8),(R8+T8)/Q8)) -> FALSE
B9: Frozen. Made from white, USDA Grade A potatoes. Extra Long or Long Fancy. | C9: Lamb Weston | D9: R45 | F9: 6/5 Lb | G9: 160 | I9: =ROUND(H8*G8/G9,2) -> 0 | J9: Cs | L9: =IF(OR(ISBLANK(K9),K9=0,H8=0,ISBLANK(H8)),,ROUND(K9+$L$3,2)) -> 0 | M9: =ROUND(I9*L9,2) -> 0 | N9: =ROUND(L9/G9,4) -> 0 | O9: R45 | P9: 6/5 lbs | Q9: 160 | S9: 54.55 | T9: =ROUND($T$6*S9,2) -> 7.16 | U9: =IF(ISBLANK(O9),,R9+T9) -> 7.16 | V9: Y
B10: No tropical oils, 0 trans fat, 100-150 calories, no more than 1g sat fat and no more than | C10: Simplot | D10: 71179221227 | F10: 6/5 Lb | G10: 160 | I10: =ROUND(H8*G8/G10,2) -> 0 | J10: Cs | L10: =IF(OR(ISBLANK(K10),K10=3,H8=0,ISBLANK(H8)),,ROUND(K10+$L$3,2)) -> 0 | M10: =ROUND(I10*L10,2) -> 0 | N10: =ROUND(L10/G10,4) -> 0 | O10: 71179221227 | P10: 6/5 lbs | Q10: 160 | S10: 54.55 | T10: =ROUND($T$6*S10,2) -> 7.16 | U10: =IF(ISBLANK(O10),,R10+T10) -> 7.16 | V10: Y
B11: 50 mg sodium per 1/2c svg
B12: Possible Allergens: None Listed
A13: 20002 | B13: French Fries, 3/8" Straight Cut, Ovenable, Low Sodium | C13: Simplot | D13: 71179026709 | F13: 6/5 Lb | G13: 160 | H13: 100 | I13: =ROUND($H$13*$G$13/G13,2) -> 100 | J13: Cs | K13: 0 | L13: =IF(OR(ISBLANK(K13),K13=0,H13=0,ISBLANK(H13)),,ROUND(K13+$L$3,2)) -> 0 | M13: =ROUND(I13*L13,2) -> 0 | N13: =ROUND(L13/G13,4) -> 0 | O13: 71177926709 | P13: 6/5 lbs | Q13: 160 | S13: 54.55 | T13: =ROUND($T$6*S13,2) -> 7.16 | U13: =IF(ISBLANK(O13),,R13+T13) -> 7.16 | V13: Y | W13: FALSE
B14: Frozen, Made from white, USDA Grade A potatoes. Extra Long or Long Fancy.
B15: No tropical oils, 0 trans fat, 100-150 calories, no more than 1g sat fat and no more than
B16: 30 mg sodium per 1/2c svg
B17: Possible Allergens: None Listed
A18: 20003 | B18: French Fries, Shoestring 1/4-5/16", Coated | C18: Lamb Weston | D18: S34 | F18: 6/4.5 Lb | G18: 144 | I18: =ROUND($H$18*$G$18/G18,2) -> 0 | J18: Cs | L18: =IF(OR(ISBLANK(K18),K18=0,H18=0,ISBLANK(H18)),,ROUND(K18+$L$3,2)) -> 0 | M18: =ROUND(I18*L18,2) -> 0 | N18: =ROUND(L18/G18,4) -> 0 | O18: S34 | P18: 6/4.5 lbs | Q18: 144 | S18: 49.09 | T18: =ROUND($T$6*S18,2) -> 6.45 | U18: =IF(ISBLANK(O18),,R18+T18) -> 6.45 | V18: Y
B19: Frozen, USDA LF or XLF, Grade A, Low moisture, 100-150 than 1 g saturated fat and | C19: Simplot | D19: 71179036357 | F19: 6/5 Lb | G19: 200 | I19: =ROUND($H$18*$G$18/G19,2) -> 0 | J19: Cs | L19: =IF(OR(ISBLANK(K19),K19=0,H18=0,ISBLANK(H18)),,ROUND(K19+$L$3,2)) -> 0 | M19: =ROUND(I19*L19,2) -> 0 | N19: =ROUND(L19/G19,4) -> 0 | O19: 71179036357 | P19: 6/5 lbs | Q19: 200 | S19: 54.55 | T19: 7.16 | U19: =IF(ISBLANK(O19),,R19+T19) -> 7.16 | V19: Y
B20: 300 mg sodium per 1/2 cup veg serving | C20: Cavendish | D20: 56210-05311-2 | F20: 6/4.5 lb | G20: 191 | I20: =ROUND($H$18*$G$18/G20,2) -> 0 | J20: Cs | K20: 24.15 | L20: =IF(OR(ISBLANK(K20),K20=3,H18=0,ISBLANK(H18)),,ROUND(K20+$L$3,2)) -> 0 | M20: =ROUND(I20*L20,2) -> 0 | N20: =ROUND(L20/G20,4) -> 0 | O20: 56210-05311-2 | P20: 6/4.5 lbs | Q20: 191 | R20: 0 | S20: 49.09 | T20: 6.45 | U20: =IF(ISBLANK(O20),,R20+T20) -> 6.45 | V20: Y | W20: 17.7 | X20: 0.09267015707 | Y20: =IF(V20="N",IF(ISNUMBER(R20),(R20+T20)/Q20)) -> FALSE
B21: Possible Allergens: None Listed
A22: 20004 | B22: French Fries, 3/8", Regular cut (Fried or Baked) Coated | C22: Lamb Weston | D22: S57 | F22: 6/5 Lb | G22: 160 | I22: =ROUND(H22*G22/G22,2) -> 0 | J22: Cs | L22: =IF(OR(ISBLANK(K22),K22=0,H22=0,ISBLANK(H22)),,ROUND(K22+$L$3,2)) -> 0 | M22: =ROUND(I22*L22,2) -> 0 | N22: =ROUND(L22/G22,4) -> 0 | O22: S57 | P22: 6/5 lbs | Q22: 160 | S22: 54.55 | T22: =ROUND($T$6*S22,2) -> 7.16 | U22: =IF(ISBLANK(O22),,R22+T22) -> 7.16 | V22: Y
B23: Frozen. Made from white, USDA Grade A potatoes, Extra Long or Long Fancy. | C23: McCain | D23: MCF03788 | F23: 6/5 Lb | G23: 160 | I23: =ROUND(H22*G22/G23,2) -> 0 | J23: Cs | K23: 25.9 | L23: =IF(OR(ISBLANK(K23),K23=0,H22=0,ISBLANK(H22)),,ROUND(K23+$L$3,2)) -> 0 | M23: =ROUND(I23*L23,2) -> 0 | N23: =ROUND(L23/G23,4) -> 0 | O23: MCF03788 | P23: 6/5 lbs | Q23: 160 | R23: 0 | S23: 54.55 | T23: 7.16 | U23: =IF(ISBLANK(O23),,R23+T23) -> 7.16 | V23: Y | W23: 18.74 | X23: 0.117125 | Y23: =IF(V23="N",IF(ISNUMBER(R23),(R23+T23)/Q23)) -> FALSE
B24: No tropical oils, 0 trans fat, 50-150 calories, no more than 1g sat fat and no more than
B25: 400 mg sodium per 1/2c svg
B26: Possible Allergens: None Listed
A27: 20005 | B27: French Fries, 3/8" Straight Cut, (ovenable), Reduced Sodium, Seasoned | C27: McCain | D27: MCX04717 | F27: 6/5 Lb | G27: 160 | H27: 100 | I27: =ROUND(H27*G27/G27,2) -> 100 | J27: Cs | K27: 31.3 | L27: =IF(OR(ISBLANK(K27),K27=0,H27=0,ISBLANK(H27)),,ROUND(K27+$L$3,2)) -> 31.3 | M27: =ROUND(I27*L27,2) -> 3130 | N27: =ROUND(L27/G27,4) -> 0.1956 | O27: MCX04717 | P27: 6/5 lbs | Q27: 160 | R27: 0 | S27: 54.55 | T27: =ROUND($T$6*S27,2) -> 7.16 | U27: =IF(ISBLANK(O27),,R27+T27) -> 7.16 | V27: Y | W27: 24.14 | X27: 0.150875 | Y27: =IF(V27="N",IF(ISNUMBER(R27),(R27+T27)/Q27)) -> FALSE
B28: Frozen. Made from white, USDA Grade A potatoes, Extra Long or Long Fancy with a blend
B29: of spices. 100-150 Calories with 1g Sat fat and 150 mg Sodium per 1/2 c serving
B30: No tropical oils. 0 Trans Fat.
B31: Possible Allergens: None Listed
A32: 20006 | B32: Potato Baby Bakers | C32: Simplot | D32: 71179000488 | F32: 6/2.5 lbs | G32: 73 | I32: =ROUND(H32*G32/G32,2) -> 0 | J32: Cs | K32: 0 | L32: =IF(OR(ISBLANK(K32),K32=0,H32=0,ISBLANK(H32)),,ROUND(K32+$L$3,2)) -> 0 | M32: =ROUND(I32*L32,2) -> 0 | N32: =ROUND(L32/G32,4) -> 0 | O32: 7117900048 | P32: 6/2.5 lbs | Q32: 73 | S32: 18.75 | T32: =ROUND($T$6*S32,2) -> 2.46 | U32: =IF(ISBLANK(O32),,R32+T32) -> 2.46 | V32: Y
B33: Frozen, whole miniature potatoes seasoned with garlic and black pepper, bake and serve,
B34: 80-150 cals with no more than 1 g sat fat and 200 mg sodium per 1/2 cup vegetable serving
B35: Possible Allergens: None Listed
A36: 20007 | B36: Potato Roasters | C36: McCain | D36: MCF03927 | F36: 6/5 Lb | G36: 160 | H36: 20 | I36: =ROUND(H36*G36/G36,2) -> 20 | J36: Cs | K36: 31 | L36: =IF(OR(ISBLANK(K36),K36=0,H36=0,ISBLANK(H36)),,ROUND(K36+$L$3,2)) -> 31 | M36: =ROUND(I36*L36,2) -> 620 | N36: =ROUND(L36/G36,4) -> 0.1938 | O36: MCF03927 | P36: 6/5 lbs | Q36: 160 | R36: 0 | S36: 54.55 | T36: =ROUND($T$6*S36,2) -> 7.16 | U36: =IF(ISBLANK(O36),,R36+T36) -> 7.16 | V36: Y | W36: 23.84 | X36: 0.149 | Y36: =IF(V36="N",IF(ISNUMBER(R36),(R36+T36)/Q36)) -> FALSE
B37: Frozen, diced, roasted potatoes seasoned with garlic, rosemary and herbs, bake and serve,
B38: 100-200 cals with no more than 1 g sat fat and 200 mg of sodium per 1/2 c vegetable svg
B39: Possible Allergens: None Listed
A40: 20008 | B40: Potato Rounds/Tots | C40: Lamb Weston | D40: H30 | F40: 6/5 Lb | G40: 160 | I40: =ROUND(H40*G40/G40,2) -> 0 | J40: Cs | L40: =IF(OR(ISBLANK(K40),K40=0,H40=0,ISBLANK(H40)),,ROUND(K40+$L$3,2)) -> 0 | M40: =ROUND(I40*L40,2) -> 0 | N40: =ROUND(L40/G40,4) -> 0 | O40: H30 | P40: 6/5 lbs | Q40: 160 | S40: 54.55 | T40: =ROUND($T$6*S40,2) -> 7.16 | U40: =IF(ISBLANK(O40),,R40+T40) -> 7.16 | V40: Y
B41: Frozen, Grade A, Crisp golden brown exterior, 100-200 calories with no more than 2 g | C41: McCain/Ore-Ida | D41: OIF00215A | F41: 6/5 Lb | G41: 160 | I41: =ROUND(H40*G40/G41,2) -> 0 | J41: Cs | K41: 24.7 | L41: =IF(OR(ISBLANK(K41),K41=0,H40=0,ISBLANK(H40)),,ROUND(K41+$L$3,2)) -> 0 | M41: =ROUND(I41*L41,2) -> 0 | N41: =ROUND(L41/G41,4) -> 0 | O41: OIF00215A | P41: 6/5 lbs | Q41: 160 | R41: 0 | S41: 54.55 | T41: 7.16 | U41: =IF(ISBLANK(O41),,R41+T41) -> 7.16 | V41: Y | W41: 17.54 | X41: 0.109625 | Y41: =IF(V41="N",IF(ISNUMBER(R41),(R41+T41)/Q41)) -> FALSE
B42: sat fat and 350 mg per 1/2 c vegetable serving | C42: Simplot | D42: 71179004189 | F42: 6/5 Lb | G42: 160 | I42: =ROUND(H40*G40/G42,2) -> 0 | J42: Cs | L42: =IF(OR(ISBLANK(K42),K42=0,H40=0,ISBLANK(H40)),,ROUND(K42+$L$3,2)) -> 0 | M42: =ROUND(I42*L42,2) -> 0 | N42: =ROUND(L42/G42,4) -> 0 | O42: 71179004189 | P42: 6/5 lbs | Q42: 160 | S42: 54.55 | T42: 7.16 | U42: =IF(ISBLANK(O42),,R42+T42) -> 7.16 | V42: Y
B43: Possible Allergens: Soy
A44: 20009 | B44: Potato Rounds/Tots, Low Sodium | C44: (18-19) McCain/Ore-Ida | D44: 1000002789 | F44: 6/5 Lb | G44: 156 | H44: 200 | I44: =ROUND(H44*G44/G44,2) -> 200 | J44: Cs | K44: 31.1 | L44: =IF(OR(ISBLANK(K44),K44=0,H44=0,ISBLANK(H44)),,ROUND(K44+$L$3,2)) -> 31.1 | M44: =ROUND(I44*L44,2) -> 6220 | N44: =ROUND(L44/G44,4) -> 0.1994 | O44: 1000002789 | P44: 6/5 lbs | Q44: 156 | R44: 0 | S44: 54.55 | T44: =ROUND($T$6*S44,2) -> 7.16 | U44: =IF(ISBLANK(O44),,R44+T44) -> 7.16 | V44: Y | W44: 23.94 | X44: 0.1534615385 | Y44: =IF(V44="N",IF(ISNUMBER(R44),(R44+T44)/Q44)) -> FALSE
B45: Frozen, Grade A, Crisp golden brown exterior, 90-200 calories with no more than 2 g sat fat
B46: and 170 mg sodium per 1/2 c vegetable serving
B47: Possible Allergens: None Listed
A48: 20010 | B48: Potato, Shaped | C48: McCain/Ore-Ida | D48: OIF03456 | F48: 6/4 lb | G48: 128 | I48: =ROUND(H48*G48/G48,2) -> 0 | J48: Cs | K48: 27.82 | L48: =IF(OR(ISBLANK(K48),K48=0,H48=0,ISBLANK(H48)),,ROUND(K48+$L$3,2)) -> 0 | M48: =ROUND(I48*L48,2) -> 0 | N48: =ROUND(L48/G48,4) -> 0 | O48: OIF03456 | P48: 6/4 lbs | Q48: 128 | R48: 0 | S48: 43.64 | T48: =ROUND($T$6*S48,2) -> 5.73 | U48: =IF(ISBLANK(O48),,R48+T48) -> 5.73 | V48: Y | W48: 22.09 | X48: 0.172578125 | Y48: =IF(V48="N",IF(ISNUMBER(R48),(R48+T48)/Q48)) -> FALSE
B49: Frozen, mashed and formed, 100-200 calories with no more than 1 g sat fat and 200 mg | C49: Lamb Weston | D49: S0026 | F49: 6/5 lb | G49: 160 | I49: =ROUND(H48*G48/G49,2) -> 0 | J49: Cs | L49: =IF(OR(ISBLANK(K49),K49=0,H48=0,ISBLANK(H48)),,ROUND(K49+$L$3,2)) -> 0 | M49: =ROUND(I49*L49,2) -> 0 | N49: =ROUND(L49/G49,4) -> 0 | O49: S0026 | P49: 6/5 lbs | Q49: 160 | S49: 54.55 | T49: 7.16 | U49: =IF(ISBLANK(O49),,R49+T49) -> 7.16 | V49: Y
B50: sodium per 1/2 c vegetable serving
B51: Possible Allergens: None Listed
A52: 20011 | B52: Potato, Emoticon Mashed Potato Shapes | C52: McCain | D52: 1000006639 | F52: 6/4 lbs | G52: 128 | I52: =ROUND(H52*G52/G52,2) -> 0 | J52: Cs | K52: 26.79 | L52: =IF(OR(ISBLANK(K52),K52=0,H52=0,ISBLANK(H52)),,ROUND(K52+$L$3,2)) -> 0 | M52: =ROUND(I52*L52,2) -> 0 | N52: =ROUND(L52/G52,4) -> 0 | O52: 1000006639 | P52: 6/4 lbs | Q52: 128 | R52: 0 | S52: 36.22 | T52: =ROUND($T$6*S52,2) -> 4.76 | U52: =IF(ISBLANK(O52),,R52+T52) -> 4.76 | V52: Y | W52: 22.03 | X52: 0.172109375 | Y52: =IF(V52="N",IF(ISNUMBER(R52),(R52+T52)/Q52)) -> FALSE
B53: Frozen, mashed and formed, 100-200 calories with no more than 1 g sat fat and 200 mg
B54: sodium per 1/2 c vegetable serving. Four pieces is equal to 1/2 cup serving
B55: Possible Allergens: None Listed
A56: 20012 | B56: French Fries, Spirals, Battered Red Sodium | C56: (18-19) McCain/Ore-Ida | D56: 1000004108 | F56: 6/4 lbs | G56: 183 | H56: 50 | I56: =ROUND(H56*G56/G56,2) -> 50 | J56: Cs | K56: 25.99 | L56: =IF(OR(ISBLANK(K56),K56=0,H56=0,ISBLANK(H56)),,ROUND(K56+$L$3,2)) -> 25.99 | M56: =ROUND(I56*L56,2) -> 1299.5 | N56: =ROUND(L56/G56,4) -> 0.142 | O56: 1000004108 | P56: 6/4 lbs | Q56: 183 | R56: 0 | S56: 43.64 | T56: =ROUND($T$6*S56,2) -> 5.73 | U56: =IF(ISBLANK(O56),,R56+T56) -> 5.73 | V56: Y | W56: 20.26 | X56: 0.1107103825 | Y56: =IF(V56="N",IF(ISNUMBER(R56),(R56+T56)/Q56)) -> FALSE
B57: Frozen, USDA Grade A, 100-200 calories with no more thatn 1 g saturated fat and 200 mg
B58: sodium per 1/2 c vegetable serving
B59: Possible Allergens: None Listed
A60: 20013 | B60: Potato Sticks, Seasoned Reduced Sodium | C60: McCain | D60: MCX04717 | F60: 6/5 Lb | G60: 160 | H60: 50 | I60: =ROUND(H60*G60/G60,2) -> 50 | J60: Cs | L60: =IF(OR(ISBLANK(K60),K60=0,H60=0,ISBLANK(H60)),,ROUND(K60+$L$3,2)) -> 0 | M60: =ROUND(I60*L60,2) -> 0 | N60: =ROUND(L60/G60,4) -> 0 | O60: MCX04717 | P60: 6/5 lbs | Q60: 160 | R60: 0 | S60: 54.55 | T60: =ROUND($T$6*S60,2) -> 7.16 | U60: =IF(ISBLANK(O60),,R60+T60) -> 7.16 | V60: Y | Y60: =IF(V60="N",IF(ISNUMBER(R60),(R60+T60)/Q60)) -> FALSE
B61: Frozen, USDA Grade A 100-200 calories with no more than 1 g sat fat and 150 mg sodium
B62: per 1/2 c veg svg.
B63: Possible Allergens: None Listed
A64: 20014 | B64: Potato Waffle Cut | C64: McCain/Ore-Ida | D64: MCL03623 | F64: 6/5 Lb | G64: 144 | H64: 150 | I64: =ROUND(H64*G64/G64,2) -> 150 | J64: Cs | K64: 26.81 | L64: =IF(OR(ISBLANK(K64),K64=0,H64=0,ISBLANK(H64)),,ROUND(K64+$L$3,2)) -> 26.81 | M64: =ROUND(I64*L64,2) -> 4021.5 | N64: =ROUND(L64/G64,4) -> 0.1862 | O64: MCL03623 | P64: 6/4.5 lbs | Q64: 144 | R64: 0 | S64: 49.09 | T64: =ROUND($T$6*S64,2) -> 6.45 | U64: =IF(ISBLANK(O64),,R64+T64) -> 6.45 | V64: Y | W64: 20.36 | X64: 0.1413888889 | Y64: =IF(V64="N",IF(ISNUMBER(R64),(R64+T64)/Q64)) -> FALSE
B65: Frozen, USDA Grade A, 100-200 calories with no more than 2 g saturated fat and 600 mg
B66: sodium per 1/2 c vegetable serving
B67: Possible Allergens: None Listed
A68: 20015 | B68: Potato Wedge, 8-10 Cut, (Bake or Fry) | C68: McCain/Ore-Ida | D68: OIF00024A | F68: 6/5 Lb | G68: 160 | H68: 150 | I68: =ROUND(H68*G68/G68,2) -> 150 | J68: Cs | K68: 26.88 | L68: =IF(OR(ISBLANK(K68),K68=0,H68=0,ISBLANK(H68)),,ROUND(K68+$L$3,2)) -> 26.88 | M68: =ROUND(I68*L68,2) -> 4032 | N68: =ROUND(L68/G68,4) -> 0.168 | O68: OIF00024A | P68: 6/5 lbs | Q68: 160 | R68: 0 | S68: 54.55 | T68: =ROUND($T$6*S68,2) -> 7.16 | U68: =IF(ISBLANK(O68),,R68+T68) -> 7.16 | V68: Y | W68: 19.72 | X68: 0.12325 | Y68: =IF(V68="N",IF(ISNUMBER(R68),(R68+T68)/Q68)) -> FALSE
B69: Frozen, USDA Grade A, 50-150 calories with no more than 1 g saturated fat and 50 mg | C69: Simplot | D69: 71179238010 | F69: 6/5 Lb | G69: 160 | I69: =ROUND(H68*G68/G69,2) -> 150 | J69: Cs | L69: =IF(OR(ISBLANK(K69),K69=0,H68=0,ISBLANK(H68)),,ROUND(K69+$L$3,2)) -> 0 | M69: =ROUND(I69*L69,2) -> 0 | N69: =ROUND(L69/G69,4) -> 0 | O69: 71179238010 | P69: 6/5 lbs | Q69: 160 | S69: 54.55 | T69: 7.16 | U69: =IF(ISBLANK(O69),,R69+T69) -> 7.16 | V69: Y
B70: sodium per 1/2 c vegetable serving
B71: Possible Allergens: None Listed
A72: 20016 | B72: Hash Brown Rounds | C72: (18-19_ McCain | D72: 1000006188 | F72: 6/5 Lb | G72: 160 | H72: 50 | I72: =ROUND(H72*G72/G72,2) -> 50 | J72: Cs | K72: 34 | L72: =IF(OR(ISBLANK(K72),K72=0,H72=0,ISBLANK(H72)),,ROUND(K72+$L$3,2)) -> 34 | M72: =ROUND(I72*L72,2) -> 1700 | N72: =ROUND(L72/G72,4) -> 0.2125 | O72: 1000000496 | P72: 6/5 lbs | Q72: 160 | R72: 0 | S72: 54.55 | T72: =ROUND($T$6*S72,2) -> 7.16 | U72: =IF(ISBLANK(O72),,R72+T72) -> 7.16 | V72: Y | W72: 26.84 | X72: 0.16775 | Y72: =IF(V72="N",IF(ISNUMBER(R72),(R72+T72)/Q72)) -> FALSE
B73: Frozen, USDA Grade A, 50-150 calories with no more than 1 g saturated fat and 250 mg
B74: sodium per 1/2c vegetable serving
B75: Possible Allergens: None Listed
B76: Category: Sweet Potatoes | O76: Sweet Potatos | Q76: 100980 | T76: 0.2646
A77: 20017 | B77: Potato, Sweet Potato Fries, 3/8" Crinkle Cut | C77: Lamb Weston | D77: L0084 | F77: 5/3 Lb | G77: 80 | H77: 100 | I77: =ROUND(H77*G77/G77,2) -> 100 | J77: Cs | K77: 0 | L77: =IF(OR(ISBLANK(K77),K77=0,H77=0,ISBLANK(H77)),,ROUND(K77+$L$3,2)) -> 0 | M77: =ROUND(I77*L77,2) -> 0 | N77: =ROUND(L77/G77,4) -> 0 | O77: L0084 | P77: 5/3 lbs | Q77: 80 | S77: 29.41 | T77: =ROUND($T$76*S77,2) -> 7.78 | U77: =IF(ISBLANK(O77),,R77+T77) -> 7.78 | V77: Y
B78: Frozen, Grade A, 80-200 calories with no more than 1 g sat fat and 250 mg sodium per | C78: Simplot | D78: 71179020356 | F78: 6/2.5 Lb | G78: 80 | I78: =ROUND(H77*G77/G78,2) -> 100 | J78: Cs | K78: 0 | L78: =IF(OR(ISBLANK(K78),K78=0,H77=0,ISBLANK(H77)),,ROUND(K78+$L$3,2)) -> 0 | M78: =ROUND(I78*L78,2) -> 0 | N78: =ROUND(L78/G78,4) -> 0 | O78: 71179020356 | P78: 6/2.5 lbs | Q78: 80 | S78: 29.41 | T78: =ROUND($T$76*S78,2) -> 7.78 | U78: =IF(ISBLANK(O78),,R78+T78) -> 7.78 | V78: Y
B79: 1/2 c Red/Orange Veg serving
B80: Possible Allergens: None Listed
A81: 20018 | B81: Potato, Sweet Potato Fries 3/8" Straight Cut | C81: Lamb Weston | D81: L8000 | F81: 5/3 Lb | G81: 80 | I81: =ROUND(H81*G81/G81,2) -> 0 | J81: Cs | K81: 0 | L81: =IF(OR(ISBLANK(K81),K81=0,H81=0,ISBLANK(H81)),,ROUND(K81+$L$3,2)) -> 0 | M81: =ROUND(I81*L81,2) -> 0 | N81: =ROUND(L81/G81,4) -> 0 | S81: 29.41 | T81: =ROUND($T$76*S81,2) -> 7.78 | U81: =IF(ISBLANK(O81),,R81+T81) -> 0 | V81: Y | W81: FALSE
B82: Frozen, Grade A, 80-200 calories with no more than 1 g sat fat and 250 mg sodium per
B83: 1/2 c Red/Orange Veg serving
B84: Possible Allergens: None Listed
A85: 20019 | B85: Potato, Sweet Potato, Waffle Cut | C85: Lamb Weston | D85: L0090 | F85: 5/3 Lb | G85: 80 | H85: 100 | I85: =ROUND(H85*G85/G85,2) -> 100 | J85: Cs | L85: =IF(OR(ISBLANK(K85),K85=0,H85=0,ISBLANK(H85)),,ROUND(K85+$L$3,2)) -> 0 | M85: =ROUND(I85*L85,2) -> 0 | N85: =ROUND(L85/G85,4) -> 0 | O85: L0090 | P85: 5/3 lbs | Q85: 80 | S85: 29.41 | T85: =ROUND($T$76*S85,2) -> 7.78 | U85: =IF(ISBLANK(O85),,R85+T85) -> 7.78 | V85: Y | W85: FALSE
B86: Frozen, Grade A. 50-200 calories with no more than 2 g sat fat and 250 mg sodium per | C86: McCain | D86: MCF05074 | F86: 6/2.5 lbs | G86: 80 | I86: =ROUND(H85*G85/G86,2) -> 100 | J86: Cs | K86: 24.38 | L86: =IF(OR(ISBLANK(K86),K86=0,H85=0,ISBLANK(H85)),,ROUND(K86+$L$3,2)) -> 24.38 | M86: =ROUND(I86*L86,2) -> 2438 | N86: =ROUND(L86/G86,4) -> 0.3048 | O86: MCF05074 | P86: 6/2.5lbs | Q86: 80 | R86: 0 | S86: 29.41 | T86: =ROUND($T$76*S86,2) -> 7.78 | U86: =IF(ISBLANK(O86),,R86+T86) -> 7.78 | V86: Y | W86: 16.6 | X86: 0.2075 | Y86: =IF(V86="N",IF(ISNUMBER(R86),(R86+T86)/Q86)) -> FALSE
B87: 1/2 c Red/Orange Veg serving
B88: Possible Allergens: None Listed
A89: 20020 | B89: Sweet Potato Mini Puffs | C89: Lamb Weston | D89: L0094 | F89: 6/2.5 lbs | G89: 80 | H89: 300 | I89: =ROUND(H89*G89/G89,2) -> 300 | J89: Cs | K89: 0 | L89: =IF(OR(ISBLANK(K89),K89=0,H89=0,ISBLANK(H89)),,ROUND(K89+$L$3,2)) -> 0 | M89: =ROUND(I89*L89,2) -> 0 | N89: =ROUND(L89/G89,4) -> 0 | O89: L0094 | P89: 6/2.5 lbs | Q89: 80 | S89: 29.41 | T89: =ROUND($T$76*S89,2) -> 7.78 | U89: =IF(ISBLANK(O89),,R89+T89) -> 7.78 | V89: Y | W89: FALSE
B90: Frozen. Grade A , 100-200 calories with no more than 1 g sat fat and 250 mg
B91: and 250 mg sodium per 1/2 c Red/Orange Veg.
B92: Possible Allergens: None Listed
A93: 20021 | B93: Sweet Potato Wedge, 10 cut | C93: McCain | D93: MCF04712 | F93: 6/2.5 lbs | G93: 80 | I93: =ROUND(H93*G93/G93,2) -> 0 | J93: Cs | K93: 23.79 | L93: =IF(OR(ISBLANK(K93),K93=0,H93=0,ISBLANK(H93)),,ROUND(K93+$L$3,2)) -> 0 | M93: =ROUND(I93*L93,2) -> 0 | N93: =ROUND(L93/G93,4) -> 0 | O93: MC04712 | P93: 6/2.5 lbs | Q93: 80 | R93: 0 | S93: 29.41 | T93: =ROUND($T$76*S93,2) -> 7.78 | U93: =IF(ISBLANK(O93),,R93+T93) -> 7.78 | V93: Y | W93: 16.01 | X93: 0.200125 | Y93: =IF(V93="N",IF(ISNUMBER(R93),(R93+T93)/Q93)) -> FALSE
B94: Frozen, Grade A 100-200 calories with no more than 1 g sat fat and 250 mg sodium per
B95: 1/2 c Red/Orange Veg serving
B96: Possible Allergens: None Listed
J98: Page Total | M98: =SUMIF(M6:M96,">0") -> 23461

Sheet Fruit
B1: ='Recap Sheet'!A2 -> School Food Authority or Agency Name: | F1: ='Recap Sheet'!A3 -> Bidder's Name:
A2: 22001 | B2: ='Recap Sheet'!B2 -> Marion County School District | C2: Return to Recap Sheet | F2: ='Recap Sheet'!B3 -> 0
A3: 24000 | B3: Description | C3: Approved | G3: Firm Fixed Fee | L3: ='Recap Sheet'!B4 -> 0 | O3: Manufacturer | P3: Vendor Pack | Q3: Servings per case | R3: Processing | S3: Pounds of | U3: Total Cost | V3: NOI ? | W3: Net | X3: Net NOI | Y3: Fee for Serivce
A4: SCPA | B4: Federal Regulations require that all foods purchased for Child Nutrition Programs be of "domestic origin" to the | C4: Brand Name | D4: Manufacturers | E4: Distributor | F4: Vendor | G4: Svgs | H4: Est. | I4: Bid | J4: Bid | K4: Unit | L4: Unit Price | M4: Total | N4: Cost per | O4: USDA Product | R4: Fee for | S4: DF Needed | T4: Commodity | U4: Proc Fee + | V4: Enter | W4: NOI | X4: Cost Per | Y4: Cost Per Serv.
A5: Code | B5: maximum extent possible with two exceptions. In addition, mandarin oranges & pineapple are exempt from requirement. | C5: or Manufacturer | D5: Code | E5: Code | F5: Pack | G5: per unit | H5: Bid Qty | I5: Qty | J5: Unit | K5: Price | L5: plus Fee | M5: Price | N5: Unit | O5: Code | R5: Service | S5: Per Case | T5: Value | U5: Comm Value | V5: Y or N | W5: Price | X5: Serving | Y5: Fee+ Commodity
B6: Shelf-stable Fruit | O6: Apples | Q6: 110149 | R6: Commodity Value per lb | T6: 0.2722
A8: 22001 | B8: Applesauce, Cups, Sweetened | C8: National Food Group | D8: A1500-282A | F8: 96/4.5z | G8: 96 | I8: =ROUND($H$8*$G$8/G8,2) -> 0 | J8: Cs | K8: 19.49 | L8: =IF(OR(ISBLANK(K8),K8=0,H8=0,ISBLANK(H8)),,ROUND(K8+$L$3,2)) -> 0 | M8: =ROUND(I8*L8,2) -> 0 | N8: =ROUND(L8/G8,4) -> 0 | O8: A1500 | P8: 96/4.50 oz | Q8: 96 | R8: 16.77 | S8: 10 | T8: =ROUND($T$6*S8,2) -> 2.72 | U8: =IF(ISBLANK(O8),,R8+T8) -> 19.49 | V8: Y | W8: 16.77 | X8: 0.1746875 | Y8: =IF(V8="N",IF(ISNUMBER(R8),(R8+T8)/Q8)) -> FALSE
B9: Shelf Stable, Individual portion cup, color foil or mylar top | C9: White House/Ntl Fruit | D9: 718-1884 | F9: 96/4.5z | G9: 96 | I9: =ROUND($H$8*$G$8/G9,2) -> 0 | J9: Cs | L9: =IF(OR(ISBLANK(K9),K9=0,H8=0,ISBLANK(H8)),,ROUND(K9+$L$3,2)) -> 0 | M9: =ROUND(I9*L9,2) -> 0 | N9: =ROUND(L9/G9,4) -> 0 | Y9: =R9/G9 -> 0
B10: One portion provides 1/2 c FV for CN programs No Imports
A11: 22002 | B11: Applesauce, Cups, Unsweetened | C11: National Food Group | D11: A3500-282A | F11: 96/4.5z | G11: 96 | H11: 500 | I11: =ROUND($H$11*$G$11/G11,2) -> 500 | J11: Cs | L11: =IF(OR(ISBLANK(K11),K11=0,H11=0,ISBLANK(H11)),,ROUND(K11+$L$3,2)) -> 0 | M11: =ROUND(I11*L11,2) -> 0 | N11: =ROUND(L11/G11,4) -> 0 | O11: A3500 | P11: 96/4.50 oz | Q11: 96 | R11: 16.77 | S11: 10 | T11: =ROUND($T$6*S11,2) -> 2.72 | U11: =IF(ISBLANK(O11),,R11+T11) -> 19.49 | V11: Y | W11: 16.77 | X11: 0.1746875 | Y11: =IF(V11="N",IF(ISNUMBER(R11),(R11+T11)/Q11)) -> FALSE
B12: Shelf Stable, Individual portion cup, color foil or mylar top | C12: Motts | D12: 10065615 | F12: 72/4.5z | G12: 72 | I12: =ROUND($H$11*$G$11/G12,2) -> 666.67 | J12: Cs | K12: 13.68 | L12: =IF(OR(ISBLANK(K12),K12=0,H11=0,ISBLANK(H11)),,ROUND(K12+$L$3,2)) -> 13.68 | M12: 9120.05 | N12: 0.19 | Y12: =R12/G12 -> 0
B13: One portion provides 1/2 c FV for CN programs No Imports | C13: Knouse (Musselman) | D13: FFASU1350MUS01 | F13: 96/4.5z | G13: 96 | I13: =ROUND($H$11*$G$11/G13,2) -> 500 | J13: Cs | L13: =IF(OR(ISBLANK(K13),K13=0,H11=0,ISBLANK(H11)),,ROUND(K13+$L$3,2)) -> 0 | M13: 0 | N13: 0 | Y13: 0
C14: White House/Ntl Fruit | D14: 717-1884 | F14: 96/4.5z | G14: 96 | I14: =ROUND($H$11*$G$11/G14,2) -> 500 | J14: Cs | L14: =IF(OR(ISBLANK(K14),K14=0,H11=0,ISBLANK(H11)),,ROUND(K14+$L$3,2)) -> 0 | M14: 0 | N14: 0 | Y14: 0
C15: Peterson Farms | D15: ASA10001 | F15: 96/4.5z | G15: 96 | I15: =ROUND($H$11*$G$11/G15,2) -> 500 | J15: Cs | L15: =IF(OR(ISBLANK(K15),K15=0,H11=0,ISBLANK(H11)),,ROUND(K15+$L$3,2)) -> 0 | M15: =ROUND(I15*L15,2) -> 0 | N15: =ROUND(L15/G15,4) -> 0 | O15: ASA10001 | P15: 96/4.50 oz | Q15: 96 | S15: 15 | T15: =ROUND($T$6*S15,2) -> 4.08 | U15: =IF(ISBLANK(O15),,R15+T15) -> 4.08 | V15: Y
A16: 22003 | B16: Applesauce, Strawberry Flavor, Shelf Stable Cup | C16: National Food Group | D16: A1590-235A | F16: 96/4.,5z | G16: 96 | I16: =ROUND($H$16*$G$16/G16,2) -> 0 | J16: Cs | L16: =IF(OR(ISBLANK(K16),K16=0,H16=0,ISBLANK(H16)),,ROUND(K16+$L$3,2)) -> 0 | M16: 0 | N16: 0 | O16: A1590 | P16: 96/4.5 oz. | Q16: 96 | R16: 16.77 | S16: 10 | T16: =ROUND($T$6*S16,2) -> 2.72 | U16: =IF(ISBLANK(O16),,R16+T16) -> 19.49 | V16: Y | W16: 16.77 | X16: 0.1746875 | Y16: =IF(V16="N",IF(ISNUMBER(R16),(R16+T16)/Q16)) -> FALSE
B17: Shelf Stable, Individual portion cup, color foil or mylar top | C17: Motts | D17: 10065614 | F17: 72/4.5z | G17: 72 | I17: =ROUND($H$16*$G$16/G17,2) -> 0 | J17: Cs | K17: 13.68 | L17: =IF(OR(ISBLANK(K17),K17=0,H16=0,ISBLANK(H16)),,ROUND(K17+$L$3,2)) -> 0 | M17: 0 | N17: 0 | Y17: 0
B18: One portion provides 1/2 c FV for CN programs No Imports | C18: Knouse (Musselman) | D18: FFASU1403MUS01 | F18: 96/4.5z | G18: 96 | I18: =ROUND($H$16*$G$16/G18,2) -> 0 | J18: Cs | L18: =IF(OR(ISBLANK(K18),K18=0,H16=0,ISBLANK(H16)),,ROUND(K18+$L$3,2)) -> 0 | M18: =ROUND(I18*L18,2) -> 0 | N18: 0 | Y18: 0
C19: Peterson Farms | D19: ASA10014 | F19: 96/4.5z | G19: 96 | I19: 0 | J19: Cs | L19: =IF(OR(ISBLANK(K19),K19=0,H16=0,ISBLANK(H16)),,ROUND(K19+$L$3,2)) -> 0 | M19: 0 | N19: 0 | O19: ASA10014 | P19: 96/4.50 oz | Q19: 96 | S19: 15 | V19: Y
A20: 22004 | B20: Applesauce, Strawberry Banana Flavor, Shelf Stable Cup | C20: National Food Group | D20: A3790-235A | F20: 96/4.,5z | G20: 96 | I20: =ROUND($H$20*$G$20/G20,2) -> 0 | J20: Cs | K20: 20.49 | L20: =IF(OR(ISBLANK(K20),K20=0,H20=0,ISBLANK(H20)),,ROUND(K20+$L$3,2)) -> 0 | M20: =ROUND(I20*L20,2) -> 0 | N20: 0 | O20: A3790 | P20: 96/4.50 oz | Q20: 96 | R20: 17.77 | S20: 10 | T20: =ROUND($T$6*S20,2) -> 2.72 | U20: =IF(ISBLANK(O20),,R20+T20) -> 20.49 | V20: Y | W20: 17.77 | X20: 0.1851041667 | Y20: =IF(V20="N",IF(ISNUMBER(R20),(R20+T20)/Q20)) -> FALSE
B21: Shelf Stable, Individual portion cup, color foil or mylar top | C21: Peterson Farms | D21: ASA10014 | F21: 96/4.5z | G21: 96 | I21: =ROUND($H$20*$G$20/G21,2) -> 0 | J21: Cs | L21: =IF(OR(ISBLANK(K21),K21=0,H20=0,ISBLANK(H20)),,ROUND(K21+$L$3,2)) -> 0 | M21: =ROUND(I21*L21,2) -> 0 | N21: 0 | O21: ASA10015 | P21: 96/4.50 oz | Q21: 96 | S21: 15 | T21: =ROUND($T$6*S21,2) -> 4.08 | U21: =IF(ISBLANK(O21),,R21+T21) -> 4.08 | V21: Y
B22: One portion provides 1/2 c FV for CN programs No Imports
A24: 22005 | B24: Applesauce, Cinnamon, Shelf Stable Cup | C24: National Food Group | D24: A1510-282A | F24: 96/4.5z | G24: 96 | I24: =ROUND($H$24*$G$24/G24,2) -> 0 | J24: Cs | K24: 24.25 | L24: =IF(OR(ISBLANK(K24),K24=0,H24=0,ISBLANK(H24)),,ROUND(K24+$L$3,2)) -> 0 | M24: =ROUND(I24*L24,2) -> 0 | N24: =ROUND(L24/G24,4) -> 0 | O24: A1510 | P24: 96/4.50 oz | Q24: 96 | R24: 21.53 | S24: 10 | T24: =ROUND($T$6*S24,2) -> 2.72 | U24: =IF(ISBLANK(O24),,R24+T24) -> 24.25 | V24: Y | W24: 21.53 | X24: 0.2242708333 | Y24: =IF(V24="N",IF(ISNUMBER(R24),(R24+T24)/Q24)) -> FALSE
B25: Shelf Stable, Individual portion cup, color foil or mylar top
B26: One portion provides 1/2 c FV for CN programs No Imports
A28: 22006 | B28: Applesauce, Blue Raspberry, Shelf Stable Cups | C28: National Food Group | D28: A3530-282A | F28: 96/4.5z | G28: 96 | I28: =ROUND($H$28*$G$28/G28,2) -> 0 | J28: Cs | K28: 24.25 | L28: =IF(OR(ISBLANK(K28),K28=0,H28=0,ISBLANK(H28)),,ROUND(K28+$L$3,2)) -> 0 | M28: =ROUND(I28*L28,2) -> 0 | N28: =ROUND(L28/G28,4) -> 0 | O28: A3530 | P28: 96/4.50 oz | Q28: 96 | R28: 21.53 | S28: 10 | T28: =ROUND($T$6*S28,2) -> 2.72 | U28: =IF(ISBLANK(O28),,R28+T28) -> 24.25 | V28: Y | W28: 21.53 | X28: 0.2242708333 | Y28: =IF(V28="N",IF(ISNUMBER(R28),(R28+T28)/Q28)) -> FALSE
B29: Shelf Stable, Individual portion cup, color foil or mylar top
B30: One portion provides 1/2 c FV for CN programs No Imports
B31: Peaches | O31: Peaches | Q31: 100220 | T31: 0.7885
A32: 22007 | B32: Peaches, Diced, Shelf Stable Cups | C32: National Food Group | D32: A1740-235A | F32: 72/4.5z | G32: 72 | H32: 100 | I32: =ROUND($H$32*$G$32/G32,2) -> 100 | J32: Cs | K32: 40.89 | L32: =IF(OR(ISBLANK(K32),K32=0,H32=0,ISBLANK(H32)),,ROUND(K32+$L$3,2)) -> 40.89 | M32: =ROUND(I32*L32,2) -> 4089 | N32: =ROUND(L32/G32,4) -> 0.5679 | O32: 1740 | P32: 72/4.50 oz | Q32: 72 | R32: 24.89 | S32: 20.25 | T32: =ROUND($T$31*S32,2) -> 15.97 | U32: =IF(ISBLANK(O32),,R32+T32) -> 40.86 | V32: Y | W32: 24.92 | X32: 0.3461111111 | Y32: =IF(V32="N",IF(ISNUMBER(R32),(R32+T32)/Q32)) -> FALSE
B33: Shelf Stable, Individual portion cup, color foil or mylar top
B34: One portion provides 1/2 c FV for CN programs No Imports
B35: Pears | O35: Pears | Q35: 100225 | T35: 0.7738
A36: 22008 | B36: Pears, Diced, Shelf Stable Cups | C36: National Food Group | D36: A1780-235A | F36: 72/4.5z | G36: 72 | H36: 100 | I36: =ROUND($H$36*$G$36/G36,2) -> 100 | J36: Cs | K36: 40.86 | L36: =IF(OR(ISBLANK(K36),K36=0,H36=0,ISBLANK(H36)),,ROUND(K36+$L$3,2)) -> 40.86 | M36: =ROUND(I36*L36,2) -> 4086 | N36: =ROUND(L36/G36,4) -> 0.5675 | O36: 1780 | P36: 72/4.50 oz | Q36: 72 | R36: 25.19 | S36: 20.25 | T36: =ROUND($T$35*S36,2) -> 15.67 | U36: =IF(ISBLANK(O36),,R36+T36) -> 40.86 | V36: Y | W36: 25.19 | X36: 0.3498611111 | Y36: =IF(V36="N",IF(ISNUMBER(R36),(R36+T36)/Q36)) -> FALSE
B37: Shelf Stable, Individual portion cup, color foil or mylar top
B38: One portion provides 1/2 c FV for CN programs No Imports
A39: 22009 | B39: Fruit Snack, Dried Cranberries, I/W Meets 1/2 c Fruit | C39: Oceanspray Craisins | F39: 200/1.16z | G39: 200 | H39: 50 | I39: =ROUND(H39*G39/G39,2) -> 50 | J39: Cs | K39: 40 | L39: =IF(OR(ISBLANK(K39),K39=0,H39=0,ISBLANK(H39)),,ROUND(K39+$L$3,2)) -> 40 | M39: =ROUND(I39*L39,2) -> 2000 | N39: =ROUND(L39/G39,4) -> 0.2
B40: Shelf Stable | C40: Discontinued by Manufacturer Blueberry | D40: 23446
C41: Cherry | D41: 23444
C42: Strawberry | D42: 23445
A43: 22010 | I43: =ROUND(H43*G43/G43,2) ->  | J43: Cs | L43: =IF(OR(ISBLANK(K43),K43=0,H43=0,ISBLANK(H43)),,ROUND(K43+$L$3,2)) -> 0 | M43: =ROUND(I43*L43,2) ->  | N43: =ROUND(L43/G43,2) -> 
A47: 22011 | B47: Raisins | C47: Champion | D47: 070044-00415 | F47: 144/1.5z | G47: 144 | H47: 100 | I47: =ROUND(H47*G47/G47,2) -> 100 | J47: Cs | L47: =IF(OR(ISBLANK(K47),K47=0,H47=0,ISBLANK(H47)),,ROUND(K47+$L$3,2)) -> 0 | M47: =ROUND(I47*L47,2) -> 0 | N47: =ROUND(L47/G47,4) -> 0
B48: Seedless, dark California, Individual 1.5 oz per package | C48: Sun-maid | D48: 040-2020 | F48: 144/1.33z | G48: 144 | I48: =ROUND($H$47*$G$47/G48,2) -> 100 | J48: Cs | K48: 31.44 | L48: =IF(OR(ISBLANK(K48),K48=0,H47=0,ISBLANK(H47)),,ROUND(K48+$L$3,2)) -> 31.44 | M48: =ROUND(L48*I48,2) -> 3144 | N48: =ROUND(L48/G48,4) -> 0.2183
A49: 22012 | B49: Raisins, flavored. Made from Golden Raisins | C49: Champion Raisels (Various Flavors) | F49: 200/1.66z | G49: 200 | I49: =ROUND(H49*G49/G49,2) -> 0 | J49: Cs | K49: 60.5 | L49: =IF(OR(ISBLANK(K49),K49=0,H49=0,ISBLANK(H49)),,ROUND(K49+$L$3,2)) -> 0 | M49: =ROUND(I49*L49,2) -> 0 | N49: =ROUND(L49/G49,4) -> 0
B50: Contains added sugar. Meets 1/2 c. fruit requirement. | C50: Orange | D50: 100-70044-00587-0
B51: Not Smart Snack Compliant | C51: Lemon | D51: 100-70044-00586-3
C52: Fruit | D52: 100-70044-00589-4
A54: 22013 | B54: Sidekicks Smooth Frozen Juice, 100 % Fruit Juice | C54: Ridgefield Sidekicks | F54: 84/4.4z | G54: 84 | H54: 100 | I54: =ROUND($H$54*$G$54/G54,2) -> 100 | J54: Cs | K54: 26.61 | L54: =IF(OR(ISBLANK(K54),K54=0,H54=0,ISBLANK(H54)),,ROUND(K54+'Frz Juice'!$L$3,2)) -> 26.61 | M54: =ROUND(I54*L54,2) -> 2661 | N54: =ROUND(L54/G54,4) -> 0.3168
B55: One serving provides 1/2 cup 100% Fruit Juice with no added Sugar. | C55: Blu-Raspberry Lemon | D55: 2009 | F55: 84/4.4z | G55: 84
C56: Kiwi-Strawberry | D56: 2014 | F56: 84/4.4z | G56: 84
C57: Strawberry Mango | D57: 2015 | F57: 84/4.4.z | G57: 84
C58: Cherry Lemon | D58: 2016 | F58: 84/4.4.z | G58: 84
A59: 22014 | B59: Sidekicks Smooth Frozen Juice, 100 % Fruit Juice | C59: Cherry Smooth | D59: 2021 | F59: 84/4.4z | G59: 84 | I59: =ROUND(H59*G59/G59,2) -> 0 | J59: Cs | K59: 28.61 | L59: =IF(OR(ISBLANK(K59),K59=0,H59=0,ISBLANK(H59)),,ROUND(K59+'Frz Juice'!$L$3,2)) -> 0 | M59: =ROUND(I59*L59,2) -> 0 | N59: =ROUND(L59/G59,4) -> 0
B60: One serving provides 1/2 cup additional vegetable and 1/2 cup red/orange
A61: 22015 | B61: Sidekicks Smooth Frozen Juice, 100 % Fruit Juice | C61: Sunbelievable | D61: 2020 | F61: 84/4.4z | G61: 84 | I61: =ROUND(H61*G61/G61,2) -> 0 | J61: Cs | K61: 28.61 | L61: =IF(OR(ISBLANK(K61),K61=0,H61=0,ISBLANK(H61)),,ROUND(K61+'Frz Juice'!$L$3,2)) -> 0 | M61: =ROUND(I61*L61,2) -> 0 | N61: =ROUND(L61/G61,4) -> 0
B62: One serving provides 1/2 cup add veg. and 1/2 cup red/orange vegetable
A63: 22016 | B63: Fruit Pearls | C63: Citripak | F63: 48/1/2 cup | G63: 48 | H63: 100 | I63: =ROUND(H63*G63/G63,2) -> 100 | J63: Cs | K63: 14.1 | L63: =IF(OR(ISBLANK(K63),K63=0,H63=0,ISBLANK(H63)),,ROUND(K63+'Frz Juice'!$L$3,2)) -> 14.1 | M63: =ROUND(I63*L63,2) -> 1410 | N63: =ROUND(L63/G63,4) -> 0.2938
B64: Frozen, One portion to provide 1/2 cup fruit for CN program | C64: Strawberry | D64: 882193005112
C65: Tropical | D65: 882193005129
C66: Wildberry | D66: 882193005136
C67: Lemon | D67: 882193005549
A68: 22017 | B68: Fruit Freeze Cup without Spoons, All Flavors | C68: J&J Snape-Ups and Luigis | F68: 96/4.4z | G68: 96 | I68: =ROUND(H68*G68/G68,2) -> 0 | J68: Cs | K68: 26.3 | L68: =IF(OR(ISBLANK(K68),K68=0,H68=0,ISBLANK(H68)),,ROUND(K68+'Frz Juice'!$L$3,2)) -> 0 | M68: =ROUND(I68*L68,2) -> 0 | N68: =ROUND(L68/G68,4) -> 0
B69: Frozen, 100% fruit juice Provides min. 20% vitamin C No added sugar,
B70: Provides 1/2 cup fruit juice for CN program
A74: 22018 | B74: Fruit Freeze Cup without Spoon, All Flavors | C74: Cool Tropics | F74: 60/4.0z | G74: 60 | I74: =ROUND(H74*G74/G74,2) -> 0 | J74: Cs | K74: 18 | L74: =IF(OR(ISBLANK(K74),K74=0,H74=0,ISBLANK(H74)),,ROUND(K74+'Frz Juice'!$L$3,2)) -> 0 | M74: =ROUND(I74*L74,2) -> 0 | N74: =ROUND(L74/G74,4) -> 0
B75: Frozen, 100% fruit juice. Provides min 20% Vitamin C. No added sugar | C75: Kiwi Strawberry | D75: 12002-R4
B76: Provides 1/2 cup fruit juice for CN Program | C76: Paradise Punch | D76: 12004-R4
C77: Blue Raspberry | D77: 13001
B78: Flavor Discontinued | C78: Sour Apple | D78: 13006
C79: Cherry Limeade | D79: 13007
A81: 22019 | B81: Frozen Mango Puree | C81: Dole | D81: 10502 | F81: 8/30 oz. | G81: 124 | I81: =ROUND(H81*G81/G81,2) -> 0 | J81: Cs | K81: 32.5 | L81: =IF(OR(ISBLANK(K81),K81=0,H81=0,ISBLANK(H81)),,ROUND(K81+'Frz Juice'!$L$3,2)) -> 0 | M81: =ROUND(I81*L81,2) -> 0 | N81: =ROUND(L81/G81,4) -> 0
B82: Frozen, 100% Mango Puree, can be used in smoothies
B84: Possible Allergens: None Listed
B85: ITEMS BELOW THIS LINE ARE NOT DIRECT TO MANUFACTUER PRICED ITEMS.
A86: 22020 | B86: Apples, Sliced | C86: Distributor Choice | F86: 6/#10 | G86: 6 | I86: =ROUND(H86*G86/G86,2) -> 0 | J86: Cs | L86: =IF(OR(ISBLANK(K86),K86=0,H86=0,ISBLANK(H86)),,ROUND(K86+$L$3,2)) -> 0
B87: Grade A, Minimum score 90 or above, Fancy. Solid pack, sliced, peeled, | C87: Fillable txt box or unprotected | I87: =ROUND(H86*G86/G87,2) ->  | J87: Cs | L87: =IF(OR(ISBLANK(K87),K87=0,H86=0,ISBLANK(H86)),,ROUND(K87+$L$3,2)) -> 0 | M87: =ROUND(I87*L87,2) ->  | N87: =ROUND(L87/G87,4) -> 
B88: water pack. Domestic origin. No imports. Minimum drained weight 7#
A89: 22021 | B89: Applesauce (No imports) | C89: Distributor Choice | F89: 6/#10 | G89: 6 | I89: =ROUND(H89*G89/G89,2) -> 0 | J89: Cs | L89: =IF(OR(ISBLANK(K89),K89=0,H89=0,ISBLANK(H89)),,ROUND(K89+$L$3,2)) -> 0
B90: Regular, sweetened, Grade A, Minimum Score 90 or above, natural flavored. | C90: Fillable txt box or unprotected | I90: =ROUND(H89*G89/G90,2) ->  | J90: Cs | L90: =IF(OR(ISBLANK(K90),K90=0,H89=0,ISBLANK(H89)),,ROUND(K90+$L$3,2)) -> 0 | M90: =ROUND(I90*L90,2) ->  | N90: =ROUND(L90/G90,4) -> 
A91: 22022 | B91: Applesauce (No imports) | C91: Distributor Choice | F91: 6/#10 | G91: 6 | H91: 200 | I91: =ROUND(H91*G91/G91,2) -> 200 | J91: Cs | L91: =IF(OR(ISBLANK(K91),K91=0,H91=0,ISBLANK(H91)),,ROUND(K91+$L$3,2)) -> 0
B92: Unsweetened, Grade A, Minimum Score 90 or above. (No Imports) | C92: Fillable txt box or unprotected | I92: =ROUND(H91*G91/G92,2) ->  | J92: Cs | L92: =IF(OR(ISBLANK(K92),K92=0,H91=0,ISBLANK(H91)),,ROUND(K92+$L$3,2)) -> 0 | M92: =ROUND(I92*L92,2) ->  | N92: =ROUND(L92/G92,4) -> 
A93: 22023 | B93: Cherries, Maraschino Halves | C93: Distributor Choice | F93: 1/2 gal | G93: 1 | I93: =ROUND(H93*G93/G93,2) -> 0 | J93: Each | L93: =IF(OR(ISBLANK(K93),K93=0,H93=0,ISBLANK(H93)),,ROUND(K93+$L$3,2)) -> 0
B94: Without stems, Pitted, Grade A, Minimum Score 90 or above (No Imports) | C94: Fillable txt box or unprotected | I94: =ROUND(H93*G93/G94,2) ->  | J94: Cs | L94: =IF(OR(ISBLANK(K94),K94=0,H93=0,ISBLANK(H93)),,ROUND(K94+$L$3,2)) -> 0 | M94: =ROUND(I94*L94,2) ->  | N94: =ROUND(L94/G94,4) -> 
A95: 22024 | B95: Cranberry Sauce (No Imports) | C95: Distributor Choice | F95: 6/101 oz | G95: 6 | I95: =ROUND(H95*G95/G95,2) -> 0 | J95: Cs | L95: =IF(OR(ISBLANK(K95),K95=0,H95=0,ISBLANK(H95)),,ROUND(K95+$L$3,2)) -> 0
B96: Jellied and strained. US Grade A, Fancy. Minimum score 90 or above | C96: Fillable txt box or unprotected | H96: 10 | I96: =ROUND(H95*G95/G96,2) ->  | J96: Cs | L96: =IF(OR(ISBLANK(K96),K96=0,H95=0,ISBLANK(H95)),,ROUND(K96+$L$3,2)) -> 0 | M96: =ROUND(I96*L96,2) ->  | N96: =ROUND(L96/G96,4) -> 
A97: 22025 | B97: Fruit Cocktail, US Grade Choice, Minimum Score 90 or above, | C97: Distributor Choice | F97: 6/#10 | G97: 6 | H97: 150 | I97: =ROUND(H97*G97/G97,2) -> 150 | J97: Cs | L97: =IF(OR(ISBLANK(K97),K97=0,H97=0,ISBLANK(H97)),,ROUND(K97+$L$3,2)) -> 0
B98: Light syrup mixture to contain in order of proportion: peaches, pears, | C98: Fillable txt box or unprotected | I98: =ROUND(H97*G97/G98,2) ->  | J98: Cs | L98: =IF(OR(ISBLANK(K98),K98=0,H97=0,ISBLANK(H97)),,ROUND(K98+$L$3,2)) -> 0 | M98: =ROUND(I98*L98,2) ->  | N98: =ROUND(L98/G98,4) -> 
B99: pineapples, grapes,cherries. (If non domestic, insert country of origin)
A100: 22026 | B100: Fruit , Mixed (If non domestic, state country of origin) | C100: Distributor Choice | F100: 6/#10 | G100: 6 | H100: 10 | I100: =ROUND(H100*G100/G100,2) -> 10 | J100: Cs | L100: =IF(OR(ISBLANK(K100),K100=0,H100=0,ISBLANK(H100)),,ROUND(K100+$L$3,2)) -> 0
B101: US Grade Choice, Minimum Score 90 or above, Light syrup | C101: Fillable txt box or unprotected | I101: =ROUND(H100*G100/G101,2) ->  | J101: Cs | L101: =IF(OR(ISBLANK(K101),K101=0,H100=0,ISBLANK(H100)),,ROUND(K101+$L$3,2)) -> 0 | M101: =ROUND(I101*L101,2) ->  | N101: =ROUND(L101/G101,4) -> 
B102: mixture to contain 30-50% peaches, 25-30% pears, 6-20% grapes.
A103: 22027 | B103: Fruit Salad, Tropical | C103: Distributor Choice | F103: 6/#10 | G103: 6 | H103: 10 | I103: =ROUND(H103*G103/G103,2) -> 10 | J103: Cs | L103: =IF(OR(ISBLANK(K103),K103=0,H103=0,ISBLANK(H103)),,ROUND(K103+$L$3,2)) -> 0
B104: Diced, in 100% fruit Juice, No sugar added. Pre-cut and ready to use. | C104: Fillable txt box or unprotected | I104: =ROUND(H103*G103/G104,2) ->  | J104: Cs | L104: =IF(OR(ISBLANK(K104),K104=0,H103=0,ISBLANK(H103)),,ROUND(K104+$L$3,2)) -> 0 | M104: =ROUND(I104*L104,2) ->  | N104: =ROUND(L104/G104,4) -> 
B105: (If non domestic, insert country of origin in text box)
A106: 22028 | B106: Mandarin Orange, Whole Segments | C106: Distributor Choice | F106: 6/#10 | G106: 6 | H106: 250 | I106: =ROUND(H106*G106/G106,2) -> 250 | J106: Cs | L106: =IF(OR(ISBLANK(K106),K106=0,H106=0,ISBLANK(H106)),,ROUND(K106+$L$3,2)) -> 0
B107: Whole Segments in light syrup. US Grade A Minimum score 90 or above. . | C107: Fillable txt box or unprotected | I107: =ROUND(H106*G106/G107,2) ->  | J107: Cs | L107: =IF(OR(ISBLANK(K107),K107=0,H106=0,ISBLANK(H106)),,ROUND(K107+$L$3,2)) -> 0 | M107: =ROUND(I107*L107,2) ->  | N107: =ROUND(L107/G107,4) -> 
B108: No broken segments. (If non dom., insert country of origin in text box)
A109: 22029 | B109: Peach Slices, Minimum score 90 or above. (No Imports). | C109: Distributor Choice | F109: 6/#10 | G109: 6 | H109: 200 | I109: =ROUND(H109*G109/G109,2) -> 200 | J109: Cs | L109: =IF(OR(ISBLANK(K109),K109=0,H109=0,ISBLANK(H109)),,ROUND(K109+$L$3,2)) -> 0
B110: Clingstone variety, packed in light syrup. Net Wt 108 oz. | C110: Fillable txt box or unprotected | I110: =ROUND(H109*G109/G110,2) ->  | J110: Cs | L110: =IF(OR(ISBLANK(K110),K110=0,H109=0,ISBLANK(H109)),,ROUND(K110+$L$3,2)) -> 0 | M110: =ROUND(I110*L110,2) ->  | N110: =ROUND(L110/G110,4) -> 
B111: Minimum drained weight 66.5 oz.
A112: 22030 | B112: Pear Halves, (No Imports) | C112: Distributor Choice | F112: 6/#10 | G112: 6 | I112: =ROUND(H112*G112/G112,2) -> 0 | J112: Cs | L112: =IF(OR(ISBLANK(K112),K112=0,H112=0,ISBLANK(H112)),,ROUND(K112+$L$3,2)) -> 0
B113: Bartlett. Choice, Minimum score 90 or above. . Light syrup, 30-35 count. | C113: Fillable txt box or unprotected | I113: =ROUND(H112*G112/G113,2) ->  | J113: Cs | L113: =IF(OR(ISBLANK(K113),K113=0,H112=0,ISBLANK(H112)),,ROUND(K113+$L$3,2)) -> 0 | M113: =ROUND(I113*L113,2) ->  | N113: =ROUND(L113/G113,4) -> 
B114: Minimum drained weight 65 oz. (No Imports)
A115: 22031 | B115: Pear Slices, Barlett Choice (No Imports) | C115: Distributor Choice | F115: 6/#10 | G115: 6 | H115: 200 | I115: =ROUND(H115*G115/G115,2) -> 200 | J115: Cs | L115: =IF(OR(ISBLANK(K115),K115=0,H115=0,ISBLANK(H115)),,ROUND(K115+$L$3,2)) -> 0
B116: Bartlett, Choice, Minimum score 90 or above. , light syrup. (No Imports) | C116: Fillable txt box or unprotected | I116: =ROUND(H115*G115/G116,2) ->  | J116: Cs | L116: =IF(OR(ISBLANK(K116),K116=0,H115=0,ISBLANK(H115)),,ROUND(K116+$L$3,2)) -> 0 | M116: =ROUND(I116*L116,2) ->  | N116: =ROUND(L116/G116,4) -> 
B117: Minimum drained weight 65.5 oz.
A118: 22032 | B118: Pineapple Slices, US Grade A, Minimum score 90 or above. | C118: Distributor Choice | F118: 6/#10 | G118: 6 | I118: =ROUND(H118*G118/G118,2) -> 0 | J118: Cs | L118: =IF(OR(ISBLANK(K118),K118=0,H118=0,ISBLANK(H118)),,ROUND(K118+$L$3,2)) -> 0
B119: Packed in juice.(If non domestic, insert country of origin in text box) | C119: Fillable txt box or unprotected | I119: =ROUND(H118*G118/G119,2) ->  | J119: Cs | L119: =IF(OR(ISBLANK(K119),K119=0,H118=0,ISBLANK(H118)),,ROUND(K119+$L$3,2)) -> 0 | M119: =ROUND(I119*L119,2) ->  | N119: =ROUND(L119/G119,4) -> 
A120: 22033 | B120: Pineapple Tidbits (If non domestic, insert country of origin in | C120: Distributor Choice | F120: 6/#10 | G120: 6 | H120: 250 | I120: =ROUND(H120*G120/G120,2) -> 250 | J120: Cs | L120: =IF(OR(ISBLANK(K120),K120=0,H120=0,ISBLANK(H120)),,ROUND(K120+$L$3,2)) -> 0
B121: text box) US Grade A Minimum score 90 or above, Packed in Juice, | C121: Fillable txt box or unprotected | G121: 0 | I121: =ROUND(H120*G120/G121,2) ->  | J121: Cs | L121: =IF(OR(ISBLANK(K121),K121=0,H120=0,ISBLANK(H120)),,ROUND(K121+$L$3,2)) -> 0 | M121: =ROUND(I121*L121,2) ->  | N121: =ROUND(L121/G121,4) -> 
B122: Min. Drained Wt 69 oz.
A123: 22034 | B123: Peaches, Frozen | C123: Distributor Choice | F123: 96/4.0z | G123: 96 | I123: =ROUND(H123*G123/G123,2) -> 0 | J123: Cs
B124: US Grade A Choice, fzn diced peaches cups Each portion cup=1/2 cup svg | C124: Fillable txt box | I124: =ROUND(H123*G123/G124,2) ->  | J124: Cs | L124: =IF(OR(ISBLANK(K124),K124=0,H124=0,ISBLANK(H124)),,ROUND(K124+'Frz Juice'!$L$3,2)) -> 0 | M124: =ROUND(I124*L124,2) ->  | N124: =ROUND(L124/G124,4) -> 
A125: 22035 | B125: Strawberries, Sliced | C125: Distributor Choice | F125: 39Lb | G125: 39 | I125: =ROUND(H125*G125/G125,2) -> 0 | J125: Cs
B126: Frozen. Grade A, Sweetened | C126: Fillable txt box | I126: =ROUND(H125*G125/G126,2) ->  | J126: Cs | L126: =IF(OR(ISBLANK(K126),K126=0,H126=0,ISBLANK(H126)),,ROUND(K126+'Frz Juice'!$L$3,2)) -> 0 | M126: =ROUND(I126*L126,2) ->  | N126: =ROUND(L126/G126,4) -> 
J128: Page Total | M128: =SUMIF(M8:M127,">0") -> 26510.05

Sheet Shelf-stable Vegetables
B1: ='Recap Sheet'!A2 -> School Food Authority or Agency Name: | F1: ='Recap Sheet'!A3 -> Bidder's Name:
A2: 24001 | B2: ='Recap Sheet'!B2 -> Marion County School District | C2: Return to Recap Sheet | F2: ='Recap Sheet'!B3 -> 0
A3: 26000 | B3: Description | C3: Approved | G3: Firm Fixed Fee | L3: ='Recap Sheet'!B4 -> 0 | O3: Manufacturer | P3: Vendor Pack | Q3: Servings per case | R3: Processing | S3: Pounds of | T3: Commodity | U3: Total Cost | V3: NOI ? | X3: NOI | Y3: Fee for Serivce
A4: SCPA | C4: Brand Name | D4: Manufacturers | E4: Distributor | F4: Vendor | G4: Svgs | H4: Est. | I4: Bid | J4: Bid | K4: Unit | L4: Unit Price | M4: Total | N4: Cost per | O4: USDA Product | R4: Fee for | S4: DF Needed | T4: Value Per | U4: Proc Fee + | V4: Enter | W4: NOI | X4: Price/ | Y4: Cost Per Serv.
A5: Code | C5: or Manufacturer | D5: Code | E5: Code | F5: Pack | G5: per unit | H5: Bid Qty | I5: Qty | J5: Unit | K5: Price | L5: plus Fee | M5: Price | N5: Unit | O5: Code | R5: Service | S5: Per Case | T5: Case | U5: Comm Value | V5: Y or N | W5: Price | X5: Serving | Y5: Fee+ Commodity
B6: Shelf-stable / Canned Vegetables | O6: Potatoes Dehydrated | Q6: 110227 | R6: Commodity Value per lb | T6: 0.0832
A8: 24001 | B8: Potatoes, Mashed, Complete | C8: Basic American | D8: 76468 | F8: 12/28z | G8: 504 | H8: 100 | I8: =ROUND($H$8*$G$8/G8,2) -> 100 | J8: Cs | K8: 45.39 | L8: =IF(OR(ISBLANK(K8),H8=0,ISBLANK(H8)),,ROUND(K8+$L$3,2)) -> 45.39 | M8: =ROUND(I8*L8,2) -> 4539 | N8: =ROUND(L8/G8,4) -> 0.0901 | O8: 76468 | P8: 12/28 oz | Q8: 504 | S8: 105 | T8: =ROUND($T$6*S8,2) -> 8.74 | U8: =IF(ISBLANK(O8),,R8+T8) -> 8.74 | V8: Y | W8: 36.65 | X8: 0.07271825397 | Y8: =IF(V8="N",IF(ISNUMBER(R8),(R8+T8)/Q8)) -> FALSE
B9: Shelf stable, add water only, mix, rest, and serve preparation, Fully | C9: Excel Potato Pearls
B10: seasoned, No soy, No imports, Serving size 1/2 c prepared
B11: Possible Allergens: Milk, Sulfites
A12: 24002 | B12: Potatoes, Mashed, Complete | C12: Idahoan | D12: 2970000313 | F12: 12/26z | G12: 457 | I12: =ROUND(H12*G12/G12,2) -> 0 | J12: Cs | K12: 40.09 | L12: =IF(OR(ISBLANK(K12),H12=0,ISBLANK(H12)),,ROUND(K12+$L$3,2)) -> 0 | M12: =ROUND(I12*L12,2) -> 0 | N12: =ROUND(L12/G12,4) -> 0 | O12: 2970000313 | P12: 12/26 oz. | Q12: 457 | R12: 0 | S12: 97.5 | T12: =ROUND($T$6*S12,2) -> 8.11 | U12: =IF(ISBLANK(O12),,R12+T12) -> 8.11 | V12: Y | W12: 31.98 | X12: 0.06997811816 | Y12: =IF(V12="N",IF(ISNUMBER(R12),(R12+T12)/Q12)) -> FALSE
B13: Shelf Stable, Add water only, mix, rest, and serve preparation Fully
B14: seasoned, No imports, Serving size 1/2 c ÷ 1 teaspoon prepared
B15: Possible Allergens: Milk, Sulfites
O16: Tomato Paste | Q16: 100332 | R16: Commodity Value per lb | T16: 0.4776
A17: 24003 | B17: Salsa, Mild, Thick and Chunky, Nutritionally Enhanced | C17: Red Gold | D17: REDSC99 | F17: 6/#10 | G17: 210 | I17: =ROUND(H17*G17/G17,2) -> 0 | J17: Cs | K17: 26.86 | L17: =IF(OR(ISBLANK(K17),K17=0,H17=0,ISBLANK(H17)),,ROUND(K17+$L$3,2)) -> 0 | M17: =ROUND(I17*L17,2) -> 0 | N17: =ROUND(L17/G17,4) -> 0 | O17: REDSC99 | P17: 6/#10 | Q17: 210 | R17: 24.04 | S17: 5.9 | T17: =ROUND($T$16*S17,2) -> 2.82 | U17: =IF(ISBLANK(O17),,R17+T17) -> 26.86 | V17: Y | W17: 24.04 | X17: 0.1144761905 | Y17: =IF(V17="N",IF(ISNUMBER(R17),(R17+T17)/Q17)) -> FALSE
B18: Canned, Grade A 3 oz. = 1/2 c Red/Orange Vegetable
A19: 24004 | B19: Tomatoes, Crushed | C19: Red Gold | D19: RPKDX99 | F19: 6/#10 | G19: 286 | H19: 10 | I19: =ROUND(H19*G19/G19,2) -> 10 | J19: Cs | K19: 21.09 | L19: =IF(OR(ISBLANK(K19),K19=0,H19=0,ISBLANK(H19)),,ROUND(K19+$L$3,2)) -> 21.09 | M19: =ROUND(L19*I19,2) -> 210.9 | N19: =ROUND(L19/G19,4) -> 0.0737 | O19: RPKDX99 | P19: 6/#10 | Q19: 286 | R19: 12.77 | S19: 17.41 | T19: =ROUND($T$16*S19,2) -> 8.32 | U19: =IF(ISBLANK(O19),,R19+T19) -> 21.09 | V19: Y | W19: 12.77 | X19: 0.04465034965 | Y19: =IF(V19="N",IF(ISNUMBER(R19),(R19+T19)/Q19)) -> FALSE
B20: Grade B, Extra Standard, Packed in tomato juice. Drained weight 64 oz.
B21: 2 oz. = 1/2 cup Red/Orange Vegetable
A22: 24005 | B22: Tomatoes, Diced | C22: Red Gold | D22: RPKBR99 | F22: 6/#10 | G22: 286 | H22: 10 | I22: =ROUND(H22*G22/G22,2) -> 10 | J22: Cs | K22: 20.27 | L22: =IF(OR(ISBLANK(K22),K22=0,H22=0,ISBLANK(H22)),,ROUND(K22+$L$3,2)) -> 20.27 | M22: =ROUND(L22*I22,2) -> 202.7 | N22: =ROUND(L22/G22,4) -> 0.0709
B23: Grade B, Extra Standard, Packed in tomato juice. Drained weight 64 oz.
B24: 2 oz. = 1/2 cup Red/Orange Vegetable
A25: 24006 | B25: Tomato Paste | C25: Red Gold | D25: RPKUA99 | F25: 6/#10 | G25: 666 | H25: 10 | I25: =ROUND(H25*G25/G25,2) -> 10 | J25: Cs | K25: 33.14 | L25: =IF(OR(ISBLANK(K25),K25=0,H25=0,ISBLANK(H25)),,ROUND(K25+$L$3,2)) -> 33.14 | M25: =ROUND(L25*I25,2) -> 331.4 | N25: =ROUND(L25/G25,4) -> 0.0498 | O25: RPKUA99 | P25: 6/#10 | Q25: 666 | S25: 30.97 | T25: =ROUND($T$16*S25,2) -> 14.79 | U25: =IF(ISBLANK(O25),,R25+T25) -> 14.79 | V25: Y
C26: Hunt's | D26: 27000-38835 | F26: 6/111z | G26: 564 | I26: =ROUND($H$25*$G$25/G26,2) -> 11.81 | J26: Cs | L26: =IF(OR(ISBLANK(K26),K26=0,H25=0,ISBLANK(H25)),,ROUND(K26+$L$3,2)) -> 0 | M26: =ROUND(L26*I26,2) -> 0 | N26: 0
B27: Minimum 24% solids, Grade A. 1 oz. = 1/2 c Red/Orange Vegetable | C27: Kraft/Heinz | D27: 130005731000 | F27: 6/#10 | G27: 555 | I27: =ROUND($H$25*$G$25/G27,2) -> 12 | J27: Cs | L27: =IF(OR(ISBLANK(K27),K27=0,H25=0,ISBLANK(H25)),,ROUND(K27+$L$3,2)) -> 0 | M27: =ROUND(L27*I27,2) -> 0 | N27: 0 | O27: 130005731000 | P27: 6/#10 | Q27: 555 | R27: 0 | S27: 32.11 | T27: =ROUND($T$16*S27,2) -> 15.34 | U27: =IF(ISBLANK(O27),,R27+T27) -> 15.34 | V27: Y | W27: 12.47 | X27: 0.02246846847 | Y27: =IF(V27="N",IF(ISNUMBER(R27),(R27+T27)/Q27)) -> FALSE
A29: 24007 | B29: Tomato Sauce | C29: Red Gold | D29: RPKHA99 | F29: 6/#10 | G29: 265 | H29: 10 | I29: =ROUND(H29*G29/G29,2) -> 10 | J29: Cs | L29: =IF(OR(ISBLANK(K29),K29=0,H29=0,ISBLANK(H29)),,ROUND(K29+$L$3,2)) -> 0 | M29: =ROUND(L29*I29,2) -> 0 | N29: =ROUND(L29/G29,4) -> 0 | O29: RPKHA99 | P29: 6/#10 | Q29: 265 | R29: 14.47 | S29: 9.72 | T29: =ROUND($T$16*S29,2) -> 4.64 | U29: =IF(ISBLANK(O29),,R29+T29) -> 19.11 | V29: Y | W29: 14.47 | X29: 0.05460377358 | Y29: =IF(V29="N",IF(ISNUMBER(R29),(R29+T29)/Q29)) -> FALSE
C30: Heinz | D30: 130005724000 | F30: 6/#10 | G30: 295 | I30: =ROUND(H29*G29/G30,2) -> 8.98 | J30: Cs | K30: 21.1 | L30: =IF(OR(ISBLANK(K30),K30=0,H29=0,ISBLANK(H29)),,ROUND(K30+$L$3,2)) -> 21.1 | M30: =ROUND(L30*I30,2) -> 189.48 | N30: 0.0715 | O30: 130005724000 | P30: 6/#10 | Q30: 295 | S30: 9.57 | T30: =ROUND($T$16*S30,2) -> 4.57 | U30: =IF(ISBLANK(O30),,R30+T30) -> 4.57 | V30: Y
B31: US Grade A. Canned, 3 oz. = 1/2 c Red/Orange Vegetable
A33: 24008 | B33: Ketchup, Tomato | C33: Red Gold | D33: REDY599 | F33: 6/#10 | G33: 1151 | H33: 10 | I33: =ROUND(H33*G33/G33,2) -> 10 | J33: Cs | K33: 20.71 | L33: =IF(OR(ISBLANK(K33),K33=0,H33=0,ISBLANK(H33)),,ROUND(K33+$L$3,2)) -> 20.71 | M33: =ROUND(I33*L33,2) -> 207.1 | N33: =ROUND(L33/G33,4) -> 0.018 | O33: REDY599 | P33: 6/#10 | Q33: 1151 | R33: 16.02 | S33: 9.81 | T33: =ROUND($T$16*S33,2) -> 4.69 | U33: =IF(ISBLANK(O33),,R33+T33) -> 20.71 | V33: Y | W33: 16.02 | X33: 0.01391833189 | Y33: =IF(V33="N",IF(ISNUMBER(R33),(R33+T33)/Q33)) -> FALSE
C34: Hunt's | D34: 27000-38251 | F34: 6/114z | G34: 1140 | I34: =ROUND(H33*G33/G34,2) -> 10.1 | J34: Cs | L34: =IF(OR(ISBLANK(K34),K34=0,H33=0,ISBLANK(H33)),,ROUND(K34+$L$3,2)) -> 0 | M34: =ROUND(I34*L34,2) -> 0 | N34: =ROUND(L34/G34,4) -> 0
B35: Canned, Grade A, Fancy, 33% solid | C35: Kraft/Heinz | D35: 130005129000 | F35: 6#10 | G35: 1140 | I35: =ROUND(H33*G33/G35,2) -> 10.1 | J35: Cs | L35: =IF(OR(ISBLANK(K35),K35=0,H33=0,ISBLANK(H33)),,ROUND(K35+$L$3,2)) -> 0 | M35: =ROUND(L35*I35,2) -> 0 | N35: =ROUND(L35/G35,2) -> 0 | O35: 130005129000 | P35: 6/#10 | Q35: 1140 | S35: 9.3 | T35: =ROUND($T$16*S35,2) -> 4.44 | U35: =IF(ISBLANK(O35),,R35+T35) -> 4.44 | V35: Y
A38: 24009 | B38: Sauce, Marinara | C38: Red Gold | D38: RPKNA99 | F38: 6/#10 | G38: 225 | I38: =ROUND(H38*G38/G38,2) -> 0 | J38: Cs | K38: 26.52 | L38: =IF(OR(ISBLANK(K38),K38=0,H38=0,ISBLANK(H38)),,ROUND(K38+$L$3,2)) -> 0 | M38: =ROUND(L38*I38,2) -> 0 | N38: =ROUND(L38/G38,4) -> 0 | O38: RPKNA99 | P38: 6/#10 | Q38: 225 | R38: 22.93 | S38: 7.52 | T38: =ROUND($T$16*S38,2) -> 3.59 | U38: =IF(ISBLANK(O38),,R38+T38) -> 26.52 | V38: Y | W38: 22.93 | X38: 0.1019111111 | Y38: =IF(V38="N",IF(ISNUMBER(R38),(R38+T38)/Q38)) -> FALSE
B39: Canned, Grade ! Fancy, 2.8 oz = 1/2 c Red/Orange Vegetable
A41: 24010 | B41: Sauce, Spaghetti Smooth | C41: Red Gold | D41: RPKMA99 | F41: 6/#10 | G41: 265 | I41: =ROUND(H41*G41/G41,2) -> 0 | J41: Cs | K41: 22.5 | L41: =IF(OR(ISBLANK(K41),K41=0,H41=0,ISBLANK(H41)),,ROUND(K41+$L$3,2)) -> 0 | M41: =ROUND(I41*L41,2) -> 0 | N41: =ROUND(L41/G41,4) -> 0 | O41: RPKMA9C | P41: 6/#10 | Q41: 265 | R41: 17.4 | S41: 10.67 | T41: =ROUND($T$16*S41,2) -> 5.1 | U41: =IF(ISBLANK(O41),,R41+T41) -> 22.5 | V41: Y | W41: 17.4 | X41: 0.06566037736 | Y41: =IF(V41="N",IF(ISNUMBER(R41),(R41+T41)/Q41)) -> FALSE
B42: Canned, US Grade A, Crediting statement with amount to provide 1/2c | C42: Heinz | D42: 130005880000 | F42: 6/#10 | G42: 141 | I42: =ROUND(H41*G41/G41,2) -> 0 | J42: Cs | L42: =IF(OR(ISBLANK(K42),K42=0,H41=0,ISBLANK(H41)),,ROUND(K42+$L$3,2)) -> 0 | M42: =ROUND(I42*L42,2) -> 0 | N42: =ROUND(L42/G42,2) -> 0 | O42: 130005880000 | P42: 6/#10 | Q42: 141 | S42: 11.9 | T42: =ROUND($T$16*S42,2) -> 5.68 | U42: =IF(ISBLANK(O42),,R42+T42) -> 5.68 | V42: Y
B43: Red/Orange Vegetable
A44: 24011 | B44: Sauce, Spaghetti, Nutritionally Balanced | C44: Red Gold | D44: RPKMA9E | F44: 6/#10 | G44: 265 | H44: 20 | I44: =ROUND(H44*G44/G44,2) -> 20 | J44: Cs | K44: 25.28 | L44: =IF(OR(ISBLANK(K44),K44=0,H44=0,ISBLANK(H44)),,ROUND(K44+$L$3,2)) -> 25.28 | M44: =ROUND(I44*L44,2) -> 505.6 | N44: =ROUND(L44/G44,4) -> 0.0954 | O44: RPKMA9E | P44: 6/#10 | Q44: 265 | R44: 20.35 | S44: 10.32 | T44: =ROUND($T$16*S44,2) -> 4.93 | U44: =IF(ISBLANK(O44),,R44+T44) -> 25.28 | V44: Y | W44: 20.35 | X44: 0.07679245283 | Y44: =IF(V44="N",IF(ISNUMBER(R44),(R44+T44)/Q44)) -> FALSE
B45: Canned, US Grade A, 3 oz. = 1/2 c Red/Orange Vegetable | C45: Heinz | D45: 130000104500 | F45: 6/#10 | G45: 141 | I45: =ROUND(H44*G44/G44,2) -> 20 | J45: Cs | L45: =IF(OR(ISBLANK(K45),K45=0,H44=0,ISBLANK(H44)),,ROUND(K45+$L$3,2)) -> 0 | M45: =ROUND(I45*L45,2) -> 0 | N45: =ROUND(L45/G45,2) -> 0 | O45: 13000588000 | P45: 6/#10 | Q45: 141 | R45: 0 | S45: 11.9 | T45: =ROUND($T$16*S45,2) -> 5.68 | U45: =IF(ISBLANK(O45),,R45+T45) -> 5.68 | V45: Y
A47: 24012 | B47: Beans, Pinto (Southwest) | C47: Bush's | D47: 39400-01071 | F47: 6/#10 | G47: 138 | I47: =ROUND($H$8*$G$8/G47,2) -> 365.22 | J47: Cs | K47: 31.24 | L47: =IF(OR(ISBLANK(K47),H47=0,ISBLANK(H47)),,ROUND(K47+$L$3,2)) -> 0 | M47: =ROUND(I47*L47,2) -> 0 | N47: =ROUND(L47/G47,4) -> 0
B48: USDA Grade A 1/2 cup serving meets 2 oz. M/MA and 1/2 cup vegetable
B49: ITEMS BELOW THIS LINE ARE NOT DIRECT TO MANUFACTUER PRICED ITEMS.
A50: 24013 | B50: Beans, Refried Dehydrated | C50: Basic Amercian Foods | D50: 10166 | F50: 6/28.1z | G50: 138 | H50: 10 | I50: =ROUND($H$8*$G$8/G50,2) -> 365.22 | J50: Cs | L50: =IF(OR(ISBLANK(K50),H50=0,ISBLANK(H50)),,ROUND(K50+$L$3,2)) -> 0 | M50: =ROUND(I50*L50,2) -> 0 | N50: =ROUND(L50/G50,2) -> 0
B51: Seasoned vegetarian refried beans
A52: 24014 | B52: Turnip Greens, chopped | C52: Distributor Choice | F52: 6/#10 | G52: 6 | I52: =ROUND(H52*G52/G52,2) -> 0 | J52: Cs
B53: Fancy, Minimum drained weight 58 oz (No Imports) | C53: Fillable txt box or unprotected | I53: =ROUND(H52*G52/G53,2) ->  | J53: Cs | L53: =IF(OR(ISBLANK(K53),K53=0,H53=0,ISBLANK(H53)),,ROUND(K53+$L$3,2)) -> 0 | M53: =ROUND(I53*L53,2) ->  | N53: =ROUND(L53/G53,4) -> 
A55: 24015 | B55: Beans, Green (No Imports) | C55: Distributor Choice | F55: 6/#10 | G55: 6 | I55: =ROUND(H55*G55/G55,2) -> 0 | J55: Cs
B56: Sieve 3 or 4; variety Blue Lake; Style cut, no strings; | C56: Fillable txt box or unprotected | G56: 0 | I56: =ROUND(H55*G55/G56,2) ->  | J56: Cs | K56: 0 | L56: =IF(OR(ISBLANK(K56),K56=0,H55=0,ISBLANK(H55)),,ROUND(K56+$L$3,2)) -> 0 | M56: =ROUND(I56*L56,2) ->  | N56: =ROUND(L56/G56,4) -> 
B57: Drained weight 63 oz. Grade A Fancy
A58: 24016 | B58: Beans, Lima, Green (No Imports) | C58: Distributor Choice | F58: 6/#10 | G58: 6 | I58: =ROUND(H58*G58/G58,2) -> 0 | J58: Cs
B59: Grade A, minimum drained weight 71 oz | C59: Fillable txt box or unprotected | G59: 0 | I59: =ROUND(H58*G58/G59,2) ->  | J59: Cs | K59: 0 | L59: =IF(OR(ISBLANK(K59),K59=0,H58=0,ISBLANK(H58)),,ROUND(K59+$L$3,2)) -> 0 | M59: =ROUND(I59*L59,2) ->  | N59: =ROUND(L59/G59,4) -> 
A60: 24017 | B60: Beans, Pintos (No Imports) | C60: Distributor Choice | F60: 6/#10 | G60: 6 | H60: 200 | I60: =ROUND($H$47*$G$47/G60,2) -> 0 | J60: Cs
B61: USDA Grade A | C61: Fillable txt box or unprotected | G61: 0 | I61: =ROUND(H60*G60/G61,2) ->  | J61: Cs | K61: 0 | L61: =IF(OR(ISBLANK(K61),K61=0,H60=0,ISBLANK(H60)),,ROUND(K61+$L$3,2)) -> 0 | M61: =ROUND(I61*L61,2) ->  | N61: =ROUND(L61/G61,4) -> 
A62: 24018 | B62: Beans, Black, Fancy (No Imports) | C62: Distributor Choice | F62: 6/#10 | G62: 6 | I62: =ROUND($H$62*$G$62/G62,2) -> 0 | J62: Cs
B63: USDA Grade A | C63: Fillable txt box or unprotected | I63: =ROUND(H62*G62/G63,2) ->  | J63: Cs | L63: =IF(OR(ISBLANK(K63),K63=0,H62=0,ISBLANK(H62)),,ROUND(K63+$L$3,2)) -> 0 | M63: =ROUND(I63*L63,2) ->  | N63: =ROUND(L63/G63,4) -> 
A64: 24019 | B64: Beans with Pork (No Imports) | C64: Distributor Choice | F64: 6/#10 | G64: 6 | I64: =ROUND(H64*G64/G64,2) -> 0 | J64: Cs
B65: First Quality Grade A, Small White beans, in tomato sauce pack, with pork. | C65: Fillable txt box or unprotected | I65: =ROUND(H64*G64/G65,2) ->  | J65: Cs | L65: =IF(OR(ISBLANK(K65),K65=0,H64=0,ISBLANK(H64)),,ROUND(K65+$L$3,2)) -> 0 | M65: =ROUND(I65*L65,2) ->  | N65: =ROUND(L65/G65,4) -> 
B66: Drained weight 85 oz. Minimum score 90 or above; (No Imports)
A67: 24020 | B67: Beans, Baked (No Imports) | C67: Distributor Choice | F67: 6/#10 | G67: 6 | I67: =ROUND(H67*G67/G67,2) -> 0 | J67: Cs
B68: Dry mature beans, baked in brown sugar, molasses | C68: Fillable txt box or unprotected | I68: =ROUND(H67*G67/G68,2) ->  | J68: Cs | L68: =IF(OR(ISBLANK(K68),K68=0,H67=0,ISBLANK(H67)),,ROUND(K68+$L$3,2)) -> 0 | M68: =ROUND(I68*L68,2) ->  | N68: =ROUND(L68/G68,4) -> 
B69: or New England sauce. (No soy beans.) Min.score 90 or above; Grade A
A70: 24021 | B70: Vegetarian Beans, Small White beans, in tomato sauce pack. | C70: Distributor Choice | F70: 6/#10 | G70: 6 | I70: =ROUND($H$70*$G$70/G70,2) -> 0 | J70: Cs
B71: (No Imports) Drained weight 85 oz. Minimum score 90 or above; Grade A | C71: Fillable txt box or unprotected | I71: =ROUND(H70*G70/G71,2) ->  | J71: Cs | L71: =IF(OR(ISBLANK(K71),K71=0,H70=0,ISBLANK(H70)),,ROUND(K71+$L$3,2)) -> 0 | M71: =ROUND(I71*L71,2) ->  | N71: =ROUND(L71/G71,4) -> 
A72: 24022 | B72: Bean, Kidney, Light (No Imports) | C72: Distributor Choice | F72: 6/#10 | G72: 6 | H72: 20 | I72: =ROUND($H$72*$G$72/G72,2) -> 20 | J72: Cs
C73: Fillable txt box or unprotected | I73: =ROUND(H72*G72/G73,2) ->  | J73: Cs | L73: =IF(OR(ISBLANK(K73),K73=0,H72=0,ISBLANK(H72)),,ROUND(K73+$L$3,2)) -> 0 | M73: =ROUND(I73*L73,2) ->  | N73: =ROUND(L73/G73,4) -> 
A74: 24023 | B74: Carrots, Sliced (No Imports) | C74: Distributor Choice | F74: 6/#10 | G74: 6 | I74: =ROUND($H$74*$G$74/G74,2) -> 0 | J74: Cs
B75: Medium Fancy, 3/15-5/16 inch cut | C75: Fillable txt box or unprotected | I75: =ROUND(H74*G74/G75,2) ->  | J75: Cs | L75: =IF(OR(ISBLANK(K75),K75=0,H74=0,ISBLANK(H74)),,ROUND(K75+$L$3,2)) -> 0 | M75: =ROUND(I75*L75,2) ->  | N75: =ROUND(L75/G75,4) -> 
A76: 24024 | B76: Corn, Whole Kernel (No Imports) | C76: Distributor Choice | F76: 6/#10 | G76: 6 | I76: =ROUND(H76*G76/G76,2) -> 0 | J76: Cs
B77: Golden; drained net weight per #10 can 72 oz. Grade A, Fancy | C77: Fillable txt box or unprotected | I77: =ROUND(H76*G76/G77,2) ->  | J77: Cs | L77: =IF(OR(ISBLANK(K77),K77=0,H76=0,ISBLANK(H76)),,ROUND(K77+$L$3,2)) -> 0 | M77: =ROUND(I77*L77,2) ->  | N77: =ROUND(L77/G77,4) -> 
B78: Minimum score 90; must be packed in enamel lined tins
A79: 24025 | B79: Mixed Vegetables (No Imports) | C79: Distributor Choice | F79: 6/#10 | G79: 6 | I79: =ROUND(H79*G79/G79,2) -> 0 | J79: Cs
B80: US Grade A Fancy, Mix to inc. carrots, pots, celery, peas,corn,& lima beans | C80: Fillable txt box or unprotected | I80: =ROUND(H79*G79/G80,2) ->  | J80: Cs | L80: =IF(OR(ISBLANK(K80),K80=0,H79=0,ISBLANK(H79)),,ROUND(K80+$L$3,2)) -> 0 | M80: =ROUND(I80*L80,2) ->  | N80: =ROUND(L80/G80,4) -> 
A81: 24026 | B81: Onions, Chopped, Dehydrated (No Imports) | C81: Distributor Choice | F81: 6/2Lb | G81: 12 | H81: 20 | I81: =ROUND(H81*G81/G81,2) -> 20 | J81: Cs
B82: White. Yield 1# dehydrated equals 5# fresh. US Grade A | C82: Fillable txt box or unprotected | I82: =ROUND(H81*G81/G82,2) ->  | J82: Cs | L82: =IF(OR(ISBLANK(K82),K82=0,H81=0,ISBLANK(H81)),,ROUND(K82+$L$3,2)) -> 0 | M82: =ROUND(I82*L82,2) ->  | N82: =ROUND(L82/G82,4) -> 
A83: 24027 | B83: Peas and Carrots (No Imports) | C83: Distributor Choice | F83: 6/#10 | G83: 6 | I83: =ROUND(H83*G83/G83,2) -> 0 | J83: Cs
B84: June peas and diced carrots. Carrots equal to Grade A, Fancy, Peas Grade 5 | C84: Fillable txt box or unprotected | I84: =ROUND(H83*G83/G84,2) ->  | J84: Cs | L84: =IF(OR(ISBLANK(K84),K84=0,H83=0,ISBLANK(H83)),,ROUND(K84+$L$3,2)) -> 0 | M84: =ROUND(I84*L84,2) ->  | N84: =ROUND(L84/G84,4) -> 
A85: 24028 | B85: Peas, Black-eyed (No Imports) | C85: Distributor Choice | F85: 6/#10 | G85: 6 | I85: =ROUND(H85*G85/G85,2) -> 0 | J85: Cs
B86: Grade A, Fancy. Green, fresh peas, 3 sieve. Minimum drained weight 72 oz | C86: Fillable txt box or unprotected | I86: =ROUND(H85*G85/G86,2) ->  | J86: Cs | L86: =IF(OR(ISBLANK(K86),K86=0,H85=0,ISBLANK(H85)),,ROUND(K86+$L$3,2)) -> 0 | M86: =ROUND(I86*L86,2) ->  | N86: =ROUND(L86/G86,4) -> 
A87: 24029 | B87: Peas, Field (No Imports) | C87: Distributor Choice | F87: 6/#10 | G87: 6 | I87: =ROUND(H87*G87/G87,2) -> 0 | J87: Cs
B88: Grade A, Fancy. May include snaps. Minimum drained weight 73 oz. | C88: Fillable txt box or unprotected | I88: =ROUND(H87*G87/G88,2) ->  | J88: Cs | L88: =IF(OR(ISBLANK(K88),K88=0,H87=0,ISBLANK(H87)),,ROUND(K88+$L$3,2)) -> 0 | M88: =ROUND(I88*L88,2) ->  | N88: =ROUND(L88/G88,4) -> 
A89: 24030 | B89: Peas, Green (No Imports) | C89: Distributor Choice | F89: 6/#10 | G89: 6 | I89: =ROUND(H89*G89/G89,2) -> 0 | J89: Cs
B90: Grade A, Fancy. Sieve No. 3 or smaller either sweet or | C90: Fillable txt box or unprotected | I90: =ROUND(H89*G89/G90,2) ->  | J90: Cs | L90: =IF(OR(ISBLANK(K90),K90=0,H89=0,ISBLANK(H89)),,ROUND(K90+$L$3,2)) -> 0 | M90: =ROUND(I90*L90,2) ->  | N90: =ROUND(L90/G90,4) -> 
B91: early variety. Score 90 or higher. Minimum drained weight 72 oz
A92: 24031 | B92: Squash, Sliced (No Imports) | C92: Distributor Choice | F92: 6/#10 | G92: 6 | I92: =ROUND(H92*G92/G92,2) -> 0 | J92: Cs
B93: Grade A, Minimum drained weight 61 oz | C93: Fillable txt box or unprotected | I93: =ROUND(H92*G92/G93,2) ->  | J93: Cs | L93: =IF(OR(ISBLANK(K93),H92=0,ISBLANK(H92)),,ROUND(K93+$L$3,2)) -> 0 | M93: =ROUND(I93*L93,2) ->  | N93: =ROUND(L93/G93,4) -> 
A94: 24032 | B94: Sweet Potatoes, Cut (No Imports) | C94: Distributor Choice | F94: 6/#10 | G94: 6 | H94: 100 | I94: =ROUND(H94*G94/G94,2) -> 100 | J94: Cs
B95: Grade A, Fancy. Packed in syrup. Minimum drained weight 73 oz. First Quality | C95: Fillable txt box or unprotected | I95: =ROUND(H94*G94/G95,2) ->  | J95: Cs | L95: =IF(OR(ISBLANK(K95),H94=0,ISBLANK(H94)),,ROUND(K95+$L$3,2)) -> 0 | M95: =ROUND(I95*L95,2) ->  | N95: =ROUND(L95/G95,4) -> 
A96: 24033 | B96: Potatoes, White Diced (No Imports) | C96: Distributor Choice | F96: 6/#10 | G96: 6 | H96: 10 | I96: =ROUND(H96*G96/G96,2) -> 10 | J96: Cs
B97: Grade A, Fancy, First Quality. White Irish Pack: 6/#10 | C97: Fillable txt box or unprotected | I97: =ROUND(H96*G96/G97,2) ->  | J97: Cs | L97: =IF(OR(ISBLANK(K97),K97=0,H96=0,ISBLANK(H96)),,ROUND(K97+$L$3,2)) -> 0 | M97: =ROUND(I97*L97,2) ->  | N97: =ROUND(L97/G97,4) -> 
A98: 24034 | B98: Potatoes, White, Whole (No Imports) | C98: Distributor Choice | F98: 6/#10 | G98: 6 | I98: =ROUND(H98*G98/G98,2) -> 0 | J98: Cs
B99: Small whole size 2. 100 count per #10 can. First Quality (No Imports) | C99: Fillable txt box or unprotected | I99: =ROUND(H98*G98/G99,2) ->  | J99: Cs | L99: =IF(OR(ISBLANK(K99),K99=0,H96=0,ISBLANK(H96)),,ROUND(K99+$L$3,2)) -> 0 | M99: =ROUND(I99*L99,2) ->  | N99: =ROUND(L99/G99,4) -> 
A100: 27035 | B100: Beans, Garbanzo | C100: Distributor Choice | F100: 6/#10 | G100: 6 | I100: =ROUND(H100*G100/G100,2) -> 0 | J100: Cs
C101: Fillable txt box or unprotected | I101: =ROUND(H100*G100/G101,2) ->  | J101: Cs | L101: =IF(OR(ISBLANK(K101),K101=0,H98=0,ISBLANK(H98)),,ROUND(K101+$L$3,2)) -> 0 | M101: =ROUND(I101*L101,2) ->  | N101: =ROUND(L101/G101,4) -> 
J102: Page Total | M102: =SUMIF(M6:M101,">0") -> 6186.18

Sheet Breakfast Products
B1: ='Recap Sheet'!A2 -> School Food Authority or Agency Name: | F1: ='Recap Sheet'!A3 -> Bidder's Name: | S1: Commodity
A2: 28001 | B2: ='Recap Sheet'!B2 -> Marion County School District | C2: Return to Recap Sheet | F2: ='Recap Sheet'!B3 -> 0
A3: 30000 | B3: Description | C3: Approved | G3: Firm Fixed Fee | L3: ='Recap Sheet'!B4 -> 0 | O3: Manufacturer | P3: Vendor Pack | Q3: Servings per case | R3: Processing | S3: Pounds of | T3: USDA | U3: Total Cost | V3: NOI ? | X3: NOI | Y3: Net
A4: SCPA | C4: Brand Name | D4: Manufacturers | E4: Distributor | F4: Vendor | G4: Svgs | H4: Est. | I4: Bid | J4: Bid | K4: Unit | L4: Unit Price | M4: Total | N4: Cost per | O4: USDA Product | R4: Fee for | S4: DF Needed | T4: Value | U4: Proc Fee + | V4: Enter | W4: NOI | X4: Price/ | Y4: Cost Per
A5: Code | C5: or Manufacturer | D5: Code | E5: Code | F5: Pack | G5: per unit | H5: Bid Qty | I5: Qty | J5: Unit | K5: Price | L5: plus Fee | M5: Price | N5: Unit | O5: Code | R5: Service | S5: Per Case | T5: Per Case | U5: Comm Value | V5: Y or N | W5: Price | X5: Serving | Y5: Serving
B6: Breakfast Products | O6: Beef Coarse Grd 60# | R6: 100154 | S6: 2.687 | T6: Flour Bread Bulk | W6: 100912 | X6: 0.2054
O7: Eggs, Whole Liquid Bulk Tank | R7: 100047 | S7: 0.539
A8: 28001 | B8: Bar, Mini Breakfast Bar | C8: J& J Snacks | F8: 96/1.25z | G8: 96 | I8: =ROUND(H8*G8/G8,2) -> 0 | J8: Cs | K8: 21.15 | L8: =IF(OR(ISBLANK(K8),K8=0,H8=0,ISBLANK(H8)),,ROUND(K8+$L$3,2)) -> 0 | M8: =ROUND(I8*L8,2) -> 0 | N8: =ROUND(L8/G8,4) -> 0
B9: WGR, Thaw and serve, One serving provides 1 oz. OEG | C9: Maple Brown Sugar | D9: 40452
C10: Oatmeal Chocolate Chip | D10: 40454
C11: Brownie | D11: 40455
B12: Possible Allergens: Wheat, Soy, Milk and Eggs | C12: Banana Chocolate Chunk | D12: 40456
A13: 28002 | B13: Bar, Whole Grain Oat Bar, Fruit Filled | C13: NutriGrain Bar | F13: 96/1.55z | G13: 96 | I13: =ROUND(H13*G13/G13,2) -> 0 | J13: Cs | K13: 26.5 | L13: =IF(OR(ISBLANK(K13),K13=0,H13=0,ISBLANK(H13)),,ROUND(K13+$L$3,2)) -> 0 | M13: =ROUND(I13*L13,2) -> 0 | N13: =ROUND(L13/G13,4) -> 0
B14: WGR, IW, Single Serve, Made w/ real fruit puree. One bar provides 1 OEG | C14: Strawberry | D14: 38000-59772
B15: SMART SNACKS COMPLIANT | C15: Blueberry | D15: 38000-90819
B16: Possible Allergens: Milk, Soy,Wheat, and Eggs, | C16: Apple Cinnamon | D16: 38000-59779
A17: 28003 | B17: Biscuit, Chicken, IW. WGR | C17: Grand Strand Sandwich Co. | D17: 4009 | F17: 90/3.6z | G17: 90 | H17: 200 | I17: =ROUND($H$17*$G$17/G17,2) -> 200 | J17: Cs | K17: 38.7 | L17: =IF(OR(ISBLANK(K17),K17=0,H17=0,ISBLANK(H17)),,ROUND(K17+$L$3,2)) -> 38.7 | M17: =ROUND(I17*L17,2) -> 7740 | N17: =ROUND(L17/G17,4) -> 0.43
B18: Breaded chicken patty with alternate protein and or egg additives. | C18: Snak Time | D18: STF9645NL/72 | F18: 100/2.85z | G18: 100 | I18: =ROUND($H$17*$G$17/G18,2) -> 180 | J18: Cs | L18: =IF(OR(ISBLANK(K18),K18=0,H18=0,ISBLANK(H18)),,ROUND(K18+$L$3,2)) -> 0 | M18: =ROUND(I18*L18,2) -> 0 | N18: =ROUND(L18/G18,4) -> 0
B19: Contains 0 Trans Fat
A20: 28004 | B20: Biscuit, Yeast Raised Potato Sausage (twin pack) WGR | C20: (18-19) Snak Time | D20: STF9420NL/60 | F20: 100/2.60z | G20: 100 | H20: 200 | I20: =ROUND($H$20*$G$20/G20,2) -> 200 | J20: Cs | L20: =IF(OR(ISBLANK(K20),K20=0,H20=0,ISBLANK(H20)),,ROUND(K20+$L$3,2)) -> 0 | M20: =ROUND(I20*L20,2) -> 0 | N20: =ROUND(L20/G20,4) -> 0
B21: Fully cooked, each portion provides 1 M/MA and 1.75 OEG
B22: Contains 0 Trans Fat
A23: 28005 | B23: Biscuit, Peach Cobbler | C23: Tasty Brands | D23: 22020IW | F23: 100/2.8z | G23: 100 | I23: =ROUND($H$23*$G$23/G23,2) -> 0 | J23: Cs | K23: 44 | L23: =IF(OR(ISBLANK(K23),K23=0,H23=0,ISBLANK(H23)),,ROUND(K23+$L$3,2)) -> 0 | M23: =ROUND(I23*L23,2) -> 0 | N23: =ROUND(L23/G23,4) -> 0
B24: 0 Trans fat. One serving provides 2 equivalent grains
A26: 28006 | B26: Bread, Breakfast Slice Whole Wheat | C26: Super Bakery | F26: 70/3.4z | G26: 70 | H26: 100 | I26: =ROUND(H26*G26/G26,2) -> 100 | J26: Cs | K26: 31.58 | L26: =IF(OR(ISBLANK(K26),K26=0,H26=0,ISBLANK(H26)),,ROUND(K26+$L$3,2)) -> 31.58 | M26: =ROUND(I26*L26,2) -> 3158 | N26: =ROUND(L26/G26,4) -> 0.4511
B27: Frozen, IW, Thaw and serve. Product meets a minimum of 1.5 OEG | C27: Super Slice Super Blueberry | D27: 6073 | F27: 70/3.4z | G27: 70
B28: 220-280 calories with 2g of Sat fat or less, 0 trans fat, 220 mg of Sodium | C28: Super Slice Super Banana | D28: 6071 | F28: 70/3.4z | G28: 70
B29: or less, WGR | C29: Super Slice Super Pumpkin | D29: 6075 | F29: 70/3.4z | G29: 70
C30: Super Slice Super Lemon | D30: 6047 | F30: 70/3.4z | G30: 70
A31: 28007 | B31: Breakfast Bites,WG Pancake and Pork | C31: Jimmy Dean | D31: 10000019011 | F31: 180/.85z | G31: 63 | H31: 100 | I31: =ROUND(H31*G31/G31,2) -> 100 | J31: Cs | K31: 22 | L31: =IF(OR(ISBLANK(K31),K31=0,H31=0,ISBLANK(H31)),,ROUND(K31+$L$3,2)) -> 22 | M31: =ROUND(I31*L31,2) -> 2200 | N31: =ROUND(L31/G31,4) -> 0.3492
B32: WGR, Frozen, Heat and Serve. Whole Grain batter around a pre-cooked
B33: ground pork sausage link w/TV. 3 g sat fat or less, 0 trans fat, 500 mg
B34: sodiium of less. Three (3) bites = one serving
A36: 28008 | B36: Breakfast Item, Whole Grain Grahams | C36: Kelloggs Crunchmania | F36: 100/1.76z | G36: 100 | I36: =ROUND(H36*G36/G36,2) -> 0 | J36: Cs | K36: 29 | L36: =IF(OR(ISBLANK(K36),K36=0,H36=0,ISBLANK(H36)),,ROUND(K36+$L$3,2)) -> 0 | M36: =ROUND(I36*L36,2) -> 0 | N36: =ROUND(L36/G36,4) -> 0
B37: Bite size whole grain grahams. Meets 2.0 OEG | C37: Cinnamon Bun | D37: 38000- 24518
C38: French Toast | D38: 38000- 24520
A39: 28009 | B39: Breakfast Kits, Kelloggs & ES Breaks WGR 2.0 OEG | C39: Kelloggs (Morning Jump Starts) | F39: 44Ct | G39: 44 | H39: 100 | I39: =ROUND(H39*G39/G39,2) -> 100 | J39: Cs | L39: =IF(OR(ISBLANK(K39),K39=0,H39=0,ISBLANK(H39)),,ROUND(K39+$L$3,2)) -> 0 | M39: =ROUND(I39*L39,2) -> 0 | N39: =ROUND(L39/G39,4) -> 0
B40: Each kit provides: 2oz equivalent grain, 1/2 cup fruit serving, | C40: Blue Frosted Flaked R/ S | D40: 38000-51091
B41: plus a spoon/napkin kit, each master case includes trash bag. | C41: Froot Loops R/S | D41: 38000-78792
B42: Contains 3 Ct Keebler Graham Cracker, 1.0 oz Cereal Bowl | C42: Green Apple Jacks R/S | D42: 38000-78791
B43: and 100% Fruit juice | C43: Crunchmania | D43: 38000-19201
C44: Nutrigrain | D44: 38000-18589
C46: ES Breaks | F46: 60Ct | G46: 60 | I46: =ROUND(H39*G39/G46,2) -> 73.33 | J46: Cs | K46: 44.64 | L46: =IF(OR(ISBLANK(K46),K46=0,H46=0,ISBLANK(H46)),,ROUND(K46+$L$3,2)) -> 0 | M46: =ROUND(I46*L46,2) -> 0 | N46: =ROUND(L46/G46,4) -> 0
C47: Fruit Loops Red Sugar | D47: 61123
C48: Apple Cinnamon Cherrios | D48: 61118
C49: Trix RS | D49: 61114
C50: Lucky Charms | D50: 61103
C53: ES Breaks | F53: 72 ct | G53: 72 | I53: =ROUND(H39*G39/G53,2) -> 61.11 | J53: Cs | K53: 53.57 | L53: =IF(OR(ISBLANK(K53),K53=0,H53=0,ISBLANK(H53)),,ROUND(K53+$L$3,2)) -> 0 | M53: =ROUND(I53*L53,2) -> 0 | N53: =ROUND(L53/G53,4) -> 0
C54: Cinnammon Toast Crunch Red Sugar | D54: 61119
C55: Honey Nut Cherrios | D55: 61105
C56: Frosted Flakes RS | D56: 61106
A57: 28010 | B57: Cereal, General Mills, Assorted Flavors, WGR | C57: General Mills | F57: 96 Ct | G57: 96 | H57: 100 | I57: =ROUND(H57*G57/G57,2) -> 100 | J57: Cs | K57: 19.8 | L57: =IF(OR(ISBLANK(K57),K57=0,H57=0,ISBLANK(H57)),,ROUND(K57+$L$3,2)) -> 19.8 | M57: =ROUND(I57*L57,2) -> 1980 | N57: =ROUND(L57/G57,4) -> 0.2063
B58: Made from whole grain. Prepackaged, Bowl pack. | C58: Apple Cinnamon Cheerios WG | D58: 31879
B59: 1 oz Cereal = 1oz Equivalent Grain | C59: Cheerios Whole Grain | D59: 32262
C60: Cinnamon Toast Crunch Whole Grain | D60: 11815
C61: Golden Grahams Whole Grain | D61: 11943
C62: Honey Nut Cheerios Whole Grain | D62: 11918
C63: Honey Nut Chex Whole Grain | D63: 11866
C64: Lucky Charms Whole Grain | D64: 31917
C65: Multigrain Cheerios | D65: 32263
C66: Reese's Puffs Whole Grain | D66: 31919
C67: Total Raisin Bran Whole Grain | D67: 12392
C68: Fruity Cheerios Whole Grain | D68: 31916
C69: Frosted Corn Flakes Whole Grain | D69: 11768
A73: 28011 | B73: Cereal, General Mills, Assorted Flavors 2 oz cup pack WGR | C73: General Mills | F73: 60/2 oz | G73: 60 | I73: =ROUND(H73*G73/G73,2) -> 0 | J73: Cs | K73: 23.95 | L73: =IF(OR(ISBLANK(K73),K73=0,H73=0,ISBLANK(H73)),,ROUND(K73+$L$3,2)) -> 0 | M73: =ROUND(I73*L73,2) -> 0 | N73: =ROUND(L73/G73,4) -> 0
B74: Made with Whole grain, prepackaged, bowl pack, 2 oz. cereal equals | C74: Honey Nut Cherrios Gluten Free | D74: 14882000
B75: 2 OEG | C75: Chex Cinnamon Gluten Free | D75: 14883000
C76: Cinnamon Toast Crunch | D76: 14886000
C77: Cocoa Puffs, R/S | D77: 14885000
C78: Chex Blueberry Gluten Free | D78: 17262000
C79: Lucky Charms Gluten Free | D79: 14884000
A80: 28012 | B80: Cereal, General Mills, Reduced Sugar, Assorted Flavors WGR | C80: General Mills | F80: 96 Ct | G80: 96 | H80: 100 | I80: =ROUND(H80*G80/G80,2) -> 100 | J80: Cs | K80: 19.8 | L80: =IF(OR(ISBLANK(K80),K80=0,H80=0,ISBLANK(H80)),,ROUND(K80+$L$3,2)) -> 19.8 | M80: =ROUND(I80*L80,2) -> 1980 | N80: =ROUND(L80/G80,4) -> 0.2063
B81: Made from whole grain. Prepackaged, Bowl Pack. | C81: Redu Sugar Cinnamon Toast Crunch | D81: 29444
B82: 1oz Cereal provides 1 oz Grain Equivalent | C82: Reduced Sugar Trix | D82: 31922
C83: Reduced Sugar Cocoa Puffs | D83: 31888
A84: 28013 | B84: Cereal, Kelloggs, Assorted Flavors, WGR | C84: Kelloggs | F84: 96 Ct | G84: 96 | I84: =ROUND(H84*G84/G84,2) -> 0 | J84: Cs | K84: 22 | L84: =IF(OR(ISBLANK(K84),K84=0,H84=0,ISBLANK(H84)),,ROUND(K84+$L$3,2)) -> 0 | M84: =ROUND(I84*L84,2) -> 0 | N84: =ROUND(L84/G84,4) -> 0
B85: Prepackaged, bowl pack 1oz Cereal provides 1oz Equivalent Grain | C85: 38000-00896 Raisin Bran | D85: 38000-00896
B86: CACFP APPROVED | C86: Frosted Mini Wheats. Bite Size | D86: 38000-04996
B87: Discontinued | C87: Choc Frsted Mini Whts Bite-size | D87: 38000-45861
B88: CACFP APPROVED | C88: Rice Krispies, WG-Gluten Free | D88: 38000-78789
A90: 28014 | B90: Cereal, Kelloggs, Reduced Sugar, WGR | C90: Kelloggs | F90: 96 Ct | G90: 96 | H90: 100 | I90: =ROUND(H90*G90/G90,2) -> 100 | J90: Cs | K90: 20 | L90: =IF(OR(ISBLANK(K90),K90=0,H90=0,ISBLANK(H90)),,ROUND(K90+$L$3,2)) -> 20 | M90: =ROUND(I90*L90,2) -> 2000 | N90: =ROUND(L90/G90,4) -> 0.2083
B91: Prepackaged, bowl pack 1oz Cereal provides 1oz Equivalent Grain | C91: Reduced Sugar, Froot Loops | D91: 38000-78788
C92: Reduced Sugar, Apple Jacks | D92: 38000-78787
C93: Red Sugar,Frosted Flakes, MG | D93: 38000-54998
B94: CACFP APPROVED | C94: Cinnamon Flakes MultiGrain | D94: 38000-78786
A97: 28015 | B97: Cereal, Post Consumer Brands, Assorted Flavors, WGR | C97: Post Consumer Brands | F97: 96 Ct | G97: 96 | I97: =ROUND(H97*G97/G97,2) -> 0 | J97: Cs | K97: 17.48 | L97: =IF(OR(ISBLANK(K97),K97=0,H97=0,ISBLANK(H97)),,ROUND(K97+$L$3,2)) -> 0 | M97: =ROUND(I97*L97,2) -> 0 | N97: =ROUND(L97/G97,4) -> 0
B98: Prepackaged, Bowl Pack. | C98: Cinnamon Toasters | D98: 3915 | F98: 96/1z | G98: 96
B99: 1 oz Cereal = 1oz Equivalent Grain | C99: Honey Scooter | D99: 27597 | F99: 96/1z | G99: 96
C100: Marshmallow Mateys (RS) | D100: 27596 | F100: 96/1z | G100: 96
C101: Honey Graham Squares | D101: 4515 | F101: 96/1z | G101: 96
C102: Raisin Bran | D102: O715 | F102: 96/1.25z | G102: 96
B103: CACFP APPROVED | C103: Scooter (RS) | D103: 27164 | F103: 96/1z | G103: 96
A106: 28016 | B106: Cereal, Single Serve Pouch | C106: Kellogg's | F106: 96/1.0z | G106: 96 | I106: =ROUND(H106*G106/G106,2) -> 0 | J106: Cs | K106: 20.16 | L106: =IF(OR(ISBLANK(K106),K106=0,H106=0,ISBLANK(H106)),,ROUND(K106+$L$3,2)) -> 0 | M106: =ROUND(I106*L106,2) -> 0 | N106: =ROUND(L106/G106,4) -> 0
B107: No high fructose corn syrup | C107: Frosted Flakes Multi-Grain RS | D107: 38000-11465
B108: One serving equals 1 OEG | C108: Fruit Loops RS | D108: 38000-11467
B109: Possible Allergens: Wheat, Soy, and Milk | C109: Apple Jacks RS | D109: 38000-11469
A111: 28017 | B111: Cereal, Single Serve Pouch Discontinued by Manufacturer | C111: General Mills | I111: =ROUND(H111*G111/G111,2) ->  | J111: Cs | L111: =IF(OR(ISBLANK(K111),K111=0,H111=0,ISBLANK(H111)),,ROUND(K111+$L$3,2)) -> 0 | M111: =ROUND(I111*L111,2) ->  | N111: =ROUND(L111/G111,4) -> 
B112: No high fructose corn syrup | C112: Cinnamon Crunch | D112: 17733
B113: One serving equals 1 OEG | C113: Golden Grahams | D113: 41574
B114: Possible Allergens: Wheat, Soy, and Milk
A116: 28018 | B116: Cereal Bar, WGR | C116: General Mills | F116: 96/1.42z | G116: 96 | I116: =ROUND($H$116*$G$116/G116,2) -> 0 | J116: Cs | K116: 23.69 | L116: =IF(OR(ISBLANK(K116),K116=0,H116=0,ISBLANK(H116)),,ROUND(K116+$L$3,2)) -> 0 | M116: =ROUND(I116*L116,2) -> 0 | N116: =ROUND(L116/G116,4) -> 0
B117: Contains 0-150 calories and not more than 1 gm saturated fat and | C117: Cinnamon Toast Crunch | D117: 45576
B118: 0-150 mg sodium per serving | C118: Cocoa Puffs | D118: 45577
C119: Fruity Cheerios | D119: 31912
C120: Team Cherrios | D120: 31914
B121: Smart Snacks Compliant | C121: Trix | D121: 31915
A122: 28019 | B122: Cereal Bar, WGR | C122: Kellogg | F122: 96/1.34z | G122: 96 | H122: 50 | I122: =ROUND($H$122*$G$122/G122,2) -> 50 | J122: Cs | K122: 24.85 | L122: =IF(OR(ISBLANK(K122),K122=0,H122=0,ISBLANK(H122)),,ROUND(K122+$L$3,2)) -> 24.85 | M122: =ROUND(I122*L122,2) -> 1242.5 | N122: =ROUND(L122/G122,4) -> 0.2589
B123: made from Whole Grain Oats | C123: Chocolate | D123: 38000-91612
B124: Calories 150 or less, 0 Trans fat; Saturated Fat 1g or less; | C124: Apple Cinnamon | D124: 38000-48396
B125: 90- 140mg Sodium per serving. | C125: Berry | D125: 38000-54937
B127: SMART SNACK COMPLIANT
A129: 28020 | B129: Cinnamon Rolls, IW | C129: Pillsbury Mini Cinnis | D129: 133686000 | F129: 72/2.29z | G129: 72 | H129: 25 | I129: =ROUND(H129*G129/G129,2) -> 25 | J129: Cs | L129: =IF(OR(ISBLANK(K129),K129=0,H129=0,ISBLANK(H129)),,ROUND(K129+$L$3,2)) -> 0 | M129: =ROUND(I129*L129,2) -> 0 | N129: =ROUND(L129/G129,4) -> 0
B130: Thaw /Heat/ Serve, One serving provides 2 oz Equivalent Grains | C130: Hadley Farms | D130: 1375IW | F130: 144/2.7z | G130: 144 | I130: =ROUND(H129*G129/G130,2) -> 12.5 | J130: Cs | K130: 44.73 | L130: =IF(OR(ISBLANK(K130),K130=0,H129=0,ISBLANK(H129)),,ROUND(K130+$L$3,2)) -> 44.73 | M130: =ROUND(I130*L130,2) -> 559.13 | N130: =ROUND(L130/G130,4) -> 0.3106
A132: 28021 | B132: Cinnamon Rolls, Whole Wheat Frz. Dough WGR | C132: Bridgford | D132: 6718 | F132: 160/2.25z | G132: 160 | I132: =ROUND(H132*G132/G132,2) -> 0 | J132: Cs | K132: 30.8 | L132: =IF(OR(ISBLANK(K132),K132=0,H132=0,ISBLANK(H132)),,ROUND(K132+$L$3,2)) -> 0 | M132: =ROUND(I132*L132,2) -> 0 | N132: =ROUND(L132/G132,4) -> 0
B133: Pre-sliced cinnamon roll dough, IQF. 0 trans fat, 1 g sat fat
B134: Thaw, proof and bake
B135: One serving provides not more than 2oz Equivalent grains
A136: 28022 | B136: Cinnamon Rolls, Whole Wheat WGR | C136: Pillsbury/General Mills | D136: 111111000 | F136: 100/2.7z | G136: 100 | H136: 25 | I136: 0 | J136: Cs | K136: 25.25 | L136: 0 | M136: 0 | N136: =ROUND(L136/G136,4) -> 0
B137: Frozen. Freezer to Oven format.. 200-300 calories with no more than
B138: 6 g saturated fat and 400 mg sodium per serving. One portion
B139: to provide min. 2 OEG
B140: Possible Allergens: Wheat, Soy, Milk, Egg
A141: 28023 | B141: Doughnut Mini, IW WGR | C141: Super Bakery Powdered | G141: 72
B142: One serving provides 2oz OEG | C142: Powdered | D142: 7787 | F142: 72/3.2z | G142: 72 | H142: 50 | I142: =ROUND(H142*G141/G141,2) -> 50 | J142: Cs | K142: 36.47 | L142: =IF(OR(ISBLANK(K142),K142=0,H142=0,ISBLANK(H142)),,ROUND(K142+$L$3,2)) -> 36.47 | M142: =ROUND(I142*L142,2) -> 1823.5 | N142: =ROUND(L142/G142,4) -> 0.5065
B143: Frozen. Thaw and serve. | C143: Chocolate Enrobed | D143: 7786 | F143: 72/3.z | G143: 72 | I143: =ROUND(H143*G141/G141,2) -> 0 | J143: Cs | K143: 41.49 | L143: =IF(OR(ISBLANK(K143),K143=0,H143=0,ISBLANK(H143)),,ROUND(K143+$L$3,2)) -> 0 | M143: =ROUND(I143*L143,2) -> 0 | N143: =ROUND(L143/G143,4) -> 0
B144: SMART SNACK COMPLIANT
A145: 28024 | B145: Doughnut Holes, Bulk | C145: (18-19) Rich's | D145: 2725 | F145: 384/.41z | G145: 128 | I145: =ROUND(H145*G145/G145,2) -> 0 | J145: Cs | K145: 25.58 | L145: =IF(OR(ISBLANK(K145),K145=0,H145=0,ISBLANK(H145)),,ROUND(K145+$L$3,2)) -> 0 | M145: =ROUND(I145*L145,2) -> 0 | N145: =ROUND(L145/G145,4) -> 0 | O145: 2725 | P145: 10 lb | Q145: 128 | R145: 24.69 | S145: 4.33 | T145: =ROUND($X$6*S145,2) -> 0.89 | U145: =IF(ISBLANK(O145),,R145+T145) -> 25.58 | V145: Y | W145: =IF(ISNUMBER(K145),IF(V145="Y",(K145-T145))) -> 24.69 | X145: =W145/G145 -> 0.192890625 | Y145: =IF(V145="N",IF(ISNUMBER(R145),(R145+T145)/Q145)) -> FALSE
B146: Frozen, thaw, heat and serve 100-200 calories with no more than 4 g
B147: sat fat and 200 mg of sodium per serving. One portion to provide min
B148: 1 OEG
B149: Possible Allergens: Wheat, Soy, Milk
A150: 28025 | B150: Doughnut, Yeast Raised Donut, WG | C150: (18-19) Rich's | D150: 14839 | F150: 84/2.45z | G150: 84 | I150: =ROUND(H150*G150/G150,2) -> 0 | J150: Cs | K150: 28.75 | L150: =IF(OR(ISBLANK(K150),K150=0,H150=0,ISBLANK(H150)),,ROUND(K150+$L$3,2)) -> 0 | M150: =ROUND(I150*L150,2) -> 0 | N150: =ROUND(L150/G150,4) -> 0 | O150: 14839 | P150: 84/2.45z | Q150: 84 | R150: 27.6 | S150: 5.58 | T150: =ROUND($X$6*S150,2) -> 1.15 | U150: =IF(ISBLANK(O150),,R150+T150) -> 28.75 | V150: Y | W150: =IF(ISNUMBER(K150),IF(V150="Y",(K150-T150))) -> 27.6 | X150: =W150/G150 -> 0.3285714286 | Y150: =IF(V150="N",IF(ISNUMBER(R150),(R150+T150)/Q150)) -> FALSE
B151: Frozen, thaw, heat and serve 200-300 calories with no more than 7 g sat
B152: fat and 350 mg of sodium per svg. One portion provides min. 2 OEG
B153: Possible Allergens: Wheat, Soy, Milk, and Eggs
A154: 28026 | B154: Dunkin Stick, WGR | C154: Super Bakery | D154: 7010 | F154: 100/1.9z | G154: 100 | I154: =ROUND(H154*G154/G154,2) -> 0 | J154: Cs | K154: 30 | L154: =IF(OR(ISBLANK(K154),K154=0,H154=0,ISBLANK(H154)),,ROUND(K154+$L$3,2)) -> 0 | M154: =ROUND(I154*L154,2) -> 0 | N154: =ROUND(L154/G154,4) -> 0
B155: One 1.9 oz. serving equals one EOG
A158: 28027 | B158: French Toast Sticks | C158: Farm Rich (4) | D158: 37722 | F158: 480/cs | G158: 120 | H158: 50 | I158: =ROUND(H158*G158/G158,2) -> 50 | J158: Cs | K158: 33.5 | L158: =IF(OR(ISBLANK(K158),K158=0,H158=0,ISBLANK(H158)),,ROUND(K158+$L$3,2)) -> 33.5 | M158: =ROUND(I158*L158,2) -> 1675 | N158: =ROUND(L158/G158,4) -> 0.2792
B159: Frozen, heat and serve, 150-250 calories with no more than 2 g sat fat | C159: Krusteaz | D159: 68615160346 | F159: 176/.78z | G159: 44 | I159: =ROUND(H158*G158/G159,2) -> 136.36 | J159: Cs | L159: =IF(OR(ISBLANK(K159),K159=0,H159=0,ISBLANK(H159)),,ROUND(K159+$L$3,2)) -> 0 | M159: =ROUND(I159*L159,2) -> 0 | N159: =ROUND(L159/G159,4) -> 0
B160: and 350 mg sodium, CN labeled for 4 (four) sticks to provide min. 2 OEG | C160: Right Start | D160: RS8627 | F160: 85/3.0 | G160: 85 | I160: =ROUND(H158*G158/G160,2) -> 70.59 | J160: Cs | L160: =IF(OR(ISBLANK(K160),K160=0,H160=0,ISBLANK(H160)),,ROUND(K160+$L$3,2)) -> 0 | M160: =ROUND(I160*L160,2) -> 0 | N160: =ROUND(L160/G160,4) -> 0
B161: Possible Allergens: Egg, Soy, Milk and Wheat
A162: 28028 | B162: French Toast, Mini, WGR IW | C162: Eggo Mini French Toast Bites | F162: 72/3.03z | G162: 72 | I162: =ROUND($H$162*$G$162/G162,2) -> 0 | J162: Cs | K162: 24.5 | L162: =IF(OR(ISBLANK(K162),K162=0,H162=0,ISBLANK(H162)),,ROUND(K162+$L$3,2)) -> 0 | M162: =ROUND(I162*L162,2) -> 0 | N162: =ROUND(L162/G162,4) -> 0
B163: Frozen, heat and serve, No HFCS, Contains not more than 200 mg sodium | C163: Chocolate Chip | D163: 38000-80801
B164: and O trans fat. One package equals 2 OEG | C164: Original Maple | D164: 38000-80693
A166: 28029 | B166: French Toast, Mini, WGR IW | C166: Pillsbury | F166: 72/2.64z | G166: 72 | I166: =ROUND($H$166*$G$166/G166,2) -> 0 | J166: Cs | K166: 24.53 | L166: =IF(OR(ISBLANK(K166),K166=0,H166=0,ISBLANK(H166)),,ROUND(K166+$L$3,2)) -> 0 | M166: =ROUND(I166*L166,2) -> 0 | N166: =ROUND(L166/G166,4) -> 0
B167: Frozen, heat and serve, No HFCS, Contains not more than 200 mg sodium | C167: Cinnamon Rush | D167: 137309
B168: and O trans fat. One package equals 2 OEG | C168: Triple Berry Blast | D168: 137308
A170: 28030 | B170: Strudel Stick, Fruit Filled | C170: Pillsbury | F170: 72/2.29z | G170: 72 | H170: 200 | I170: =ROUND(H170*G170/G170,2) -> 200 | J170: Cs | K170: 29.35 | L170: =IF(OR(ISBLANK(K170),K170=0,H170=0,ISBLANK(H170)),,ROUND(K170+$L$3,2)) -> 29.35 | M170: =ROUND(I170*L170,2) -> 5870 | N170: =ROUND(L170/G170,4) -> 0.4076
B171: Frozen. Heat and serve. Whole grain rich. No more than 6 g | C171: Frudel Apple Strudel | D171: 127852000
B172: fat and 280 mg sodium per serving. 0 trans fat. One serving | C172: Frudel Cherry Strudel | D172: 127851000
B173: provides 2 oz Equivalent Grains
A175: 28031 | B175: Honey Bun, IW | C175: Super Bakery | F175: 80/2.75z | G175: 80 | H175: 50 | I175: =ROUND(H175*G175/G175,2) -> 50 | J175: Cs | K175: 21.6 | L175: =IF(OR(ISBLANK(K175),K175=0,H175=0,ISBLANK(H175)),,ROUND(K175+$L$3,2)) -> 21.6 | M175: =ROUND(I175*L175,2) -> 1080 | N175: =ROUND(L175/G175,4) -> 0.27
B176: Frozen, thaw and serve, WGR, One serving provides 2 OEG | C176: Goody Bun | D176: 6060
A178: 28032 | B178: Loaf, Mini, IW, | C178: Super Bakery | F178: 120/2.0z | G178: 120 | I178: =ROUND(H178*G178/G178,2) -> 0 | J178: Cs | K178: 31.24 | L178: =IF(OR(ISBLANK(K178),K178=0,H178=0,ISBLANK(H178)),,ROUND(K178+$L$3,2)) -> 0 | M178: =ROUND(I178*L178,2) -> 0 | N178: =ROUND(L178/G178,4) -> 0
B179: Frozen, thaw and serve, WGR, One serving provides 1 OEG | C179: Blueberry | D179: 7055
B180: 1 serving provides 1 oz equivalent grain | C180: Banana | D180: 7056
C181: Apple Cinnamon | D181: 7057
A182: 28033 | B182: Muffins, IW | C182: COOL MUFFINS | F182: 96/1.8z | G182: 96 | I182: =ROUND($H$182*$G$182/G182,2) -> 0 | J182: Cs | K182: 0 | L182: =IF(OR(ISBLANK(K182),K182=0,H182=0,ISBLANK(H182)),,ROUND(K182+$L$3,2)) -> 0 | M182: =ROUND(I182*L182,2) -> 0 | N182: =ROUND(L182/G182,4) -> 0
B183: Frozen, thaw and serve, One serving provides 1 OEG | C183: Cinnamon | D183: 30921
C184: Blueberry | D184: 30727
C185: Apple | D185: 30720
C186: Banana | D186: 30723
C187: Super Bakery | F187: 72/2.0z | G187: 72 | I187: =ROUND($H$182*$G$182/G187,2) -> 0 | J187: Cs | K187: 16.2 | L187: =IF(OR(ISBLANK(K187),K187=0,H182=0,ISBLANK(H182)),,ROUND(K187+$L$3,2)) -> 0 | M187: =ROUND(I187*L187,2) -> 0 | N187: =ROUND(L187/G187,4) -> 0
C188: Blueberry | D188: 9050
C189: Banana | D189: 9052
A191: 28034 | B191: Muffins, IW | C191: Super Bakery | F191: 96/2.0z | G191: 96 | I191: =ROUND(H191*G191/G191,2) -> 0 | J191: Cs | K191: 33.06 | L191: =IF(OR(ISBLANK(K191),K191=0,H191=0,ISBLANK(H191)),,ROUND(K191+$L$3,2)) -> 0 | M191: =ROUND(I191*L191,2) -> 0 | N191: =ROUND(L191/G191,4) -> 0
B192: Frozen, individually wrapped Thaw & Serve muffin. Must | C192: Super Muffin Choc withCreme Filling | D192: 9066
B193: conform to USDA Child Nutrition Program specifications and
B194: meet 1 oz grain equivalent. Made with 51% whole grain wheat
B195: flour.
B196: No Tropical Oils, Peanut Free Product. Made in the USA.
B197: One serving provides 1 OEG
A198: 28035 | B198: Muffins, Reduced Fat | C198: Otis Spunkmeyer | F198: 72/2.0z | G198: 72 | H198: 50 | I198: =ROUND(H198*G198/G198,2) -> 50 | J198: Cs | L198: =IF(OR(ISBLANK(K198),K198=0,H198=0,ISBLANK(H198)),,ROUND(K198+$L$3,2)) -> 0 | M198: =ROUND(I198*L198,2) -> 0 | N198: =ROUND(L198/G198,4) -> 0
B199: 30% or less of calories from fat, 30% or less by weight of added sugar. | C199: Wild Blueberry | D199: 10143
B200: Individually Wrapped | C200: Banana | D200: 10144
B201: One muffin provides 1.0 oz Equivalent grain | C201: Chocolate Chocolate Chip | D201: 10145
C202: Apple Cinnamon | D202: 10146
C203: Smart Choice | F203: 96/2.0z | G203: 96 | I203: =ROUND(H198*G198/G203,2) -> 37.5 | J203: Cs | K203: 19 | L203: =IF(OR(ISBLANK(K203),K203=0,H203=0,ISBLANK(H203)),,ROUND(K203+$L$3,2)) -> 0 | M203: =ROUND(I203*L203,2) -> 0 | N203: =ROUND(L203/G203,4) -> 0
C204: Blueberry | D204: 2661
C205: Apple Cinnamon | D205: 2666
C206: Chocolate Chip | D206: 2670
C207: Banana | D207: 2675
A208: 28036 | B208: Muffins, Reduced Fat | C208: Chef Pierre WG (Sara Lee) | F208: 48/2oz | G208: 48 | I208: =ROUND(H208*G208/G208,2) -> 0 | J208: Cs | K208: 12.5 | L208: =IF(OR(ISBLANK(K208),K208=0,H208=0,ISBLANK(H208)),,ROUND(K208+$L$3,2)) -> 0 | M208: =ROUND(I208*L208,2) -> 0 | N208: =ROUND(L208/G208,4) -> 0
B209: 30% or less of calories from fat, 30% or less by weight of added sugar. | C209: Blueberry | D209: 8860
B210: Individually Wrapped, Muffin provides 1.0 OEG | C210: Banana | D210: 8861
A211: 28037 | B211: Muffin, Egg and Cheese on a WG English | C211: Advanced Pierre | D211: 10000068243 | F211: 96/3.30z | G211: 96 | I211: =ROUND(H211*G211/G211,2) -> 0 | J211: Cs | K211: 55.5 | L211: =IF(OR(ISBLANK(K211),K211=0,H211=0,ISBLANK(H211)),,ROUND(K211+$L$3,2)) -> 0 | M211: =ROUND(I211*L211,2) -> 0 | N211: =ROUND(L211/G211,4) -> 0
B212: Frozen, WGR, 200-300 calories and not more than 4 g saturated fat
B213: and 400 mg sodium per svg. One portion to provide 1 oz. M/MA and 2 OEG
B214: Possible Allergens: Egg, Wheat, Milk and Soy
A215: 28038 | B215: Muffin Top, Frozen bater Ready to bake | C215: Pillsubry/General Mills | F215: 112/2.1 z | G215: 112 | I215: =ROUND(H215*G215/G215,2) -> 0 | J215: Cs | K215: 29 | L215: =IF(OR(ISBLANK(K215),K215=0,H215=0,ISBLANK(H215)),,ROUND(K215+$L$3,2)) -> 0 | M215: =ROUND(I215*L215,2) -> 0 | N215: =ROUND(L215/G215,4) -> 0
B216: Frozen WGR, muffin top batter frozen in | C216: Blueberry | D216: 111113000
B217: pre-portioned freezer to oven format. no artificial flavors, no colors from | C217: Chocolate Chip | D217: 111114000
B218: artificial sources, and no high fructose corn syrup.
B219: Each top contribuites 1.0 OEG
A220: 28039 | B220: Muffin Top WGR Frz IW | C220: Beuna Vista | D220: 120/3.2z | F220: 120/.3.2z | G220: 120 | I220: =ROUND(H220*G220/G220,2) -> 0 | J220: Cs | K220: 46 | L220: =IF(OR(ISBLANK(K220),K220=0,H220=0,ISBLANK(H220)),,ROUND(K220+$L$3,2)) -> 0 | M220: =ROUND(I220*L220,2) -> 0 | N220: =ROUND(L220/G220,4) -> 0
B221: Cooked frozen WGR muffin top packed individual pieces in | C221: Blueberry | E221: 63136
B222: case. Ready to thaw and serve. Provides 2 OEG per serving | C222: Chocolate Chip | E222: 63186
A225: 28040 | B225: Pancake Bowl with Fruit, IW | C225: Buena Vista | F225: 72/3.8z | G225: 72 | I225: =ROUND(H225*G225/G225,2) -> 0 | J225: Cs | K225: 52.5 | L225: =IF(OR(ISBLANK(K225),K225=0,H225=0,ISBLANK(H225)),,ROUND(K225+$L$3,2)) -> 0 | M225: =ROUND(I225*L225,2) -> 0 | N225: =ROUND(L225/G225,4) -> 0
B226: Frozen, 200-300 caories and not mot more than 3 gm saturated fat and 400 mg of | C226: Apple | D226: 94010
B227: sodium per serving. One portion to provide 2 OEG and 1/2 cup fruit, WGR | C227: Blueberry | D227: 94020
... 95 more rows

Sheet Smart Snacks
B1: ='Recap Sheet'!A2 -> School Food Authority or Agency Name: | F1: ='Recap Sheet'!A3 -> Bidder's Name:
A2: 30001 | B2: ='Recap Sheet'!B2 -> Marion County School District | C2: Return to Recap Sheet | F2: ='Recap Sheet'!B3 -> 0
A3: 32000 | B3: Description | C3: Approved | G3: Firm Fixed Fee | L3: ='Recap Sheet'!B4 -> 0
A4: SCPA | C4: Brand Name | D4: Manufacturers | E4: Distributor | F4: Vendor | G4: Svgs | H4: Est. | I4: Bid | J4: Bid | K4: Unit | L4: Unit Price | M4: Total | N4: Cost per
A5: Code | C5: or Manufacturer | D5: Code | E5: Code | F5: Pack | G5: per unit | H5: Bid Qty | I5: Qty | J5: Unit | K5: Price | L5: plus Fee | M5: Price | N5: Unit
B6: Smart Snack Items
A8: 30001 | B8: Chips Snacks, Single Serve. IW | C8: Frito Lay | F8: 104/.875z | G8: 104 | H8: 50 | I8: =ROUND(H8*G8/G8,2) -> 50 | J8: Cs | K8: 26.18 | L8: =IF(OR(ISBLANK(K8),K8=0,H8=0,ISBLANK(H8)),,ROUND(K8+$L$3,2)) -> 26.18 | M8: =ROUND(I8*L8,2) -> 1309 | N8: =ROUND(L8/G8,4) -> 0.2517
B9: 0 trans fat, WGR | C9: Baked Cheetos 1.25OEG | D9: 62933 | F9: 104/.875z | G9: 104
C10: 36098 Cheetos Chili Cheese 1.25 OEG | D10: 36098 | F10: 104/1z | G10: 104
B11: SMART SNACK COMPLIANT | C11: 36308 Kid's Mix 1.0 OEG | D11: 36308 | F11: 104/.875z | G11: 104
C12: 43578 Fantastix Flamin Hot 1.25 OEG | D12: 43578 | F12: 104/1z | G12: 104
A13: 30002 | B13: Chips/Snacks, Single Serve, IW, | C13: Frito-Lay | F13: 72/.875z | G13: 72 | I13: =ROUND(H13*G13/G13,2) -> 0 | J13: Cs | K13: 18.12 | L13: =IF(OR(ISBLANK(K13),K13=0,H13=0,ISBLANK(H13)),,ROUND(K13+$L$3,2)) -> 0 | M13: =ROUND(I13*L13,2) -> 0 | N13: =ROUND(L13/G13,4) -> 0
B14: 0 Trans fat, Gluten free, Reduced Fat WGR | C14: 42537 Baked Tostitos Scoops | D14: 42537
B15: SMART SNACK COMPLIANT
A16: 30003 | B16: Chips/Snacks , Single Serve, IW | C16: Frito Lay | F16: 104/.875z | G16: 104 | H16: 50 | I16: =ROUND(H16*G16/G16,2) -> 50 | J16: Cs | K16: 26.18 | L16: =IF(OR(ISBLANK(K16),K16=0,H16=0,ISBLANK(H16)),,ROUND(K16+$L$3,2)) -> 26.18 | M16: =ROUND(I16*L16,2) -> 1309 | N16: =ROUND(L16/G16,4) -> 0.2517
B17: Gluten Free, Reduced Fat, Low Sodium, WGR | C17: 18792 RF Tostitos Crispy Rounds | D17: 18792
B18: SMART SNACK COMPLIANT
A19: 30004 | B19: Chips/Snacks, Single Serve, IW, Heartzel Pretzels WGR | C19: Frito Lay | F19: 104/.7z | G19: 104 | I19: =ROUND(H19*G19/G19,2) -> 0 | J19: Cs | K19: 26.18 | L19: =IF(OR(ISBLANK(K19),K19=0,H19=0,ISBLANK(H19)),,ROUND(K19+$L$3,2)) -> 0 | M19: =ROUND(I19*L19,2) -> 0 | N19: =ROUND(L19/G19,4) -> 0
B20: SMART SNACK COMPLIANT | C20: 15940 Heartzel Pretzel | D20: 15940
A21: 30005 | B21: Chips/Snacks, Single Serve, IW, Reduced Fat | C21: Frito Lay | F21: 72/1z | G21: 72 | I21: =ROUND(H21*G21/G21,2) -> 0 | J21: Cs | K21: 18.12 | L21: =IF(OR(ISBLANK(K21),K21=0,H21=0,ISBLANK(H21)),,ROUND(K21+$L$3,2)) -> 0 | M21: =ROUND(I21*L21,2) -> 0 | N21: =ROUND(L21/G21,4) -> 0
B22: 0 trans fat, WGR | C22: 31748 Doritos Nacho Cheesier, Red Fat | D22: 31748
B23: SMART SNACK COMPLIANT | C23: 36096 Doritos Cooler Ranch, Red Fat | D23: 36096
C24: 49093 Doritos Spicy/Swt Nacho, Red Fat | D24: 49093
C25: 62829 Doritos Flamas | D25: 62829
A26: 30006 | B26: Chips/Snacks, Large Single Serve, Baked, IW | C26: Baked Lays | F26: 64/1.125z | G26: 64 | I26: =ROUND(H26*G26/G26,2) -> 0 | J26: Cs | K26: 24.77 | L26: =IF(OR(ISBLANK(K26),K26=0,H26=0,ISBLANK(H26)),,ROUND(K26+$L$3,2)) -> 0 | M26: =ROUND(I26*L26,2) -> 0 | N26: =ROUND(L26/G26,4) -> 0
C27: 44396 Baked Lays Regular Flavor (GF) | D27: 44396
B28: 0 trans fat | C28: 44395 Baked Lays BBQ | D28: 44395
B29: SMART SNACK COMPLIANT | C29: 44398 Baked Lays Sour Cream & Onion | D29: 44398
A30: 30007 | B30: Chips/Snacks, Single Serve, Baked, IW | C30: Baked Lays | F30: 60/.875z | G30: 60 | H30: 100 | I30: =ROUND(H30*G30/G30,2) -> 100 | J30: Cs | K30: 14.59 | L30: =IF(OR(ISBLANK(K30),K30=0,H30=0,ISBLANK(H30)),,ROUND(K30+$L$3,2)) -> 14.59 | M30: =ROUND(I30*L30,2) -> 1459 | N30: =ROUND(L30/G30,4) -> 0.2432
B31: 0 trans fat | C31: 33625 Baked Lays Regular Flavor (GF) | D31: 33625
B32: SMART SNACK COMPLIANT | C32: 32078 Baked BBQ | D32: 32078
C33: 33627 Baked Sour Cream and Onion | D33: 33627
A34: 30008 | B34: Chips/Snacks, Tortilla Chips, Single Serve, IW, White Nacho WGR | C34: (18-19) Doritos 67609 | D34: 67609 | F34: 72/1.oz | G34: 72 | H34: 50 | I34: =ROUND(H34*G34/G34,2) -> 50 | J34: Cs | K34: 19.32 | L34: =IF(OR(ISBLANK(K34),K34=0,H34=0,ISBLANK(H34)),,ROUND(K34+$L$3,2)) -> 19.32 | M34: =ROUND(I34*L34,2) -> 966 | N34: =ROUND(L34/G34,4) -> 0.2683
B35: Contains 100-150 calories and no more than 5 gm of fat and 1 gm sat fat
B36: per serving SMART SNACK COMPLIANT
B37: Possible Allergens: Milk
A38: 30009 | B38: Chips, Snacks, Single Serve IW, Onion Ring, Baked | C38: Funyuns | D38: 66689 | F38: 104/.75z | G38: 104 | H38: 25 | I38: =ROUND(H38*G38/G38,2) -> 25 | J38: Cs | K38: 26.18 | L38: =IF(OR(ISBLANK(K38),K38=0,H38=0,ISBLANK(H38)),,ROUND(K38+$L$3,2)) -> 26.18 | M38: =ROUND(I38*L38,2) -> 654.5 | N38: =ROUND(L38/G38,4) -> 0.2517
B39: Contains 100-150 calories and no more than 4 gm of fat and 1 gm sat fat
B40: Meets 1 OEG SMART SNACK COMPLIANT
A42: 30010 | B42: Chips/Snacks, Single Serve, IW Kettle RF Salt and Vinegar | C42: (18-19) Lay's 25113 | D42: 25113 | F42: 64/1.375z | G42: 64 | I42: =ROUND(H42*G42/G42,2) -> 0 | J42: Cs | K42: 24.5 | L42: =IF(OR(ISBLANK(K42),K42=0,H42=0,ISBLANK(H42)),,ROUND(K42+$L$3,2)) -> 0 | M42: =ROUND(I42*L42,2) -> 0 | N42: =ROUND(L42/G42,4) -> 0
B43: Contains 2 gm or less of sat fat and 200 mg sodium per serving
B44: SMART SNACK COMPLIANT
B45: Possible Allergens: None Listed
A46: 30011 | B46: Crackers, WG Cheese Cracker | C46: Sunshine | F46: 175/.75z | G46: 175 | H46: 50 | I46: =ROUND($H$46*$G$46/G46,2) -> 50 | J46: Cs | K46: 27.5 | L46: =IF(OR(ISBLANK(K46),K46=0,H46=0,ISBLANK(H46)),,ROUND(K46+$L$3,2)) -> 27.5 | M46: =ROUND(I46*L46,2) -> 1375 | N46: =ROUND(L46/G46,4) -> 0.1571
B47: One serving provides 1 oz. OEG Contains: Milk Wheat and Soy | C47: Original Cheez-It | D47: 24100-79263
B48: Discontinued Flavor | C48: Atomic Cheddar | D48: 24100-10238
A49: 30012 | B49: Cookie, Whole Grain, IW | C49: MJM Marketing | F49: 300/1.0z | G49: 300 | H49: 25 | I49: =ROUND(H49*G49/G49,2) -> 25 | J49: Cs | K49: 36 | L49: =IF(OR(ISBLANK(K49),K49=0,H49=0,ISBLANK(H49)),,ROUND(K49+$L$3,2)) -> 36 | M49: =ROUND(I49*L49,2) -> 900 | N49: =ROUND(L49/G49,4) -> 0.12
B50: 0 trans fat, HUSSC Gold Approved, No peanuts or tree nuts | C50: Chocolate | D50: 402001
B51: Assorted flavors, Ready to eat | C51: Apple Cinnamon | D51: 403001
C52: Vanilla | D52: 404001
C53: Strawberry Waffle | D53: 405001
C54: Berry | D54: 401001
B55: Contains: Wheat | C55: Maple Waffle | D55: 408001
C56: Apple Cinnamon Waffle | D56: 423001
A57: 30013 | B57: Crackers, Graham, 3 Count, | C57: MJM Marketing | F57: 150/3ct | G57: 150 | H57: 25 | I57: =ROUND(H57*G57/G57,2) -> 25 | J57: Cs | K57: 15.9 | L57: =IF(OR(ISBLANK(K57),K57=0,H57=0,ISBLANK(H57)),,ROUND(K57+$L$3,2)) -> 15.9 | M57: =ROUND(I57*L57,2) -> 397.5 | N57: =ROUND(L57/G57,4) -> 0.106
B58: No Nuts/Peanuts, Meets 1 OEG | C58: Honey Graham | D58: 300151
B59: Possible Allergens: Wheat | C59: Cinnamon Graham | D59: 308151
A60: 30014 | B60: Crackers, Graham, 3 Count, Single Serve | C60: Keebler | F60: 150/3ct | G60: 150 | H60: 25 | I60: =ROUND(H60*G60/G60,2) -> 25 | J60: Cs | K60: 15.45 | L60: =IF(OR(ISBLANK(K60),K60=0,H60=0,ISBLANK(H60)),,ROUND(K60+$L$3,2)) -> 15.45 | M60: =ROUND(I60*L60,2) -> 386.25 | N60: =ROUND(L60/G60,4) -> 0.103
B61: No Nuts/Peanuts, Meets 1 OEG | C61: Graham | D61: 30100-91822
B62: Possible Allergens: Wheat
A63: 30015 | B63: Crackers, Graham, Bug Shaped | C63: Keebler | F63: 210/1.0z | G63: 210 | H63: 25 | I63: =ROUND(H63*G63/G63,2) -> 25 | J63: Cs | K63: 39.2 | L63: =IF(OR(ISBLANK(K63),K63=0,H63=0,ISBLANK(H63)),,ROUND(K63+$L$3,2)) -> 39.2 | M63: =ROUND(I63*L63,2) -> 980 | N63: =ROUND(L63/G63,4) -> 0.1867
B64: No Nuts/Peanuts, Meets 1 OEG | C64: Graham | D64: 30100-55644
B65: Possible Allergens: Wheat
A66: 30016 | B66: Crackers, Graham, Elf Shape | C66: Keebler | F66: 150/3ct | G66: 150 | H66: 25 | I66: =ROUND(H66*G66/G66,2) -> 25 | J66: Cs | K66: 23.79 | L66: =IF(OR(ISBLANK(K66),K66=0,H66=0,ISBLANK(H66)),,ROUND(K66+$L$3,2)) -> 23.79 | M66: =ROUND(I66*L66,2) -> 594.75 | N66: =ROUND(L66/G66,4) -> 0.1586
B67: No Nuts/Peanuts, Meets 1 OEG | C67: Original | D67: 30100-40213
C68: Cinnamon | D68: 30100-40221
B69: Possible Allergens: Wheat | C69: Chocolate | D69: 30100-40239
A70: 30017 | B70: Crackers, Animal | C70: Keebler Emoji | D70: 30100-12695 | F70: 210/1.0z | G70: 210 | H70: 150 | I70: =ROUND(H70*G70/G70,2) -> 150 | J70: Cs | K70: 39.2 | L70: =IF(OR(ISBLANK(K70),K70=0,H70=0,ISBLANK(H70)),,ROUND(K70+$L$3,2)) -> 39.2 | M70: =ROUND(I70*L70,2) -> 5880 | N70: =ROUND(L70/G70,4) -> 0.1867
B71: Meets 1 OEG SMART SNACK COMPLIANT
B72: Possible Allergens: Wheat and Soy
A73: 30018 | B73: Cupcake, IW, 1.5oz | C73: Super Bakery | F73: 72/1.5z | G73: 72 | H73: 50 | I73: =ROUND(H73*G73/G73,2) -> 50 | J73: Cs | K73: 21.88 | L73: =IF(OR(ISBLANK(K73),K73=0,H73=0,ISBLANK(H73)),,ROUND(K73+$L$3,2)) -> 21.88 | M73: =ROUND(I73*L73,2) -> 1094 | N73: =ROUND(L73/G73,4) -> 0.3039
B74: Frozen, Whole Grain rich Muffin wrapped in printed film. | C74: Happy Birthday Chocolate | D74: 9478
B75: Thaw and Serve | C75: Happy Birthday Vanilla | D75: 9479
B76: Possible Allergens: Wheat, Eggs, Milk, Soy | C76: Let's Celebrate Chocolate | D76: 9488
B77: Peanuts present in facility | C77: Let's Celebrate Vanilla | D77: 9489
A78: 30019 | B78: Roll, Sweet Roll, Whole Grain, IW | C78: Hadley Farms | F78: 60/1.5z | G78: 60 | H78: 50 | I78: =ROUND(H78*G78/G78,2) -> 50 | J78: Cs | K78: 12.47 | L78: =IF(OR(ISBLANK(K78),K78=0,H78=0,ISBLANK(H78)),,ROUND(K78+$L$3,2)) -> 12.47 | M78: =ROUND(I78*L78,2) -> 623.5 | N78: =ROUND(L78/G78,4) -> 0.2078
B79: Frozen, Meet 1 OEG | C79: Cinnamon Roll Un-Iced | D79: 0670IW
C80: Iced Cinnamon Roll | D80: 1670IW
C81: Sweet Potato Swirl Un-Iced | D81: 0370IW
C82: Sweet Potato Iced Swirl | D82: 1370IW
C83: Pumpkin Un-Iced | D83: 06731W
B84: Contains: Milk, Soy, Wheat | C84: Pumpkin, Iced | D84: 13731W
A85: 30020 | B85: Fruit Bar | C85: Outshine (Nestles) | F85: 6/9 each | G85: 54 | I85: =ROUND(H85*G85/G85,2) -> 0 | J85: Cs | K85: 25.13 | L85: =IF(OR(ISBLANK(K85),K85=0,H85=0,ISBLANK(H85)),,ROUND(K85+$L$3,2)) -> 0 | M85: =ROUND(I85*L85,2) -> 0 | N85: =ROUND(L85/G85,4) -> 0
B86: Frozen, No GMO, No artificial flavors, No HFCS, 0 sodium, less than 100 | C86: Strawberry | D86: 61004
B87: calories per serving, fat free | C87: Mango | D87: 75150
A89: 30021 | B89: Marshmallow Rice Treat , IW | C89: Kellogg's | F89: 80/1.4z | G89: 80 | H89: 100 | I89: =ROUND(H89*G89/G89,2) -> 100 | J89: Cs | K89: 28.5 | L89: =IF(OR(ISBLANK(K89),K89=0,H89=0,ISBLANK(H89)),,ROUND(K89+$L$3,2)) -> 28.5 | M89: =ROUND(I89*L89,2) -> 2850 | N89: =ROUND(L89/G89,4) -> 0.3563
B90: Made from Whole Grain Rice Cereal Meets 1 OEG | C90: Rice Crispie Treat Gluten Free | D90: 38000-11052
B91: Contains: Milk and Soy | C91: Rice Crispie Treat -Chocolate Chip | D91: 38000-14567
A92: 30022 | B92: Marshmallow Rice Treat, IW | C92: (18-19) Kellogg's | F92: 600/.42z | G92: 600 | I92: =ROUND(H92*G92/G92,2) -> 0 | J92: Cs | K92: 75 | L92: =IF(OR(ISBLANK(K92),K92=0,H92=0,ISBLANK(H92)),,ROUND(K92+$L$3,2)) -> 0 | M92: =ROUND(I92*L92,2) -> 0 | N92: =ROUND(L92/G92,4) -> 0
B93: Made from Whole Grain Brown Rice Cereal, Meets .25 OEG | C93: Original | D93: 38000-14540
B94: Contains: Milk, Soy | C94: Cocoa | D94: 38000-18461
A95: 30023 | B95: Snack, Breakfast Snack, Whole Grain Rich | C95: Super Bakery | F95: 80/1.9z | G95: 80 | H95: 50 | I95: =ROUND(H95*G95/G95,2) -> 50 | J95: Cs | K95: 24.33 | L95: =IF(OR(ISBLANK(K95),K95=0,H95=0,ISBLANK(H95)),,ROUND(K95+$L$3,2)) -> 24.33 | M95: =ROUND(I95*L95,2) -> 1216.5 | N95: =ROUND(L95/G95,4) -> 0.3041
B96: Frozen, I/W, thaw and serve, meets 1 OEG | C96: Ultra Power Cocoa | D96: 18200
C97: MVP | D97: 18300
C98: Super Donut | D98: 18350
A99: 30024 | B99: Snack, Popcorn Puff | C99: Pirates Booty | F99: 24/.75z | G99: 24 | I99: =ROUND(H99*G99/G99,2) -> 0 | J99: Cs | K99: 10.08 | L99: =IF(OR(ISBLANK(K99),K99=0,H99=0,ISBLANK(H99)),,ROUND(K99+$L$3,2)) -> 0 | M99: =ROUND(I99*L99,2) -> 0 | N99: =ROUND(L99/G99,4) -> 0
B100: made from rice and Corn, gluten-free, Nut free | C100: Aged White Cheddar | D100: 81662407
B101: Contains 10% DV Vitamin D
B102: Possible Allergens: Milk
A103: 30025 | B103: Snack, Sunflower Seeds with Honey Roasted | C103: Sunrich | D103: 1231780 | F103: 150/1.2z | G103: 150 | I103: =ROUND(H103*G103/G103,2) -> 0 | J103: Cs | K103: 29.79 | L103: =IF(OR(ISBLANK(K103),K103=0,H103=0,ISBLANK(H103)),,ROUND(K103+$L$3,2)) -> 0 | M103: =ROUND(I103*L103,2) -> 0 | N103: =ROUND(L103/G103,4) -> 0
B104: Meets `1 M/MA 100-200 calories with no more than 2 g saturated fat and
B105: 75 mg sodium per serving
B106: Possible Allergens: None Listed
A107: 30026 | B107: Snack, Graham Sticks, Cinnamon, Baked, IW | C107: Keebler Cinnamon Scoobydoo | D107: 30100-50689 | F107: 210/1.0z | G107: 210 | I107: =ROUND(H107*G107/G107,2) -> 0 | J107: Cs | K107: 39.2 | L107: =IF(OR(ISBLANK(K107),K107=0,H107=0,ISBLANK(H107)),,ROUND(K107+$L$3,2)) -> 0 | M107: =ROUND(I107*L107,2) -> 0 | N107: =ROUND(L107/G107,4) -> 0
B108: Meets 1 OEG, 0 trans fats, less than 35% added sugar by weight
A110: 30027 | B110: Rice, Vegetable Fried Rice | C110: Minh | F110: 84/5.9z | G110: 84 | I110: =ROUND(H110*G110/G110,2) -> 0 | J110: Cs | K110: 48.2 | L110: =IF(OR(ISBLANK(K110),K110=0,H110=0,ISBLANK(H110)),,ROUND(K110+$L$3,2)) -> 0 | M110: =ROUND(I110*L110,2) -> 0 | N110: =ROUND(L110/G110,4) -> 0
B111: Brown rice, vegetables. No MSG, No preservatives. | C111: WG Vegetable Fried Rice | D111: 69074
B112: Frozen, 6/5lb bag.
B113: Possible Allergens: Wheat or its deirvatives, Soy or its derivatives.
A114: 30028 | B114: Beef Jerky, Low Sodium | C114: Jack Links | F114: 48/.85z | G114: 48 | I114: =ROUND(H114*G114/G114,2) -> 0 | J114: Cs | K114: 52.8 | L114: =IF(OR(ISBLANK(K114),K114=0,H114=0,ISBLANK(H114)),,ROUND(K114+$L$3,2)) -> 0 | M114: =ROUND(I114*L114,2) -> 0 | N114: =ROUND(L114/G114,4) -> 0
B115: Low in fat, Meets Smart Snacks | C115: Original | D115: 10000007721
B116: 0 Trans Fat | C116: Teriyaki | D116: 10000007717
C117: Peppered | D117: 10000007719
A118: 30029 | B118: Crackers, Animal, Baked WGR | C118: Pepperidge Farm Goldfish | F118: 300/.9z | G118: 300 | I118: =ROUND(H118*G118/G118,2) -> 0 | J118: Cs | K118: 39.31 | L118: =IF(OR(ISBLANK(K118),K118=0,H118=0,ISBLANK(H118)),,ROUND(K118+$L$3,2)) -> 0 | M118: =ROUND(I118*L118,2) -> 0 | N118: =ROUND(L118/G118,4) -> 0
B119: <30% calories from fat, <10% from Saturated Fat, 0 Trans Fat, | C119: Cinnamon Grahams | D119: 26830
B120: Made from whole-grain flour, 1 package = 1 grain/bread serving | C120: Vanilla Grahams | D120: 26828
B122: SMART SNACK COMPLIANT
A123: 30030 | B123: Crackers, Cheddar Cheese, Goldfish Shape, Whole Grain | C123: Pepperidge Farms | D123: 18105 | F123: 300/.75z | G123: 300 | H123: 50 | I123: =ROUND(H123*G123/G123,2) -> 50 | J123: Cs | K123: 45.52 | L123: =IF(OR(ISBLANK(K123),K123=0,H123=0,ISBLANK(H123)),,ROUND(K123+$L$3,2)) -> 45.52 | M123: =ROUND(I123*L123,2) -> 2276 | N123: =ROUND(L123/G123,4) -> 0.1517
B124: One package meets one grain/bread serving. 100 calories per pack.
B125: SMART SNACK COMPLIANT
A126: 30031 | B126: Cookies, Mini, Whole Grain, Indv. WGR | C126: Chortles | F126: 100/1z | G126: 100 | H126: 25 | I126: =ROUND(H126*G126/G126,2) -> 25 | J126: Cs | L126: =IF(OR(ISBLANK(K126),K126=0,H126=0,ISBLANK(H126)),,ROUND(K126+$L$3,2)) -> 0 | M126: =ROUND(I126*L126,2) -> 0 | N126: =ROUND(L126/G126,4) -> 0
B127: 0 transfat, low in sugar and calories, No HFCS | C127: Graham | D127: 09535-00005
B128: 1 package = 1 oz eq grain. | C128: Chocolate | D128: 09535- 00004
C129: Kelloggs Gripz, Cookie, Mini | F129: 150/.95z | G129: 150 | I129: =ROUND(H126*G126/G129,2) -> 16.67 | J129: Cs | K129: 23.96 | L129: =IF(OR(ISBLANK(K129),K129=0,H126=0,ISBLANK(H126)),,ROUND(K129+$L$3,2)) -> 23.96 | M129: =ROUND(I129*L129,2) -> 399.41 | N129: =ROUND(L129/G129,4) -> 0.1597
B130: Chortles and Kelloggs products are SMART SNACK COMPLAINT | C130: Cinnamon Graham Bites | D130: 30100-45682
C131: Chocolate Chip Graham | D131: 30100-80741
A132: 30032 | B132: Fruit Snack, Fruit Purees | C132: Welch's | F132: 144/1.55z | G132: 144 | I132: =ROUND(H132*G132/G132,2) -> 0 | J132: Cs | L132: =IF(OR(ISBLANK(K132),K132=0,H132=0,ISBLANK(H132)),,ROUND(K132+$L$3,2)) -> 0 | M132: =ROUND(I132*L132,2) -> 0 | N132: =ROUND(L132/G132,4) -> 0
B133: Pouch pack, 1.55oz, 12% daily value of Fiber. | C133: Mixed Fruit | D133: 14498 | H133: 25
B134: Meets USDA requirement for 10% of Daily Value of one of the following | C134: Berries n Cherries | D134: 14492
B135: nutrients: Calcium, Potassium, Vitamin D, or Dietary fiber.
J137: Lot A Snack total | M137: =SUMIF(M8:M135,">0") -> 24670.41

Sheet Beverages
B1: ='Recap Sheet'!A2 -> School Food Authority or Agency Name: | F1: ='Recap Sheet'!A3 -> Bidder's Name:
A2: 32001 | B2: ='Recap Sheet'!B2 -> Marion County School District | C2: Return to Recap Sheet | F2: ='Recap Sheet'!B3 -> 0
A3: 34000 | B3: Description | C3: Approved | G3: Firm Fixed Fee | L3: ='Recap Sheet'!B4 -> 0
A4: SCPA | C4: Brand Name | D4: Manufacturers | E4: Distributor | F4: Vendor | G4: Svgs | H4: Est. | I4: Bid | J4: Bid | K4: Unit | L4: Unit Price | M4: Total | N4: Cost per
A5: Code | C5: or Manufacturer | D5: Code | E5: Code | F5: Pack | G5: per unit | H5: Bid Qty | I5: Qty | J5: Unit | K5: Price | L5: plus Fee | M5: Price | N5: Unit
B6: Beverages
A8: 32001 | B8: Beverages, Non-Carbonated, Reduced Calorie | C8: Gatorade,G-2 | F8: 24/12z | G8: 24 | H8: 25 | I8: =ROUND(H8*G8/G8,2) -> 25 | J8: Cs | K8: 10.86 | L8: =IF(OR(ISBLANK(K8),K8=0,H8=0,ISBLANK(H8)),,ROUND(K8+$L$3,2)) -> 10.86 | M8: =ROUND(I8*L8,2) -> 271.5 | N8: =ROUND(L8/G8,4) -> 0.4525
B9: Assorted Flavors. Plastic Bottles | C9: Orange | D9: 12204
B10: Sports Drink with Electrolytes | C10: Discontinued by Manufacturer Lemon Lime | D10: 12462
C11: Grape | D11: 12203
B12: SMART SNACK COMPLIANT | C12: Discontinued by Manufacturer Glacier Freeze | D12: 12007
C13: Fruit Punch | D13: 12202
A15: 32002 | B15: Juice, 100% , 10 oz plastic bottles | C15: Welchs | F15: 24/10z | G15: 24 | H15: 100 | I15: =ROUND(H15*G15/G15,2) -> 100 | J15: Cs | K15: 14.54 | L15: =IF(OR(ISBLANK(K15),K15=0,H15=0,ISBLANK(H15)),,ROUND(K15+$L$3,2)) -> 14.54 | M15: =ROUND(I15*L15,2) -> 1454 | N15: =ROUND(L15/G15,4) -> 0.6058
C16: 316-00 Apple Juice | D16: 316-00
C17: 344-00 Orange Juice | D17: 344-00
C18: 354-00 Grape Juice | D18: 354-00
A19: 32003 | B19: Juice, 100%, 11.5 oz cans | C19: Welchs | D19: Welchs | F19: 24/11.5z | G19: 24 | I19: =ROUND(H19*G19/G19,2) -> 0 | J19: Cs | K19: 16.45 | L19: =IF(OR(ISBLANK(K19),K19=0,H19=0,ISBLANK(H19)),,ROUND(K19+$L$3,2)) -> 0 | M19: =ROUND(I19*L19,2) -> 0 | N19: =ROUND(L19/G19,4) -> 0
C20: 379-00 Orange Juice | D20: 379-00
C21: 380-00 Grape Juice | D21: 380-00
C22: 382-00 Apple Juice | D22: 382-00
A24: 32004 | B24: Juice, V Blend, Frozen | C24: V Blend | F24: 70/4 z | G24: 70 | H24: 50 | I24: =ROUND($H$24*$G$24/G24,2) -> 50 | J24: Cs | K24: 11.53 | L24: =IF(OR(ISBLANK(K24),K24=0,H24=0,ISBLANK(H24)),,ROUND(K24+$L$3,2)) -> 11.53 | M24: =ROUND(I24*L24,2) -> 576.5 | N24: =ROUND(L24/G24,4) -> 0.1647
B25: Eco Carton, 100% juice | C25: Dragon Punch 45710 | D25: 45710
B26: Meets 1/2 c Veg | C26: Cherry Star 45712 | D26: 45712
B27: SMART SNACK COMPLIANT | C27: Wango Mango 45711 | D27: 45711
B28: ELEMENTARY APPROVED
A29: 32005 | B29: Juice, 100%, from Concentrate, Frozen | C29: Juice4U Frozen | F29: 70/4 z | G29: 70 | H29: 25 | I29: =ROUND(H29*G29/G29,2) -> 25 | J29: Cs | K29: 8.68 | L29: =IF(OR(ISBLANK(K29),K29=0,H29=0,ISBLANK(H29)),,ROUND(K29+$L$3,2)) -> 8.68 | M29: =ROUND(I29*L29,2) -> 217 | N29: =ROUND(L29/G29,4) -> 0.124
C30: Apple 45715 | D30: 45715
B31: Eco Carton, Meets 1/2 c Fruit | C31: Blue Razz 45716 | D31: 45716
C32: Merry Cherry 45717 | D32: 45717
C33: Purplelicious 45718 | D33: 45718
B34: SMART SNACK COMPLIANT | C34: Citrus Blast 45719 | D34: 45719
B35: ELEMENTARY APPROVED | C35: Twisted Melon 45720 | D35: 45720
A36: 32006 | B36: Juice, 100% Sparkling Juice, 8oz | C36: The Switch | F36: 24/8z | G36: 24 | H36: 20 | I36: =ROUND(H36*G36/G36,2) -> 20 | J36: Cs | K36: 10.48 | L36: =IF(OR(ISBLANK(K36),K36=0,H36=0,ISBLANK(H36)),,ROUND(K36+$L$3,2)) -> 10.48 | M36: =ROUND(I36*L36,2) -> 209.6 | N36: =ROUND(L36/G36,4) -> 0.4367
B37: Canned, No sugar added, No HFCS | C37: 00321 Apple | D37: 321
B38: 8oz provides 2 servings fruit. | C38: 00312 Black Cherry | D38: 312
C39: 00315 Fruit Punch | D39: 315
B40: 00321 Apple (temporarily suspended) | C40: 00313 Grape | D40: 313
B41: 00313 Grape (temporarily suspended) | C41: 00317 Kiwi Berry | D41: 317
B42: 00323 Tropical Pineapple (temporarily suspended) | C42: 00323 Tropical Pineapple | D42: 319
C43: 00314 Orange Tangerine | D43: 314
C44: 00316 Watermelon Strawberry | D44: 316
A45: 32007 | B45: Juice, 100% , 10oz | C45: Naked Juice | F45: 8/10z | G45: 8 | I45: =ROUND(H45*G45/G45,2) -> 0 | J45: Cs | K45: 9.12 | L45: =IF(OR(ISBLANK(K45),K45=0,H45=0,ISBLANK(H45)),,ROUND(K45+$L$3,2)) -> 0 | M45: =ROUND(I45*L45,2) -> 0 | N45: =ROUND(L45/G45,4) -> 0
B46: No Sugar Added. Contains fruit and/or vegetable juice, puree, | C46: 63117 Berry Blast | D46: 63117
C47: 63076 Green Machine | D47: 63076
C48: 63072 Mighty Mango | D48: 63072
C49: 63071 Strawberry Banana | D49: 63071
A51: 32008 | B51: Water, Sparkling | C51: Sparkling Ice | F51: 12/17z | G51: 12 | I51: =ROUND(H51*G51/G51,2) -> 0 | J51: Cs | K51: 8.4 | L51: =IF(OR(ISBLANK(K51),K51=0,H51=0,ISBLANK(H51)),,ROUND(K51+$L$3,2)) -> 0 | M51: =ROUND(I51*L51,2) -> 0 | N51: =ROUND(L51/G51,4) -> 0
